Workbook

Sheet Contents
C3: Contents | F3: Colour Codes | K3: File Name: | M3: =IFERROR(File_name(),"") -> https://d.docs.live.net/f82d64a42721f930/Documents/Copy of UZS_Model 25.02.26.v5.xlsm
G4: Colour of Input Cells | I4: 1234567890
C5: DataBook | K5: Last Save Date | M5: =IFERROR(lastsaved(),"") -> 3/3/2026 12:21:15 PM
G6: Section Titles | I6: TITLE ROW
C7: Summary | G7: Column Letter of Title | I7: B | K7: Last Save By | M7: =IFERROR(last_save_by(),"") -> Tayor Swift
C9: InputC | G9: Colour for Sum Column | I9: 1000000000
D10: Timeline - PV | G10: Column Letter for Sum | I10: A
D11: Timeline - BESS
D12: Timeline - Grid Connection and Substation | G12: True or 1 Colour | I12: TRUE
D13: Timeline - Modernisation | G13: False or 0 Colour | I13: FALSE
D14: Macro-Economic
D15: PV Operations | G15: Links from Other Sheets | I15: 999999999
D16: BESS Operations | G16: Start Column for Link Colour | I16: E
D17: Grid Connection and Substation
D18: PV Cap Exp, Op Exp and Tariff
D19: BESS System - Cap Exp, Op Exp and Tariff
D20: Grid Connection and Subastation - Cap Exp, Op Exp and Tariff
D21: Tax and Depreciation
D22: Financing
D23: Valuation and Re-Financing
D24: Constants
C26: Input S
D27: S-Curve
D28: Inflation
D29: Seasonal Variation from Technical Analysis
C31: Financial Model - Monthly
D32: Timeline - PV
D33: Electricity Generation from PV
D34: Storage Capacity from BESS
D35: Capital Expenditures
D36: Operating Expenses
D37: Revenue and EBITDA - PV
D38: Revenue and EBITDA - BESS
D39: Revenue and EBITDA from Substation and Modenisation
D40: Aggregate Free Cash Flow
D41: Depreciation and Operating Taxes
D42: Debt Sizing
D43: Financing
D44: Solver
D45: Cash Flow Statements
D46: Financial Statements
D47: Valuation and Project sale
C49: Financial Model - Semi-Annual
D50: Timeline - PV
D51: Electricity Generation from PV
D52: Storage Capacity from BESS
D53: Capital Expenditures
D54: Operating Expenses
D55: Revenue and EBITDA - PV
D56: Revenue and EBITDA - BESS
D57: Revenue and EBITDA from Substation and Modenisation
D58: Aggregate Free Cash Flow
D59: Depreciation and Operating Taxes
D60: Debt Sizing
D61: Financing
D62: Solver
D63: Cash Flow Statements
D64: Financial Statements
C66: Annual
D67: Year
D68: Operations
D69: Free Cash Flow
D70: Sources and Uses Before COD
D71: Cash Flow Statements
D72: Financial Statements
D73: Cash Flow Statement

Sheet DataBook
C1: Capex Assumptions | H1: Expected
E2: PV System | F2: 800 | G2: MW AC | J2: price per MWp
E3: inkl Trina Panels, Trina Trackers, Kaco and SMA inverters) | F3: =F2*1.3 -> 1040 | G3: MWp | H3: 533000000 | J3: =H3/F3 -> 512500 | K3: €/MWp | L3: =J3/1000 -> 512.5
E4: DC to AC Ratio | F4: =F3/F2 -> 1.3 | G4: x | J4: price per MW
E6: Degradation in PV | F6: 0.005 | G6: % p.a
E8: PV lifetime | F8: 35
E10: PV O&M | F10: 8000 | G10: €/kWp | L10: =F10/1000 -> 8
E11: Battery O&M | F11: 3500 | G11: €/kW | L11: =F11/1000 -> 3.5
E12: O%M annual escalation | F12: 0.03 | L12: =F12 -> 0.03
E15: BESS | F15: 200 | G15: MW | H15: 45000000 | J15: =H15/F15/F16 -> 112500 | K15: €/kWh | L15: =J15/1000 -> 112.5
E16: Duration | F16: 2 | G16: h
E18: BESS Life in Cycles | F18: 9000
E19: BESS Cycles per Year | F19: 600
E20: BESS Life | F20: =F18/F19 -> 15
E21: BESS PPA | F21: =F20 -> 15
E23: Degradation in Battery | F23: 0.02
E26: Availability | F26: 0.98
E28: Substations | H28: =N97 -> 110000000
E29: Substation per kWp | H29: =H28/F3 -> 105769.2308 | L29: =H29/1000 -> 105.7692308
E31: Gridconnection | H31: =M97 -> 3403561.406
E32: Gridconnection/kWp | H32: =H31/F3 -> 3272.655198 | L32: =H32/1000 -> 3.272655198
E34: Lifetime of Grid Connections
E36: Yield per kWp
E37: Yield per kWac
E38: Performance Ratio
E40: Where is the Yield | F40: see below per site line 209 onwards | G40: Total Capex | H40: =H31+H28+H15+H3 -> 691403561.4
F42: Equity | G42: 0.15 | H42: =G42*H40 -> 103710534.2
F43: Debt | G43: =1-G42 -> 0.85 | H43: =G43*H40 -> 587693027.2
C46: 19 Pumpstations for Modernization
D48: T/r | E48: Nominal | F48: Pump station name | G48: Pump brand | H48: Number of units (donas) | I48: One unit power (kW) | J48: Total power (kW) | K48: Total discharge capacity (m3/sec) | L48: Year of commi ssionin g | M48: Pump station coordinates | N48: Substation name | O48: Substation coordinates | P48: Substation balance | Q48: Age | R48: Invetment Ranking | S48: 140000000 | T48: Ranking by Age + Total Power | U48: Allocated Budget
D49: 1 | E49: Bukhara region | F49: Korovulbozor | G49: 1000V-4/63 | H49: 5 | I49: 3200 | J49: 16000 | K49: 20 | L49: 1997 | M49: 39.556209; 64.681734 | N49: Qoravulbozor 110/35/6 | O49: 39.5550909, 64.68356232 | P49: #REF! | Q49: 29 | R49: 464000 | S49: 0.05379176281 | T49: 4 | U49: 7530846.794 | V49: =D49 -> 1 | W49: =E49 -> Bukhara region | X49: =F49 -> Korovulbozor | Y49: =U49 -> 7530846.794
D50: 2 | E50: Kashkadarya Province | F50: KMK No. 7 | G50: 1600V-10/40 | H50: 2 | I50: 5000 | J50: 10000 | K50: 20 | L50: 1982 | M50: 38.335237; 65.506051 | N50: 7-sonli substation. (220/10 kV) | O50: 38.336398, 65.503530 | P50: Uzbekistan National Electric Grids JSC | Q50: 44 | R50: 440000 | S50: 0.05100943025 | T50: 5 | U50: 7141320.235
D51: 2.1 | E51: Kashkadarya Province | F51: KMK No. 7 | G51: 2400VR-25/25 | H51: 7 | I51: 8000 | J51: 56000 | K51: 175 | L51: 1982 | Q51: 44 | R51: 2464000 | S51: 0.2856528094 | T51: 2 | U51: 39991393.32 | V51: 2 | W51: =E51 -> Kashkadarya Province | X51: =F51 -> KMK No. 7 | Y51: =U51+U50 -> 47132713.55
D52: 3 | E52: Kashkadarya Province | F52: M-1 | G52: D 2500-62 | H52: 5 | I52: 250 | J52: 1250 | K52: 3 | L52: 2004 | M52: 38.499999; 65.693543 | N52: Navbahor substation (35/10 kV) | O52: 38.515912, 65.710188 | P52: Uzbekistan National Electric Grids JSC | Q52: 22 | R52: 27500 | S52: 0.003188089391 | T52: 17 | U52: 446332.5147 | V52: =D52 -> 3 | W52: =E52 -> Kashkadarya Province | X52: =F52 -> M-1 | Y52: =U52 -> 446332.5147
D53: 4 | E53: Kashkadarya Province | F53: M-3-2 | G53: OPV-5-145 E | H53: 6 | I53: 1600 | J53: 9600 | K53: 55.8 | L53: 1982 | M53: 38.751160; 65.853632 | N53: M-3-2 substation (110/6 kV) | O53: 38.751178,65.853573 | P53: Uzbekistan National Electric Grids JSC | Q53: 44 | R53: 422400 | S53: 0.04896905304 | T53: 6 | U53: 6855667.426 | V53: =D53 -> 4 | W53: =E53 -> Kashkadarya Province | X53: =F53 -> M-3-2 | Y53: =U53 -> 6855667.426
D54: 5 | E54: Kashkadarya Province | F54: Denov-1 (Ulugbek-1) | G54: CNS 60-132 | H54: 3 | I54: 45 | J54: 3000 | K54: 0.048 | L54: 2002 | M54: 39.179398; 67.391399 | N54: Palandara substation 35/10 | O54: 39.179029, 67.082863 | P54: Uzbekistan National Electric Grids JSC | Q54: 24 | R54: 72000 | S54: 0.008346997678 | T54: 8 | U54: 1168579.675 | V54: 5 | W54: Kashkadarya Province | X54: Denov-1 (Ulugbek-1) | Y54: 1168579.675
D55: 6 | E55: Kashkadarya Province | F55: Denov-2 (Ulugbek-2) | G55: CNS 60-132 | H55: 3 | I55: 45 | J55: 3000 | K55: 0.048 | L55: 2002 | M55: 39.180207; 67.420525 | Q55: 24 | R55: 72000 | S55: 0.008346997678 | T55: 9 | U55: 1168579.675 | V55: 6 | W55: Kashkadarya Province | X55: Denov-2 (Ulugbek-2) | Y55: 1168579.675
D56: 7 | E56: Surkhandarya Province | F56: Bobotog | G56: DVL1400/900 | H56: 8 | I56: 4500 | J56: 36000 | K56: 32 | L56: 1987 | M56: 37.529176; 67.508279 | N56: Boboto | O56: 37.529176 67.508279 | P56: Uzbekistan National Electric Tarmoklari" JSC | Q56: 39 | R56: 1404000 | S56: 0.1627664547 | T56: 3 | U56: 22787303.66 | V56: 7 | W56: Surkhandarya Province | X56: Bobotog | Y56: 22787303.66
D57: 8 | E57: Surkhandarya Province | F57: Sherobod | G57: OP-10-185G | H57: 6 | I57: 7500 | J57: 45000 | K57: 120 | L57: 1966 | M57: 37.817024; 67.528406 | N57: Sherobod | O57: 37.817024 67.528406 | P57: Uzbekistan National Electric Tarmoklari" JSC | Q57: 60 | R57: 2700000 | S57: 0.3130124129 | T57: 1 | U57: 43821737.81 | V57: 8 | W57: Surkhandarya Province | X57: Sherobod | Y57: 43821737.81
D58: 9 | E58: Surkhandarya Province | F58: Uzbekistan-2 | G58: D 1250-125 | H58: 2 | I58: 630 | J58: 1260 | K58: 0.8 | L58: 1981 | M58: 38.477202; 67.870991 | N58: Khazarbo | O58: 38°28'59.1"N 67°51'07.0"E | P58: "Uzbekistan National Electric Tarmoklari" AZ | Q58: 45 | R58: 56700 | S58: 0.006573260671 | T58: 10 | U58: 920256.494 | V58: 9 | W58: Surkhandarya Province | X58: Uzbekistan-2 | Y58: 920256.494
D59: 10 | E59: Surkhandarya Province | F59: Aibarak-1 | G59: 350D90 | H59: 3 | I59: 250 | J59: 650 | K59: 1.05 | L59: 1970 | M59: 38.279705; 67.788295 | N59: Aibarak | O59: 38.317257, 67.769280 | P59: Uzbekistan National Electric Grids JSC | Q59: 56 | R59: 36400 | S59: 0.004219871048 | T59: 13 | U59: 590781.9467 | V59: 10 | W59: Surkhandarya Province | X59: Aibarak-1 | Y59: 590781.9467
D60: 11 | E60: Surkhandarya Province | F60: Aibarak-2 | G60: 350D90 | H60: 3 | I60: 200 | J60: 532 | K60: 1.05 | L60: 1970 | M60: 38°16'38.3"N; 67°46'12.1" | Q60: 56 | R60: 29792 | S60: 0.00345380215 | T60: 15 | U60: 483532.301 | V60: 11 | W60: Surkhandarya Province | X60: Aibarak-2 | Y60: 483532.301
D61: 12 | E61: Surkhandarya Province | F61: Buri-Zhar 1 | G61: 350D90 | H61: 1 | I61: 110 | J61: 110 | K61: 0.4 | L61: 1972 | M61: 38.259418; 67.783321 | N61: Khurmazor | O61: 38.225442, 67.843156 | P61: Uzbekistan National Electric Grids JSC | Q61: 54 | R61: 5940 | S61: 0.0006886273084 | T61: 23 | U61: 96407.82318
D62: 12.1 | E62: Surkhandarya Province | F62: Buri-Zhar 1 | G62: 300D90 | H62: 2 | I62: 110 | J62: 220 | K62: 0.7 | L62: 1972 | Q62: 54 | R62: 11880 | S62: 0.001377254617 | T62: 20 | U62: 192815.6464 | V62: 12 | W62: =E62 -> Surkhandarya Province | X62: =F62 -> Buri-Zhar 1 | Y62: =U62+U61 -> 289223.4695
D63: 13 | E63: Surkhandarya Province | F63: Buri Zhark 2 | G63: 300D90 | H63: 1 | I63: 110 | J63: 110 | K63: 0.4 | L63: 1972 | M63: 38.263960; 67.775458 | Q63: 54 | R63: 5940 | S63: 0.0006886273084 | T63: 24 | U63: 96407.82318 | V63: 13 | W63: Surkhandarya Province | X63: Buri Zhark 2 | Y63: 96407.82318
D64: 14 | E64: Surkhandarya Province | F64: Dashnabod | G64: 350D90 | H64: 1 | I64: 160 | J64: 160 | K64: 0.4 | L64: 1974 | M64: 38.462527; 67.981481 | N64: Toqchiyon 35/10kv | O64: 38.462763, 67.972754 | P64: "Uzbekistan National Electric Tarmoklari" AZ | Q64: 52 | R64: 8320 | S64: 0.0009645419539 | T64: 22 | U64: 135035.8735
D65: 14.1 | E65: Surkhandarya Province | F65: Dashnabod | G65: 300D90 | H65: 2 | I65: 110 | J65: 242 | K65: 0.6 | L65: 1974 | Q65: 52 | R65: 12584 | S65: 0.001458869705 | T65: 19 | U65: 204241.7587 | V65: 14 | W65: =E65 -> Surkhandarya Province | X65: =F65 -> Dashnabod | Y65: =U65+U64 -> 339277.6323
D66: 15 | E66: Tashkent Province | F66: Bostanlik | G66: 350D-90 | H66: 3 | I66: 160 | J66: 480 | K66: 0.9 | L66: 1981 | M66: 41.578803; 69.810569 | N66: Yangilik substation | O66: 41.578749, 69.810408 | P66: Hydropower plants | Q66: 45 | R66: 21600 | S66: 0.002504099303 | T66: 18 | U66: 350573.9025
D67: 15.1 | E67: Tashkent Province | F67: Bostanlik | G67: 400D-190 | H67: 2 | I67: 110 | J67: 220 | K67: 0.6 | L67: 1981 | Q67: 45 | R67: 9900 | S67: 0.001147712181 | T67: 21 | U67: 160679.7053 | V67: 15 | W67: =E67 -> Tashkent Province | X67: =F67 -> Bostanlik | Y67: =U67+U66 -> 511253.6078
D68: 16 | E68: Tashkent Province | F68: Gazalkent | G68: D 3200-75 | H68: 2 | I68: 400 | J68: 800 | K68: 1.6 | L68: 1981 | M68: 40.728506; 69.178807 | N68: Gazalkent substation | O68: 41.567583, 69.753191 | P68: Hydropower plants | Q68: 45 | R68: 36000 | S68: 0.004173498839 | T68: 14 | U68: 584289.8374
D69: 16.1 | E69: Tashkent Province | F69: Gazalkent | G69: D 4000-95 | H69: 2 | I69: 630 | J69: 1260 | K69: 1.6 | L69: 1981 | Q69: 45 | R69: 56700 | S69: 0.006573260671 | T69: 11 | U69: 920256.494 | V69: 16 | W69: =E69 -> Tashkent Province | X69: =F69 -> Gazalkent | Y69: =U69+U68 -> 1504546.331
D70: 17 | E70: Tashkent Province | F70: Darchon | G70: 350 D 90 | H70: 4 | I70: 160 | J70: 640 | K70: 1 | L70: 1983 | M70: 41.405886; 69.294781 | N70: Darkhon substation | O70: 41.405865, 69.294751 | P70: Electric motors | Q70: 43 | R70: 27520 | S70: 0.003190408001 | T70: 16 | U70: 446657.1202 | V70: =D70 -> 17 | W70: =E70 -> Tashkent Province | X70: =F70 -> Darchon | Y70: =U70 -> 446657.1202
D71: 18 | E71: Farghana Province | F71: Anor | G71: 10NMKx2 | H71: 3 | I71: 630 | J71: 1260 | K71: 0.9 | L71: 1983 | M71: 40.46912; 72.084542 | N71: Bahor substation | O71: 40.469125, 72.084546 | P71: Electricity substations | Q71: 43 | R71: 54180 | S71: 0.006281115752 | T71: 12 | U71: 879356.2053 | V71: 18 | W71: Farghana Province | X71: Anor | Y71: 879356.2053
D72: 19 | E72: Farghana Province | F72: Kolgandarö-1 | G72: D 6300-27 | H72: 9 | I72: 630 | J72: 3730 | K72: 0.9 | L72: 1976 | M72: 40.58773; 70.62633 | N72: Uzok substation | O72: 40.587736, 70.626336 | P72: Hududiy Electric Tarmoklari | Q72: 50 | R72: 186500 | S72: 0.0216210426 | T72: 7 | U72: 3026945.963 | V72: 19 | W72: Farghana Province | X72: Kolgandarö-1 | Y72: 3026945.963
U73: =SUM(U49:U72) -> 140000000 | Y73: =SUM(Y49:Y72) -> 140000000
E74: Sequence of actual implementation | F74: Start
E75: 1 Tashkent Province | F75: 2027-03-01
E76: 2 Kashkadarya Province | F76: =F75+91 -> 2027-05-31 | G76: every 3 months later
E77: 3 Surkhandarya Province | F77: =F76+93 -> 2027-09-01 | G77: every 3 months later
E78: 4 Bukhara region | F78: =F77+91 -> 2027-12-01 | G78: every 3 months later
E79: 5 Farghana Province | F79: =F78+91 -> 2028-03-01 | G79: every 3 months later
C81: 9 PV Stations plus BESS
D83: Additional PV Sites | L83: to be confrimed
E84: Name | F84: Location | G84: Plot Nr | H84: size (ha) | I84: Long/Lat | J84: PV (MW AC) | K84: BESS (MW) | L84: Distance to Grid Connection (m) | M84: Grid Voltage | N84: Substation Costs | O84: Pump Station | P84: Gridconnection and Pumping Station | Q84: Gridconnection and Pumping Station
D85: A | E85: Alat | F85: Bukhara Province; Alat; Amu-Buxoro-1 | G85: 7 | H85: 269 | I85: 1. 39.340906, 64.065981 2. 39.336381, 64.078986 3. 39.315381, 64.064114 4. 39.316369, 64.058831 5. 39.328922, 64.059583 6. 39.335669, 64.061747 | J85: 80 | K85: =J85/4 -> 20 | L85: 800 | M85: 110 | N85: 11000000 | O85: Amu-Buxoro-1 (39.345536, 64.068477) Jondor-1 (39.347814, 64.063419) | P85: “Davlatobod”; 39.346741, 64.069182) Amu-Buxoro-1; (39.345536, 64.068477) | Q85: “Xamza; 3-220/110/6“; (39.35167984 64.0650045) Jondor-1; (39.347814, 64.063419) | AC85: =F85 -> Bukhara Province; Alat; Amu-Buxoro-1
D86: B | E86: Khavast | F86: Jizzakh Province; Khavast; Jizzax-1 | G86: 1 | H86: 169 | I86: 1. 40.248455, 68.773603 2. 40.247552, 68.779825 3. 40.244097, 68.779956 4. 40.241255, 68.783031 5. 40.230228, 68.776898 6. 40.234447, 68.766698 7. 40.239200, 68.769831 8. 40.239789, 68.768795 | J86: 125 | K86: =J86/4 -> 31.25 | L86: 4200 | M86: 110 | N86: 11000000 | O86: 1. Jizzax-1 (40.259658, 68.738706) 2. Jizzax-2 | P86: “Goʻzal” (40.259912, 68.742252)
D87: C | E87: Qiziltepa | F87: Navoi Province; Qiziltepa; Quyimozor | G87: 9 | H87: 180 | I87: 1. 39.836067, 64.683286 2. 39.841419, 64.688114 3. 39.841572, 64.692261 4. 39.832098, 64.695464 5. 39.824228, 64.695347 6. 39.826370, 64.679836 | J87: 75 | K87: 18.75 | L87: 300 | M87: 110 | N87: 11000000 | O87: Quyimozor (asosiy) (39.834219, 64.677163) Quyimozor (yordamchi) (39.834219, 64.677163) | P87: “Quyimozor 220/110/6” (39.83498848 64.67966689)
D88: D | E88: Jarkurgan | F88: Surkhandarya Province; Jarkurgan; Amu Zhang 1 | G88: 3 | H88: 140 | I88: 1. 37.369303, 67.497653 2. 37.379286, 67.504872 3. 37.270189, 67.441406 4. 37.266344, 67.442572 | J88: 75 | K88: 18.75 | L88: 13500 | M88: 110 | N88: 11000000 | O88: Amu Zhang 1 | P88: “Amu-Zang” (37.241528, 67.433306)
D89: E | E89: Jarkurgan | F89: Surkhandarya Province; Jarkurgan; Amu Zhang 2 | G89: 4 | H89: 180 | I89: 1. 37.355664, 67.519253 2. 37.364244, 67.505683 3. 37.370933, 67.514728 4. 37.367850, 67.528756 | J89: 110 | K89: 27.5 | L89: 7900 | M89: 110 | N89: 11000000 | O89: Amu Zhang 2 | P89: “Amu” (37.339444, 67.445806)
D90: F | E90: Bukhara region; Korovulbozor | F90: Bukhara ProvinceKorovulbozor; Quyimozor | G90: 8 | H90: 146 | I90: 1. 39.562200, 64.729122 2. 39.550103, 64.742422 3. 39.538275, 64.730064 | J90: 60 | K90: 15 | L90: 5800 | M90: 110 | N90: 11000000 | O90: Quyimozor (asosiy) (39.834219, 64.677163) Quyimozor (yordamchi) (39.834219, 64.677163) | P90: “Qorovulbozor 220/110/10 kV” (39.5550909, 64.68356132)
D91: G | E91: Kashkadarya Province; KMK No. 7 | F91: Kashkadarya Province; KMK No. 7 | G91: 2 | H91: 169 | I91: 1. 38.357675, 65.501889 2. 38.354381, 65.511595 3. 37.372128, 67.516439 4. 37.364269, 67.505675 | J91: 125 | K91: 31.25 | L91: 3130 | M91: 220 | N91: 22000000 | O91: KMK-7 (38.335245, 65.506198) | P91: “7-sonli podstansiya. (220/10 kV)“ (38.336398, 65.503530)
D92: H | E92: Surkhandarya Province; Bobotog | F92: Surkhandarya Province; Bobotog | G92: 5 | H92: 208 | I92: 1. 37.509856, 67.567553 2. 37.522072, 67.578583 3. 37.517864, 67.591439 4. 37.504817, 67.580206 | J92: 75 | K92: 18.75 | L92: 5900 | M92: 110 | N92: 11000000 | O92: Bobotog (37.529156, 67.508052) | P92: “Bobotog” (37.527222, 67.509000)
D93: I | E93: Surkhandarya Province; Sherobod | F93: Surkhandarya Province; Sherobod | G93: 6 | H93: 216 | I93: 1. 37.816436, 67.500325 2. 37.816858, 67.510103 3. 37.815433, 67.518142 4. 37.813367, 67.517603 5. 37.813131, 67.512772 6. 37.801611, 67.503883 7. 37.797656, 67.504803 8. 37.800483, 67.493725 | J93: 75 | K93: 18.75 | L93: 800 | M93: 110 | N93: 11000000 | O93: Sherobod (37.817024113, 67.528405641) | P93: “Sherobod-220“ (37.815028, 67.527611)
J94: =SUM(J85:J93) -> 800 | K94: =SUM(K85:K93) -> 200 | M94: Grid Capex
K95: Total 110 | L95: =L85+L93+L92+L90+L89+L88+L87+L86 -> 39200 | M95: =L95/1000*I133 -> 2932160
K96: Total 220 | L96: =L91 -> 3130 | M96: =L96*I129/1000 -> 471401.4057
L97: =SUM(L95:L96) -> 42330 | M97: =SUM(M95:M96) -> 3403561.406 | N97: =SUM(N85:N93) -> 110000000
E99: BESS | F99: =TRANSPOSE(K85:K93) -> 20 | G99: 31.25 | H99: 18.75 | I99: 18.75 | J99: 27.5 | K99: 15 | L99: 31.25 | M99: 18.75 | N99: 18.75
E100: PV AC | F100: =TRANSPOSE(J85:J93) -> 80 | G100: 125 | H100: 75 | I100: 75 | J100: 110 | K100: 60 | L100: 125 | M100: 75 | N100: 75
E102: Grid Voltage | F102: =TRANSPOSE(M85:M93) -> 110 | G102: 110 | H102: 110 | I102: 110 | J102: 110 | K102: 110 | L102: 220 | M102: 110 | N102: 110
E103: Distance to Grid | F103: =TRANSPOSE(L85:L93) -> 800 | G103: 4200 | H103: 300 | I103: 13500 | J103: 7900 | K103: 5800 | L103: 3130 | M103: 5900 | N103: 800
E104: Substation Cost | F104: =TRANSPOSE(N85:N93) -> 11000000 | G104: 11000000 | H104: 11000000 | I104: 11000000 | J104: 11000000 | K104: 11000000 | L104: 22000000 | M104: 11000000 | N104: 11000000
E105: Modernisation Cost | F105: =$P$271/9 -> 15555555.56 | G105: =$P$271/9 -> 15555555.56 | H105: 15555555.56 | I105: 15555555.56 | J105: 15555555.56 | K105: 15555555.56 | L105: 15555555.56 | M105: 15555555.56 | N105: 15555555.56
C109: Gridconnection costs
C110: Uzbek Costs
D111: Approximate cost of a 220 kV overhead line per 1 km
D112: No | E112: Name | F112: Unit of measurement | G112: without VAT | H112: VAT | I112: Total with VAT
D113: 1 | E113: 220 kV single-circuit overhead line SK variant | F113: sum | G113: 1977514153 | H113: 237301698 | I113: 2214815851
D114: 2 | E114: 220 kV single-circuit metal option | F114: sum | G114: 2478773239 | H114: 297452789 | I114: 2776226027
D115: 3 | E115: 220 kV double-circuit overhead line | F115: sum | G115: 3303945340 | H115: 396473441 | I115: 3700418780
D117: Approximate cost of 110 kV overhead lines per 1 km
D118: No | E118: Name | F118: Unit of measurement | G118: without VAT | H118: VAT | I118: Total with VAT
D119: 1 | E119: 110 kV power line | F119: sum | G119: 982142857 | H119: 117857143 | I119: 1100000000
D120: 2 | E120: KL 110 kV | F120: sum | G120: 11635714285 | H120: 1396285714 | I120: 13032000000
D122: Approximate cost of 35 kV overhead line per 1 km
D123: No | E123: Name | F123: Unit of measurement | G123: without VAT | H123: VAT | I123: Total with VAT
D124: 1 | E124: 35 kV power line | F124: sum | G124: 758928571 | H124: 91071429 | I124: 850000000
D125: 2 | E125: KL 35 kV | F125: sum | G125: 9696428571 | H125: 1163571429 | I125: 10860000000
C128: Euro costs
E129: =E113 -> 220 kV single-circuit overhead line SK variant | F129: Eur | G129: =G113*$F$160 -> 134470.9624 | H129: 16136.51546 | I129: 150607.4779
E130: =E114 -> 220 kV single-circuit metal option | F130: Eur | G130: 168556.5803 | H130: 20226.78965 | I130: 188783.3698
E131: =E115 -> 220 kV double-circuit overhead line | F131: Eur | G131: 224668.2831 | H131: 26960.19399 | I131: 251628.477
E133: =E119 -> 110 kV power line | F133: Eur | G133: =G119*$F$160 -> 66785.71428 | H133: 8014.285724 | I133: 74800
E134: =E120 -> KL 110 kV | F134: Eur | G134: 791228.5714 | H134: 94947.42855 | I134: 886176
E136: =E124 -> 35 kV power line | F136: Eur | G136: =$F$160*G124 -> 51607.14283 | H136: 6192.857172 | I136: 57800
E137: =E125 -> KL 35 kV | F137: Eur | G137: 659357.1428 | H137: 79122.85717 | I137: 738480
C141: Revenue assumptions
G142: Amount | H142: Duration | I142: Degradation
E143: PV Tariff | G143: 2.57 | H143: 25 | I143: 0.005
E144: Modernization Tariff | G144: 1.01 | H144: 15 | I144: nA | K144: =200000*8760*G145/100*0.98 -> 23694048
E145: BESS Capacity Payment | G145: 1.38 | H145: 15 | I145: 0.01
E146: Capacity | F146: 200
E147: Hours | F147: 2
E148: Hours per year | F148: 8760
E149: BESS Tariif per MWh | F149: 15
E150: Uptime | F150: 0.98
E151: Annual Payment | F151: =F146*F150*F149*F148 -> 25754400
E152: Grid connection Cost Tariff | G152: =M97/F157*100 -> 0.1701780703 | H152: 25 | I152: Tariff ist Sum of capex for grid/Sum of 25 years kWh to Grid
G154: Total Tariff | H154: Total Tariff
G155: year 1-15 | H155: year 15-25
G156: =G143+G144+G145+G152 -> 5.13017807 | H156: =G152+G143 -> 2.74017807
E157: Cumulated kWh per years APPROX for all 9 PV Sites | F157: 2000000000
E160: ExchangeRate UZS to EUR | F160: 6.8e-05
C162: Irradiation DO NOT USE, use the values below line 209 and further
E164: Алатский / Alat | F164: 2100 | G164: =J85/$J$94 -> 0.1 | H164: =G164*F164 -> 210 | I164: kWh/kWp E/W trackers
E165: Хавастский / Khavast | F165: 2250 | G165: 0.15625 | H165: =G165*F165 -> 351.5625 | I165: kWh/kWp E/W trackers
E166: Кизилтепинский / Qiziltepa | F166: 2050 | G166: 0.09375 | H166: 192.1875 | I166: kWh/kWp E/W trackers
E167: Жаркурганский / Jarkurgan | F167: 1950 | G167: 0.09375 | H167: 182.8125 | I167: kWh/kWp E/W trackers
E168: Жаркурганский / Jarkurgan | F168: 2200 | G168: 0.1375 | H168: 302.5 | I168: kWh/kWp E/W trackers
E169: Bukhara region; Korovulbozor | F169: 1900 | G169: 0.075 | H169: 142.5 | I169: kWh/kWp E/W trackers
E170: Kashkadarya Province; KMK No. 7 | F170: 1950 | G170: 0.15625 | H170: 304.6875 | I170: kWh/kWp E/W trackers
E171: Surkhandarya Province; Bobotog | F171: 2150 | G171: 0.09375 | H171: 201.5625 | I171: kWh/kWp E/W trackers
E172: Surkhandarya Province; Sherobod | F172: 2150 | G172: 0.09375 | H172: 201.5625 | I172: kWh/kWp E/W trackers
E174: Weighted Average for Generation | H174: =SUM(H164:H173) -> 2089.375 | I174: kWh/kWp E/W trackers
E177: kWh/kWp | F177: =TRANSPOSE(F164:F172) -> 2100 | G177: 2250 | H177: 2050 | I177: 1950 | J177: 2200 | K177: 1900 | L177: 1950 | M177: 2150 | N177: 2150
A182: Interest
C183: Euribor +1% (Export Finance) | F183: 0.035
C185: Equity | F185: =G42 -> 0.15
C186: Debt | F186: =G43 -> 0.85
C188: Tenure | F188: 22 | G188: years
C190: Equity Brdige Loan | F190: =H42 -> 103710534.2
F209: =TRANSPOSE(E85:E93) -> Alat | G209: Khavast | H209: Qiziltepa | I209: Jarkurgan | J209: Jarkurgan | K209: Bukhara region; Korovulbozor | L209: Kashkadarya Province; KMK No. 7 | M209: Surkhandarya Province; Bobotog | N209: Surkhandarya Province; Sherobod | O209: Total Projects
E212: PVsyst Simulation Results — All 9 Sites | F212: Alat | G212: Khavast | H212: Qiziltepa | I212: Jarkurgan | J212: Jarkurgan | K212: Bukhara region; Korovulbozor | L212: Kashkadarya Province; KMK No. 7 | M212: Surkhandarya Province; Bobotog | N212: Surkhandarya Province; Sherobod | O212: =O209 -> Total Projects
E213: Parameter | F213: Site_07_AmuBukhara | G213: Site_01_Jizz | H213: Site_09_Kiziltepa | I213: Site_03_AmuZhang1 | J213: Site_04_AmuZhang2 | K213: Site_08_Korovulbozor | L213: Site_02_KMK7 | M213: Site_05_Bobotog | N213: Site_06_Sherobod
E214: kWh (P50) | F214: 189072563 | G214: 284159252 | H214: 175364673 | I214: 177401933 | J214: 200161217 | K214: 141201123 | L214: 297240714 | M214: 175607533 | N214: 180064446
E215: kWh/kWp (P50) | F215: 1818 | G215: 1749 | H215: 1799 | I215: 1819 | J215: 1820 | K215: 1810 | L215: 1829 | M215: 1801 | N215: 1847
E216: kWh (P90) | F216: 180131911 | G216: 270722247 | H216: 167072224 | I216: 169013149 | J216: 190696217 | K216: 134524162 | L216: 283185128 | M216: 167303600 | N216: 171549760
E217: kWh/kWp (P90) | F217: 1732 | G217: 1666 | H217: 1713 | I217: 1733 | J217: 1734 | K217: 1725 | L217: 1743 | M217: 1716 | N217: 1759
E218: kWh (P95) | F218: 177616359 | G218: 266941596 | H218: 164739052 | I218: 166652871 | J218: 188033134 | K218: 132645525 | L218: 279230432 | M218: 164967197 | N218: 169154059
E219: kWh/kWp (P95) | F219: 1708 | G219: 1643 | H219: 1690 | I219: 1709 | J219: 1709 | K219: 1701 | L219: 1718 | M219: 1692 | N219: 1735
E221: Global Horizontal Irradiation — GlobHor (kWh/m²) | O221: Averages
E222: January | F222: 65.4 | G222: 56.7 | H222: 61.7 | I222: 64.7 | J222: 64.7 | K222: 62.4 | L222: 66.9 | M222: 65.5 | N222: 70.6 | O222: =AVERAGE(F222:N222) -> 64.28888889
E223: February | F223: 81 | G223: 71.6 | H223: 78.5 | I223: 78.5 | J223: 78.5 | K223: 79 | L223: 80.5 | M223: 78.5 | N223: 81.1 | O223: =AVERAGE(F223:N223) -> 78.57777778
E224: March | F224: 112.9 | G224: 102.5 | H224: 111.4 | I224: 112.3 | J224: 112.3 | K224: 111.3 | L224: 113.6 | M224: 112.3 | N224: 117.4 | O224: 111.7777778
E225: April | F225: 152.6 | G225: 144.5 | H225: 150.3 | I225: 153.8 | J225: 153.8 | K225: 150.4 | L225: 150.5 | M225: 154 | N225: 159.8 | O225: 152.1888889
E226: May | F226: 187.5 | G226: 184.3 | H226: 185.2 | I226: 194.2 | J226: 194.2 | K226: 185.8 | L226: 189.5 | M226: 193.2 | N226: 192.6 | O226: 189.6111111
E227: June | F227: 204.9 | G227: 205.8 | H227: 204.3 | I227: 211.6 | J227: 211.6 | K227: 205.1 | L227: 206.6 | M227: 210.2 | N227: 208.7 | O227: 207.6444444
E228: July | F228: 220.8 | G228: 226.9 | H228: 222.4 | I228: 223.1 | J228: 223.1 | K228: 223.1 | L228: 220.8 | M228: 220.9 | N228: 220.9 | O228: 222.4444444
E229: August | F229: 197.1 | G229: 197.1 | H229: 196.4 | I229: 197.9 | J229: 197.9 | K229: 197.2 | L229: 198.6 | M229: 196.4 | N229: 198.6 | O229: 197.4666667
E230: September | F230: 158.6 | G230: 152.8 | H230: 158.3 | I230: 162.7 | J230: 162.7 | K230: 158.3 | L230: 161.4 | M230: 161.3 | N230: 164.8 | O230: 160.1
E231: October | F231: 108.5 | G231: 95.8 | H231: 107.8 | I231: 111.5 | J231: 111.5 | K231: 108.1 | L231: 110.6 | M231: 109.2 | N231: 109.2 | O231: 108.0222222
E232: November | F232: 70.4 | G232: 59.9 | H232: 68.3 | I232: 70.5 | J232: 70.5 | K232: 69.5 | L232: 71.9 | M232: 69.1 | N232: 69.6 | O232: 68.85555556
E233: December | F233: 57.4 | G233: 48.4 | H233: 55.6 | I233: 59.4 | J233: 59.4 | K233: 56.4 | L233: 59.4 | M233: 58.6 | N233: 61.6 | O233: 57.35555556
E234: Year | F234: 1617.1 | G234: 1546.3 | H234: 1600.2 | I234: 1640.1 | J234: 1640.1 | K234: 1606.4 | L234: 1630.4 | M234: 1629.1 | N234: 1655.1 | O234: 1618.311111
E237: kWh (p50) | F237: 189072563 | G237: 284159252 | H237: 175364673 | I237: 177401933 | J237: 200161217 | K237: 141201123 | L237: 297240714 | M237: 175607533 | N237: 180064446
E238: kWh/kWp | F238: 1818 | G238: 1749 | H238: 1799 | I238: 1819 | J238: 1820 | K238: 1810 | L238: 1829 | M238: 1801 | N238: 1847
E239: p90 | F239: 180131911 | G239: 270722247 | H239: 167072224 | I239: 16912149 | J239: 190696217 | K239: 124524162 | L239: 283185128 | M239: 167303600 | N239: 171549760
E240: kWh/kWp | F240: 1732 | G240: 1666 | H240: 1713 | I240: 1733 | J240: 1734 | K240: 1725 | L240: 1743 | M240: 1716 | N240: 1759
E241: p95 | F241: 177616359 | G241: 266941596 | H241: 164739052 | I241: 166652871 | J241: 188033134 | K241: 132645525 | L241: 279230432 | M241: 164967197 | N241: 169154059
E242: kWh/kWp | F242: 1708 | G242: 1749 | H242: 1690 | I242: 1709 | J242: 1709 | K242: 1701 | L242: 1718 | M242: 1692 | N242: 1735
E243: P90/P50 | F243: =F240/F238 -> 0.9526952695 | G243: =G240/G238 -> 0.952544311 | H243: 0.9521956643 | I243: 0.9527212754 | J243: 0.9527472527 | K243: 0.953038674 | L243: 0.9529797704 | M243: 0.9528039978 | N243: 0.9523551705
E246: Sequence of activities | G246: start date | H246: days | I246: end date | J246: PV Capacity (MWAC) | K246: PV Capacity MWp | L246: BESS Capacity (MW) | M246: BESS Capacity (MWh) | N246: PV Capex | O246: BESS Capex | P246: Modernisation Capex
E247: 1_PV+B+Mod/Surk/Bobotog | F247: =M209 -> Surkhandarya Province; Bobotog | G247: 2027-01-01 | H247: 540 | I247: =G247+H247 -> 2028-06-24 | J247: 75 | K247: =J247*1.3 -> 97.5 | L247: 18.75 | M247: =L247*$F$16 -> 37.5 | N247: =K247*($L$3+$L$29+$L$32)*1000 -> 60600333.88 | O247: =M247*$L$15*1000 -> 4218750 | P247: =+Y56 -> 22787303.66
E248: 2_PV+B+Mod/Surk/Sherobod | F248: =N209 -> Surkhandarya Province; Sherobod | G248: 2027-01-01 | H248: 510 | I248: =G248+H248 -> 2028-05-25 | J248: 75 | K248: =J248*1.3 -> 97.5 | L248: 18.75 | M248: =L248*$F$16 -> 37.5 | N248: =K248*($L$3+$L$29+$L$32)*1000 -> 60600333.88 | O248: 4218750 | P248: =+Y57 -> 43821737.81
E249: 3_Mod/Tash/Bostanlik 1+2 | G249: 2027-01-01 | H249: 150 | I249: 2027-05-31 | P249: =+Y67 -> 511253.6078
E250: 4_Mod/Tash/Gazalkent 1+2 | G250: 2027-01-01 | H250: 150 | I250: 2027-05-31 | P250: =+Y69 -> 1504546.331
E251: 5_Mod/Tash/Darchon | G251: 2027-01-01 | H251: 150 | I251: 2027-05-31 | P251: =+Y70 -> 446657.1202
E252: 6_PV+B/Surk/Amu Zhang 1 | G252: 2027-04-01 | H252: 270 | I252: 2027-12-27 | J252: 75 | K252: =J252*1.3 -> 97.5 | L252: 18.75 | M252: =L252*$F$16 -> 37.5 | N252: =K252*($L$3+$L$29+$L$32)*1000 -> 60600333.88 | O252: =M252*$L$15*1000 -> 4218750
E253: 7_PV+B/Surk/Amu Zhang 2 | G253: 2027-04-01 | H253: 270 | I253: 2027-12-27 | J253: 110 | K253: =J253*1.3 -> 143 | L253: 27.5 | M253: 55 | N253: 88880489.69 | O253: =M253*$L$15*1000 -> 6187500
E254: 8_PV+B+Mod/Bukh/Korovulbozor | F254: =K209 -> Bukhara region; Korovulbozor | G254: 2027-04-01 | H254: 420 | I254: 2028-05-25 | J254: 60 | K254: =J254*1.3 -> 78 | L254: 15 | M254: 30 | N254: 48480267.11 | O254: 3375000 | P254: =+Y49 -> 7530846.794
E255: 9_PV+B+Mod/Kash/KMK No. 7 | F255: =L209 -> Kashkadarya Province; KMK No. 7 | G255: 2027-04-01 | H255: 840 | I255: 2029-07-19 | J255: 125 | K255: =J255*1.3 -> 162.5 | L255: 31.25 | M255: 62.5 | N255: 101000556.5 | O255: 7031250 | P255: =Y51 -> 47132713.55
E256: 10_PV+B/Bukh/Amu-Buk | G256: 2027-07-01 | H256: 120 | I256: 2027-10-29 | J256: 80 | K256: =J256*1.3 -> 104 | L256: 20 | M256: 40 | N256: 64640356.14 | O256: 4500000
E257: 11_PV+B/Jizz/Kahv_Gozal | G257: 2027-07-01 | H257: 240 | I257: 2028-02-26 | J257: 125 | K257: 162.5 | L257: 31.25 | M257: 62.5 | N257: 101000556.5 | O257: 7031250
E258: 12_PV+B/Navo/Qiz_Quymozor | G258: 2027-07-01 | H258: 120 | I258: 2027-10-29 | J258: 75 | K258: 97.5 | L258: 18.75 | M258: 37.5 | N258: 60600333.88 | O258: 4218750
E259: 13_Mod/Kash/M-1 | G259: 2027-10-01 | H259: 150 | I259: 2028-02-28 | P259: =+Y52 -> 446332.5147
E260: 14_Mod/Kash/M-3-2 | G260: 2027-10-01 | H260: 180 | I260: 2028-03-29 | P260: =+Y53 -> 6855667.426
E261: 15_Mod/Kash/Denov-1 (Ulugbek-1) | G261: 2027-10-01 | H261: 150 | I261: 2028-02-28 | P261: =+Y54 -> 1168579.675
E262: 16_Mod/Kash/Denov-2 (Ulugbek-2) | G262: 2027-10-01 | H262: 150 | I262: 2028-02-28 | P262: =+Y55 -> 1168579.675
E263: 17_Mod/Surk/Uzbekistan-2 | G263: 2028-01-01 | H263: 150 | I263: 2028-05-30 | P263: =+Y58 -> 920256.494
E264: 18_Mod/Surk/Aibarak-1 | G264: 2028-01-01 | H264: 150 | I264: 2028-05-30 | P264: =+Y59 -> 590781.9467
E265: 19_Mod/Surk/Aibarak-2 | G265: 2028-01-01 | H265: 150 | I265: 2028-05-30 | P265: =+Y60 -> 483532.301
E266: 20_Mod/Surk/Buri-Zhar 1+2 | G266: 2028-01-01 | H266: 150 | I266: 2028-05-30 | P266: =+Y62 -> 289223.4695
E267: 21_Mod/Surk/Buri Zhark 2 | G267: 2028-01-01 | H267: 150 | I267: 2028-05-30 | P267: =+Y63 -> 96407.82318
E268: 22_Mod/Surk/Dashnabod 1+2 | G268: 2028-01-01 | H268: 150 | I268: 2028-05-30 | P268: =+Y65 -> 339277.6323
E269: 23_Mod/Farg/Anor | G269: 2028-04-01 | H269: 150 | I269: 2028-08-29 | P269: =+Y71 -> 879356.2053
E270: 24_Mod/Farg/Kolgandarö-1 | G270: 2028-04-01 | H270: 150 | I270: 2028-08-29 | P270: =+Y72 -> 3026945.963
N271: =SUM(N247:N270) -> 646403561.4 | O271: =SUM(O247:O270) -> 45000000 | P271: =SUM(P247:P270) -> 140000000
E272: PV+B+Mod | F272: PV+Battery installatoin and Mondernisation starts at the same time
E273: PV+B | F273: PV+Battery installatoin starts at the same time
E274: Mod | F274: Modernization only

Sheet Summary
C3: PV Capacity | D3: MW | E3: ='Financial Model - Monthly'!F29 -> 1040 | H3: Pre-tax Project IRR | I3: % | J3: ='Financial Model - Monthly'!F194 -> 0.07381783426 | N3: Uses of Funds
C4: BESS Capactiyt | D4: MWH | O4: Capital Expenditures | P4: ='Financial Model - Monthly'!H87 -> 841500000
C5: Capacity Factor | D5: % | E5: =E6/8760 -> 0.2423596247 | H5: Income Tax Rate after Holiday | I5: % | J5: =InputC!F126 -> 0.15 | O5: IDC | P5: ='Financial Model - Monthly'!H353 -> 16143293.74
C6: Annual Yield | D6: MWH/MWp | E6: =InputC!F51 -> 2123.070312 | H6: After-tax Project IRR | I6: % | J6: ='Financial Model - Monthly'!F225 -> 0.07103918493 | O6: Fees | P6: ='Financial Model - Monthly'!H354+'Financial Model - Monthly'!H355 -> 5236451.49
H7: Debt IRR | I7: % | J7: ='Financial Model - Monthly'!F344 -> 0.04262196124 | O7: Total | P7: =SUM(P4:P6) -> 862879745.2
C8: Capex / KW | D8: €/MWp | E8: ='Financial Model - Monthly'!F58 -> 512.5 | H8: Equity IRR | I8: % | J8: ='Financial Model - Monthly'!F378 -> 0.1947642267
C9: O&M / kW | D9: €/MW/Yr | E9: =InputC!F84 -> 8 | N9: Sources of Funds
H10: Minimum DSCR | I10: x | J10: ='Financial Model - Monthly'!F349 -> 1.461053397 | O10: Debt | P10: ='Financial Model - Monthly'!H320 -> 733447783.4 | Q10: =P10/$P$7 -> 0.85
C11: PPA Price | D11: €/kWh | E11: =InputC!F95 -> 0.0257 | H11: Maximum Debt to Capital | I11: % | J11: ='Financial Model - Monthly'!F248 -> 0.85 | O11: Equity | P11: ='Financial Model - Monthly'!H321 -> 129431961.8 | Q11: =P11/$P$7 -> 0.15
C12: Inflate PPA Price | D12: Flag | E12: =InputC!F97 -> FALSE | O12: Total | P12: =SUM(P10:P11) -> 862879745.2 | Q12: =SUM(Q10:Q11) -> 1
C14: Capex / KW | D14: USD/kW | E14: =InputC!F82 -> 512.5 | O14: ='Financial Model - Monthly'!F267 -> Debt to Capital Constraint
C15: O&M / kWy | D15: USD/kWy | E15: =InputC!F84 -> 8
C17: Inflation Rate | D17: % p.a. | E17: ='Input S'!E29 -> 0.03
C18: Degradation | D18: % p.a. | E18: =InputC!F59 -> 0.005
C19: Availability | D19: % | E19: =InputC!F57 -> 0.98
C24: PPA Inflate | D24: Flag

Sheet InputC
D1: Scenerio Number | E1: 10 | H1: 1 | I1: 2 | J1: 3 | K1: 4 | L1: 5 | M1: 6 | N1: 7 | O1: 8 | P1: 9 | Q1: 10 | R1: 11 | S1: 12
F2: =INDEX(H2:AS2,E1) -> Total Projects | H2: =DataBook!F209 -> Alat | I2: =DataBook!G209 -> Khavast | J2: =DataBook!H209 -> Qiziltepa | K2: =DataBook!I209 -> Jarkurgan | L2: =DataBook!J209 -> Jarkurgan | M2: =DataBook!K209 -> Bukhara region; Korovulbozor | N2: =DataBook!L209 -> Kashkadarya Province; KMK No. 7 | O2: =DataBook!M209 -> Surkhandarya Province; Bobotog | P2: =DataBook!N209 -> Surkhandarya Province; Sherobod | Q2: =DataBook!O209 -> Total Projects | R2: Total with Sensitivity | S2: additional option 2
B5: Timeline - PV
C7: PV Project Start | E7: Date | F7: =INDEX(H7:BY7,$E$1) -> 2026-11-01 | H7: 2026-11-01 | I7: 2026-11-01 | J7: 2026-11-01 | K7: 2026-11-01 | L7: 2026-11-01 | M7: 2026-11-01 | N7: 2026-11-01 | O7: 2026-11-01 | P7: 2026-11-01 | Q7: 2026-11-01 | R7: 2026-11-01 | S7: 2026-11-01
C8: PV Construction Period | E8: Months | F8: =INDEX(H8:BY8,$E$1) -> 15 | H8: 15 | I8: 15 | J8: 15 | K8: 15 | L8: 15 | M8: 15 | N8: 15 | O8: 15 | P8: 15 | Q8: 15 | R8: 15 | S8: 15
C9: PV Commercial Operation Date | E9: Date | F9: =INDEX(H9:BY9,$E$1) -> 2028-02-01 | H9: =EDATE(H7,H8) -> 2028-02-01 | I9: =EDATE(I7,I8) -> 2028-02-01 | J9: =EDATE(J7,J8) -> 2028-02-01 | K9: 2028-02-01 | L9: 2028-02-01 | M9: =EDATE(M7,M8) -> 2028-02-01 | N9: =EDATE(N7,N8) -> 2028-02-01 | O9: =EDATE(O7,O8) -> 2028-02-01 | P9: =EDATE(P7,P8) -> 2028-02-01 | Q9: 2028-02-01 | R9: 2028-02-01 | S9: =EDATE(S7,S8) -> 2028-02-01
C10: PV Operating Period | E10: Years | F10: =INDEX(H10:BY10,$E$1) -> 25 | H10: 25 | I10: 25 | J10: 25 | K10: 25 | L10: 25 | M10: 25 | N10: 25 | O10: 25 | P10: 25 | Q10: 25 | R10: 25 | S10: 25
C11: End of the Life | E11: Date | F11: =INDEX(H11:BY11,$E$1) -> 2053-02-01 | H11: =EDATE(H9,H10*12) -> 2053-02-01 | I11: =EDATE(I9,I10*12) -> 2053-02-01 | J11: =EDATE(J9,J10*12) -> 2053-02-01 | K11: 2053-02-01 | L11: 2053-02-01 | M11: =EDATE(M9,M10*12) -> 2053-02-01 | N11: =EDATE(N9,N10*12) -> 2053-02-01 | O11: =EDATE(O9,O10*12) -> 2053-02-01 | P11: =EDATE(P9,P10*12) -> 2053-02-01 | Q11: 2053-02-01 | R11: 2053-02-01 | S11: =EDATE(S9,S10*12) -> 2053-02-01
C12: Months in Column - Pre COD | E12: Months | F12: =INDEX(H12:BY12,$E$1) -> 1 | H12: 1 | I12: 1 | J12: 1 | K12: 1 | L12: 1 | M12: 1 | N12: 1 | O12: 1 | P12: 1 | Q12: 1 | R12: 1 | S12: 1
C13: Months in Column - Post COD | E13: Months | F13: =INDEX(H13:BY13,$E$1) -> 1 | H13: 1 | I13: 1 | J13: 1 | K13: 1 | L13: 1 | M13: 1 | N13: 1 | O13: 1 | P13: 1 | Q13: 1 | R13: 1 | S13: 1
B15: Timeline - BESS
C17: BESS Project Start | E17: Date | F17: =INDEX(H17:BY17,$E$1) -> 2027-02-01 | H17: =EDATE(H7,H8-H18) -> 2027-02-01 | I17: =EDATE(I7,I8-I18) -> 2027-02-01 | J17: 2027-02-01 | K17: 2027-02-01 | L17: 2027-02-01 | M17: 2027-02-01 | N17: 2027-02-01 | O17: 2027-02-01 | P17: 2027-02-01 | Q17: 2027-02-01 | R17: 2027-02-01 | S17: 2027-02-01
C18: BESS Construction Period | E18: Months | F18: =INDEX(H18:BY18,$E$1) -> 12 | H18: 12 | I18: 12 | J18: 12 | K18: 12 | L18: 12 | M18: 12 | N18: 12 | O18: 12 | P18: 12 | Q18: 12 | R18: 12 | S18: 12
C19: BESS Commercial Operation Date | E19: Date | F19: =INDEX(H19:BY19,$E$1) -> 2028-02-01 | H19: =EDATE(H17,H18) -> 2028-02-01 | I19: =EDATE(I17,I18) -> 2028-02-01 | J19: =EDATE(J17,J18) -> 2028-02-01 | K19: 2028-02-01 | L19: 2028-02-01 | M19: =EDATE(M17,M18) -> 2028-02-01 | N19: =EDATE(N17,N18) -> 2028-02-01 | O19: =EDATE(O17,O18) -> 2028-02-01 | P19: =EDATE(P17,P18) -> 2028-02-01 | Q19: 2028-02-01 | R19: 2028-02-01 | S19: 2028-02-01
C20: BESS Operating Period | E20: Years | F20: =INDEX(H20:BY20,$E$1) -> 15 | H20: 15 | I20: 15 | J20: 15 | K20: 15 | L20: 15 | M20: 15 | N20: 15 | O20: 15 | P20: 15 | Q20: 15 | R20: 15 | S20: 15
C21: End of the Life | E21: Date | F21: =INDEX(H21:BY21,$E$1) -> 2043-02-01 | H21: =EDATE(H19,H20*12) -> 2043-02-01 | I21: =EDATE(I19,I20*12) -> 2043-02-01 | J21: =EDATE(J19,J20*12) -> 2043-02-01 | K21: 2043-02-01 | L21: 2043-02-01 | M21: =EDATE(M19,M20*12) -> 2043-02-01 | N21: =EDATE(N19,N20*12) -> 2043-02-01 | O21: =EDATE(O19,O20*12) -> 2043-02-01 | P21: =EDATE(P19,P20*12) -> 2043-02-01 | Q21: 2043-02-01 | R21: 2043-02-01 | S21: 2043-02-01
B23: Timeline - Grid Connection and Substation
C25: Grid Connection Project Start | E25: Date | F25: =INDEX(H25:BY25,$E$1) -> 2027-02-01 | H25: =H17 -> 2027-02-01 | I25: =I17 -> 2027-02-01 | J25: 2027-02-01 | K25: 2027-02-01 | L25: 2027-02-01 | M25: 2027-02-01 | N25: 2027-02-01 | O25: 2027-02-01 | P25: 2027-02-01 | Q25: 2027-02-01 | R25: 2027-02-01 | S25: 2027-02-01
C26: Grid Connection Construction Period | E26: Months | F26: =INDEX(H26:BY26,$E$1) -> 12 | H26: 12 | I26: 12 | J26: 12 | K26: 12 | L26: 12 | M26: 12 | N26: 12 | O26: 12 | P26: 12 | Q26: 12 | R26: 12 | S26: 12
C27: Grid Connection Commercial Operation Date | E27: Date | F27: =INDEX(H27:BY27,$E$1) -> 2028-02-01 | H27: =EDATE(H25,H26) -> 2028-02-01 | I27: =EDATE(I25,I26) -> 2028-02-01 | J27: =EDATE(J25,J26) -> 2028-02-01 | K27: 2028-02-01 | L27: 2028-02-01 | M27: =EDATE(M25,M26) -> 2028-02-01 | N27: =EDATE(N25,N26) -> 2028-02-01 | O27: =EDATE(O25,O26) -> 2028-02-01 | P27: =EDATE(P25,P26) -> 2028-02-01 | Q27: 2028-02-01 | R27: 2028-02-01 | S27: 2028-02-01
C28: Grid Connection Operating Period | E28: Years | F28: =INDEX(H28:BY28,$E$1) -> 25 | H28: 25 | I28: 35 | J28: 35 | K28: 35 | L28: 35 | M28: 35 | N28: 35 | O28: 25 | P28: 25 | Q28: 25 | R28: 25 | S28: 35
C29: End of the Life | E29: Date | F29: =INDEX(H29:BY29,$E$1) -> 2053-02-01 | H29: =EDATE(H27,H28*12) -> 2053-02-01 | I29: =EDATE(I27,I28*12) -> 2063-02-01 | J29: =EDATE(J27,J28*12) -> 2063-02-01 | K29: 2063-02-01 | L29: 2063-02-01 | M29: =EDATE(M27,M28*12) -> 2063-02-01 | N29: =EDATE(N27,N28*12) -> 2063-02-01 | O29: =EDATE(O27,O28*12) -> 2053-02-01 | P29: =EDATE(P27,P28*12) -> 2053-02-01 | Q29: 2053-02-01 | R29: 2053-02-01 | S29: 2063-02-01
B31: Timeline - Modernisation
C33: Grid Connection Project Start | E33: Date | F33: =INDEX(H33:BY33,$E$1) -> 2027-02-01 | H33: =H25 -> 2027-02-01 | I33: =I25 -> 2027-02-01 | J33: 2027-02-01 | K33: 2027-02-01 | L33: 2027-02-01 | M33: 2027-02-01 | N33: 2027-02-01 | O33: 2027-02-01 | P33: 2027-02-01 | Q33: 2027-02-01 | R33: 2027-02-01 | S33: 2027-02-01
C34: Grid Connection Construction Period | E34: Months | F34: =INDEX(H34:BY34,$E$1) -> 12 | H34: 12 | I34: 12 | J34: 12 | K34: 12 | L34: 12 | M34: 12 | N34: 12 | O34: 12 | P34: 12 | Q34: 12 | R34: 12 | S34: 12
C35: Grid Connection Commercial Operation Date | E35: Date | F35: =INDEX(H35:BY35,$E$1) -> 2028-02-01 | H35: =EDATE(H33,H34) -> 2028-02-01 | I35: =EDATE(I33,I34) -> 2028-02-01 | J35: =EDATE(J33,J34) -> 2028-02-01 | K35: 2028-02-01 | L35: 2028-02-01 | M35: =EDATE(M33,M34) -> 2028-02-01 | N35: =EDATE(N33,N34) -> 2028-02-01 | O35: =EDATE(O33,O34) -> 2028-02-01 | P35: =EDATE(P33,P34) -> 2028-02-01 | Q35: 2028-02-01 | R35: 2028-02-01 | S35: 2028-02-01
C36: Grid Connection Operating Period | E36: Years | F36: =INDEX(H36:BY36,$E$1) -> 25 | H36: 25 | I36: 35 | J36: 35 | K36: 35 | L36: 35 | M36: 35 | N36: 35 | O36: 25 | P36: 25 | Q36: 25 | R36: 25 | S36: 35
C37: End of the Life | E37: Date | F37: =INDEX(H37:BY37,$E$1) -> 2053-02-01 | H37: =EDATE(H35,H36*12) -> 2053-02-01 | I37: =EDATE(I35,I36*12) -> 2063-02-01 | J37: =EDATE(J35,J36*12) -> 2063-02-01 | K37: 2063-02-01 | L37: 2063-02-01 | M37: =EDATE(M35,M36*12) -> 2063-02-01 | N37: =EDATE(N35,N36*12) -> 2063-02-01 | O37: =EDATE(O35,O36*12) -> 2053-02-01 | P37: =EDATE(P35,P36*12) -> 2053-02-01 | Q37: 2053-02-01 | R37: 2053-02-01 | S37: 2063-02-01
B39: Macro-Economic
C41: Inflation Rate Code | E41: Code | F41: =INDEX(H41:BY41,$E$1) -> 3 | H41: 3 | I41: 3 | J41: 3 | K41: 3 | L41: 3 | M41: 3 | N41: 3 | O41: 3 | P41: 3 | Q41: 3 | R41: 3 | S41: 3
C42: Inflation Rate Description | E42: Description | F42: =INDEX(H42:BY42,$E$1) -> Flat Inflation | H42: =INDEX('Input S'!$C$21:$C$24,InputC!H41) -> Flat Inflation | I42: =INDEX('Input S'!$C$21:$C$24,InputC!I41) -> Flat Inflation | J42: =INDEX('Input S'!$C$21:$C$24,InputC!J41) -> Flat Inflation | K42: =INDEX('Input S'!$C$21:$C$24,InputC!K41) -> Flat Inflation | L42: =INDEX('Input S'!$C$21:$C$24,InputC!L41) -> Flat Inflation | M42: =INDEX('Input S'!$C$21:$C$24,InputC!M41) -> Flat Inflation | N42: =INDEX('Input S'!$C$21:$C$24,InputC!N41) -> Flat Inflation | O42: =INDEX('Input S'!$C$21:$C$24,InputC!O41) -> Flat Inflation | P42: =INDEX('Input S'!$C$21:$C$24,InputC!P41) -> Flat Inflation | Q42: =INDEX('Input S'!$C$21:$C$24,InputC!Q41) -> Flat Inflation | R42: =INDEX('Input S'!$C$21:$C$24,InputC!R41) -> Flat Inflation | S42: =INDEX('Input S'!$C$21:$C$24,InputC!S41) -> Flat Inflation
C43: Exchange rate | E43: EUR/UZS | F43: =INDEX(H43:BY43,$E$1) -> 86 | H43: 86 | I43: 86 | J43: 86 | K43: 86 | L43: 86 | M43: 86 | N43: 86 | O43: 86 | P43: 86 | Q43: 86 | R43: 86 | S43: 86
C44: Exchange Rate - Remove | E44: EUR/UZS | F44: =INDEX(H44:BY44,$E$1) -> 86 | H44: =H43 -> 86 | I44: 86 | J44: 86 | K44: 86 | L44: 86 | M44: 86 | N44: 86 | O44: 86 | P44: 86 | Q44: 86 | R44: 86 | S44: 86
B46: PV Operations
H47: =H48/$Q$48 -> 0.1 | I47: =I48/$Q$48 -> 0.15625 | J47: 0.09375 | K47: 0.09375 | L47: 0.1375 | M47: 0.075 | N47: 0.15625 | O47: 0.09375 | P47: 0.09375
C48: Capacity | E48: MWp | F48: =INDEX(H48:BY48,$E$1) -> 1040 | H48: =H49*H50 -> 104 | I48: =I49*I50 -> 162.5 | J48: 97.5 | K48: 97.5 | L48: 143 | M48: 78 | N48: 162.5 | O48: 97.5 | P48: 97.5 | Q48: =SUM(H48:P48) -> 1040 | R48: 0 | S48: 0
C49: DC:AC Ratio | E49: Factor | F49: =INDEX(H49:BY49,$E$1) -> 1.3 | H49: 1.3 | I49: 1.3 | J49: 1.3 | K49: 1.3 | L49: 1.3 | M49: 1.3 | N49: 1.3 | O49: 1.3 | P49: 1.3 | Q49: 1.3 | R49: 1.3 | S49: 1.3
C50: Capacity | E50: Mwac | F50: =INDEX(H50:BY50,$E$1) -> 800 | H50: =DataBook!F100 -> 80 | I50: =DataBook!G100 -> 125 | J50: =DataBook!H100 -> 75 | K50: =DataBook!I100 -> 75 | L50: =DataBook!J100 -> 110 | M50: =DataBook!K100 -> 60 | N50: =DataBook!L100 -> 125 | O50: =DataBook!M100 -> 75 | P50: =DataBook!N100 -> 75 | Q50: =SUM(H50:P50) -> 800 | R50: =DataBook!P100 -> 0 | S50: =DataBook!Q100 -> 0
C51: In Plane Radiation Annual | E51: MWh/MWp | F51: =INDEX(H51:BY51,$E$1) -> 2123.070312 | H51: =H53/H52 -> 2135 | I51: =I53/I52 -> 2053.75 | J51: 2112.5 | K51: 2136.25 | L51: 2136.25 | M51: 2126.25 | N51: 2147.5 | O51: 2115 | P51: 2168.75 | Q51: 2123.070312 | R51: 0 | S51: 0
C52: Performance Ratio | E52: % | F52: =INDEX(H52:BY52,$E$1) -> 0.8 | H52: 0.8 | I52: 0.8 | J52: 0.8 | K52: 0.8 | L52: 0.8 | M52: 0.8 | N52: 0.8 | O52: 0.8 | P52: 0.8 | Q52: 0.8 | R52: 0.7 | S52: 0.7
C53: Energy to the Grid | E53: MWh/MWp | F53: =INDEX(H53:BY53,$E$1) -> 1950 | H53: =DataBook!F219 -> 1708 | I53: =DataBook!G219 -> 1643 | J53: =DataBook!H219 -> 1690 | K53: =DataBook!I219 -> 1709 | L53: =DataBook!J219 -> 1709 | M53: =DataBook!K219 -> 1701 | N53: =DataBook!L219 -> 1718 | O53: =DataBook!M219 -> 1692 | P53: =DataBook!N219 -> 1735 | Q53: 1950 | R53: =DataBook!P177 -> 0 | S53: =DataBook!Q177 -> 0
C55: Capacity Factor DC | E55: % | F55: =INDEX(H55:BY55,$E$1) -> 0.2226027397 | H55: =H53/8760 -> 0.1949771689 | I55: =I53/8760 -> 0.1875570776 | J55: =J53/8760 -> 0.1929223744 | K55: 0.1950913242 | L55: 0.1950913242 | M55: 0.1941780822 | N55: 0.1961187215 | O55: 0.1931506849 | P55: =P53/8760 -> 0.1980593607 | Q55: =Q53/8760 -> 0.2226027397 | R55: =R53/8760 -> 0 | S55: 0
C56: Capacity Factor AC | E56: % | F56: =INDEX(H56:BY56,$E$1) -> 0.2893835616 | H56: =H55*H49 -> 0.2534703196 | I56: 0.2438242009 | J56: 0.2507990868 | K56: 0.2536187215 | L56: 0.2536187215 | M56: 0.2524315068 | N56: 0.2549543379 | O56: 0.2510958904 | P56: 0.2574771689 | Q56: 0.2893835616 | R56: 0 | S56: 0
C57: Availability | E57: % | F57: =INDEX(H57:BY57,$E$1) -> 0.98 | H57: 0.98 | I57: 0.98 | J57: 0.98 | K57: 0.98 | L57: 0.98 | M57: 0.98 | N57: 0.98 | O57: 0.98 | P57: 0.98 | Q57: 0.98 | R57: 0.98 | S57: 0.98
C59: Degradation | E59: % | F59: =INDEX(H59:BY59,$E$1) -> 0.005 | H59: 0.005 | I59: 0.005 | J59: 0.005 | K59: 0.005 | L59: 0.005 | M59: 0.005 | N59: 0.005 | O59: 0.005 | P59: 0.005 | Q59: 0.005 | R59: 0.005 | S59: 0.005
B61: BESS Operations
C63: BESS Capacity | E63: MW | F63: =INDEX(H63:BY63,$E$1) -> 200 | H63: =H50*0.25 -> 20 | I63: =I50*0.25 -> 31.25 | J63: 18.75 | K63: 18.75 | L63: 27.5 | M63: 15 | N63: 31.25 | O63: 18.75 | P63: 18.75 | Q63: =SUM(H63:P63) -> 200 | R63: =DataBook!$F$99 -> 20 | S63: =DataBook!$F$99 -> 20
C64: Duration | E64: Hour | F64: =INDEX(H64:BY64,$E$1) -> 2 | H64: 2 | I64: 2 | J64: 2 | K64: 2 | L64: 2 | M64: 2 | N64: 2 | O64: 2 | P64: 2 | Q64: 2 | R64: 1 | S64: 1
C65: BESS Storage | E65: MWh | F65: =INDEX(H65:BY65,$E$1) -> 260 | H65: =H63*H64 -> 40 | I65: =I63*I64 -> 62.5 | J65: 37.5 | K65: 37.5 | L65: 55 | M65: 30 | N65: 62.5 | O65: 37.5 | P65: 37.5 | Q65: 260 | R65: 20 | S65: 20
C67: BESS Availability | E67: % | F67: =INDEX(H67:BY67,$E$1) -> 0.98 | H67: =DataBook!$F$26 -> 0.98 | I67: =DataBook!$F$26 -> 0.98 | J67: =DataBook!$F$26 -> 0.98 | K67: =DataBook!$F$26 -> 0.98 | L67: =DataBook!$F$26 -> 0.98 | M67: =DataBook!$F$26 -> 0.98 | N67: =DataBook!$F$26 -> 0.98 | O67: =DataBook!$F$26 -> 0.98 | P67: =DataBook!$F$26 -> 0.98 | Q67: =DataBook!$F$26 -> 0.98 | R67: =DataBook!$F$26 -> 0.98 | S67: =DataBook!$F$26 -> 0.98
C68: Cycles per Year | E68: Number | F68: =INDEX(H68:BY68,$E$1) -> 600 | H68: =DataBook!$F$19 -> 600 | I68: =DataBook!$F$19 -> 600 | J68: =DataBook!$F$19 -> 600 | K68: =DataBook!$F$19 -> 600 | L68: =DataBook!$F$19 -> 600 | M68: =DataBook!$F$19 -> 600 | N68: =DataBook!$F$19 -> 600 | O68: =DataBook!$F$19 -> 600 | P68: =DataBook!$F$19 -> 600 | Q68: =DataBook!$F$19 -> 600 | R68: =DataBook!$F$19 -> 600 | S68: =DataBook!$F$19 -> 600
C70: Degradaton | E70: % p.a. | F70: =INDEX(H70:BY70,$E$1) -> 0.02 | H70: =DataBook!$F$23 -> 0.02 | I70: =DataBook!$F$23 -> 0.02 | J70: =DataBook!$F$23 -> 0.02 | K70: =DataBook!$F$23 -> 0.02 | L70: =DataBook!$F$23 -> 0.02 | M70: =DataBook!$F$23 -> 0.02 | N70: =DataBook!$F$23 -> 0.02 | O70: =DataBook!$F$23 -> 0.02 | P70: =DataBook!$F$23 -> 0.02 | Q70: =DataBook!$F$23 -> 0.02 | R70: =DataBook!$F$23 -> 0.02 | S70: =DataBook!$F$23 -> 0.02
B72: Grid Connection and Substation
C74: Grid Voltage | E74: kVa | H74: =DataBook!F102 -> 110 | I74: =DataBook!G102 -> 110 | J74: =DataBook!H102 -> 110 | K74: =DataBook!I102 -> 110 | L74: =DataBook!J102 -> 110 | M74: =DataBook!K102 -> 110 | N74: =DataBook!L102 -> 220 | O74: =DataBook!M102 -> 110 | P74: =DataBook!N102 -> 110 | Q74: =DataBook!O102 -> 0 | R74: =DataBook!P102 -> 0 | S74: =DataBook!Q102 -> 0
C75: Total Capacity | E75: kVa
C76: Distance to Grid | E76: meters | H76: =DataBook!F103 -> 800 | I76: =DataBook!G103 -> 4200 | J76: =DataBook!H103 -> 300 | K76: =DataBook!I103 -> 13500 | L76: =DataBook!J103 -> 7900 | M76: =DataBook!K103 -> 5800 | N76: =DataBook!L103 -> 3130 | O76: =DataBook!M103 -> 5900 | P76: =DataBook!N103 -> 800 | Q76: =DataBook!O103 -> 0 | R76: =DataBook!P103 -> 0 | S76: =DataBook!Q103 -> 0
B79: PV Cap Exp, Op Exp and Tariff
C81: Capex per kWp | E81: EUR/kW | F81: =INDEX(H81:BY81,$E$1) -> 512.5 | H81: =DataBook!$L$3 -> 512.5 | I81: =DataBook!$L$3 -> 512.5 | J81: =DataBook!$L$3 -> 512.5 | K81: =DataBook!$L$3 -> 512.5 | L81: =DataBook!$L$3 -> 512.5 | M81: =DataBook!$L$3 -> 512.5 | N81: =DataBook!$L$3 -> 512.5 | O81: =DataBook!$L$3 -> 512.5 | P81: =DataBook!$L$3 -> 512.5 | Q81: =DataBook!$L$3 -> 512.5 | R81: =DataBook!$L$3 -> 512.5 | S81: =DataBook!$L$3 -> 512.5
C82: Capex per kWp | E82: EUR/kW | F82: =INDEX(H82:BY82,$E$1) -> 512.5 | H82: =DataBook!$L$3 -> 512.5 | I82: =DataBook!$L$3 -> 512.5 | J82: =DataBook!$L$3 -> 512.5 | K82: =DataBook!$L$3 -> 512.5 | L82: =DataBook!$L$3 -> 512.5 | M82: =DataBook!$L$3 -> 512.5 | N82: =DataBook!$L$3 -> 512.5 | O82: =DataBook!$L$3 -> 512.5 | P82: =DataBook!$L$3 -> 512.5 | Q82: =DataBook!$L$3 -> 512.5 | R82: =DataBook!$L$3 -> 512.5 | S82: =DataBook!$L$3 -> 512.5
C84: O&M | E84: Euro/kWy | F84: =INDEX(H84:BY84,$E$1) -> 8 | H84: =DataBook!$L$10 -> 8 | I84: =DataBook!$L$10 -> 8 | J84: =DataBook!$L$10 -> 8 | K84: =DataBook!$L$10 -> 8 | L84: =DataBook!$L$10 -> 8 | M84: =DataBook!$L$10 -> 8 | N84: =DataBook!$L$10 -> 8 | O84: =DataBook!$L$10 -> 8 | P84: =DataBook!$L$10 -> 8 | Q84: =DataBook!$L$10 -> 8 | R84: =DataBook!$L$10 -> 8 | S84: =DataBook!$L$10 -> 8
C85: Insurance | E85: Eur/kw-year
C87: S-Curve Code | E87: Code | F87: =INDEX(H87:BY87,$E$1) -> 4 | H87: 4 | I87: 4 | J87: 4 | K87: 4 | L87: 4 | M87: 4 | N87: 4 | O87: 2 | P87: 4 | Q87: 4 | R87: 4 | S87: 2
C88: S-Curve Description | E88: Description | F88: =INDEX(H88:BY88,$E$1) -> Two Year | H88: =INDEX('Input S'!$C$7:$C$11,InputC!H87) -> Two Year | I88: =INDEX('Input S'!$C$7:$C$11,InputC!I87) -> Two Year | J88: =INDEX('Input S'!$C$7:$C$11,InputC!J87) -> Two Year | K88: =INDEX('Input S'!$C$7:$C$11,InputC!K87) -> Two Year | L88: =INDEX('Input S'!$C$7:$C$11,InputC!L87) -> Two Year | M88: =INDEX('Input S'!$C$7:$C$11,InputC!M87) -> Two Year | N88: =INDEX('Input S'!$C$7:$C$11,InputC!N87) -> Two Year | O88: =INDEX('Input S'!$C$7:$C$11,InputC!O87) -> Beginning | P88: =INDEX('Input S'!$C$7:$C$11,InputC!P87) -> Two Year | Q88: =INDEX('Input S'!$C$7:$C$11,InputC!Q87) -> Two Year | R88: =INDEX('Input S'!$C$7:$C$11,InputC!R87) -> Two Year | S88: =INDEX('Input S'!$C$7:$C$11,InputC!S87) -> Beginning
C90: End of Initial PPA Tariff | E90: Years | F90: =INDEX(H90:BY90,$E$1) -> 15 | H90: 15 | I90: 15 | J90: 15 | K90: 15 | L90: 15 | M90: 15 | N90: 15 | O90: 15 | P90: 15 | Q90: 15 | R90: 15 | S90: 15
C91: Initial PPA Tariff | E91: Euro/kWh | F91: =INDEX(H91:BY91,$E$1) -> 0.0513017807 | H91: =DataBook!$G$156/100 -> 0.0513017807 | I91: =DataBook!$G$156/100 -> 0.0513017807 | J91: =DataBook!$G$156/100 -> 0.0513017807 | K91: =DataBook!$G$156/100 -> 0.0513017807 | L91: =DataBook!$G$156/100 -> 0.0513017807 | M91: =DataBook!$G$156/100 -> 0.0513017807 | N91: =DataBook!$G$156/100 -> 0.0513017807 | O91: =DataBook!$G$156/100 -> 0.0513017807 | P91: =DataBook!$G$156/100 -> 0.0513017807 | Q91: =DataBook!$G$156/100 -> 0.0513017807 | R91: =DataBook!$G$156/100 -> 0.0513017807 | S91: =DataBook!$G$156/100 -> 0.0513017807
C92: End of PPA | E92: Years | F92: =INDEX(H92:BY92,$E$1) -> 25 | H92: 25 | I92: 25 | J92: 25 | K92: 25 | L92: 25 | M92: 25 | N92: 25 | O92: 25 | P92: 25 | Q92: 25 | R92: 25 | S92: 25
C93: Second Step of PPA Tariff | E93: Euro/kWh | F93: =INDEX(H93:BY93,$E$1) -> 0.0274017807 | H93: =DataBook!$H$156/100 -> 0.0274017807 | I93: =DataBook!$H$156/100 -> 0.0274017807 | J93: =DataBook!$H$156/100 -> 0.0274017807 | K93: =DataBook!$H$156/100 -> 0.0274017807 | L93: =DataBook!$H$156/100 -> 0.0274017807 | M93: =DataBook!$H$156/100 -> 0.0274017807 | N93: =DataBook!$H$156/100 -> 0.0274017807 | O93: =DataBook!$H$156/100 -> 0.0274017807 | P93: =DataBook!$H$156/100 -> 0.0274017807 | Q93: =DataBook!$H$156/100 -> 0.0274017807 | R93: =DataBook!$H$156/100 -> 0.0274017807 | S93: =DataBook!$H$156/100 -> 0.0274017807
C95: Flat PPA Tariff for Solar | E95: Euro/kWh | F95: =INDEX(H95:BY95,$E$1) -> 0.0257 | H95: =DataBook!$G$143/100 -> 0.0257 | I95: =DataBook!$G$143/100 -> 0.0257 | J95: =DataBook!$G$143/100 -> 0.0257 | K95: =DataBook!$G$143/100 -> 0.0257 | L95: =DataBook!$G$143/100 -> 0.0257 | M95: =DataBook!$G$143/100 -> 0.0257 | N95: =DataBook!$G$143/100 -> 0.0257 | O95: =DataBook!$G$143/100 -> 0.0257 | P95: =DataBook!$G$143/100 -> 0.0257 | Q95: =DataBook!$G$143/100 -> 0.0257 | R95: =DataBook!$G$143/100 -> 0.0257 | S95: =DataBook!$G$143/100 -> 0.0257
C96: Apply Flat Tariff | F96: =INDEX(H96:BY96,$E$1) -> TRUE | H96: TRUE | I96: TRUE | J96: TRUE | K96: TRUE | L96: TRUE | M96: TRUE | N96: TRUE | O96: TRUE | P96: TRUE | Q96: TRUE | R96: TRUE | S96: TRUE
C97: Inflate PPA | E97: Flag | F97: =INDEX(H97:BY97,$E$1) -> FALSE | H97: FALSE | I97: TRUE | J97: TRUE | K97: TRUE | L97: TRUE | M97: =H97 -> FALSE | N97: =M97 -> FALSE | O97: FALSE | P97: FALSE | Q97: FALSE | R97: FALSE | S97: FALSE
C98: Target Pre-tax IRR for PPA | F98: =INDEX(H98:XFD98,E1) -> 0.07 | H98: 0.07 | I98: 0.07 | J98: 0.07 | K98: 0.07 | L98: 0.07 | M98: 0.07 | N98: 0.07 | O98: 0.07 | P98: 0.07 | Q98: 0.07 | R98: 0.07 | S98: 0.07
B100: BESS System - Cap Exp, Op Exp and Tariff
C102: Capital Expenditure per kWh | E102: Euro/kWh | F102: =INDEX(H102:BY102,$E$1) -> 112.5 | H102: =DataBook!$L$15 -> 112.5 | I102: =DataBook!$L$15 -> 112.5 | J102: =DataBook!$L$15 -> 112.5 | K102: =DataBook!$L$15 -> 112.5 | L102: =DataBook!$L$15 -> 112.5 | M102: =DataBook!$L$15 -> 112.5 | N102: =DataBook!$L$15 -> 112.5 | O102: =DataBook!$L$15 -> 112.5 | P102: =DataBook!$L$15 -> 112.5 | Q102: =DataBook!$L$15 -> 112.5 | R102: =DataBook!$L$15 -> 112.5 | S102: =DataBook!$L$15 -> 112.5
C104: O&M per kWh | E104: Euro/kWh | F104: =INDEX(H104:BY104,$E$1) -> 3.5 | H104: =DataBook!$L$11 -> 3.5 | I104: =DataBook!$L$11 -> 3.5 | J104: =DataBook!$L$11 -> 3.5 | K104: =DataBook!$L$11 -> 3.5 | L104: =DataBook!$L$11 -> 3.5 | M104: =DataBook!$L$11 -> 3.5 | N104: =DataBook!$L$11 -> 3.5 | O104: =DataBook!$L$11 -> 3.5 | P104: =DataBook!$L$11 -> 3.5 | Q104: =DataBook!$L$11 -> 3.5 | R104: =DataBook!$L$11 -> 3.5 | S104: =DataBook!$L$11 -> 3.5
C105: Insurance per kWh | E105: Euro/kWh
C106: Other Expense per kWh | E106: Euro/kWh
C108: Apply Tariff to Capacity Before Degradation | E108: Flag | F108: =INDEX(H108:BY108,$E$1) -> FALSE | H108: FALSE | I108: FALSE | J108: FALSE | K108: FALSE | L108: FALSE | M108: FALSE | N108: FALSE | O108: FALSE | P108: FALSE | Q108: FALSE | R108: FALSE | S108: FALSE
C109: PPA Capacity Tariff for BESS | E109: Euro/kWh | F109: =INDEX(H109:BY109,$E$1) -> 0.0138 | H109: =DataBook!$G$145/100 -> 0.0138 | I109: =DataBook!$G$145/100 -> 0.0138 | J109: =DataBook!$G$145/100 -> 0.0138 | K109: =DataBook!$G$145/100 -> 0.0138 | L109: =DataBook!$G$145/100 -> 0.0138 | M109: =DataBook!$G$145/100 -> 0.0138 | N109: =DataBook!$G$145/100 -> 0.0138 | O109: =DataBook!$G$145/100 -> 0.0138 | P109: =DataBook!$G$145/100 -> 0.0138 | Q109: =DataBook!$G$145/100 -> 0.0138 | R109: =DataBook!$G$145/100 -> 0.0138 | S109: =DataBook!$G$145/100 -> 0.0138
B112: Grid Connection and Subastation - Cap Exp, Op Exp and Tariff
C114: Substation Capital Expenditure | E114: EUR | F114: =INDEX(H114:BY114,$E$1) -> 110000000 | H114: =DataBook!F104 -> 11000000 | I114: =DataBook!G104 -> 11000000 | J114: =DataBook!H104 -> 11000000 | K114: =DataBook!I104 -> 11000000 | L114: =DataBook!J104 -> 11000000 | M114: =DataBook!K104 -> 11000000 | N114: =DataBook!L104 -> 22000000 | O114: =DataBook!M104 -> 11000000 | P114: =DataBook!N104 -> 11000000 | Q114: =SUM(H114:P114) -> 110000000 | R114: =DataBook!P104 -> 0 | S114: =DataBook!Q104 -> 0
C115: 220 kV single-circuit overhead line SK variant
C116: Grid Connection Cost Tariff | E116: Euro/kWh | F116: =INDEX(H116:BY116,$E$1) -> 0.001701780703 | H116: =DataBook!$G$152/100 -> 0.001701780703 | I116: =DataBook!$G$152/100 -> 0.001701780703 | J116: =DataBook!$G$152/100 -> 0.001701780703 | K116: =DataBook!$G$152/100 -> 0.001701780703 | L116: =DataBook!$G$152/100 -> 0.001701780703 | M116: =DataBook!$G$152/100 -> 0.001701780703 | N116: =DataBook!$G$152/100 -> 0.001701780703 | O116: =DataBook!$G$152/100 -> 0.001701780703 | P116: =DataBook!$G$152/100 -> 0.001701780703 | Q116: =DataBook!$G$152/100 -> 0.001701780703 | R116: =DataBook!$G$152/100 -> 0.001701780703 | S116: =DataBook!$G$152/100 -> 0.001701780703
C118: Modernisation Cost | E118: EUR | F118: =INDEX(H118:BY118,$E$1) -> 140000000 | H118: =DataBook!F105 -> 15555555.56 | I118: =DataBook!G105 -> 15555555.56 | J118: =DataBook!H105 -> 15555555.56 | K118: =DataBook!I105 -> 15555555.56 | L118: =DataBook!J105 -> 15555555.56 | M118: =DataBook!K105 -> 15555555.56 | N118: =DataBook!L105 -> 15555555.56 | O118: =DataBook!M105 -> 15555555.56 | P118: =DataBook!N105 -> 15555555.56 | Q118: =SUM(H118:P118) -> 140000000
C119: Modernisation Tariff | E119: Euro/kWh | F119: =INDEX(H119:BY119,$E$1) -> 0.0101 | H119: =DataBook!$G$144/100 -> 0.0101 | I119: =DataBook!$G$144/100 -> 0.0101 | J119: =DataBook!$G$144/100 -> 0.0101 | K119: =DataBook!$G$144/100 -> 0.0101 | L119: =DataBook!$G$144/100 -> 0.0101 | M119: =DataBook!$G$144/100 -> 0.0101 | N119: =DataBook!$G$144/100 -> 0.0101 | O119: =DataBook!$G$144/100 -> 0.0101 | P119: =DataBook!$G$144/100 -> 0.0101 | Q119: =DataBook!$G$144/100 -> 0.0101 | R119: =DataBook!$G$144/100 -> 0.0101 | S119: =DataBook!$G$144/100 -> 0.0101
B121: Tax and Depreciation
C123: Tax Life for Depreciation | E123: Years | F123: =INDEX(H123:BY123,$E$1) -> 25 | H123: 25 | I123: 25 | J123: 25 | K123: 25 | L123: 25 | M123: 25 | N123: 25 | O123: 25 | P123: 25 | Q123: 25 | R123: 25 | S123: 25
C125: Tax Holiday | E125: Years | F125: =INDEX(H125:BY125,$E$1) -> 15 | H125: 15 | I125: 15 | J125: 15 | K125: 15 | L125: 15 | M125: 15 | N125: 15 | O125: 15 | P125: 15 | Q125: 15 | R125: 15 | S125: 15
C126: Income Tax Rate | E126: % | F126: =INDEX(H126:BY126,$E$1) -> 0.15 | H126: 0.15 | I126: 0.15 | J126: 0.15 | K126: 0.15 | L126: 0.15 | M126: 0.15 | N126: 0.15 | O126: 0.15 | P126: 0.15 | Q126: 0.15 | R126: 0.15 | S126: 0.15
C127: Maximum Carry Forward Year | E127: Years | F127: =INDEX(H127:BY127,$E$1) -> 8 | H127: 8 | I127: 8 | J127: 8 | K127: 8 | L127: 8 | M127: 8 | N127: 8 | O127: 8 | P127: 8 | Q127: 8 | R127: 8 | S127: 8
B129: Financing
C131: Maximum Debt to Capital | E131: % | F131: =INDEX(H131:BY131,$E$1) -> 0.85 | H131: 0.85 | I131: 0.85 | J131: 0.85 | K131: 0.85 | L131: 0.85 | M131: 0.85 | N131: 0.85 | O131: 0.85 | P131: 0.85 | Q131: 0.85 | R131: 0.85 | S131: 0.85
C132: Minimum DSCR | E132: x | F132: =INDEX(H132:BY132,$E$1) -> 1.2 | H132: 1.2 | I132: 1.2 | J132: 1.2 | K132: 1.2 | L132: 1.2 | M132: 1.2 | N132: 1.2 | O132: 1.2 | P132: 1.2 | Q132: 1.2 | R132: 1.2 | S132: 1.2
C133: P90 Standard Deviation | E133: % of P50 | F133: =INDEX(H133:BY133,$E$1) -> 0.06 | H133: 0.06 | I133: 0.06 | J133: 0.06 | K133: 0.06 | L133: 0.06 | M133: 0.06 | N133: 0.06 | O133: 0.06 | P133: 0.06 | Q133: 0.06 | R133: 0.06 | S133: 0.06
C134: P90 Factor | E134: % | F134: =INDEX(H134:BY134,$E$1) -> 0.1 | H134: 0.1 | I134: 0.1 | J134: 0.1 | K134: 0.1 | L134: 0.1 | M134: 0.1 | N134: 0.1 | O134: 0.1 | P134: 0.1 | Q134: 0.1 | R134: 0.1 | S134: 0.1
C136: Debt Tenure | E136: Years | F136: =INDEX(H136:BY136,$E$1) -> 22 | H136: 22 | I136: 22 | J136: 22 | K136: 22 | L136: 22 | M136: 22 | N136: 22 | O136: 22 | P136: 22 | Q136: 22 | R136: 22 | S136: 22
C138: Euribor Rate | E138: % p.a. | F138: =INDEX(H138:BY138,$E$1) -> 0.031 | H138: 0.031 | I138: 0.031 | J138: 0.031 | K138: 0.031 | L138: 0.031 | M138: 0.031 | N138: 0.031 | O138: 0.031 | P138: 0.031 | Q138: 0.031 | R138: 0.031 | S138: 0.031
C139: REPO Interest | E139: % p.a. | F139: =INDEX(H139:BY139,$E$1) -> 0 | H139: 0 | I139: 0 | J139: 0 | K139: 0 | L139: 0 | M139: 0 | N139: 0 | O139: 0 | P139: 0 | Q139: 0 | R139: 0 | S139: 0
C140: Credit Spread | E140: % p.a. | F140: =INDEX(H140:BY140,$E$1) -> 0.01 | H140: 0.01 | I140: 0.01 | J140: 0.01 | K140: 0.01 | L140: 0.01 | M140: 0.01 | N140: 0.01 | O140: 0.01 | P140: 0.01 | Q140: 0.01 | R140: 0.01 | S140: 0.01
C142: Pro-Forma Funding | E142: Flag | F142: =INDEX(H142:BY142,$E$1) -> TRUE | H142: TRUE | I142: TRUE | J142: TRUE | K142: TRUE | L142: TRUE | M142: TRUE | N142: TRUE | O142: TRUE | P142: TRUE | Q142: TRUE | R142: TRUE | S142: TRUE
C143: Equity Up-Front | E143: Flag | F143: =INDEX(H143:BY143,$E$1) -> FALSE | H143: =NOT(H142) -> FALSE | I143: =NOT(I142) -> FALSE | J143: =NOT(J142) -> FALSE | K143: FALSE | L143: FALSE | M143: =NOT(M142) -> FALSE | N143: FALSE | O143: FALSE | P143: FALSE | Q143: FALSE | R143: FALSE | S143: FALSE
C145: Up-front Fee | E145: % | F145: =INDEX(H145:BY145,$E$1) -> 0.005 | H145: 0.005 | I145: 0.005 | J145: 0.005 | K145: 0.005 | L145: 0.005 | M145: 0.005 | N145: 0.005 | O145: 0.005 | P145: 0.005 | Q145: 0.005 | R145: 0.005 | S145: 0.005
C146: Commitment Fee | E146: % p.a. | F146: =INDEX(H146:BY146,$E$1) -> 0.003 | H146: 0.003 | I146: 0.003 | J146: 0.003 | K146: 0.003 | L146: 0.003 | M146: 0.003 | N146: 0.003 | O146: 0.003 | P146: 0.003 | Q146: 0.003 | R146: 0.003 | S146: 0.003
B148: Valuation and Re-Financing
C150: Holding period from COD | E150: Years | F150: =INDEX(H150:BY150,$E$1) -> 3 | H150: 4 | I150: 3 | J150: 3 | K150: 3 | L150: 3 | M150: 3 | N150: 3 | O150: 3 | P150: 3 | Q150: 3 | R150: 3 | S150: 3
C151: Transaction Date | E151: Date | F151: =INDEX(H151:BY151,$E$1) -> 2031-01-31 | H151: =EDATE(H9,H150*Months)-1 -> 2032-01-31 | I151: 2031-01-31 | J151: 2031-01-31 | K151: 2031-01-31 | L151: 2031-01-31 | M151: 2031-01-31 | N151: 2031-01-31 | O151: 2031-01-31 | P151: 2031-01-31 | Q151: 2031-01-31 | R151: 2031-01-31 | S151: 2031-01-31
C153: Buyer's Target Pre-tax Project IRR | E153: % | F153: =INDEX(H153:BY153,$E$1) -> 0.1 | H153: 0.1 | I153: 0.1 | J153: 0.1 | K153: 0.1 | L153: 0.1 | M153: 0.1 | N153: 0.1 | O153: 0.1 | P153: 0.1 | Q153: 0.1 | R153: 0.1 | S153: 0.1
C154: Buyer's Target After-tax Project IRR | E154: % | F154: =INDEX(H154:BY154,$E$1) -> 0.09 | H154: 0.09 | I154: 0.09 | J154: 0.09 | K154: 0.09 | L154: 0.09 | M154: 0.09 | N154: 0.09 | O154: 0.09 | P154: 0.09 | Q154: 0.09 | R154: 0.09 | S154: 0.09
C155: Buyer's Target Equity IRR | E155: % | F155: =INDEX(H155:BY155,$E$1) -> 0.11 | H155: 0.11 | I155: 0.11 | J155: 0.11 | K155: 0.11 | L155: 0.11 | M155: 0.11 | N155: 0.11 | O155: 0.11 | P155: 0.11 | Q155: 0.11 | R155: 0.11 | S155: 0.11
C157: Flag for Valuation with Project IRR | E157: Flag | F157: =INDEX(H157:BY157,$E$1) -> TRUE | H157: TRUE | I157: TRUE | J157: TRUE | K157: TRUE | L157: TRUE | M157: TRUE | N157: TRUE | O157: TRUE | P157: TRUE | Q157: TRUE | R157: TRUE | S157: TRUE
C158: Flag for Taxable Transaction | E158: Flag | F158: =INDEX(H158:BY158,$E$1) -> FALSE | H158: FALSE | I158: FALSE | J158: FALSE | K158: FALSE | L158: FALSE | M158: FALSE | N158: FALSE | O158: FALSE | P158: FALSE | Q158: FALSE | R158: FALSE | S158: FALSE
C160: Flag for Re-finance Existing Debt | E160: Flag | F160: =INDEX(H160:BY160,$E$1) -> TRUE | H160: TRUE | I160: TRUE | J160: TRUE | K160: TRUE | L160: TRUE | M160: TRUE | N160: TRUE | O160: TRUE | P160: TRUE | Q160: TRUE | R160: TRUE | S160: TRUE
C161: Flag for New Debt Financing | E161: Flag | F161: =INDEX(H161:BY161,$E$1) -> TRUE | H161: TRUE | I161: TRUE | J161: TRUE | K161: TRUE | L161: TRUE | M161: TRUE | N161: TRUE | O161: TRUE | P161: TRUE | Q161: TRUE | R161: TRUE | S161: TRUE
C163: Target Company Fees as % of EV | E163: % | F163: =INDEX(H163:BY163,$E$1) -> 0.0075 | H163: 0.0075 | I163: 0.0075 | J163: 0.0075 | K163: 0.0075 | L163: 0.0075 | M163: 0.0075 | N163: 0.0075 | O163: 0.0075 | P163: 0.0075 | Q163: 0.0075 | R163: 0.0075 | S163: 0.0075
C165: Target DSCR on New Debt | E165: x | F165: =INDEX(H165:BY165,$E$1) -> 1.2 | H165: 1.2 | I165: 1.2 | J165: 1.2 | K165: 1.2 | L165: 1.2 | M165: 1.2 | N165: 1.2 | O165: 1.2 | P165: 1.2 | Q165: 1.2 | R165: 1.2 | S165: 1.2
C166: Remaining Life on Project | E166: Years | F166: =INDEX(H166:BY166,$E$1) -> 22 | H166: =H10-H150 -> 21 | I166: 22 | J166: 22 | K166: 22 | L166: 22 | M166: 22 | N166: 22 | O166: 22 | P166: 22 | Q166: 22 | R166: 22 | S166: 22
C167: Tail on Debt for Re-financing | E167: Years | F167: =INDEX(H167:BY167,$E$1) -> 3 | H167: 3 | I167: 7 | J167: 7 | K167: 7 | L167: 7 | M167: 3 | N167: 3 | O167: 3 | P167: 3 | Q167: 3 | R167: 3 | S167: 3
C168: Remaining Life on New Debt | E168: Years | F168: =INDEX(H168:BY168,$E$1) -> 19 | H168: =H166-H167 -> 18 | I168: =I166-I167 -> 15 | J168: 15 | K168: 15 | L168: 15 | M168: 19 | N168: 19 | O168: 19 | P168: 19 | Q168: 19 | R168: 19 | S168: 19
C169: Interest Rate on New Debt | E169: % p.a. | F169: =INDEX(H169:BY169,$E$1) -> 0.0725 | H169: 0.0725 | I169: 0.0725 | J169: 0.0725 | K169: 0.0725 | L169: 0.0725 | M169: 0.0725 | N169: 0.0725 | O169: 0.0725 | P169: 0.0725 | Q169: 0.0725 | R169: 0.0725 | S169: 0.0725
B171: Constants
C172: Months in a Year | F172: 12 | G172: Months
C173: Hours in a Day | F173: 24 | G173: Hours
C174: one | F174: 1 | G174: one
C175: Turn on circular calculations | F175: TRUE
G217: =TRANSPOSE(H2:S2) -> Alat
G218: Khavast
G219: Qiziltepa
G220: Jarkurgan
G221: Jarkurgan
G222: Bukhara region; Korovulbozor
G223: Kashkadarya Province; KMK No. 7
G224: Surkhandarya Province; Bobotog
G225: Surkhandarya Province; Sherobod
G226: Total Projects
G227: Total with Sensitivity
G228: additional option 2

Sheet Input S
B2: S-Curve
C3: Code Number | E3: =InputC!F87 -> 4
C5: Month | F5: 1 | G5: 2 | H5: 3 | I5: 4 | J5: 5 | K5: 6 | L5: 7 | M5: 8 | N5: 9 | O5: 10 | P5: 11 | Q5: 12 | R5: 13 | S5: 14 | T5: 15 | U5: 16 | V5: 17 | W5: 18 | X5: 19 | Y5: 20
C7: Flat case | F7: =1/12 -> 0.08333333333 | G7: =1/12 -> 0.08333333333 | H7: 0.08333333333 | I7: 0.08333333333 | J7: 0.08333333333 | K7: 0.08333333333 | L7: 0.08333333333 | M7: 0.08333333333 | N7: 0.08333333333 | O7: 0.08333333333 | P7: 0.08333333333 | Q7: 0.08333333333
C8: Beginning | F8: 0.3 | G8: 0.2 | H8: 0.1 | I8: 0.05 | J8: 0.35 | K8: 0 | Q8: 0
C9: Ending | F9: 0.3 | L9: 0.2 | Q9: 0.5
C10: Two Year | F10: =1/24 -> 0.04166666667 | G10: =1/24 -> 0.04166666667 | H10: 0.04166666667 | I10: 0.04166666667 | J10: 0.04166666667 | K10: 0.04166666667 | L10: 0.04166666667 | M10: 0.04166666667 | N10: 0.04166666667 | O10: 0.04166666667 | P10: 0.04166666667 | Q10: 0.04166666667
C11: Annual | F11: 1
C13: =INDEX(C7:C11,$E$3) -> Two Year | F13: =INDEX(F7:F11,$E$3) -> 0.04166666667 | G13: =INDEX(G7:G11,$E$3) -> 0.04166666667 | H13: =INDEX(H7:H11,$E$3) -> 0.04166666667 | I13: =INDEX(I7:I11,$E$3) -> 0.04166666667 | J13: =INDEX(J7:J11,$E$3) -> 0.04166666667 | K13: =INDEX(K7:K11,$E$3) -> 0.04166666667 | L13: =INDEX(L7:L11,$E$3) -> 0.04166666667 | M13: =INDEX(M7:M11,$E$3) -> 0.04166666667 | N13: =INDEX(N7:N11,$E$3) -> 0.04166666667 | O13: =INDEX(O7:O11,$E$3) -> 0.04166666667 | P13: =INDEX(P7:P11,$E$3) -> 0.04166666667 | Q13: =INDEX(Q7:Q11,$E$3) -> 0.04166666667
B16: Inflation
C17: Code Number | E17: =InputC!H41 -> 3
C19: Year | F19: 2025 | G19: 2026 | H19: 2027 | I19: 2028 | J19: 2029 | K19: 2030 | L19: 2031 | M19: 2032 | N19: 2033 | O19: 2034 | P19: 2035
C21: Base Case | F21: 0 | G21: 0 | H21: 0 | I21: 0 | J21: 0 | K21: 0 | L21: 0 | M21: 0 | N21: 0 | O21: 0 | P21: 0
C22: High Inflation | F22: 0 | G22: 0 | H22: 0 | I22: 0 | J22: 0 | K22: 0 | L22: 0 | M22: 0 | N22: 0 | O22: 0 | P22: 0
C23: Flat Inflation | F23: 0.03 | G23: 0.03 | H23: 0.03 | I23: 0.03 | J23: 0.03 | K23: 0.03 | L23: 0.03 | M23: 0.03 | N23: 0.03 | O23: 0.03 | P23: 0.03
C24: Zero Inflation | F24: 0 | G24: 0 | H24: 0 | I24: 0 | J24: 0 | K24: 0 | L24: 0 | M24: 0 | N24: 0 | O24: 0 | P24: 0
C26: =INDEX(C21:C25,$E$17) -> Flat Inflation | F26: =INDEX(F21:F25,$E$17) -> 0.03 | G26: =INDEX(G21:G25,$E$17) -> 0.03 | H26: =INDEX(H21:H25,$E$17) -> 0.03 | I26: =INDEX(I21:I25,$E$17) -> 0.03 | J26: =INDEX(J21:J25,$E$17) -> 0.03 | K26: =INDEX(K21:K25,$E$17) -> 0.03 | L26: =INDEX(L21:L25,$E$17) -> 0.03 | M26: =INDEX(M21:M25,$E$17) -> 0.03 | N26: =INDEX(N21:N25,$E$17) -> 0.03 | O26: =INDEX(O21:O25,$E$17) -> 0.03 | P26: =INDEX(P21:P25,$E$17) -> 0.03
C28: Inflation Index | E28: 1 | F28: =E28*(1+F26) -> 1.03 | G28: =F28*(1+G26) -> 1.0609 | H28: 1.092727 | I28: 1.12550881 | J28: 1.159274074 | K28: 1.194052297 | L28: 1.229873865 | M28: 1.266770081 | N28: 1.304773184 | O28: 1.343916379 | P28: 1.384233871
C29: Annual Growth | E29: =(P28/E28)^(1/11)-1 -> 0.03
B31: Seasonal Variation from Technical Analysis
J33: ='Financial Model - Monthly'!K4 -> 1 | K33: 2 | L33: 3 | M33: 4 | N33: 5 | O33: 6 | P33: 7 | Q33: 8 | R33: 9 | S33: 10 | T33: 11 | U33: 12 | V33: 13 | W33: 14 | X33: 15 | Y33: 16 | Z33: 17 | AA33: 18 | AB33: 19 | AC33: 20 | AD33: 21 | AE33: 22 | AF33: 23 | AG33: 24 | AH33: 25 | AI33: 26 | AJ33: 27 | AK33: 28 | AL33: 29 | AM33: 30 | AN33: 31 | AO33: 32 | AP33: 33 | AQ33: 34 | AR33: 35 | AS33: 36 | AT33: 37 | AU33: 38 | AV33: 39 | AW33: 40 | AX33: 41 | AY33: 42 | AZ33: 43 | BA33: 44 | BB33: 45 | BC33: 46 | BD33: 47 | BE33: 48 | BF33: 49 | BG33: 50 | BH33: 51 | BI33: 52 | BJ33: 53 | BK33: 54 | BL33: 55 | BM33: 56 | BN33: 57 | BO33: 58 | BP33: 59 | BQ33: 60 | BR33: 61 | BS33: 62 | BT33: 63 | BU33: 64 | BV33: 65 | BW33: 66 | BX33: 67 | BY33: 68 | BZ33: 69 | CA33: 70 | CB33: 71 | CC33: 72 | CD33: 73 | CE33: 74 | CF33: 75 | CG33: 76 | CH33: 77 | CI33: 78 | CJ33: 79 | CK33: 80 | CL33: 81 | CM33: 82 | CN33: 83 | CO33: 84 | CP33: 85 | CQ33: 86 | CR33: 87 | CS33: 88 | CT33: 89 | CU33: 90 | CV33: 91 | CW33: 92 | CX33: 93 | CY33: 94 | CZ33: 95 | DA33: 96 | DB33: 97 | DC33: 98 | DD33: 99 | DE33: 100 | DF33: 101 | DG33: 102 | DH33: 103 | DI33: 104 | DJ33: 105 | DK33: 106 | DL33: 107 | DM33: 108 | DN33: 109 | DO33: 110 | DP33: 111 | DQ33: 112 | DR33: 113 | DS33: 114 | DT33: 115 | DU33: 116 | DV33: 117 | DW33: 118 | DX33: 119 | DY33: 120 | DZ33: 121 | EA33: 122 | EB33: 123 | EC33: 124 | ED33: 125 | EE33: 126 | EF33: 127 | EG33: 128 | EH33: 129 | EI33: 130 | EJ33: 131 | EK33: 132 | EL33: 133 | EM33: 134 | EN33: 135 | EO33: 136 | EP33: 137 | EQ33: 138 | ER33: 139 | ES33: 140 | ET33: 141 | EU33: 142 | EV33: 143 | EW33: 144 | EX33: 145 | EY33: 146 | EZ33: 147 | FA33: 148 | FB33: 149 | FC33: 150 | FD33: 151 | FE33: 152 | FF33: 153 | FG33: 154 | FH33: 155 | FI33: 156 | FJ33: 157 | FK33: 158 | FL33: 159 | FM33: 160 | FN33: 161 | FO33: 162 | FP33: 163 | FQ33: 164 | FR33: 165 | FS33: 166 | FT33: 167 | FU33: 168 | FV33: 169 | FW33: 170 | FX33: 171 | FY33: 172 | FZ33: 173 | GA33: 174 | GB33: 175 | GC33: 176 | GD33: 177 | GE33: 178 | GF33: 179 | GG33: 180 | GH33: 181 | GI33: 182 | GJ33: 183 | GK33: 184 | GL33: 185 | GM33: 186 | GN33: 187 | GO33: 188 | GP33: 189 | GQ33: 190 | GR33: 191 | GS33: 192 | GT33: 193 | GU33: 194 | GV33: 195 | GW33: 196 | GX33: 197 | GY33: 198 | GZ33: 199 | HA33: 200 | HB33: 201 | HC33: 202 | HD33: 203 | HE33: 204 | HF33: 205 | HG33: 206 | HH33: 207 | HI33: 208 | HJ33: 209 | HK33: 210 | HL33: 211 | HM33: 212 | HN33: 213 | HO33: 214 | HP33: 215 | HQ33: 216 | HR33: 217 | HS33: 218 | HT33: 219 | HU33: 220 | HV33: 221 | HW33: 222 | HX33: 223 | HY33: 224 | HZ33: 225 | IA33: 226 | IB33: 227 | IC33: 228 | ID33: 229 | IE33: 230 | IF33: 231 | IG33: 232 | IH33: 233 | II33: 234 | IJ33: 235 | IK33: 236 | IL33: 237 | IM33: 238 | IN33: 239 | IO33: 240 | IP33: 241 | IQ33: 242 | IR33: 243 | IS33: 244 | IT33: 245 | IU33: 246 | IV33: 247 | IW33: 248 | IX33: 249 | IY33: 250 | IZ33: 251 | JA33: 252 | JB33: 253 | JC33: 254 | JD33: 255 | JE33: 256 | JF33: 257 | JG33: 258 | JH33: 259 | JI33: 260 | JJ33: 261 | JK33: 262 | JL33: 263 | JM33: 264 | JN33: 265 | JO33: 266 | JP33: 267 | JQ33: 268 | JR33: 269 | JS33: 270 | JT33: 271 | JU33: 272 | JV33: 273 | JW33: 274 | JX33: 275 | JY33: 276 | JZ33: 277 | KA33: 278 | KB33: 279 | KC33: 280 | KD33: 281 | KE33: 282 | KF33: 283 | KG33: 284 | KH33: 285 | KI33: 286 | KJ33: 287 | KK33: 288 | KL33: 289 | KM33: 290 | KN33: 291 | KO33: 292 | KP33: 293 | KQ33: 294 | KR33: 295 | KS33: 296 | KT33: 297 | KU33: 298 | KV33: 299 | KW33: 300 | KX33: 301 | KY33: 302 | KZ33: 303 | LA33: 304 | LB33: 305 | LC33: 306 | LD33: 307 | LE33: 308 | LF33: 309 | LG33: 310 | LH33: 311 | LI33: 312 | LJ33: 313 | LK33: 314 | LL33: 315 | LM33: 316 | LN33: 317 | LO33: 318 | LP33: 319 | LQ33: 320 | LR33: 321 | LS33: 322 | LT33: 323 | LU33: 324 | LV33: 325 | LW33: 326 | LX33: 327 | LY33: 328 | LZ33: 329 | MA33: 330 | MB33: 331 | MC33: 332 | MD33: 333 | ME33: 334 | MF33: 335 | MG33: 336 | MH33: 337 | MI33: 338 | MJ33: 339 | MK33: 340 | ML33: 341 | MM33: 342 | MN33: 343 | MO33: 344 | MP33: 345 | MQ33: 346 | MR33: 347 | MS33: 348 | MT33: 349 | MU33: 350 | MV33: 351 | MW33: 352 | MX33: 353 | MY33: 354 | MZ33: 355 | NA33: 356 | NB33: 357 | NC33: 358 | ND33: 359 | NE33: 360 | NF33: 361 | NG33: 362 | NH33: 363 | NI33: 364 | NJ33: 365 | NK33: 366 | NL33: 367 | NM33: 368 | NN33: 369 | NO33: 370 | NP33: 371 | NQ33: 372 | NR33: 373 | NS33: 374 | NT33: 375 | NU33: 376 | NV33: 377 | NW33: 378 | NX33: 379 | NY33: 380 | NZ33: 381 | OA33: 382 | OB33: 383 | OC33: 384 | OD33: 385 | OE33: 386 | OF33: 387 | OG33: 388 | OH33: 389 | OI33: 390 | OJ33: 391 | OK33: 392 | OL33: 393 | OM33: 394 | ON33: 395 | OO33: 396 | OP33: 397 | OQ33: 398 | OR33: 399 | OS33: 400 | OT33: 401 | OU33: 402 | OV33: 403 | OW33: 404 | OX33: 405 | OY33: 406 | OZ33: 407 | PA33: 408 | PB33: 409 | PC33: 410 | PD33: 411 | PE33: 412 | PF33: 413 | PG33: 414 | PH33: 415 | PI33: 416 | PJ33: 417 | PK33: 418 | PL33: 419 | PM33: 420 | PN33: 421 | PO33: 422 | PP33: 423 | PQ33: 423 | PR33: 423 | PS33: 423 | PT33: 423 | PU33: 423 | PV33: 423 | PW33: 423 | PX33: 423 | PY33: 423 | PZ33: 423 | QA33: 423 | QB33: 423 | QC33: 423 | QD33: 423 | QE33: 423 | QF33: 423 | QG33: 423 | QH33: 423 | QI33: 423 | QJ33: 423 | QK33: 423 | QL33: 423 | QM33: 423 | QN33: 423 | QO33: 423 | QP33: 423 | QQ33: 423 | QR33: 423 | QS33: 423 | QT33: 423 | QU33: 423 | QV33: 423 | QW33: 423 | QX33: 423 | QY33: 423 | QZ33: 423 | RA33: 423 | RB33: 423 | RC33: 423 | RD33: 423 | RE33: 423 | RF33: 423 | RG33: 423 | RH33: 423 | RI33: 423 | RJ33: 423 | RK33: 423 | RL33: 423 | RM33: 423 | RN33: 423 | RO33: 423 | RP33: 423 | RQ33: 423 | RR33: 423 | RS33: 423 | RT33: 423 | RU33: 423 | RV33: 423 | RW33: 423 | RX33: 423 | RY33: 423 | RZ33: 423 | SA33: 423 | SB33: 423 | SC33: 423 | SD33: 423 | SE33: 423 | SF33: 423 | SG33: 423 | SH33: 423 | SI33: 423 | SJ33: 423 | SK33: 423 | SL33: 423 | SM33: 423 | SN33: 423 | SO33: 423 | SP33: 423 | SQ33: 423 | SR33: 423 | SS33: 423 | ST33: 423 | SU33: 423 | SV33: 423 | SW33: 423 | SX33: 423 | SY33: 423 | SZ33: 423 | TA33: 423 | TB33: 423 | TC33: 423 | TD33: 423 | TE33: 423 | TF33: 423 | TG33: 423 | TH33: 423 | TI33: 423 | TJ33: 423 | TK33: 423 | TL33: 423 | TM33: 423 | TN33: 423 | TO33: 423 | TP33: 423 | TQ33: 423 | TR33: 423 | TS33: 423 | TT33: 423 | TU33: 423 | TV33: 423 | TW33: 423 | TX33: 423 | TY33: 423
J34: ='Financial Model - Monthly'!K5 -> 2026-11-01 | K34: ='Financial Model - Monthly'!L5 -> 2026-12-01 | L34: ='Financial Model - Monthly'!M5 -> 2027-01-01 | M34: ='Financial Model - Monthly'!N5 -> 2027-02-01 | N34: ='Financial Model - Monthly'!O5 -> 2027-03-01 | O34: ='Financial Model - Monthly'!P5 -> 2027-04-01 | P34: ='Financial Model - Monthly'!Q5 -> 2027-05-01 | Q34: ='Financial Model - Monthly'!R5 -> 2027-06-01 | R34: ='Financial Model - Monthly'!S5 -> 2027-07-01 | S34: ='Financial Model - Monthly'!T5 -> 2027-08-01 | T34: ='Financial Model - Monthly'!U5 -> 2027-09-01 | U34: ='Financial Model - Monthly'!V5 -> 2027-10-01 | V34: ='Financial Model - Monthly'!W5 -> 2027-11-01 | W34: ='Financial Model - Monthly'!X5 -> 2027-12-01 | X34: ='Financial Model - Monthly'!Y5 -> 2028-01-01 | Y34: ='Financial Model - Monthly'!Z5 -> 2028-02-01 | Z34: ='Financial Model - Monthly'!AA5 -> 2028-03-01 | AA34: ='Financial Model - Monthly'!AB5 -> 2028-04-01 | AB34: ='Financial Model - Monthly'!AC5 -> 2028-05-01 | AC34: ='Financial Model - Monthly'!AD5 -> 2028-06-01 | AD34: ='Financial Model - Monthly'!AE5 -> 2028-07-01 | AE34: ='Financial Model - Monthly'!AF5 -> 2028-08-01 | AF34: ='Financial Model - Monthly'!AG5 -> 2028-09-01 | AG34: ='Financial Model - Monthly'!AH5 -> 2028-10-01 | AH34: ='Financial Model - Monthly'!AI5 -> 2028-11-01 | AI34: ='Financial Model - Monthly'!AJ5 -> 2028-12-01 | AJ34: ='Financial Model - Monthly'!AK5 -> 2029-01-01 | AK34: ='Financial Model - Monthly'!AL5 -> 2029-02-01 | AL34: ='Financial Model - Monthly'!AM5 -> 2029-03-01 | AM34: ='Financial Model - Monthly'!AN5 -> 2029-04-01 | AN34: ='Financial Model - Monthly'!AO5 -> 2029-05-01 | AO34: ='Financial Model - Monthly'!AP5 -> 2029-06-01 | AP34: ='Financial Model - Monthly'!AQ5 -> 2029-07-01 | AQ34: ='Financial Model - Monthly'!AR5 -> 2029-08-01 | AR34: ='Financial Model - Monthly'!AS5 -> 2029-09-01 | AS34: ='Financial Model - Monthly'!AT5 -> 2029-10-01 | AT34: ='Financial Model - Monthly'!AU5 -> 2029-11-01 | AU34: ='Financial Model - Monthly'!AV5 -> 2029-12-01 | AV34: ='Financial Model - Monthly'!AW5 -> 2030-01-01 | AW34: ='Financial Model - Monthly'!AX5 -> 2030-02-01 | AX34: ='Financial Model - Monthly'!AY5 -> 2030-03-01 | AY34: ='Financial Model - Monthly'!AZ5 -> 2030-04-01 | AZ34: ='Financial Model - Monthly'!BA5 -> 2030-05-01 | BA34: ='Financial Model - Monthly'!BB5 -> 2030-06-01 | BB34: ='Financial Model - Monthly'!BC5 -> 2030-07-01 | BC34: ='Financial Model - Monthly'!BD5 -> 2030-08-01 | BD34: ='Financial Model - Monthly'!BE5 -> 2030-09-01 | BE34: ='Financial Model - Monthly'!BF5 -> 2030-10-01 | BF34: ='Financial Model - Monthly'!BG5 -> 2030-11-01 | BG34: ='Financial Model - Monthly'!BH5 -> 2030-12-01 | BH34: ='Financial Model - Monthly'!BI5 -> 2031-01-01 | BI34: ='Financial Model - Monthly'!BJ5 -> 2031-02-01 | BJ34: ='Financial Model - Monthly'!BK5 -> 2031-03-01 | BK34: ='Financial Model - Monthly'!BL5 -> 2031-04-01 | BL34: ='Financial Model - Monthly'!BM5 -> 2031-05-01 | BM34: ='Financial Model - Monthly'!BN5 -> 2031-06-01 | BN34: ='Financial Model - Monthly'!BO5 -> 2031-07-01 | BO34: ='Financial Model - Monthly'!BP5 -> 2031-08-01 | BP34: ='Financial Model - Monthly'!BQ5 -> 2031-09-01 | BQ34: ='Financial Model - Monthly'!BR5 -> 2031-10-01 | BR34: ='Financial Model - Monthly'!BS5 -> 2031-11-01 | BS34: ='Financial Model - Monthly'!BT5 -> 2031-12-01 | BT34: ='Financial Model - Monthly'!BU5 -> 2032-01-01 | BU34: ='Financial Model - Monthly'!BV5 -> 2032-02-01 | BV34: ='Financial Model - Monthly'!BW5 -> 2032-03-01 | BW34: ='Financial Model - Monthly'!BX5 -> 2032-04-01 | BX34: ='Financial Model - Monthly'!BY5 -> 2032-05-01 | BY34: ='Financial Model - Monthly'!BZ5 -> 2032-06-01 | BZ34: ='Financial Model - Monthly'!CA5 -> 2032-07-01 | CA34: ='Financial Model - Monthly'!CB5 -> 2032-08-01 | CB34: ='Financial Model - Monthly'!CC5 -> 2032-09-01 | CC34: ='Financial Model - Monthly'!CD5 -> 2032-10-01 | CD34: ='Financial Model - Monthly'!CE5 -> 2032-11-01 | CE34: ='Financial Model - Monthly'!CF5 -> 2032-12-01 | CF34: ='Financial Model - Monthly'!CG5 -> 2033-01-01 | CG34: ='Financial Model - Monthly'!CH5 -> 2033-02-01 | CH34: ='Financial Model - Monthly'!CI5 -> 2033-03-01 | CI34: ='Financial Model - Monthly'!CJ5 -> 2033-04-01 | CJ34: ='Financial Model - Monthly'!CK5 -> 2033-05-01 | CK34: ='Financial Model - Monthly'!CL5 -> 2033-06-01 | CL34: ='Financial Model - Monthly'!CM5 -> 2033-07-01 | CM34: ='Financial Model - Monthly'!CN5 -> 2033-08-01 | CN34: ='Financial Model - Monthly'!CO5 -> 2033-09-01 | CO34: ='Financial Model - Monthly'!CP5 -> 2033-10-01 | CP34: ='Financial Model - Monthly'!CQ5 -> 2033-11-01 | CQ34: ='Financial Model - Monthly'!CR5 -> 2033-12-01 | CR34: ='Financial Model - Monthly'!CS5 -> 2034-01-01 | CS34: ='Financial Model - Monthly'!CT5 -> 2034-02-01 | CT34: ='Financial Model - Monthly'!CU5 -> 2034-03-01 | CU34: ='Financial Model - Monthly'!CV5 -> 2034-04-01 | CV34: ='Financial Model - Monthly'!CW5 -> 2034-05-01 | CW34: ='Financial Model - Monthly'!CX5 -> 2034-06-01 | CX34: ='Financial Model - Monthly'!CY5 -> 2034-07-01 | CY34: ='Financial Model - Monthly'!CZ5 -> 2034-08-01 | CZ34: ='Financial Model - Monthly'!DA5 -> 2034-09-01 | DA34: ='Financial Model - Monthly'!DB5 -> 2034-10-01 | DB34: ='Financial Model - Monthly'!DC5 -> 2034-11-01 | DC34: ='Financial Model - Monthly'!DD5 -> 2034-12-01 | DD34: ='Financial Model - Monthly'!DE5 -> 2035-01-01 | DE34: ='Financial Model - Monthly'!DF5 -> 2035-02-01 | DF34: ='Financial Model - Monthly'!DG5 -> 2035-03-01 | DG34: ='Financial Model - Monthly'!DH5 -> 2035-04-01 | DH34: ='Financial Model - Monthly'!DI5 -> 2035-05-01 | DI34: ='Financial Model - Monthly'!DJ5 -> 2035-06-01 | DJ34: ='Financial Model - Monthly'!DK5 -> 2035-07-01 | DK34: ='Financial Model - Monthly'!DL5 -> 2035-08-01 | DL34: ='Financial Model - Monthly'!DM5 -> 2035-09-01 | DM34: ='Financial Model - Monthly'!DN5 -> 2035-10-01 | DN34: ='Financial Model - Monthly'!DO5 -> 2035-11-01 | DO34: ='Financial Model - Monthly'!DP5 -> 2035-12-01 | DP34: ='Financial Model - Monthly'!DQ5 -> 2036-01-01 | DQ34: ='Financial Model - Monthly'!DR5 -> 2036-02-01 | DR34: ='Financial Model - Monthly'!DS5 -> 2036-03-01 | DS34: ='Financial Model - Monthly'!DT5 -> 2036-04-01 | DT34: ='Financial Model - Monthly'!DU5 -> 2036-05-01 | DU34: ='Financial Model - Monthly'!DV5 -> 2036-06-01 | DV34: ='Financial Model - Monthly'!DW5 -> 2036-07-01 | DW34: ='Financial Model - Monthly'!DX5 -> 2036-08-01 | DX34: ='Financial Model - Monthly'!DY5 -> 2036-09-01 | DY34: ='Financial Model - Monthly'!DZ5 -> 2036-10-01 | DZ34: ='Financial Model - Monthly'!EA5 -> 2036-11-01 | EA34: ='Financial Model - Monthly'!EB5 -> 2036-12-01 | EB34: ='Financial Model - Monthly'!EC5 -> 2037-01-01 | EC34: ='Financial Model - Monthly'!ED5 -> 2037-02-01 | ED34: ='Financial Model - Monthly'!EE5 -> 2037-03-01 | EE34: ='Financial Model - Monthly'!EF5 -> 2037-04-01 | EF34: ='Financial Model - Monthly'!EG5 -> 2037-05-01 | EG34: ='Financial Model - Monthly'!EH5 -> 2037-06-01 | EH34: ='Financial Model - Monthly'!EI5 -> 2037-07-01 | EI34: ='Financial Model - Monthly'!EJ5 -> 2037-08-01 | EJ34: ='Financial Model - Monthly'!EK5 -> 2037-09-01 | EK34: ='Financial Model - Monthly'!EL5 -> 2037-10-01 | EL34: ='Financial Model - Monthly'!EM5 -> 2037-11-01 | EM34: ='Financial Model - Monthly'!EN5 -> 2037-12-01 | EN34: ='Financial Model - Monthly'!EO5 -> 2038-01-01 | EO34: ='Financial Model - Monthly'!EP5 -> 2038-02-01 | EP34: ='Financial Model - Monthly'!EQ5 -> 2038-03-01 | EQ34: ='Financial Model - Monthly'!ER5 -> 2038-04-01 | ER34: ='Financial Model - Monthly'!ES5 -> 2038-05-01 | ES34: ='Financial Model - Monthly'!ET5 -> 2038-06-01 | ET34: ='Financial Model - Monthly'!EU5 -> 2038-07-01 | EU34: ='Financial Model - Monthly'!EV5 -> 2038-08-01 | EV34: ='Financial Model - Monthly'!EW5 -> 2038-09-01 | EW34: ='Financial Model - Monthly'!EX5 -> 2038-10-01 | EX34: ='Financial Model - Monthly'!EY5 -> 2038-11-01 | EY34: ='Financial Model - Monthly'!EZ5 -> 2038-12-01 | EZ34: ='Financial Model - Monthly'!FA5 -> 2039-01-01 | FA34: ='Financial Model - Monthly'!FB5 -> 2039-02-01 | FB34: ='Financial Model - Monthly'!FC5 -> 2039-03-01 | FC34: ='Financial Model - Monthly'!FD5 -> 2039-04-01 | FD34: ='Financial Model - Monthly'!FE5 -> 2039-05-01 | FE34: ='Financial Model - Monthly'!FF5 -> 2039-06-01 | FF34: ='Financial Model - Monthly'!FG5 -> 2039-07-01 | FG34: ='Financial Model - Monthly'!FH5 -> 2039-08-01 | FH34: ='Financial Model - Monthly'!FI5 -> 2039-09-01 | FI34: ='Financial Model - Monthly'!FJ5 -> 2039-10-01 | FJ34: ='Financial Model - Monthly'!FK5 -> 2039-11-01 | FK34: ='Financial Model - Monthly'!FL5 -> 2039-12-01 | FL34: ='Financial Model - Monthly'!FM5 -> 2040-01-01 | FM34: ='Financial Model - Monthly'!FN5 -> 2040-02-01 | FN34: ='Financial Model - Monthly'!FO5 -> 2040-03-01 | FO34: ='Financial Model - Monthly'!FP5 -> 2040-04-01 | FP34: ='Financial Model - Monthly'!FQ5 -> 2040-05-01 | FQ34: ='Financial Model - Monthly'!FR5 -> 2040-06-01 | FR34: ='Financial Model - Monthly'!FS5 -> 2040-07-01 | FS34: ='Financial Model - Monthly'!FT5 -> 2040-08-01 | FT34: ='Financial Model - Monthly'!FU5 -> 2040-09-01 | FU34: ='Financial Model - Monthly'!FV5 -> 2040-10-01 | FV34: ='Financial Model - Monthly'!FW5 -> 2040-11-01 | FW34: ='Financial Model - Monthly'!FX5 -> 2040-12-01 | FX34: ='Financial Model - Monthly'!FY5 -> 2041-01-01 | FY34: ='Financial Model - Monthly'!FZ5 -> 2041-02-01 | FZ34: ='Financial Model - Monthly'!GA5 -> 2041-03-01 | GA34: ='Financial Model - Monthly'!GB5 -> 2041-04-01 | GB34: ='Financial Model - Monthly'!GC5 -> 2041-05-01 | GC34: ='Financial Model - Monthly'!GD5 -> 2041-06-01 | GD34: ='Financial Model - Monthly'!GE5 -> 2041-07-01 | GE34: ='Financial Model - Monthly'!GF5 -> 2041-08-01 | GF34: ='Financial Model - Monthly'!GG5 -> 2041-09-01 | GG34: ='Financial Model - Monthly'!GH5 -> 2041-10-01 | GH34: ='Financial Model - Monthly'!GI5 -> 2041-11-01 | GI34: ='Financial Model - Monthly'!GJ5 -> 2041-12-01 | GJ34: ='Financial Model - Monthly'!GK5 -> 2042-01-01 | GK34: ='Financial Model - Monthly'!GL5 -> 2042-02-01 | GL34: ='Financial Model - Monthly'!GM5 -> 2042-03-01 | GM34: ='Financial Model - Monthly'!GN5 -> 2042-04-01 | GN34: ='Financial Model - Monthly'!GO5 -> 2042-05-01 | GO34: ='Financial Model - Monthly'!GP5 -> 2042-06-01 | GP34: ='Financial Model - Monthly'!GQ5 -> 2042-07-01 | GQ34: ='Financial Model - Monthly'!GR5 -> 2042-08-01 | GR34: ='Financial Model - Monthly'!GS5 -> 2042-09-01 | GS34: ='Financial Model - Monthly'!GT5 -> 2042-10-01 | GT34: ='Financial Model - Monthly'!GU5 -> 2042-11-01 | GU34: ='Financial Model - Monthly'!GV5 -> 2042-12-01 | GV34: ='Financial Model - Monthly'!GW5 -> 2043-01-01 | GW34: ='Financial Model - Monthly'!GX5 -> 2043-02-01 | GX34: ='Financial Model - Monthly'!GY5 -> 2043-03-01 | GY34: ='Financial Model - Monthly'!GZ5 -> 2043-04-01 | GZ34: ='Financial Model - Monthly'!HA5 -> 2043-05-01 | HA34: ='Financial Model - Monthly'!HB5 -> 2043-06-01 | HB34: ='Financial Model - Monthly'!HC5 -> 2043-07-01 | HC34: ='Financial Model - Monthly'!HD5 -> 2043-08-01 | HD34: ='Financial Model - Monthly'!HE5 -> 2043-09-01 | HE34: ='Financial Model - Monthly'!HF5 -> 2043-10-01 | HF34: ='Financial Model - Monthly'!HG5 -> 2043-11-01 | HG34: ='Financial Model - Monthly'!HH5 -> 2043-12-01 | HH34: ='Financial Model - Monthly'!HI5 -> 2044-01-01 | HI34: ='Financial Model - Monthly'!HJ5 -> 2044-02-01 | HJ34: ='Financial Model - Monthly'!HK5 -> 2044-03-01 | HK34: ='Financial Model - Monthly'!HL5 -> 2044-04-01 | HL34: ='Financial Model - Monthly'!HM5 -> 2044-05-01 | HM34: ='Financial Model - Monthly'!HN5 -> 2044-06-01 | HN34: ='Financial Model - Monthly'!HO5 -> 2044-07-01 | HO34: ='Financial Model - Monthly'!HP5 -> 2044-08-01 | HP34: ='Financial Model - Monthly'!HQ5 -> 2044-09-01 | HQ34: ='Financial Model - Monthly'!HR5 -> 2044-10-01 | HR34: ='Financial Model - Monthly'!HS5 -> 2044-11-01 | HS34: ='Financial Model - Monthly'!HT5 -> 2044-12-01 | HT34: ='Financial Model - Monthly'!HU5 -> 2045-01-01 | HU34: ='Financial Model - Monthly'!HV5 -> 2045-02-01 | HV34: ='Financial Model - Monthly'!HW5 -> 2045-03-01 | HW34: ='Financial Model - Monthly'!HX5 -> 2045-04-01 | HX34: ='Financial Model - Monthly'!HY5 -> 2045-05-01 | HY34: ='Financial Model - Monthly'!HZ5 -> 2045-06-01 | HZ34: ='Financial Model - Monthly'!IA5 -> 2045-07-01 | IA34: ='Financial Model - Monthly'!IB5 -> 2045-08-01 | IB34: ='Financial Model - Monthly'!IC5 -> 2045-09-01 | IC34: ='Financial Model - Monthly'!ID5 -> 2045-10-01 | ID34: ='Financial Model - Monthly'!IE5 -> 2045-11-01 | IE34: ='Financial Model - Monthly'!IF5 -> 2045-12-01 | IF34: ='Financial Model - Monthly'!IG5 -> 2046-01-01 | IG34: ='Financial Model - Monthly'!IH5 -> 2046-02-01 | IH34: ='Financial Model - Monthly'!II5 -> 2046-03-01 | II34: ='Financial Model - Monthly'!IJ5 -> 2046-04-01 | IJ34: ='Financial Model - Monthly'!IK5 -> 2046-05-01 | IK34: ='Financial Model - Monthly'!IL5 -> 2046-06-01 | IL34: ='Financial Model - Monthly'!IM5 -> 2046-07-01 | IM34: ='Financial Model - Monthly'!IN5 -> 2046-08-01 | IN34: ='Financial Model - Monthly'!IO5 -> 2046-09-01 | IO34: ='Financial Model - Monthly'!IP5 -> 2046-10-01 | IP34: ='Financial Model - Monthly'!IQ5 -> 2046-11-01 | IQ34: ='Financial Model - Monthly'!IR5 -> 2046-12-01 | IR34: ='Financial Model - Monthly'!IS5 -> 2047-01-01 | IS34: ='Financial Model - Monthly'!IT5 -> 2047-02-01 | IT34: ='Financial Model - Monthly'!IU5 -> 2047-03-01 | IU34: ='Financial Model - Monthly'!IV5 -> 2047-04-01 | IV34: ='Financial Model - Monthly'!IW5 -> 2047-05-01 | IW34: ='Financial Model - Monthly'!IX5 -> 2047-06-01 | IX34: ='Financial Model - Monthly'!IY5 -> 2047-07-01 | IY34: ='Financial Model - Monthly'!IZ5 -> 2047-08-01 | IZ34: ='Financial Model - Monthly'!JA5 -> 2047-09-01 | JA34: ='Financial Model - Monthly'!JB5 -> 2047-10-01 | JB34: ='Financial Model - Monthly'!JC5 -> 2047-11-01 | JC34: ='Financial Model - Monthly'!JD5 -> 2047-12-01 | JD34: ='Financial Model - Monthly'!JE5 -> 2048-01-01 | JE34: ='Financial Model - Monthly'!JF5 -> 2048-02-01 | JF34: ='Financial Model - Monthly'!JG5 -> 2048-03-01 | JG34: ='Financial Model - Monthly'!JH5 -> 2048-04-01 | JH34: ='Financial Model - Monthly'!JI5 -> 2048-05-01 | JI34: ='Financial Model - Monthly'!JJ5 -> 2048-06-01 | JJ34: ='Financial Model - Monthly'!JK5 -> 2048-07-01 | JK34: ='Financial Model - Monthly'!JL5 -> 2048-08-01 | JL34: ='Financial Model - Monthly'!JM5 -> 2048-09-01 | JM34: ='Financial Model - Monthly'!JN5 -> 2048-10-01 | JN34: ='Financial Model - Monthly'!JO5 -> 2048-11-01 | JO34: ='Financial Model - Monthly'!JP5 -> 2048-12-01 | JP34: ='Financial Model - Monthly'!JQ5 -> 2049-01-01 | JQ34: ='Financial Model - Monthly'!JR5 -> 2049-02-01 | JR34: ='Financial Model - Monthly'!JS5 -> 2049-03-01 | JS34: ='Financial Model - Monthly'!JT5 -> 2049-04-01 | JT34: ='Financial Model - Monthly'!JU5 -> 2049-05-01 | JU34: ='Financial Model - Monthly'!JV5 -> 2049-06-01 | JV34: ='Financial Model - Monthly'!JW5 -> 2049-07-01 | JW34: ='Financial Model - Monthly'!JX5 -> 2049-08-01 | JX34: ='Financial Model - Monthly'!JY5 -> 2049-09-01 | JY34: ='Financial Model - Monthly'!JZ5 -> 2049-10-01 | JZ34: ='Financial Model - Monthly'!KA5 -> 2049-11-01 | KA34: ='Financial Model - Monthly'!KB5 -> 2049-12-01 | KB34: ='Financial Model - Monthly'!KC5 -> 2050-01-01 | KC34: ='Financial Model - Monthly'!KD5 -> 2050-02-01 | KD34: ='Financial Model - Monthly'!KE5 -> 2050-03-01 | KE34: ='Financial Model - Monthly'!KF5 -> 2050-04-01 | KF34: ='Financial Model - Monthly'!KG5 -> 2050-05-01 | KG34: ='Financial Model - Monthly'!KH5 -> 2050-06-01 | KH34: ='Financial Model - Monthly'!KI5 -> 2050-07-01 | KI34: ='Financial Model - Monthly'!KJ5 -> 2050-08-01 | KJ34: ='Financial Model - Monthly'!KK5 -> 2050-09-01 | KK34: ='Financial Model - Monthly'!KL5 -> 2050-10-01 | KL34: ='Financial Model - Monthly'!KM5 -> 2050-11-01 | KM34: ='Financial Model - Monthly'!KN5 -> 2050-12-01 | KN34: ='Financial Model - Monthly'!KO5 -> 2051-01-01 | KO34: ='Financial Model - Monthly'!KP5 -> 2051-02-01 | KP34: ='Financial Model - Monthly'!KQ5 -> 2051-03-01 | KQ34: ='Financial Model - Monthly'!KR5 -> 2051-04-01 | KR34: ='Financial Model - Monthly'!KS5 -> 2051-05-01 | KS34: ='Financial Model - Monthly'!KT5 -> 2051-06-01 | KT34: ='Financial Model - Monthly'!KU5 -> 2051-07-01 | KU34: ='Financial Model - Monthly'!KV5 -> 2051-08-01 | KV34: ='Financial Model - Monthly'!KW5 -> 2051-09-01 | KW34: ='Financial Model - Monthly'!KX5 -> 2051-10-01 | KX34: ='Financial Model - Monthly'!KY5 -> 2051-11-01 | KY34: ='Financial Model - Monthly'!KZ5 -> 2051-12-01 | KZ34: ='Financial Model - Monthly'!LA5 -> 2052-01-01 | LA34: ='Financial Model - Monthly'!LB5 -> 2052-02-01 | LB34: ='Financial Model - Monthly'!LC5 -> 2052-03-01 | LC34: ='Financial Model - Monthly'!LD5 -> 2052-04-01 | LD34: ='Financial Model - Monthly'!LE5 -> 2052-05-01 | LE34: ='Financial Model - Monthly'!LF5 -> 2052-06-01 | LF34: ='Financial Model - Monthly'!LG5 -> 2052-07-01 | LG34: ='Financial Model - Monthly'!LH5 -> 2052-08-01 | LH34: ='Financial Model - Monthly'!LI5 -> 2052-09-01 | LI34: ='Financial Model - Monthly'!LJ5 -> 2052-10-01 | LJ34: ='Financial Model - Monthly'!LK5 -> 2052-11-01 | LK34: ='Financial Model - Monthly'!LL5 -> 2052-12-01 | LL34: ='Financial Model - Monthly'!LM5 -> 2053-01-01 | LM34: ='Financial Model - Monthly'!LN5 -> 2053-02-01 | LN34: ='Financial Model - Monthly'!LO5 -> 2053-03-01 | LO34: ='Financial Model - Monthly'!LP5 -> 2053-04-01 | LP34: ='Financial Model - Monthly'!LQ5 -> 2053-05-01 | LQ34: ='Financial Model - Monthly'!LR5 -> 2053-06-01 | LR34: ='Financial Model - Monthly'!LS5 -> 2053-07-01 | LS34: ='Financial Model - Monthly'!LT5 -> 2053-08-01 | LT34: ='Financial Model - Monthly'!LU5 -> 2053-09-01 | LU34: ='Financial Model - Monthly'!LV5 -> 2053-10-01 | LV34: ='Financial Model - Monthly'!LW5 -> 2053-11-01 | LW34: ='Financial Model - Monthly'!LX5 -> 2053-12-01 | LX34: ='Financial Model - Monthly'!LY5 -> 2054-01-01 | LY34: ='Financial Model - Monthly'!LZ5 -> 2054-02-01 | LZ34: ='Financial Model - Monthly'!MA5 -> 2054-03-01 | MA34: ='Financial Model - Monthly'!MB5 -> 2054-04-01 | MB34: ='Financial Model - Monthly'!MC5 -> 2054-05-01 | MC34: ='Financial Model - Monthly'!MD5 -> 2054-06-01 | MD34: ='Financial Model - Monthly'!ME5 -> 2054-07-01 | ME34: ='Financial Model - Monthly'!MF5 -> 2054-08-01 | MF34: ='Financial Model - Monthly'!MG5 -> 2054-09-01 | MG34: ='Financial Model - Monthly'!MH5 -> 2054-10-01 | MH34: ='Financial Model - Monthly'!MI5 -> 2054-11-01 | MI34: ='Financial Model - Monthly'!MJ5 -> 2054-12-01 | MJ34: ='Financial Model - Monthly'!MK5 -> 2055-01-01 | MK34: ='Financial Model - Monthly'!ML5 -> 2055-02-01 | ML34: ='Financial Model - Monthly'!MM5 -> 2055-03-01 | MM34: ='Financial Model - Monthly'!MN5 -> 2055-04-01 | MN34: ='Financial Model - Monthly'!MO5 -> 2055-05-01 | MO34: ='Financial Model - Monthly'!MP5 -> 2055-06-01 | MP34: ='Financial Model - Monthly'!MQ5 -> 2055-07-01 | MQ34: ='Financial Model - Monthly'!MR5 -> 2055-08-01 | MR34: ='Financial Model - Monthly'!MS5 -> 2055-09-01 | MS34: ='Financial Model - Monthly'!MT5 -> 2055-10-01 | MT34: ='Financial Model - Monthly'!MU5 -> 2055-11-01 | MU34: ='Financial Model - Monthly'!MV5 -> 2055-12-01 | MV34: ='Financial Model - Monthly'!MW5 -> 2056-01-01 | MW34: ='Financial Model - Monthly'!MX5 -> 2056-02-01 | MX34: ='Financial Model - Monthly'!MY5 -> 2056-03-01 | MY34: ='Financial Model - Monthly'!MZ5 -> 2056-04-01 | MZ34: ='Financial Model - Monthly'!NA5 -> 2056-05-01 | NA34: ='Financial Model - Monthly'!NB5 -> 2056-06-01 | NB34: ='Financial Model - Monthly'!NC5 -> 2056-07-01 | NC34: ='Financial Model - Monthly'!ND5 -> 2056-08-01 | ND34: ='Financial Model - Monthly'!NE5 -> 2056-09-01 | NE34: ='Financial Model - Monthly'!NF5 -> 2056-10-01 | NF34: ='Financial Model - Monthly'!NG5 -> 2056-11-01 | NG34: ='Financial Model - Monthly'!NH5 -> 2056-12-01 | NH34: ='Financial Model - Monthly'!NI5 -> 2057-01-01 | NI34: ='Financial Model - Monthly'!NJ5 -> 2057-02-01 | NJ34: ='Financial Model - Monthly'!NK5 -> 2057-03-01 | NK34: ='Financial Model - Monthly'!NL5 -> 2057-04-01 | NL34: ='Financial Model - Monthly'!NM5 -> 2057-05-01 | NM34: ='Financial Model - Monthly'!NN5 -> 2057-06-01 | NN34: ='Financial Model - Monthly'!NO5 -> 2057-07-01 | NO34: ='Financial Model - Monthly'!NP5 -> 2057-08-01 | NP34: ='Financial Model - Monthly'!NQ5 -> 2057-09-01 | NQ34: ='Financial Model - Monthly'!NR5 -> 2057-10-01 | NR34: ='Financial Model - Monthly'!NS5 -> 2057-11-01 | NS34: ='Financial Model - Monthly'!NT5 -> 2057-12-01 | NT34: ='Financial Model - Monthly'!NU5 -> 2058-01-01 | NU34: ='Financial Model - Monthly'!NV5 -> 2058-02-01 | NV34: ='Financial Model - Monthly'!NW5 -> 2058-03-01 | NW34: ='Financial Model - Monthly'!NX5 -> 2058-04-01 | NX34: ='Financial Model - Monthly'!NY5 -> 2058-05-01 | NY34: ='Financial Model - Monthly'!NZ5 -> 2058-06-01 | NZ34: ='Financial Model - Monthly'!OA5 -> 2058-07-01 | OA34: ='Financial Model - Monthly'!OB5 -> 2058-08-01 | OB34: ='Financial Model - Monthly'!OC5 -> 2058-09-01 | OC34: ='Financial Model - Monthly'!OD5 -> 2058-10-01 | OD34: ='Financial Model - Monthly'!OE5 -> 2058-11-01 | OE34: ='Financial Model - Monthly'!OF5 -> 2058-12-01 | OF34: ='Financial Model - Monthly'!OG5 -> 2059-01-01 | OG34: ='Financial Model - Monthly'!OH5 -> 2059-02-01 | OH34: ='Financial Model - Monthly'!OI5 -> 2059-03-01 | OI34: ='Financial Model - Monthly'!OJ5 -> 2059-04-01 | OJ34: ='Financial Model - Monthly'!OK5 -> 2059-05-01 | OK34: ='Financial Model - Monthly'!OL5 -> 2059-06-01 | OL34: ='Financial Model - Monthly'!OM5 -> 2059-07-01 | OM34: ='Financial Model - Monthly'!ON5 -> 2059-08-01 | ON34: ='Financial Model - Monthly'!OO5 -> 2059-09-01 | OO34: ='Financial Model - Monthly'!OP5 -> 2059-10-01 | OP34: ='Financial Model - Monthly'!OQ5 -> 2059-11-01 | OQ34: ='Financial Model - Monthly'!OR5 -> 2059-12-01 | OR34: ='Financial Model - Monthly'!OS5 -> 2060-01-01 | OS34: ='Financial Model - Monthly'!OT5 -> 2060-02-01 | OT34: ='Financial Model - Monthly'!OU5 -> 2060-03-01 | OU34: ='Financial Model - Monthly'!OV5 -> 2060-04-01 | OV34: ='Financial Model - Monthly'!OW5 -> 2060-05-01 | OW34: ='Financial Model - Monthly'!OX5 -> 2060-06-01 | OX34: ='Financial Model - Monthly'!OY5 -> 2060-07-01 | OY34: ='Financial Model - Monthly'!OZ5 -> 2060-08-01 | OZ34: ='Financial Model - Monthly'!PA5 -> 2060-09-01 | PA34: ='Financial Model - Monthly'!PB5 -> 2060-10-01 | PB34: ='Financial Model - Monthly'!PC5 -> 2060-11-01 | PC34: ='Financial Model - Monthly'!PD5 -> 2060-12-01 | PD34: ='Financial Model - Monthly'!PE5 -> 2061-01-01 | PE34: ='Financial Model - Monthly'!PF5 -> 2061-02-01 | PF34: ='Financial Model - Monthly'!PG5 -> 2061-03-01 | PG34: ='Financial Model - Monthly'!PH5 -> 2061-04-01 | PH34: ='Financial Model - Monthly'!PI5 -> 2061-05-01 | PI34: ='Financial Model - Monthly'!PJ5 -> 2061-06-01 | PJ34: ='Financial Model - Monthly'!PK5 -> 2061-07-01 | PK34: ='Financial Model - Monthly'!PL5 -> 2061-08-01 | PL34: ='Financial Model - Monthly'!PM5 -> 2061-09-01 | PM34: ='Financial Model - Monthly'!PN5 -> 2061-10-01 | PN34: ='Financial Model - Monthly'!PO5 -> 2061-11-01 | PO34: ='Financial Model - Monthly'!PP5 -> 2061-12-01 | PP34: ='Financial Model - Monthly'!PQ5 -> 2062-01-01 | PQ34: ='Financial Model - Monthly'!PR5 -> 2062-02-01 | PR34: ='Financial Model - Monthly'!PS5 -> 2062-03-01 | PS34: ='Financial Model - Monthly'!PT5 -> 2062-04-01 | PT34: ='Financial Model - Monthly'!PU5 -> 2062-05-01 | PU34: ='Financial Model - Monthly'!PV5 -> 2062-06-01 | PV34: ='Financial Model - Monthly'!PW5 -> 2062-07-01 | PW34: ='Financial Model - Monthly'!PX5 -> 2062-08-01 | PX34: ='Financial Model - Monthly'!PY5 -> 2062-09-01 | PY34: ='Financial Model - Monthly'!PZ5 -> 2062-10-01 | PZ34: ='Financial Model - Monthly'!QA5 -> 2062-11-01 | QA34: ='Financial Model - Monthly'!QB5 -> 2062-12-01 | QB34: ='Financial Model - Monthly'!QC5 -> 2063-01-01 | QC34: ='Financial Model - Monthly'!QD5 -> 2063-02-01 | QD34: ='Financial Model - Monthly'!QE5 -> 2063-03-01 | QE34: ='Financial Model - Monthly'!QF5 -> 2063-04-01 | QF34: ='Financial Model - Monthly'!QG5 -> 2063-05-01 | QG34: ='Financial Model - Monthly'!QH5 -> 2063-06-01 | QH34: ='Financial Model - Monthly'!QI5 -> 2063-07-01 | QI34: ='Financial Model - Monthly'!QJ5 -> 2063-08-01 | QJ34: ='Financial Model - Monthly'!QK5 -> 2063-09-01 | QK34: ='Financial Model - Monthly'!QL5 -> 2063-10-01 | QL34: ='Financial Model - Monthly'!QM5 -> 2063-11-01 | QM34: ='Financial Model - Monthly'!QN5 -> 2063-12-01 | QN34: ='Financial Model - Monthly'!QO5 -> 2064-01-01 | QO34: ='Financial Model - Monthly'!QP5 -> 2064-02-01 | QP34: ='Financial Model - Monthly'!QQ5 -> 2064-03-01 | QQ34: ='Financial Model - Monthly'!QR5 -> 2064-04-01 | QR34: ='Financial Model - Monthly'!QS5 -> 2064-05-01 | QS34: ='Financial Model - Monthly'!QT5 -> 2064-06-01 | QT34: ='Financial Model - Monthly'!QU5 -> 2064-07-01 | QU34: ='Financial Model - Monthly'!QV5 -> 2064-08-01 | QV34: ='Financial Model - Monthly'!QW5 -> 2064-09-01 | QW34: ='Financial Model - Monthly'!QX5 -> 2064-10-01 | QX34: ='Financial Model - Monthly'!QY5 -> 2064-11-01 | QY34: ='Financial Model - Monthly'!QZ5 -> 2064-12-01 | QZ34: ='Financial Model - Monthly'!RA5 -> 2065-01-01 | RA34: ='Financial Model - Monthly'!RB5 -> 2065-02-01 | RB34: ='Financial Model - Monthly'!RC5 -> 2065-03-01 | RC34: ='Financial Model - Monthly'!RD5 -> 2065-04-01 | RD34: ='Financial Model - Monthly'!RE5 -> 2065-05-01 | RE34: ='Financial Model - Monthly'!RF5 -> 2065-06-01 | RF34: ='Financial Model - Monthly'!RG5 -> 2065-07-01 | RG34: ='Financial Model - Monthly'!RH5 -> 2065-08-01 | RH34: ='Financial Model - Monthly'!RI5 -> 2065-09-01 | RI34: ='Financial Model - Monthly'!RJ5 -> 2065-10-01 | RJ34: ='Financial Model - Monthly'!RK5 -> 2065-11-01 | RK34: ='Financial Model - Monthly'!RL5 -> 2065-12-01 | RL34: ='Financial Model - Monthly'!RM5 -> 2066-01-01 | RM34: ='Financial Model - Monthly'!RN5 -> 2066-02-01 | RN34: ='Financial Model - Monthly'!RO5 -> 2066-03-01 | RO34: ='Financial Model - Monthly'!RP5 -> 2066-04-01 | RP34: ='Financial Model - Monthly'!RQ5 -> 2066-05-01 | RQ34: ='Financial Model - Monthly'!RR5 -> 2066-06-01 | RR34: ='Financial Model - Monthly'!RS5 -> 2066-07-01 | RS34: ='Financial Model - Monthly'!RT5 -> 2066-08-01 | RT34: ='Financial Model - Monthly'!RU5 -> 2066-09-01 | RU34: ='Financial Model - Monthly'!RV5 -> 2066-10-01 | RV34: ='Financial Model - Monthly'!RW5 -> 2066-11-01 | RW34: ='Financial Model - Monthly'!RX5 -> 2066-12-01 | RX34: ='Financial Model - Monthly'!RY5 -> 2067-01-01 | RY34: ='Financial Model - Monthly'!RZ5 -> 2067-02-01 | RZ34: ='Financial Model - Monthly'!SA5 -> 2067-03-01 | SA34: ='Financial Model - Monthly'!SB5 -> 2067-04-01 | SB34: ='Financial Model - Monthly'!SC5 -> 2067-05-01 | SC34: ='Financial Model - Monthly'!SD5 -> 00:00:00 | SD34: ='Financial Model - Monthly'!SE5 -> 00:00:00 | SE34: ='Financial Model - Monthly'!SF5 -> 00:00:00 | SF34: ='Financial Model - Monthly'!SG5 -> 00:00:00 | SG34: ='Financial Model - Monthly'!SH5 -> 00:00:00 | SH34: ='Financial Model - Monthly'!SI5 -> 00:00:00 | SI34: ='Financial Model - Monthly'!SJ5 -> 00:00:00 | SJ34: ='Financial Model - Monthly'!SK5 -> 00:00:00 | SK34: ='Financial Model - Monthly'!SL5 -> 00:00:00 | SL34: ='Financial Model - Monthly'!SM5 -> 00:00:00 | SM34: ='Financial Model - Monthly'!SN5 -> 00:00:00 | SN34: ='Financial Model - Monthly'!SO5 -> 00:00:00 | SO34: ='Financial Model - Monthly'!SP5 -> 00:00:00 | SP34: ='Financial Model - Monthly'!SQ5 -> 00:00:00 | SQ34: ='Financial Model - Monthly'!SR5 -> 00:00:00 | SR34: ='Financial Model - Monthly'!SS5 -> 00:00:00 | SS34: ='Financial Model - Monthly'!ST5 -> 00:00:00 | ST34: ='Financial Model - Monthly'!SU5 -> 00:00:00 | SU34: ='Financial Model - Monthly'!SV5 -> 00:00:00 | SV34: ='Financial Model - Monthly'!SW5 -> 00:00:00 | SW34: ='Financial Model - Monthly'!SX5 -> 00:00:00 | SX34: ='Financial Model - Monthly'!SY5 -> 00:00:00 | SY34: ='Financial Model - Monthly'!SZ5 -> 00:00:00 | SZ34: ='Financial Model - Monthly'!TA5 -> 00:00:00 | TA34: ='Financial Model - Monthly'!TB5 -> 00:00:00 | TB34: ='Financial Model - Monthly'!TC5 -> 00:00:00 | TC34: ='Financial Model - Monthly'!TD5 -> 00:00:00 | TD34: ='Financial Model - Monthly'!TE5 -> 00:00:00 | TE34: ='Financial Model - Monthly'!TF5 -> 00:00:00 | TF34: ='Financial Model - Monthly'!TG5 -> 00:00:00 | TG34: ='Financial Model - Monthly'!TH5 -> 00:00:00 | TH34: ='Financial Model - Monthly'!TI5 -> 00:00:00 | TI34: ='Financial Model - Monthly'!TJ5 -> 00:00:00 | TJ34: ='Financial Model - Monthly'!TK5 -> 00:00:00 | TK34: ='Financial Model - Monthly'!TL5 -> 00:00:00 | TL34: ='Financial Model - Monthly'!TM5 -> 00:00:00 | TM34: ='Financial Model - Monthly'!TN5 -> 00:00:00 | TN34: ='Financial Model - Monthly'!TO5 -> 00:00:00 | TO34: ='Financial Model - Monthly'!TP5 -> 00:00:00 | TP34: ='Financial Model - Monthly'!TQ5 -> 00:00:00 | TQ34: ='Financial Model - Monthly'!TR5 -> 00:00:00 | TR34: ='Financial Model - Monthly'!TS5 -> 00:00:00 | TS34: ='Financial Model - Monthly'!TT5 -> 00:00:00 | TT34: ='Financial Model - Monthly'!TU5 -> 00:00:00 | TU34: ='Financial Model - Monthly'!TV5 -> 00:00:00 | TV34: ='Financial Model - Monthly'!TW5 -> 00:00:00 | TW34: ='Financial Model - Monthly'!TX5 -> 00:00:00 | TX34: ='Financial Model - Monthly'!TY5 -> 00:00:00 | TY34: ='Financial Model - Monthly'!TZ5 -> 00:00:00
J35: ='Financial Model - Monthly'!K6 -> 2026-11-30 | K35: ='Financial Model - Monthly'!L6 -> 2026-12-31 | L35: ='Financial Model - Monthly'!M6 -> 2027-01-31 | M35: ='Financial Model - Monthly'!N6 -> 2027-02-28 | N35: ='Financial Model - Monthly'!O6 -> 2027-03-31 | O35: ='Financial Model - Monthly'!P6 -> 2027-04-30 | P35: ='Financial Model - Monthly'!Q6 -> 2027-05-31 | Q35: ='Financial Model - Monthly'!R6 -> 2027-06-30 | R35: ='Financial Model - Monthly'!S6 -> 2027-07-31 | S35: ='Financial Model - Monthly'!T6 -> 2027-08-31 | T35: ='Financial Model - Monthly'!U6 -> 2027-09-30 | U35: ='Financial Model - Monthly'!V6 -> 2027-10-31 | V35: ='Financial Model - Monthly'!W6 -> 2027-11-30 | W35: ='Financial Model - Monthly'!X6 -> 2027-12-31 | X35: ='Financial Model - Monthly'!Y6 -> 2028-01-31 | Y35: ='Financial Model - Monthly'!Z6 -> 2028-02-29 | Z35: ='Financial Model - Monthly'!AA6 -> 2028-03-31 | AA35: ='Financial Model - Monthly'!AB6 -> 2028-04-30 | AB35: ='Financial Model - Monthly'!AC6 -> 2028-05-31 | AC35: ='Financial Model - Monthly'!AD6 -> 2028-06-30 | AD35: ='Financial Model - Monthly'!AE6 -> 2028-07-31 | AE35: ='Financial Model - Monthly'!AF6 -> 2028-08-31 | AF35: ='Financial Model - Monthly'!AG6 -> 2028-09-30 | AG35: ='Financial Model - Monthly'!AH6 -> 2028-10-31 | AH35: ='Financial Model - Monthly'!AI6 -> 2028-11-30 | AI35: ='Financial Model - Monthly'!AJ6 -> 2028-12-31 | AJ35: ='Financial Model - Monthly'!AK6 -> 2029-01-31 | AK35: ='Financial Model - Monthly'!AL6 -> 2029-02-28 | AL35: ='Financial Model - Monthly'!AM6 -> 2029-03-31 | AM35: ='Financial Model - Monthly'!AN6 -> 2029-04-30 | AN35: ='Financial Model - Monthly'!AO6 -> 2029-05-31 | AO35: ='Financial Model - Monthly'!AP6 -> 2029-06-30 | AP35: ='Financial Model - Monthly'!AQ6 -> 2029-07-31 | AQ35: ='Financial Model - Monthly'!AR6 -> 2029-08-31 | AR35: ='Financial Model - Monthly'!AS6 -> 2029-09-30 | AS35: ='Financial Model - Monthly'!AT6 -> 2029-10-31 | AT35: ='Financial Model - Monthly'!AU6 -> 2029-11-30 | AU35: ='Financial Model - Monthly'!AV6 -> 2029-12-31 | AV35: ='Financial Model - Monthly'!AW6 -> 2030-01-31 | AW35: ='Financial Model - Monthly'!AX6 -> 2030-02-28 | AX35: ='Financial Model - Monthly'!AY6 -> 2030-03-31 | AY35: ='Financial Model - Monthly'!AZ6 -> 2030-04-30 | AZ35: ='Financial Model - Monthly'!BA6 -> 2030-05-31 | BA35: ='Financial Model - Monthly'!BB6 -> 2030-06-30 | BB35: ='Financial Model - Monthly'!BC6 -> 2030-07-31 | BC35: ='Financial Model - Monthly'!BD6 -> 2030-08-31 | BD35: ='Financial Model - Monthly'!BE6 -> 2030-09-30 | BE35: ='Financial Model - Monthly'!BF6 -> 2030-10-31 | BF35: ='Financial Model - Monthly'!BG6 -> 2030-11-30 | BG35: ='Financial Model - Monthly'!BH6 -> 2030-12-31 | BH35: ='Financial Model - Monthly'!BI6 -> 2031-01-31 | BI35: ='Financial Model - Monthly'!BJ6 -> 2031-02-28 | BJ35: ='Financial Model - Monthly'!BK6 -> 2031-03-31 | BK35: ='Financial Model - Monthly'!BL6 -> 2031-04-30 | BL35: ='Financial Model - Monthly'!BM6 -> 2031-05-31 | BM35: ='Financial Model - Monthly'!BN6 -> 2031-06-30 | BN35: ='Financial Model - Monthly'!BO6 -> 2031-07-31 | BO35: ='Financial Model - Monthly'!BP6 -> 2031-08-31 | BP35: ='Financial Model - Monthly'!BQ6 -> 2031-09-30 | BQ35: ='Financial Model - Monthly'!BR6 -> 2031-10-31 | BR35: ='Financial Model - Monthly'!BS6 -> 2031-11-30 | BS35: ='Financial Model - Monthly'!BT6 -> 2031-12-31 | BT35: ='Financial Model - Monthly'!BU6 -> 2032-01-31 | BU35: ='Financial Model - Monthly'!BV6 -> 2032-02-29 | BV35: ='Financial Model - Monthly'!BW6 -> 2032-03-31 | BW35: ='Financial Model - Monthly'!BX6 -> 2032-04-30 | BX35: ='Financial Model - Monthly'!BY6 -> 2032-05-31 | BY35: ='Financial Model - Monthly'!BZ6 -> 2032-06-30 | BZ35: ='Financial Model - Monthly'!CA6 -> 2032-07-31 | CA35: ='Financial Model - Monthly'!CB6 -> 2032-08-31 | CB35: ='Financial Model - Monthly'!CC6 -> 2032-09-30 | CC35: ='Financial Model - Monthly'!CD6 -> 2032-10-31 | CD35: ='Financial Model - Monthly'!CE6 -> 2032-11-30 | CE35: ='Financial Model - Monthly'!CF6 -> 2032-12-31 | CF35: ='Financial Model - Monthly'!CG6 -> 2033-01-31 | CG35: ='Financial Model - Monthly'!CH6 -> 2033-02-28 | CH35: ='Financial Model - Monthly'!CI6 -> 2033-03-31 | CI35: ='Financial Model - Monthly'!CJ6 -> 2033-04-30 | CJ35: ='Financial Model - Monthly'!CK6 -> 2033-05-31 | CK35: ='Financial Model - Monthly'!CL6 -> 2033-06-30 | CL35: ='Financial Model - Monthly'!CM6 -> 2033-07-31 | CM35: ='Financial Model - Monthly'!CN6 -> 2033-08-31 | CN35: ='Financial Model - Monthly'!CO6 -> 2033-09-30 | CO35: ='Financial Model - Monthly'!CP6 -> 2033-10-31 | CP35: ='Financial Model - Monthly'!CQ6 -> 2033-11-30 | CQ35: ='Financial Model - Monthly'!CR6 -> 2033-12-31 | CR35: ='Financial Model - Monthly'!CS6 -> 2034-01-31 | CS35: ='Financial Model - Monthly'!CT6 -> 2034-02-28 | CT35: ='Financial Model - Monthly'!CU6 -> 2034-03-31 | CU35: ='Financial Model - Monthly'!CV6 -> 2034-04-30 | CV35: ='Financial Model - Monthly'!CW6 -> 2034-05-31 | CW35: ='Financial Model - Monthly'!CX6 -> 2034-06-30 | CX35: ='Financial Model - Monthly'!CY6 -> 2034-07-31 | CY35: ='Financial Model - Monthly'!CZ6 -> 2034-08-31 | CZ35: ='Financial Model - Monthly'!DA6 -> 2034-09-30 | DA35: ='Financial Model - Monthly'!DB6 -> 2034-10-31 | DB35: ='Financial Model - Monthly'!DC6 -> 2034-11-30 | DC35: ='Financial Model - Monthly'!DD6 -> 2034-12-31 | DD35: ='Financial Model - Monthly'!DE6 -> 2035-01-31 | DE35: ='Financial Model - Monthly'!DF6 -> 2035-02-28 | DF35: ='Financial Model - Monthly'!DG6 -> 2035-03-31 | DG35: ='Financial Model - Monthly'!DH6 -> 2035-04-30 | DH35: ='Financial Model - Monthly'!DI6 -> 2035-05-31 | DI35: ='Financial Model - Monthly'!DJ6 -> 2035-06-30 | DJ35: ='Financial Model - Monthly'!DK6 -> 2035-07-31 | DK35: ='Financial Model - Monthly'!DL6 -> 2035-08-31 | DL35: ='Financial Model - Monthly'!DM6 -> 2035-09-30 | DM35: ='Financial Model - Monthly'!DN6 -> 2035-10-31 | DN35: ='Financial Model - Monthly'!DO6 -> 2035-11-30 | DO35: ='Financial Model - Monthly'!DP6 -> 2035-12-31 | DP35: ='Financial Model - Monthly'!DQ6 -> 2036-01-31 | DQ35: ='Financial Model - Monthly'!DR6 -> 2036-02-29 | DR35: ='Financial Model - Monthly'!DS6 -> 2036-03-31 | DS35: ='Financial Model - Monthly'!DT6 -> 2036-04-30 | DT35: ='Financial Model - Monthly'!DU6 -> 2036-05-31 | DU35: ='Financial Model - Monthly'!DV6 -> 2036-06-30 | DV35: ='Financial Model - Monthly'!DW6 -> 2036-07-31 | DW35: ='Financial Model - Monthly'!DX6 -> 2036-08-31 | DX35: ='Financial Model - Monthly'!DY6 -> 2036-09-30 | DY35: ='Financial Model - Monthly'!DZ6 -> 2036-10-31 | DZ35: ='Financial Model - Monthly'!EA6 -> 2036-11-30 | EA35: ='Financial Model - Monthly'!EB6 -> 2036-12-31 | EB35: ='Financial Model - Monthly'!EC6 -> 2037-01-31 | EC35: ='Financial Model - Monthly'!ED6 -> 2037-02-28 | ED35: ='Financial Model - Monthly'!EE6 -> 2037-03-31 | EE35: ='Financial Model - Monthly'!EF6 -> 2037-04-30 | EF35: ='Financial Model - Monthly'!EG6 -> 2037-05-31 | EG35: ='Financial Model - Monthly'!EH6 -> 2037-06-30 | EH35: ='Financial Model - Monthly'!EI6 -> 2037-07-31 | EI35: ='Financial Model - Monthly'!EJ6 -> 2037-08-31 | EJ35: ='Financial Model - Monthly'!EK6 -> 2037-09-30 | EK35: ='Financial Model - Monthly'!EL6 -> 2037-10-31 | EL35: ='Financial Model - Monthly'!EM6 -> 2037-11-30 | EM35: ='Financial Model - Monthly'!EN6 -> 2037-12-31 | EN35: ='Financial Model - Monthly'!EO6 -> 2038-01-31 | EO35: ='Financial Model - Monthly'!EP6 -> 2038-02-28 | EP35: ='Financial Model - Monthly'!EQ6 -> 2038-03-31 | EQ35: ='Financial Model - Monthly'!ER6 -> 2038-04-30 | ER35: ='Financial Model - Monthly'!ES6 -> 2038-05-31 | ES35: ='Financial Model - Monthly'!ET6 -> 2038-06-30 | ET35: ='Financial Model - Monthly'!EU6 -> 2038-07-31 | EU35: ='Financial Model - Monthly'!EV6 -> 2038-08-31 | EV35: ='Financial Model - Monthly'!EW6 -> 2038-09-30 | EW35: ='Financial Model - Monthly'!EX6 -> 2038-10-31 | EX35: ='Financial Model - Monthly'!EY6 -> 2038-11-30 | EY35: ='Financial Model - Monthly'!EZ6 -> 2038-12-31 | EZ35: ='Financial Model - Monthly'!FA6 -> 2039-01-31 | FA35: ='Financial Model - Monthly'!FB6 -> 2039-02-28 | FB35: ='Financial Model - Monthly'!FC6 -> 2039-03-31 | FC35: ='Financial Model - Monthly'!FD6 -> 2039-04-30 | FD35: ='Financial Model - Monthly'!FE6 -> 2039-05-31 | FE35: ='Financial Model - Monthly'!FF6 -> 2039-06-30 | FF35: ='Financial Model - Monthly'!FG6 -> 2039-07-31 | FG35: ='Financial Model - Monthly'!FH6 -> 2039-08-31 | FH35: ='Financial Model - Monthly'!FI6 -> 2039-09-30 | FI35: ='Financial Model - Monthly'!FJ6 -> 2039-10-31 | FJ35: ='Financial Model - Monthly'!FK6 -> 2039-11-30 | FK35: ='Financial Model - Monthly'!FL6 -> 2039-12-31 | FL35: ='Financial Model - Monthly'!FM6 -> 2040-01-31 | FM35: ='Financial Model - Monthly'!FN6 -> 2040-02-29 | FN35: ='Financial Model - Monthly'!FO6 -> 2040-03-31 | FO35: ='Financial Model - Monthly'!FP6 -> 2040-04-30 | FP35: ='Financial Model - Monthly'!FQ6 -> 2040-05-31 | FQ35: ='Financial Model - Monthly'!FR6 -> 2040-06-30 | FR35: ='Financial Model - Monthly'!FS6 -> 2040-07-31 | FS35: ='Financial Model - Monthly'!FT6 -> 2040-08-31 | FT35: ='Financial Model - Monthly'!FU6 -> 2040-09-30 | FU35: ='Financial Model - Monthly'!FV6 -> 2040-10-31 | FV35: ='Financial Model - Monthly'!FW6 -> 2040-11-30 | FW35: ='Financial Model - Monthly'!FX6 -> 2040-12-31 | FX35: ='Financial Model - Monthly'!FY6 -> 2041-01-31 | FY35: ='Financial Model - Monthly'!FZ6 -> 2041-02-28 | FZ35: ='Financial Model - Monthly'!GA6 -> 2041-03-31 | GA35: ='Financial Model - Monthly'!GB6 -> 2041-04-30 | GB35: ='Financial Model - Monthly'!GC6 -> 2041-05-31 | GC35: ='Financial Model - Monthly'!GD6 -> 2041-06-30 | GD35: ='Financial Model - Monthly'!GE6 -> 2041-07-31 | GE35: ='Financial Model - Monthly'!GF6 -> 2041-08-31 | GF35: ='Financial Model - Monthly'!GG6 -> 2041-09-30 | GG35: ='Financial Model - Monthly'!GH6 -> 2041-10-31 | GH35: ='Financial Model - Monthly'!GI6 -> 2041-11-30 | GI35: ='Financial Model - Monthly'!GJ6 -> 2041-12-31 | GJ35: ='Financial Model - Monthly'!GK6 -> 2042-01-31 | GK35: ='Financial Model - Monthly'!GL6 -> 2042-02-28 | GL35: ='Financial Model - Monthly'!GM6 -> 2042-03-31 | GM35: ='Financial Model - Monthly'!GN6 -> 2042-04-30 | GN35: ='Financial Model - Monthly'!GO6 -> 2042-05-31 | GO35: ='Financial Model - Monthly'!GP6 -> 2042-06-30 | GP35: ='Financial Model - Monthly'!GQ6 -> 2042-07-31 | GQ35: ='Financial Model - Monthly'!GR6 -> 2042-08-31 | GR35: ='Financial Model - Monthly'!GS6 -> 2042-09-30 | GS35: ='Financial Model - Monthly'!GT6 -> 2042-10-31 | GT35: ='Financial Model - Monthly'!GU6 -> 2042-11-30 | GU35: ='Financial Model - Monthly'!GV6 -> 2042-12-31 | GV35: ='Financial Model - Monthly'!GW6 -> 2043-01-31 | GW35: ='Financial Model - Monthly'!GX6 -> 2043-02-28 | GX35: ='Financial Model - Monthly'!GY6 -> 2043-03-31 | GY35: ='Financial Model - Monthly'!GZ6 -> 2043-04-30 | GZ35: ='Financial Model - Monthly'!HA6 -> 2043-05-31 | HA35: ='Financial Model - Monthly'!HB6 -> 2043-06-30 | HB35: ='Financial Model - Monthly'!HC6 -> 2043-07-31 | HC35: ='Financial Model - Monthly'!HD6 -> 2043-08-31 | HD35: ='Financial Model - Monthly'!HE6 -> 2043-09-30 | HE35: ='Financial Model - Monthly'!HF6 -> 2043-10-31 | HF35: ='Financial Model - Monthly'!HG6 -> 2043-11-30 | HG35: ='Financial Model - Monthly'!HH6 -> 2043-12-31 | HH35: ='Financial Model - Monthly'!HI6 -> 2044-01-31 | HI35: ='Financial Model - Monthly'!HJ6 -> 2044-02-29 | HJ35: ='Financial Model - Monthly'!HK6 -> 2044-03-31 | HK35: ='Financial Model - Monthly'!HL6 -> 2044-04-30 | HL35: ='Financial Model - Monthly'!HM6 -> 2044-05-31 | HM35: ='Financial Model - Monthly'!HN6 -> 2044-06-30 | HN35: ='Financial Model - Monthly'!HO6 -> 2044-07-31 | HO35: ='Financial Model - Monthly'!HP6 -> 2044-08-31 | HP35: ='Financial Model - Monthly'!HQ6 -> 2044-09-30 | HQ35: ='Financial Model - Monthly'!HR6 -> 2044-10-31 | HR35: ='Financial Model - Monthly'!HS6 -> 2044-11-30 | HS35: ='Financial Model - Monthly'!HT6 -> 2044-12-31 | HT35: ='Financial Model - Monthly'!HU6 -> 2045-01-31 | HU35: ='Financial Model - Monthly'!HV6 -> 2045-02-28 | HV35: ='Financial Model - Monthly'!HW6 -> 2045-03-31 | HW35: ='Financial Model - Monthly'!HX6 -> 2045-04-30 | HX35: ='Financial Model - Monthly'!HY6 -> 2045-05-31 | HY35: ='Financial Model - Monthly'!HZ6 -> 2045-06-30 | HZ35: ='Financial Model - Monthly'!IA6 -> 2045-07-31 | IA35: ='Financial Model - Monthly'!IB6 -> 2045-08-31 | IB35: ='Financial Model - Monthly'!IC6 -> 2045-09-30 | IC35: ='Financial Model - Monthly'!ID6 -> 2045-10-31 | ID35: ='Financial Model - Monthly'!IE6 -> 2045-11-30 | IE35: ='Financial Model - Monthly'!IF6 -> 2045-12-31 | IF35: ='Financial Model - Monthly'!IG6 -> 2046-01-31 | IG35: ='Financial Model - Monthly'!IH6 -> 2046-02-28 | IH35: ='Financial Model - Monthly'!II6 -> 2046-03-31 | II35: ='Financial Model - Monthly'!IJ6 -> 2046-04-30 | IJ35: ='Financial Model - Monthly'!IK6 -> 2046-05-31 | IK35: ='Financial Model - Monthly'!IL6 -> 2046-06-30 | IL35: ='Financial Model - Monthly'!IM6 -> 2046-07-31 | IM35: ='Financial Model - Monthly'!IN6 -> 2046-08-31 | IN35: ='Financial Model - Monthly'!IO6 -> 2046-09-30 | IO35: ='Financial Model - Monthly'!IP6 -> 2046-10-31 | IP35: ='Financial Model - Monthly'!IQ6 -> 2046-11-30 | IQ35: ='Financial Model - Monthly'!IR6 -> 2046-12-31 | IR35: ='Financial Model - Monthly'!IS6 -> 2047-01-31 | IS35: ='Financial Model - Monthly'!IT6 -> 2047-02-28 | IT35: ='Financial Model - Monthly'!IU6 -> 2047-03-31 | IU35: ='Financial Model - Monthly'!IV6 -> 2047-04-30 | IV35: ='Financial Model - Monthly'!IW6 -> 2047-05-31 | IW35: ='Financial Model - Monthly'!IX6 -> 2047-06-30 | IX35: ='Financial Model - Monthly'!IY6 -> 2047-07-31 | IY35: ='Financial Model - Monthly'!IZ6 -> 2047-08-31 | IZ35: ='Financial Model - Monthly'!JA6 -> 2047-09-30 | JA35: ='Financial Model - Monthly'!JB6 -> 2047-10-31 | JB35: ='Financial Model - Monthly'!JC6 -> 2047-11-30 | JC35: ='Financial Model - Monthly'!JD6 -> 2047-12-31 | JD35: ='Financial Model - Monthly'!JE6 -> 2048-01-31 | JE35: ='Financial Model - Monthly'!JF6 -> 2048-02-29 | JF35: ='Financial Model - Monthly'!JG6 -> 2048-03-31 | JG35: ='Financial Model - Monthly'!JH6 -> 2048-04-30 | JH35: ='Financial Model - Monthly'!JI6 -> 2048-05-31 | JI35: ='Financial Model - Monthly'!JJ6 -> 2048-06-30 | JJ35: ='Financial Model - Monthly'!JK6 -> 2048-07-31 | JK35: ='Financial Model - Monthly'!JL6 -> 2048-08-31 | JL35: ='Financial Model - Monthly'!JM6 -> 2048-09-30 | JM35: ='Financial Model - Monthly'!JN6 -> 2048-10-31 | JN35: ='Financial Model - Monthly'!JO6 -> 2048-11-30 | JO35: ='Financial Model - Monthly'!JP6 -> 2048-12-31 | JP35: ='Financial Model - Monthly'!JQ6 -> 2049-01-31 | JQ35: ='Financial Model - Monthly'!JR6 -> 2049-02-28 | JR35: ='Financial Model - Monthly'!JS6 -> 2049-03-31 | JS35: ='Financial Model - Monthly'!JT6 -> 2049-04-30 | JT35: ='Financial Model - Monthly'!JU6 -> 2049-05-31 | JU35: ='Financial Model - Monthly'!JV6 -> 2049-06-30 | JV35: ='Financial Model - Monthly'!JW6 -> 2049-07-31 | JW35: ='Financial Model - Monthly'!JX6 -> 2049-08-31 | JX35: ='Financial Model - Monthly'!JY6 -> 2049-09-30 | JY35: ='Financial Model - Monthly'!JZ6 -> 2049-10-31 | JZ35: ='Financial Model - Monthly'!KA6 -> 2049-11-30 | KA35: ='Financial Model - Monthly'!KB6 -> 2049-12-31 | KB35: ='Financial Model - Monthly'!KC6 -> 2050-01-31 | KC35: ='Financial Model - Monthly'!KD6 -> 2050-02-28 | KD35: ='Financial Model - Monthly'!KE6 -> 2050-03-31 | KE35: ='Financial Model - Monthly'!KF6 -> 2050-04-30 | KF35: ='Financial Model - Monthly'!KG6 -> 2050-05-31 | KG35: ='Financial Model - Monthly'!KH6 -> 2050-06-30 | KH35: ='Financial Model - Monthly'!KI6 -> 2050-07-31 | KI35: ='Financial Model - Monthly'!KJ6 -> 2050-08-31 | KJ35: ='Financial Model - Monthly'!KK6 -> 2050-09-30 | KK35: ='Financial Model - Monthly'!KL6 -> 2050-10-31 | KL35: ='Financial Model - Monthly'!KM6 -> 2050-11-30 | KM35: ='Financial Model - Monthly'!KN6 -> 2050-12-31 | KN35: ='Financial Model - Monthly'!KO6 -> 2051-01-31 | KO35: ='Financial Model - Monthly'!KP6 -> 2051-02-28 | KP35: ='Financial Model - Monthly'!KQ6 -> 2051-03-31 | KQ35: ='Financial Model - Monthly'!KR6 -> 2051-04-30 | KR35: ='Financial Model - Monthly'!KS6 -> 2051-05-31 | KS35: ='Financial Model - Monthly'!KT6 -> 2051-06-30 | KT35: ='Financial Model - Monthly'!KU6 -> 2051-07-31 | KU35: ='Financial Model - Monthly'!KV6 -> 2051-08-31 | KV35: ='Financial Model - Monthly'!KW6 -> 2051-09-30 | KW35: ='Financial Model - Monthly'!KX6 -> 2051-10-31 | KX35: ='Financial Model - Monthly'!KY6 -> 2051-11-30 | KY35: ='Financial Model - Monthly'!KZ6 -> 2051-12-31 | KZ35: ='Financial Model - Monthly'!LA6 -> 2052-01-31 | LA35: ='Financial Model - Monthly'!LB6 -> 2052-02-29 | LB35: ='Financial Model - Monthly'!LC6 -> 2052-03-31 | LC35: ='Financial Model - Monthly'!LD6 -> 2052-04-30 | LD35: ='Financial Model - Monthly'!LE6 -> 2052-05-31 | LE35: ='Financial Model - Monthly'!LF6 -> 2052-06-30 | LF35: ='Financial Model - Monthly'!LG6 -> 2052-07-31 | LG35: ='Financial Model - Monthly'!LH6 -> 2052-08-31 | LH35: ='Financial Model - Monthly'!LI6 -> 2052-09-30 | LI35: ='Financial Model - Monthly'!LJ6 -> 2052-10-31 | LJ35: ='Financial Model - Monthly'!LK6 -> 2052-11-30 | LK35: ='Financial Model - Monthly'!LL6 -> 2052-12-31 | LL35: ='Financial Model - Monthly'!LM6 -> 2053-01-31 | LM35: ='Financial Model - Monthly'!LN6 -> 2053-02-28 | LN35: ='Financial Model - Monthly'!LO6 -> 2053-03-31 | LO35: ='Financial Model - Monthly'!LP6 -> 2053-04-30 | LP35: ='Financial Model - Monthly'!LQ6 -> 2053-05-31 | LQ35: ='Financial Model - Monthly'!LR6 -> 2053-06-30 | LR35: ='Financial Model - Monthly'!LS6 -> 2053-07-31 | LS35: ='Financial Model - Monthly'!LT6 -> 2053-08-31 | LT35: ='Financial Model - Monthly'!LU6 -> 2053-09-30 | LU35: ='Financial Model - Monthly'!LV6 -> 2053-10-31 | LV35: ='Financial Model - Monthly'!LW6 -> 2053-11-30 | LW35: ='Financial Model - Monthly'!LX6 -> 2053-12-31 | LX35: ='Financial Model - Monthly'!LY6 -> 2054-01-31 | LY35: ='Financial Model - Monthly'!LZ6 -> 2054-02-28 | LZ35: ='Financial Model - Monthly'!MA6 -> 2054-03-31 | MA35: ='Financial Model - Monthly'!MB6 -> 2054-04-30 | MB35: ='Financial Model - Monthly'!MC6 -> 2054-05-31 | MC35: ='Financial Model - Monthly'!MD6 -> 2054-06-30 | MD35: ='Financial Model - Monthly'!ME6 -> 2054-07-31 | ME35: ='Financial Model - Monthly'!MF6 -> 2054-08-31 | MF35: ='Financial Model - Monthly'!MG6 -> 2054-09-30 | MG35: ='Financial Model - Monthly'!MH6 -> 2054-10-31 | MH35: ='Financial Model - Monthly'!MI6 -> 2054-11-30 | MI35: ='Financial Model - Monthly'!MJ6 -> 2054-12-31 | MJ35: ='Financial Model - Monthly'!MK6 -> 2055-01-31 | MK35: ='Financial Model - Monthly'!ML6 -> 2055-02-28 | ML35: ='Financial Model - Monthly'!MM6 -> 2055-03-31 | MM35: ='Financial Model - Monthly'!MN6 -> 2055-04-30 | MN35: ='Financial Model - Monthly'!MO6 -> 2055-05-31 | MO35: ='Financial Model - Monthly'!MP6 -> 2055-06-30 | MP35: ='Financial Model - Monthly'!MQ6 -> 2055-07-31 | MQ35: ='Financial Model - Monthly'!MR6 -> 2055-08-31 | MR35: ='Financial Model - Monthly'!MS6 -> 2055-09-30 | MS35: ='Financial Model - Monthly'!MT6 -> 2055-10-31 | MT35: ='Financial Model - Monthly'!MU6 -> 2055-11-30 | MU35: ='Financial Model - Monthly'!MV6 -> 2055-12-31 | MV35: ='Financial Model - Monthly'!MW6 -> 2056-01-31 | MW35: ='Financial Model - Monthly'!MX6 -> 2056-02-29 | MX35: ='Financial Model - Monthly'!MY6 -> 2056-03-31 | MY35: ='Financial Model - Monthly'!MZ6 -> 2056-04-30 | MZ35: ='Financial Model - Monthly'!NA6 -> 2056-05-31 | NA35: ='Financial Model - Monthly'!NB6 -> 2056-06-30 | NB35: ='Financial Model - Monthly'!NC6 -> 2056-07-31 | NC35: ='Financial Model - Monthly'!ND6 -> 2056-08-31 | ND35: ='Financial Model - Monthly'!NE6 -> 2056-09-30 | NE35: ='Financial Model - Monthly'!NF6 -> 2056-10-31 | NF35: ='Financial Model - Monthly'!NG6 -> 2056-11-30 | NG35: ='Financial Model - Monthly'!NH6 -> 2056-12-31 | NH35: ='Financial Model - Monthly'!NI6 -> 2057-01-31 | NI35: ='Financial Model - Monthly'!NJ6 -> 2057-02-28 | NJ35: ='Financial Model - Monthly'!NK6 -> 2057-03-31 | NK35: ='Financial Model - Monthly'!NL6 -> 2057-04-30 | NL35: ='Financial Model - Monthly'!NM6 -> 2057-05-31 | NM35: ='Financial Model - Monthly'!NN6 -> 2057-06-30 | NN35: ='Financial Model - Monthly'!NO6 -> 2057-07-31 | NO35: ='Financial Model - Monthly'!NP6 -> 2057-08-31 | NP35: ='Financial Model - Monthly'!NQ6 -> 2057-09-30 | NQ35: ='Financial Model - Monthly'!NR6 -> 2057-10-31 | NR35: ='Financial Model - Monthly'!NS6 -> 2057-11-30 | NS35: ='Financial Model - Monthly'!NT6 -> 2057-12-31 | NT35: ='Financial Model - Monthly'!NU6 -> 2058-01-31 | NU35: ='Financial Model - Monthly'!NV6 -> 2058-02-28 | NV35: ='Financial Model - Monthly'!NW6 -> 2058-03-31 | NW35: ='Financial Model - Monthly'!NX6 -> 2058-04-30 | NX35: ='Financial Model - Monthly'!NY6 -> 2058-05-31 | NY35: ='Financial Model - Monthly'!NZ6 -> 2058-06-30 | NZ35: ='Financial Model - Monthly'!OA6 -> 2058-07-31 | OA35: ='Financial Model - Monthly'!OB6 -> 2058-08-31 | OB35: ='Financial Model - Monthly'!OC6 -> 2058-09-30 | OC35: ='Financial Model - Monthly'!OD6 -> 2058-10-31 | OD35: ='Financial Model - Monthly'!OE6 -> 2058-11-30 | OE35: ='Financial Model - Monthly'!OF6 -> 2058-12-31 | OF35: ='Financial Model - Monthly'!OG6 -> 2059-01-31 | OG35: ='Financial Model - Monthly'!OH6 -> 2059-02-28 | OH35: ='Financial Model - Monthly'!OI6 -> 2059-03-31 | OI35: ='Financial Model - Monthly'!OJ6 -> 2059-04-30 | OJ35: ='Financial Model - Monthly'!OK6 -> 2059-05-31 | OK35: ='Financial Model - Monthly'!OL6 -> 2059-06-30 | OL35: ='Financial Model - Monthly'!OM6 -> 2059-07-31 | OM35: ='Financial Model - Monthly'!ON6 -> 2059-08-31 | ON35: ='Financial Model - Monthly'!OO6 -> 2059-09-30 | OO35: ='Financial Model - Monthly'!OP6 -> 2059-10-31 | OP35: ='Financial Model - Monthly'!OQ6 -> 2059-11-30 | OQ35: ='Financial Model - Monthly'!OR6 -> 2059-12-31 | OR35: ='Financial Model - Monthly'!OS6 -> 2060-01-31 | OS35: ='Financial Model - Monthly'!OT6 -> 2060-02-29 | OT35: ='Financial Model - Monthly'!OU6 -> 2060-03-31 | OU35: ='Financial Model - Monthly'!OV6 -> 2060-04-30 | OV35: ='Financial Model - Monthly'!OW6 -> 2060-05-31 | OW35: ='Financial Model - Monthly'!OX6 -> 2060-06-30 | OX35: ='Financial Model - Monthly'!OY6 -> 2060-07-31 | OY35: ='Financial Model - Monthly'!OZ6 -> 2060-08-31 | OZ35: ='Financial Model - Monthly'!PA6 -> 2060-09-30 | PA35: ='Financial Model - Monthly'!PB6 -> 2060-10-31 | PB35: ='Financial Model - Monthly'!PC6 -> 2060-11-30 | PC35: ='Financial Model - Monthly'!PD6 -> 2060-12-31 | PD35: ='Financial Model - Monthly'!PE6 -> 2061-01-31 | PE35: ='Financial Model - Monthly'!PF6 -> 2061-02-28 | PF35: ='Financial Model - Monthly'!PG6 -> 2061-03-31 | PG35: ='Financial Model - Monthly'!PH6 -> 2061-04-30 | PH35: ='Financial Model - Monthly'!PI6 -> 2061-05-31 | PI35: ='Financial Model - Monthly'!PJ6 -> 2061-06-30 | PJ35: ='Financial Model - Monthly'!PK6 -> 2061-07-31 | PK35: ='Financial Model - Monthly'!PL6 -> 2061-08-31 | PL35: ='Financial Model - Monthly'!PM6 -> 2061-09-30 | PM35: ='Financial Model - Monthly'!PN6 -> 2061-10-31 | PN35: ='Financial Model - Monthly'!PO6 -> 2061-11-30 | PO35: ='Financial Model - Monthly'!PP6 -> 2061-12-31 | PP35: ='Financial Model - Monthly'!PQ6 -> 2062-01-31 | PQ35: ='Financial Model - Monthly'!PR6 -> 2062-02-28 | PR35: ='Financial Model - Monthly'!PS6 -> 2062-03-31 | PS35: ='Financial Model - Monthly'!PT6 -> 2062-04-30 | PT35: ='Financial Model - Monthly'!PU6 -> 2062-05-31 | PU35: ='Financial Model - Monthly'!PV6 -> 2062-06-30 | PV35: ='Financial Model - Monthly'!PW6 -> 2062-07-31 | PW35: ='Financial Model - Monthly'!PX6 -> 2062-08-31 | PX35: ='Financial Model - Monthly'!PY6 -> 2062-09-30 | PY35: ='Financial Model - Monthly'!PZ6 -> 2062-10-31 | PZ35: ='Financial Model - Monthly'!QA6 -> 2062-11-30 | QA35: ='Financial Model - Monthly'!QB6 -> 2062-12-31 | QB35: ='Financial Model - Monthly'!QC6 -> 2063-01-31 | QC35: ='Financial Model - Monthly'!QD6 -> 2063-02-28 | QD35: ='Financial Model - Monthly'!QE6 -> 2063-03-31 | QE35: ='Financial Model - Monthly'!QF6 -> 2063-04-30 | QF35: ='Financial Model - Monthly'!QG6 -> 2063-05-31 | QG35: ='Financial Model - Monthly'!QH6 -> 2063-06-30 | QH35: ='Financial Model - Monthly'!QI6 -> 2063-07-31 | QI35: ='Financial Model - Monthly'!QJ6 -> 2063-08-31 | QJ35: ='Financial Model - Monthly'!QK6 -> 2063-09-30 | QK35: ='Financial Model - Monthly'!QL6 -> 2063-10-31 | QL35: ='Financial Model - Monthly'!QM6 -> 2063-11-30 | QM35: ='Financial Model - Monthly'!QN6 -> 2063-12-31 | QN35: ='Financial Model - Monthly'!QO6 -> 2064-01-31 | QO35: ='Financial Model - Monthly'!QP6 -> 2064-02-29 | QP35: ='Financial Model - Monthly'!QQ6 -> 2064-03-31 | QQ35: ='Financial Model - Monthly'!QR6 -> 2064-04-30 | QR35: ='Financial Model - Monthly'!QS6 -> 2064-05-31 | QS35: ='Financial Model - Monthly'!QT6 -> 2064-06-30 | QT35: ='Financial Model - Monthly'!QU6 -> 2064-07-31 | QU35: ='Financial Model - Monthly'!QV6 -> 2064-08-31 | QV35: ='Financial Model - Monthly'!QW6 -> 2064-09-30 | QW35: ='Financial Model - Monthly'!QX6 -> 2064-10-31 | QX35: ='Financial Model - Monthly'!QY6 -> 2064-11-30 | QY35: ='Financial Model - Monthly'!QZ6 -> 2064-12-31 | QZ35: ='Financial Model - Monthly'!RA6 -> 2065-01-31 | RA35: ='Financial Model - Monthly'!RB6 -> 2065-02-28 | RB35: ='Financial Model - Monthly'!RC6 -> 2065-03-31 | RC35: ='Financial Model - Monthly'!RD6 -> 2065-04-30 | RD35: ='Financial Model - Monthly'!RE6 -> 2065-05-31 | RE35: ='Financial Model - Monthly'!RF6 -> 2065-06-30 | RF35: ='Financial Model - Monthly'!RG6 -> 2065-07-31 | RG35: ='Financial Model - Monthly'!RH6 -> 2065-08-31 | RH35: ='Financial Model - Monthly'!RI6 -> 2065-09-30 | RI35: ='Financial Model - Monthly'!RJ6 -> 2065-10-31 | RJ35: ='Financial Model - Monthly'!RK6 -> 2065-11-30 | RK35: ='Financial Model - Monthly'!RL6 -> 2065-12-31 | RL35: ='Financial Model - Monthly'!RM6 -> 2066-01-31 | RM35: ='Financial Model - Monthly'!RN6 -> 2066-02-28 | RN35: ='Financial Model - Monthly'!RO6 -> 2066-03-31 | RO35: ='Financial Model - Monthly'!RP6 -> 2066-04-30 | RP35: ='Financial Model - Monthly'!RQ6 -> 2066-05-31 | RQ35: ='Financial Model - Monthly'!RR6 -> 2066-06-30 | RR35: ='Financial Model - Monthly'!RS6 -> 2066-07-31 | RS35: ='Financial Model - Monthly'!RT6 -> 2066-08-31 | RT35: ='Financial Model - Monthly'!RU6 -> 2066-09-30 | RU35: ='Financial Model - Monthly'!RV6 -> 2066-10-31 | RV35: ='Financial Model - Monthly'!RW6 -> 2066-11-30 | RW35: ='Financial Model - Monthly'!RX6 -> 2066-12-31 | RX35: ='Financial Model - Monthly'!RY6 -> 2067-01-31 | RY35: ='Financial Model - Monthly'!RZ6 -> 2067-02-28 | RZ35: ='Financial Model - Monthly'!SA6 -> 2067-03-31 | SA35: ='Financial Model - Monthly'!SB6 -> 2067-04-30 | SB35: ='Financial Model - Monthly'!SC6 -> 2067-05-31 | SC35: ='Financial Model - Monthly'!SD6 -> 00:00:00 | SD35: ='Financial Model - Monthly'!SE6 -> 00:00:00 | SE35: ='Financial Model - Monthly'!SF6 -> 00:00:00 | SF35: ='Financial Model - Monthly'!SG6 -> 00:00:00 | SG35: ='Financial Model - Monthly'!SH6 -> 00:00:00 | SH35: ='Financial Model - Monthly'!SI6 -> 00:00:00 | SI35: ='Financial Model - Monthly'!SJ6 -> 00:00:00 | SJ35: ='Financial Model - Monthly'!SK6 -> 00:00:00 | SK35: ='Financial Model - Monthly'!SL6 -> 00:00:00 | SL35: ='Financial Model - Monthly'!SM6 -> 00:00:00 | SM35: ='Financial Model - Monthly'!SN6 -> 00:00:00 | SN35: ='Financial Model - Monthly'!SO6 -> 00:00:00 | SO35: ='Financial Model - Monthly'!SP6 -> 00:00:00 | SP35: ='Financial Model - Monthly'!SQ6 -> 00:00:00 | SQ35: ='Financial Model - Monthly'!SR6 -> 00:00:00 | SR35: ='Financial Model - Monthly'!SS6 -> 00:00:00 | SS35: ='Financial Model - Monthly'!ST6 -> 00:00:00 | ST35: ='Financial Model - Monthly'!SU6 -> 00:00:00 | SU35: ='Financial Model - Monthly'!SV6 -> 00:00:00 | SV35: ='Financial Model - Monthly'!SW6 -> 00:00:00 | SW35: ='Financial Model - Monthly'!SX6 -> 00:00:00 | SX35: ='Financial Model - Monthly'!SY6 -> 00:00:00 | SY35: ='Financial Model - Monthly'!SZ6 -> 00:00:00 | SZ35: ='Financial Model - Monthly'!TA6 -> 00:00:00 | TA35: ='Financial Model - Monthly'!TB6 -> 00:00:00 | TB35: ='Financial Model - Monthly'!TC6 -> 00:00:00 | TC35: ='Financial Model - Monthly'!TD6 -> 00:00:00 | TD35: ='Financial Model - Monthly'!TE6 -> 00:00:00 | TE35: ='Financial Model - Monthly'!TF6 -> 00:00:00 | TF35: ='Financial Model - Monthly'!TG6 -> 00:00:00 | TG35: ='Financial Model - Monthly'!TH6 -> 00:00:00 | TH35: ='Financial Model - Monthly'!TI6 -> 00:00:00 | TI35: ='Financial Model - Monthly'!TJ6 -> 00:00:00 | TJ35: ='Financial Model - Monthly'!TK6 -> 00:00:00 | TK35: ='Financial Model - Monthly'!TL6 -> 00:00:00 | TL35: ='Financial Model - Monthly'!TM6 -> 00:00:00 | TM35: ='Financial Model - Monthly'!TN6 -> 00:00:00 | TN35: ='Financial Model - Monthly'!TO6 -> 00:00:00 | TO35: ='Financial Model - Monthly'!TP6 -> 00:00:00 | TP35: ='Financial Model - Monthly'!TQ6 -> 00:00:00 | TQ35: ='Financial Model - Monthly'!TR6 -> 00:00:00 | TR35: ='Financial Model - Monthly'!TS6 -> 00:00:00 | TS35: ='Financial Model - Monthly'!TT6 -> 00:00:00 | TT35: ='Financial Model - Monthly'!TU6 -> 00:00:00 | TU35: ='Financial Model - Monthly'!TV6 -> 00:00:00 | TV35: ='Financial Model - Monthly'!TW6 -> 00:00:00 | TW35: ='Financial Model - Monthly'!TX6 -> 00:00:00 | TX35: ='Financial Model - Monthly'!TY6 -> 00:00:00 | TY35: ='Financial Model - Monthly'!TZ6 -> 00:00:00
F37: Month | G37: Average | H37: Pct of Yr
F38: 1 | G38: =DataBook!O222 -> 64.28888889 | H38: =G38/$G$70 -> 0.03972536904 | J38: =Find_Month(J$34,J$35,$F38) -> FALSE | K38: =Find_Month(K$34,K$35,$F38) -> FALSE | L38: =Find_Month(L$34,L$35,$F38) -> TRUE | M38: =Find_Month(M$34,M$35,$F38) -> FALSE | N38: =Find_Month(N$34,N$35,$F38) -> FALSE | O38: =Find_Month(O$34,O$35,$F38) -> FALSE | P38: =Find_Month(P$34,P$35,$F38) -> FALSE | Q38: =Find_Month(Q$34,Q$35,$F38) -> FALSE | R38: =Find_Month(R$34,R$35,$F38) -> FALSE | S38: =Find_Month(S$34,S$35,$F38) -> FALSE | T38: =Find_Month(T$34,T$35,$F38) -> FALSE | U38: =Find_Month(U$34,U$35,$F38) -> FALSE | V38: =Find_Month(V$34,V$35,$F38) -> FALSE | W38: =Find_Month(W$34,W$35,$F38) -> FALSE | X38: =Find_Month(X$34,X$35,$F38) -> TRUE | Y38: =Find_Month(Y$34,Y$35,$F38) -> FALSE | Z38: =Find_Month(Z$34,Z$35,$F38) -> FALSE | AA38: =Find_Month(AA$34,AA$35,$F38) -> FALSE | AB38: =Find_Month(AB$34,AB$35,$F38) -> FALSE | AC38: =Find_Month(AC$34,AC$35,$F38) -> FALSE | AD38: =Find_Month(AD$34,AD$35,$F38) -> FALSE | AE38: =Find_Month(AE$34,AE$35,$F38) -> FALSE | AF38: =Find_Month(AF$34,AF$35,$F38) -> FALSE | AG38: =Find_Month(AG$34,AG$35,$F38) -> FALSE | AH38: =Find_Month(AH$34,AH$35,$F38) -> FALSE | AI38: =Find_Month(AI$34,AI$35,$F38) -> FALSE | AJ38: =Find_Month(AJ$34,AJ$35,$F38) -> TRUE | AK38: =Find_Month(AK$34,AK$35,$F38) -> FALSE | AL38: =Find_Month(AL$34,AL$35,$F38) -> FALSE | AM38: =Find_Month(AM$34,AM$35,$F38) -> FALSE | AN38: =Find_Month(AN$34,AN$35,$F38) -> FALSE | AO38: =Find_Month(AO$34,AO$35,$F38) -> FALSE | AP38: =Find_Month(AP$34,AP$35,$F38) -> FALSE | AQ38: =Find_Month(AQ$34,AQ$35,$F38) -> FALSE | AR38: =Find_Month(AR$34,AR$35,$F38) -> FALSE | AS38: =Find_Month(AS$34,AS$35,$F38) -> FALSE | AT38: =Find_Month(AT$34,AT$35,$F38) -> FALSE | AU38: =Find_Month(AU$34,AU$35,$F38) -> FALSE | AV38: =Find_Month(AV$34,AV$35,$F38) -> TRUE | AW38: =Find_Month(AW$34,AW$35,$F38) -> FALSE | AX38: =Find_Month(AX$34,AX$35,$F38) -> FALSE | AY38: =Find_Month(AY$34,AY$35,$F38) -> FALSE | AZ38: =Find_Month(AZ$34,AZ$35,$F38) -> FALSE | BA38: =Find_Month(BA$34,BA$35,$F38) -> FALSE | BB38: =Find_Month(BB$34,BB$35,$F38) -> FALSE | BC38: =Find_Month(BC$34,BC$35,$F38) -> FALSE | BD38: =Find_Month(BD$34,BD$35,$F38) -> FALSE | BE38: =Find_Month(BE$34,BE$35,$F38) -> FALSE | BF38: =Find_Month(BF$34,BF$35,$F38) -> FALSE | BG38: =Find_Month(BG$34,BG$35,$F38) -> FALSE | BH38: =Find_Month(BH$34,BH$35,$F38) -> TRUE | BI38: =Find_Month(BI$34,BI$35,$F38) -> FALSE | BJ38: =Find_Month(BJ$34,BJ$35,$F38) -> FALSE | BK38: =Find_Month(BK$34,BK$35,$F38) -> FALSE | BL38: =Find_Month(BL$34,BL$35,$F38) -> FALSE | BM38: =Find_Month(BM$34,BM$35,$F38) -> FALSE | BN38: =Find_Month(BN$34,BN$35,$F38) -> FALSE | BO38: =Find_Month(BO$34,BO$35,$F38) -> FALSE | BP38: =Find_Month(BP$34,BP$35,$F38) -> FALSE | BQ38: =Find_Month(BQ$34,BQ$35,$F38) -> FALSE | BR38: =Find_Month(BR$34,BR$35,$F38) -> FALSE | BS38: =Find_Month(BS$34,BS$35,$F38) -> FALSE | BT38: =Find_Month(BT$34,BT$35,$F38) -> TRUE | BU38: =Find_Month(BU$34,BU$35,$F38) -> FALSE | BV38: =Find_Month(BV$34,BV$35,$F38) -> FALSE | BW38: =Find_Month(BW$34,BW$35,$F38) -> FALSE | BX38: =Find_Month(BX$34,BX$35,$F38) -> FALSE | BY38: =Find_Month(BY$34,BY$35,$F38) -> FALSE | BZ38: =Find_Month(BZ$34,BZ$35,$F38) -> FALSE | CA38: =Find_Month(CA$34,CA$35,$F38) -> FALSE | CB38: =Find_Month(CB$34,CB$35,$F38) -> FALSE | CC38: =Find_Month(CC$34,CC$35,$F38) -> FALSE | CD38: =Find_Month(CD$34,CD$35,$F38) -> FALSE | CE38: =Find_Month(CE$34,CE$35,$F38) -> FALSE | CF38: =Find_Month(CF$34,CF$35,$F38) -> TRUE | CG38: =Find_Month(CG$34,CG$35,$F38) -> FALSE | CH38: =Find_Month(CH$34,CH$35,$F38) -> FALSE | CI38: =Find_Month(CI$34,CI$35,$F38) -> FALSE | CJ38: =Find_Month(CJ$34,CJ$35,$F38) -> FALSE | CK38: =Find_Month(CK$34,CK$35,$F38) -> FALSE | CL38: =Find_Month(CL$34,CL$35,$F38) -> FALSE | CM38: =Find_Month(CM$34,CM$35,$F38) -> FALSE | CN38: =Find_Month(CN$34,CN$35,$F38) -> FALSE | CO38: =Find_Month(CO$34,CO$35,$F38) -> FALSE | CP38: =Find_Month(CP$34,CP$35,$F38) -> FALSE | CQ38: =Find_Month(CQ$34,CQ$35,$F38) -> FALSE | CR38: =Find_Month(CR$34,CR$35,$F38) -> TRUE | CS38: =Find_Month(CS$34,CS$35,$F38) -> FALSE | CT38: =Find_Month(CT$34,CT$35,$F38) -> FALSE | CU38: =Find_Month(CU$34,CU$35,$F38) -> FALSE | CV38: =Find_Month(CV$34,CV$35,$F38) -> FALSE | CW38: =Find_Month(CW$34,CW$35,$F38) -> FALSE | CX38: =Find_Month(CX$34,CX$35,$F38) -> FALSE | CY38: =Find_Month(CY$34,CY$35,$F38) -> FALSE | CZ38: =Find_Month(CZ$34,CZ$35,$F38) -> FALSE | DA38: =Find_Month(DA$34,DA$35,$F38) -> FALSE | DB38: =Find_Month(DB$34,DB$35,$F38) -> FALSE | DC38: =Find_Month(DC$34,DC$35,$F38) -> FALSE | DD38: =Find_Month(DD$34,DD$35,$F38) -> TRUE | DE38: =Find_Month(DE$34,DE$35,$F38) -> FALSE | DF38: =Find_Month(DF$34,DF$35,$F38) -> FALSE | DG38: =Find_Month(DG$34,DG$35,$F38) -> FALSE | DH38: =Find_Month(DH$34,DH$35,$F38) -> FALSE | DI38: =Find_Month(DI$34,DI$35,$F38) -> FALSE | DJ38: =Find_Month(DJ$34,DJ$35,$F38) -> FALSE | DK38: =Find_Month(DK$34,DK$35,$F38) -> FALSE | DL38: =Find_Month(DL$34,DL$35,$F38) -> FALSE | DM38: =Find_Month(DM$34,DM$35,$F38) -> FALSE | DN38: =Find_Month(DN$34,DN$35,$F38) -> FALSE | DO38: =Find_Month(DO$34,DO$35,$F38) -> FALSE | DP38: =Find_Month(DP$34,DP$35,$F38) -> TRUE | DQ38: =Find_Month(DQ$34,DQ$35,$F38) -> FALSE | DR38: =Find_Month(DR$34,DR$35,$F38) -> FALSE | DS38: =Find_Month(DS$34,DS$35,$F38) -> FALSE | DT38: =Find_Month(DT$34,DT$35,$F38) -> FALSE | DU38: =Find_Month(DU$34,DU$35,$F38) -> FALSE | DV38: =Find_Month(DV$34,DV$35,$F38) -> FALSE | DW38: =Find_Month(DW$34,DW$35,$F38) -> FALSE | DX38: =Find_Month(DX$34,DX$35,$F38) -> FALSE | DY38: =Find_Month(DY$34,DY$35,$F38) -> FALSE | DZ38: =Find_Month(DZ$34,DZ$35,$F38) -> FALSE | EA38: =Find_Month(EA$34,EA$35,$F38) -> FALSE | EB38: =Find_Month(EB$34,EB$35,$F38) -> TRUE | EC38: =Find_Month(EC$34,EC$35,$F38) -> FALSE | ED38: =Find_Month(ED$34,ED$35,$F38) -> FALSE | EE38: =Find_Month(EE$34,EE$35,$F38) -> FALSE | EF38: =Find_Month(EF$34,EF$35,$F38) -> FALSE | EG38: =Find_Month(EG$34,EG$35,$F38) -> FALSE | EH38: =Find_Month(EH$34,EH$35,$F38) -> FALSE | EI38: =Find_Month(EI$34,EI$35,$F38) -> FALSE | EJ38: =Find_Month(EJ$34,EJ$35,$F38) -> FALSE | EK38: =Find_Month(EK$34,EK$35,$F38) -> FALSE | EL38: =Find_Month(EL$34,EL$35,$F38) -> FALSE | EM38: =Find_Month(EM$34,EM$35,$F38) -> FALSE | EN38: =Find_Month(EN$34,EN$35,$F38) -> TRUE | EO38: =Find_Month(EO$34,EO$35,$F38) -> FALSE | EP38: =Find_Month(EP$34,EP$35,$F38) -> FALSE | EQ38: =Find_Month(EQ$34,EQ$35,$F38) -> FALSE | ER38: =Find_Month(ER$34,ER$35,$F38) -> FALSE | ES38: =Find_Month(ES$34,ES$35,$F38) -> FALSE | ET38: =Find_Month(ET$34,ET$35,$F38) -> FALSE | EU38: =Find_Month(EU$34,EU$35,$F38) -> FALSE | EV38: =Find_Month(EV$34,EV$35,$F38) -> FALSE | EW38: =Find_Month(EW$34,EW$35,$F38) -> FALSE | EX38: =Find_Month(EX$34,EX$35,$F38) -> FALSE | EY38: =Find_Month(EY$34,EY$35,$F38) -> FALSE | EZ38: =Find_Month(EZ$34,EZ$35,$F38) -> TRUE | FA38: =Find_Month(FA$34,FA$35,$F38) -> FALSE | FB38: =Find_Month(FB$34,FB$35,$F38) -> FALSE | FC38: =Find_Month(FC$34,FC$35,$F38) -> FALSE | FD38: =Find_Month(FD$34,FD$35,$F38) -> FALSE | FE38: =Find_Month(FE$34,FE$35,$F38) -> FALSE | FF38: =Find_Month(FF$34,FF$35,$F38) -> FALSE | FG38: =Find_Month(FG$34,FG$35,$F38) -> FALSE | FH38: =Find_Month(FH$34,FH$35,$F38) -> FALSE | FI38: =Find_Month(FI$34,FI$35,$F38) -> FALSE | FJ38: =Find_Month(FJ$34,FJ$35,$F38) -> FALSE | FK38: =Find_Month(FK$34,FK$35,$F38) -> FALSE | FL38: =Find_Month(FL$34,FL$35,$F38) -> TRUE | FM38: =Find_Month(FM$34,FM$35,$F38) -> FALSE | FN38: =Find_Month(FN$34,FN$35,$F38) -> FALSE | FO38: =Find_Month(FO$34,FO$35,$F38) -> FALSE | FP38: =Find_Month(FP$34,FP$35,$F38) -> FALSE | FQ38: =Find_Month(FQ$34,FQ$35,$F38) -> FALSE | FR38: =Find_Month(FR$34,FR$35,$F38) -> FALSE | FS38: =Find_Month(FS$34,FS$35,$F38) -> FALSE | FT38: =Find_Month(FT$34,FT$35,$F38) -> FALSE | FU38: =Find_Month(FU$34,FU$35,$F38) -> FALSE | FV38: =Find_Month(FV$34,FV$35,$F38) -> FALSE | FW38: =Find_Month(FW$34,FW$35,$F38) -> FALSE | FX38: =Find_Month(FX$34,FX$35,$F38) -> TRUE | FY38: =Find_Month(FY$34,FY$35,$F38) -> FALSE | FZ38: =Find_Month(FZ$34,FZ$35,$F38) -> FALSE | GA38: =Find_Month(GA$34,GA$35,$F38) -> FALSE | GB38: =Find_Month(GB$34,GB$35,$F38) -> FALSE | GC38: =Find_Month(GC$34,GC$35,$F38) -> FALSE | GD38: =Find_Month(GD$34,GD$35,$F38) -> FALSE | GE38: =Find_Month(GE$34,GE$35,$F38) -> FALSE | GF38: =Find_Month(GF$34,GF$35,$F38) -> FALSE | GG38: =Find_Month(GG$34,GG$35,$F38) -> FALSE | GH38: =Find_Month(GH$34,GH$35,$F38) -> FALSE | GI38: =Find_Month(GI$34,GI$35,$F38) -> FALSE | GJ38: =Find_Month(GJ$34,GJ$35,$F38) -> TRUE | GK38: =Find_Month(GK$34,GK$35,$F38) -> FALSE | GL38: =Find_Month(GL$34,GL$35,$F38) -> FALSE | GM38: =Find_Month(GM$34,GM$35,$F38) -> FALSE | GN38: =Find_Month(GN$34,GN$35,$F38) -> FALSE | GO38: =Find_Month(GO$34,GO$35,$F38) -> FALSE | GP38: =Find_Month(GP$34,GP$35,$F38) -> FALSE | GQ38: =Find_Month(GQ$34,GQ$35,$F38) -> FALSE | GR38: =Find_Month(GR$34,GR$35,$F38) -> FALSE | GS38: =Find_Month(GS$34,GS$35,$F38) -> FALSE | GT38: =Find_Month(GT$34,GT$35,$F38) -> FALSE | GU38: =Find_Month(GU$34,GU$35,$F38) -> FALSE | GV38: =Find_Month(GV$34,GV$35,$F38) -> TRUE | GW38: =Find_Month(GW$34,GW$35,$F38) -> FALSE | GX38: =Find_Month(GX$34,GX$35,$F38) -> FALSE | GY38: =Find_Month(GY$34,GY$35,$F38) -> FALSE | GZ38: =Find_Month(GZ$34,GZ$35,$F38) -> FALSE | HA38: =Find_Month(HA$34,HA$35,$F38) -> FALSE | HB38: =Find_Month(HB$34,HB$35,$F38) -> FALSE | HC38: =Find_Month(HC$34,HC$35,$F38) -> FALSE | HD38: =Find_Month(HD$34,HD$35,$F38) -> FALSE | HE38: =Find_Month(HE$34,HE$35,$F38) -> FALSE | HF38: =Find_Month(HF$34,HF$35,$F38) -> FALSE | HG38: =Find_Month(HG$34,HG$35,$F38) -> FALSE | HH38: =Find_Month(HH$34,HH$35,$F38) -> TRUE | HI38: =Find_Month(HI$34,HI$35,$F38) -> FALSE | HJ38: =Find_Month(HJ$34,HJ$35,$F38) -> FALSE | HK38: =Find_Month(HK$34,HK$35,$F38) -> FALSE | HL38: =Find_Month(HL$34,HL$35,$F38) -> FALSE | HM38: =Find_Month(HM$34,HM$35,$F38) -> FALSE | HN38: =Find_Month(HN$34,HN$35,$F38) -> FALSE | HO38: =Find_Month(HO$34,HO$35,$F38) -> FALSE | HP38: =Find_Month(HP$34,HP$35,$F38) -> FALSE | HQ38: =Find_Month(HQ$34,HQ$35,$F38) -> FALSE | HR38: =Find_Month(HR$34,HR$35,$F38) -> FALSE | HS38: =Find_Month(HS$34,HS$35,$F38) -> FALSE | HT38: =Find_Month(HT$34,HT$35,$F38) -> TRUE | HU38: =Find_Month(HU$34,HU$35,$F38) -> FALSE | HV38: =Find_Month(HV$34,HV$35,$F38) -> FALSE | HW38: =Find_Month(HW$34,HW$35,$F38) -> FALSE | HX38: =Find_Month(HX$34,HX$35,$F38) -> FALSE | HY38: =Find_Month(HY$34,HY$35,$F38) -> FALSE | HZ38: =Find_Month(HZ$34,HZ$35,$F38) -> FALSE | IA38: =Find_Month(IA$34,IA$35,$F38) -> FALSE | IB38: =Find_Month(IB$34,IB$35,$F38) -> FALSE | IC38: =Find_Month(IC$34,IC$35,$F38) -> FALSE | ID38: =Find_Month(ID$34,ID$35,$F38) -> FALSE | IE38: =Find_Month(IE$34,IE$35,$F38) -> FALSE | IF38: =Find_Month(IF$34,IF$35,$F38) -> TRUE | IG38: =Find_Month(IG$34,IG$35,$F38) -> FALSE | IH38: =Find_Month(IH$34,IH$35,$F38) -> FALSE | II38: =Find_Month(II$34,II$35,$F38) -> FALSE | IJ38: =Find_Month(IJ$34,IJ$35,$F38) -> FALSE | IK38: =Find_Month(IK$34,IK$35,$F38) -> FALSE | IL38: =Find_Month(IL$34,IL$35,$F38) -> FALSE | IM38: =Find_Month(IM$34,IM$35,$F38) -> FALSE | IN38: =Find_Month(IN$34,IN$35,$F38) -> FALSE | IO38: =Find_Month(IO$34,IO$35,$F38) -> FALSE | IP38: =Find_Month(IP$34,IP$35,$F38) -> FALSE | IQ38: =Find_Month(IQ$34,IQ$35,$F38) -> FALSE | IR38: =Find_Month(IR$34,IR$35,$F38) -> TRUE | IS38: =Find_Month(IS$34,IS$35,$F38) -> FALSE | IT38: =Find_Month(IT$34,IT$35,$F38) -> FALSE | IU38: =Find_Month(IU$34,IU$35,$F38) -> FALSE | IV38: =Find_Month(IV$34,IV$35,$F38) -> FALSE | IW38: =Find_Month(IW$34,IW$35,$F38) -> FALSE | IX38: =Find_Month(IX$34,IX$35,$F38) -> FALSE | IY38: =Find_Month(IY$34,IY$35,$F38) -> FALSE | IZ38: =Find_Month(IZ$34,IZ$35,$F38) -> FALSE | JA38: =Find_Month(JA$34,JA$35,$F38) -> FALSE | JB38: =Find_Month(JB$34,JB$35,$F38) -> FALSE | JC38: =Find_Month(JC$34,JC$35,$F38) -> FALSE | JD38: =Find_Month(JD$34,JD$35,$F38) -> TRUE | JE38: =Find_Month(JE$34,JE$35,$F38) -> FALSE | JF38: =Find_Month(JF$34,JF$35,$F38) -> FALSE | JG38: =Find_Month(JG$34,JG$35,$F38) -> FALSE | JH38: =Find_Month(JH$34,JH$35,$F38) -> FALSE | JI38: =Find_Month(JI$34,JI$35,$F38) -> FALSE | JJ38: =Find_Month(JJ$34,JJ$35,$F38) -> FALSE | JK38: =Find_Month(JK$34,JK$35,$F38) -> FALSE | JL38: =Find_Month(JL$34,JL$35,$F38) -> FALSE | JM38: =Find_Month(JM$34,JM$35,$F38) -> FALSE | JN38: =Find_Month(JN$34,JN$35,$F38) -> FALSE | JO38: =Find_Month(JO$34,JO$35,$F38) -> FALSE | JP38: =Find_Month(JP$34,JP$35,$F38) -> TRUE | JQ38: =Find_Month(JQ$34,JQ$35,$F38) -> FALSE | JR38: =Find_Month(JR$34,JR$35,$F38) -> FALSE | JS38: =Find_Month(JS$34,JS$35,$F38) -> FALSE | JT38: =Find_Month(JT$34,JT$35,$F38) -> FALSE | JU38: =Find_Month(JU$34,JU$35,$F38) -> FALSE | JV38: =Find_Month(JV$34,JV$35,$F38) -> FALSE | JW38: =Find_Month(JW$34,JW$35,$F38) -> FALSE | JX38: =Find_Month(JX$34,JX$35,$F38) -> FALSE | JY38: =Find_Month(JY$34,JY$35,$F38) -> FALSE | JZ38: =Find_Month(JZ$34,JZ$35,$F38) -> FALSE | KA38: =Find_Month(KA$34,KA$35,$F38) -> FALSE | KB38: =Find_Month(KB$34,KB$35,$F38) -> TRUE | KC38: =Find_Month(KC$34,KC$35,$F38) -> FALSE | KD38: =Find_Month(KD$34,KD$35,$F38) -> FALSE | KE38: =Find_Month(KE$34,KE$35,$F38) -> FALSE | KF38: =Find_Month(KF$34,KF$35,$F38) -> FALSE | KG38: =Find_Month(KG$34,KG$35,$F38) -> FALSE | KH38: =Find_Month(KH$34,KH$35,$F38) -> FALSE | KI38: =Find_Month(KI$34,KI$35,$F38) -> FALSE | KJ38: =Find_Month(KJ$34,KJ$35,$F38) -> FALSE | KK38: =Find_Month(KK$34,KK$35,$F38) -> FALSE | KL38: =Find_Month(KL$34,KL$35,$F38) -> FALSE | KM38: =Find_Month(KM$34,KM$35,$F38) -> FALSE | KN38: =Find_Month(KN$34,KN$35,$F38) -> TRUE | KO38: =Find_Month(KO$34,KO$35,$F38) -> FALSE | KP38: =Find_Month(KP$34,KP$35,$F38) -> FALSE | KQ38: =Find_Month(KQ$34,KQ$35,$F38) -> FALSE | KR38: =Find_Month(KR$34,KR$35,$F38) -> FALSE | KS38: =Find_Month(KS$34,KS$35,$F38) -> FALSE | KT38: =Find_Month(KT$34,KT$35,$F38) -> FALSE | KU38: =Find_Month(KU$34,KU$35,$F38) -> FALSE | KV38: =Find_Month(KV$34,KV$35,$F38) -> FALSE | KW38: =Find_Month(KW$34,KW$35,$F38) -> FALSE | KX38: =Find_Month(KX$34,KX$35,$F38) -> FALSE | KY38: =Find_Month(KY$34,KY$35,$F38) -> FALSE | KZ38: =Find_Month(KZ$34,KZ$35,$F38) -> TRUE | LA38: =Find_Month(LA$34,LA$35,$F38) -> FALSE | LB38: =Find_Month(LB$34,LB$35,$F38) -> FALSE | LC38: =Find_Month(LC$34,LC$35,$F38) -> FALSE | LD38: =Find_Month(LD$34,LD$35,$F38) -> FALSE | LE38: =Find_Month(LE$34,LE$35,$F38) -> FALSE | LF38: =Find_Month(LF$34,LF$35,$F38) -> FALSE | LG38: =Find_Month(LG$34,LG$35,$F38) -> FALSE | LH38: =Find_Month(LH$34,LH$35,$F38) -> FALSE | LI38: =Find_Month(LI$34,LI$35,$F38) -> FALSE | LJ38: =Find_Month(LJ$34,LJ$35,$F38) -> FALSE | LK38: =Find_Month(LK$34,LK$35,$F38) -> FALSE | LL38: =Find_Month(LL$34,LL$35,$F38) -> TRUE | LM38: =Find_Month(LM$34,LM$35,$F38) -> FALSE | LN38: =Find_Month(LN$34,LN$35,$F38) -> FALSE | LO38: =Find_Month(LO$34,LO$35,$F38) -> FALSE | LP38: =Find_Month(LP$34,LP$35,$F38) -> FALSE | LQ38: =Find_Month(LQ$34,LQ$35,$F38) -> FALSE | LR38: =Find_Month(LR$34,LR$35,$F38) -> FALSE | LS38: =Find_Month(LS$34,LS$35,$F38) -> FALSE | LT38: =Find_Month(LT$34,LT$35,$F38) -> FALSE | LU38: =Find_Month(LU$34,LU$35,$F38) -> FALSE | LV38: =Find_Month(LV$34,LV$35,$F38) -> FALSE | LW38: =Find_Month(LW$34,LW$35,$F38) -> FALSE | LX38: =Find_Month(LX$34,LX$35,$F38) -> TRUE | LY38: =Find_Month(LY$34,LY$35,$F38) -> FALSE | LZ38: =Find_Month(LZ$34,LZ$35,$F38) -> FALSE | MA38: =Find_Month(MA$34,MA$35,$F38) -> FALSE | MB38: =Find_Month(MB$34,MB$35,$F38) -> FALSE | MC38: =Find_Month(MC$34,MC$35,$F38) -> FALSE | MD38: =Find_Month(MD$34,MD$35,$F38) -> FALSE | ME38: =Find_Month(ME$34,ME$35,$F38) -> FALSE | MF38: =Find_Month(MF$34,MF$35,$F38) -> FALSE | MG38: =Find_Month(MG$34,MG$35,$F38) -> FALSE | MH38: =Find_Month(MH$34,MH$35,$F38) -> FALSE | MI38: =Find_Month(MI$34,MI$35,$F38) -> FALSE | MJ38: =Find_Month(MJ$34,MJ$35,$F38) -> TRUE | MK38: =Find_Month(MK$34,MK$35,$F38) -> FALSE | ML38: =Find_Month(ML$34,ML$35,$F38) -> FALSE | MM38: =Find_Month(MM$34,MM$35,$F38) -> FALSE | MN38: =Find_Month(MN$34,MN$35,$F38) -> FALSE | MO38: =Find_Month(MO$34,MO$35,$F38) -> FALSE | MP38: =Find_Month(MP$34,MP$35,$F38) -> FALSE | MQ38: =Find_Month(MQ$34,MQ$35,$F38) -> FALSE | MR38: =Find_Month(MR$34,MR$35,$F38) -> FALSE | MS38: =Find_Month(MS$34,MS$35,$F38) -> FALSE | MT38: =Find_Month(MT$34,MT$35,$F38) -> FALSE | MU38: =Find_Month(MU$34,MU$35,$F38) -> FALSE | MV38: =Find_Month(MV$34,MV$35,$F38) -> TRUE | MW38: =Find_Month(MW$34,MW$35,$F38) -> FALSE | MX38: =Find_Month(MX$34,MX$35,$F38) -> FALSE | MY38: =Find_Month(MY$34,MY$35,$F38) -> FALSE | MZ38: =Find_Month(MZ$34,MZ$35,$F38) -> FALSE | NA38: =Find_Month(NA$34,NA$35,$F38) -> FALSE | NB38: =Find_Month(NB$34,NB$35,$F38) -> FALSE | NC38: =Find_Month(NC$34,NC$35,$F38) -> FALSE | ND38: =Find_Month(ND$34,ND$35,$F38) -> FALSE | NE38: =Find_Month(NE$34,NE$35,$F38) -> FALSE | NF38: =Find_Month(NF$34,NF$35,$F38) -> FALSE | NG38: =Find_Month(NG$34,NG$35,$F38) -> FALSE | NH38: =Find_Month(NH$34,NH$35,$F38) -> TRUE | NI38: =Find_Month(NI$34,NI$35,$F38) -> FALSE | NJ38: =Find_Month(NJ$34,NJ$35,$F38) -> FALSE | NK38: =Find_Month(NK$34,NK$35,$F38) -> FALSE | NL38: =Find_Month(NL$34,NL$35,$F38) -> FALSE | NM38: =Find_Month(NM$34,NM$35,$F38) -> FALSE | NN38: =Find_Month(NN$34,NN$35,$F38) -> FALSE | NO38: =Find_Month(NO$34,NO$35,$F38) -> FALSE | NP38: =Find_Month(NP$34,NP$35,$F38) -> FALSE | NQ38: =Find_Month(NQ$34,NQ$35,$F38) -> FALSE | NR38: =Find_Month(NR$34,NR$35,$F38) -> FALSE | NS38: =Find_Month(NS$34,NS$35,$F38) -> FALSE | NT38: =Find_Month(NT$34,NT$35,$F38) -> TRUE | NU38: =Find_Month(NU$34,NU$35,$F38) -> FALSE | NV38: =Find_Month(NV$34,NV$35,$F38) -> FALSE | NW38: =Find_Month(NW$34,NW$35,$F38) -> FALSE | NX38: =Find_Month(NX$34,NX$35,$F38) -> FALSE | NY38: =Find_Month(NY$34,NY$35,$F38) -> FALSE | NZ38: =Find_Month(NZ$34,NZ$35,$F38) -> FALSE | OA38: =Find_Month(OA$34,OA$35,$F38) -> FALSE | OB38: =Find_Month(OB$34,OB$35,$F38) -> FALSE | OC38: =Find_Month(OC$34,OC$35,$F38) -> FALSE | OD38: =Find_Month(OD$34,OD$35,$F38) -> FALSE | OE38: =Find_Month(OE$34,OE$35,$F38) -> FALSE | OF38: =Find_Month(OF$34,OF$35,$F38) -> TRUE | OG38: =Find_Month(OG$34,OG$35,$F38) -> FALSE | OH38: =Find_Month(OH$34,OH$35,$F38) -> FALSE | OI38: =Find_Month(OI$34,OI$35,$F38) -> FALSE | OJ38: =Find_Month(OJ$34,OJ$35,$F38) -> FALSE | OK38: =Find_Month(OK$34,OK$35,$F38) -> FALSE | OL38: =Find_Month(OL$34,OL$35,$F38) -> FALSE | OM38: =Find_Month(OM$34,OM$35,$F38) -> FALSE | ON38: =Find_Month(ON$34,ON$35,$F38) -> FALSE | OO38: =Find_Month(OO$34,OO$35,$F38) -> FALSE | OP38: =Find_Month(OP$34,OP$35,$F38) -> FALSE | OQ38: =Find_Month(OQ$34,OQ$35,$F38) -> FALSE | OR38: =Find_Month(OR$34,OR$35,$F38) -> TRUE | OS38: =Find_Month(OS$34,OS$35,$F38) -> FALSE | OT38: =Find_Month(OT$34,OT$35,$F38) -> FALSE | OU38: =Find_Month(OU$34,OU$35,$F38) -> FALSE | OV38: =Find_Month(OV$34,OV$35,$F38) -> FALSE | OW38: =Find_Month(OW$34,OW$35,$F38) -> FALSE | OX38: =Find_Month(OX$34,OX$35,$F38) -> FALSE | OY38: =Find_Month(OY$34,OY$35,$F38) -> FALSE | OZ38: =Find_Month(OZ$34,OZ$35,$F38) -> FALSE | PA38: =Find_Month(PA$34,PA$35,$F38) -> FALSE | PB38: =Find_Month(PB$34,PB$35,$F38) -> FALSE | PC38: =Find_Month(PC$34,PC$35,$F38) -> FALSE | PD38: =Find_Month(PD$34,PD$35,$F38) -> TRUE | PE38: =Find_Month(PE$34,PE$35,$F38) -> FALSE | PF38: =Find_Month(PF$34,PF$35,$F38) -> FALSE | PG38: =Find_Month(PG$34,PG$35,$F38) -> FALSE | PH38: =Find_Month(PH$34,PH$35,$F38) -> FALSE | PI38: =Find_Month(PI$34,PI$35,$F38) -> FALSE | PJ38: =Find_Month(PJ$34,PJ$35,$F38) -> FALSE | PK38: =Find_Month(PK$34,PK$35,$F38) -> FALSE | PL38: =Find_Month(PL$34,PL$35,$F38) -> FALSE | PM38: =Find_Month(PM$34,PM$35,$F38) -> FALSE | PN38: =Find_Month(PN$34,PN$35,$F38) -> FALSE | PO38: =Find_Month(PO$34,PO$35,$F38) -> FALSE | PP38: =Find_Month(PP$34,PP$35,$F38) -> TRUE | PQ38: =Find_Month(PQ$34,PQ$35,$F38) -> FALSE | PR38: =Find_Month(PR$34,PR$35,$F38) -> FALSE | PS38: =Find_Month(PS$34,PS$35,$F38) -> FALSE | PT38: =Find_Month(PT$34,PT$35,$F38) -> FALSE | PU38: =Find_Month(PU$34,PU$35,$F38) -> FALSE | PV38: =Find_Month(PV$34,PV$35,$F38) -> FALSE | PW38: =Find_Month(PW$34,PW$35,$F38) -> FALSE | PX38: =Find_Month(PX$34,PX$35,$F38) -> FALSE | PY38: =Find_Month(PY$34,PY$35,$F38) -> FALSE | PZ38: =Find_Month(PZ$34,PZ$35,$F38) -> FALSE | QA38: =Find_Month(QA$34,QA$35,$F38) -> FALSE | QB38: =Find_Month(QB$34,QB$35,$F38) -> TRUE | QC38: =Find_Month(QC$34,QC$35,$F38) -> FALSE | QD38: =Find_Month(QD$34,QD$35,$F38) -> FALSE | QE38: =Find_Month(QE$34,QE$35,$F38) -> FALSE | QF38: =Find_Month(QF$34,QF$35,$F38) -> FALSE | QG38: =Find_Month(QG$34,QG$35,$F38) -> FALSE | QH38: =Find_Month(QH$34,QH$35,$F38) -> FALSE | QI38: =Find_Month(QI$34,QI$35,$F38) -> FALSE | QJ38: =Find_Month(QJ$34,QJ$35,$F38) -> FALSE | QK38: =Find_Month(QK$34,QK$35,$F38) -> FALSE | QL38: =Find_Month(QL$34,QL$35,$F38) -> FALSE | QM38: =Find_Month(QM$34,QM$35,$F38) -> FALSE | QN38: =Find_Month(QN$34,QN$35,$F38) -> TRUE | QO38: =Find_Month(QO$34,QO$35,$F38) -> FALSE | QP38: =Find_Month(QP$34,QP$35,$F38) -> FALSE | QQ38: =Find_Month(QQ$34,QQ$35,$F38) -> FALSE | QR38: =Find_Month(QR$34,QR$35,$F38) -> FALSE | QS38: =Find_Month(QS$34,QS$35,$F38) -> FALSE | QT38: =Find_Month(QT$34,QT$35,$F38) -> FALSE | QU38: =Find_Month(QU$34,QU$35,$F38) -> FALSE | QV38: =Find_Month(QV$34,QV$35,$F38) -> FALSE | QW38: =Find_Month(QW$34,QW$35,$F38) -> FALSE | QX38: =Find_Month(QX$34,QX$35,$F38) -> FALSE | QY38: =Find_Month(QY$34,QY$35,$F38) -> FALSE | QZ38: =Find_Month(QZ$34,QZ$35,$F38) -> TRUE | RA38: =Find_Month(RA$34,RA$35,$F38) -> FALSE | RB38: =Find_Month(RB$34,RB$35,$F38) -> FALSE | RC38: =Find_Month(RC$34,RC$35,$F38) -> FALSE | RD38: =Find_Month(RD$34,RD$35,$F38) -> FALSE | RE38: =Find_Month(RE$34,RE$35,$F38) -> FALSE | RF38: =Find_Month(RF$34,RF$35,$F38) -> FALSE | RG38: =Find_Month(RG$34,RG$35,$F38) -> FALSE | RH38: =Find_Month(RH$34,RH$35,$F38) -> FALSE | RI38: =Find_Month(RI$34,RI$35,$F38) -> FALSE | RJ38: =Find_Month(RJ$34,RJ$35,$F38) -> FALSE | RK38: =Find_Month(RK$34,RK$35,$F38) -> FALSE | RL38: =Find_Month(RL$34,RL$35,$F38) -> TRUE | RM38: =Find_Month(RM$34,RM$35,$F38) -> FALSE | RN38: =Find_Month(RN$34,RN$35,$F38) -> FALSE | RO38: =Find_Month(RO$34,RO$35,$F38) -> FALSE | RP38: =Find_Month(RP$34,RP$35,$F38) -> FALSE | RQ38: =Find_Month(RQ$34,RQ$35,$F38) -> FALSE | RR38: =Find_Month(RR$34,RR$35,$F38) -> FALSE | RS38: =Find_Month(RS$34,RS$35,$F38) -> FALSE | RT38: =Find_Month(RT$34,RT$35,$F38) -> FALSE | RU38: =Find_Month(RU$34,RU$35,$F38) -> FALSE | RV38: =Find_Month(RV$34,RV$35,$F38) -> FALSE | RW38: =Find_Month(RW$34,RW$35,$F38) -> FALSE | RX38: =Find_Month(RX$34,RX$35,$F38) -> TRUE | RY38: =Find_Month(RY$34,RY$35,$F38) -> FALSE | RZ38: =Find_Month(RZ$34,RZ$35,$F38) -> FALSE | SA38: =Find_Month(SA$34,SA$35,$F38) -> FALSE | SB38: =Find_Month(SB$34,SB$35,$F38) -> FALSE | SC38: =Find_Month(SC$34,SC$35,$F38) -> FALSE | SD38: =Find_Month(SD$34,SD$35,$F38) -> FALSE | SE38: =Find_Month(SE$34,SE$35,$F38) -> FALSE | SF38: =Find_Month(SF$34,SF$35,$F38) -> FALSE | SG38: =Find_Month(SG$34,SG$35,$F38) -> FALSE | SH38: =Find_Month(SH$34,SH$35,$F38) -> FALSE | SI38: =Find_Month(SI$34,SI$35,$F38) -> FALSE | SJ38: =Find_Month(SJ$34,SJ$35,$F38) -> FALSE | SK38: =Find_Month(SK$34,SK$35,$F38) -> FALSE | SL38: =Find_Month(SL$34,SL$35,$F38) -> FALSE | SM38: =Find_Month(SM$34,SM$35,$F38) -> FALSE | SN38: =Find_Month(SN$34,SN$35,$F38) -> FALSE | SO38: =Find_Month(SO$34,SO$35,$F38) -> FALSE | SP38: =Find_Month(SP$34,SP$35,$F38) -> FALSE | SQ38: =Find_Month(SQ$34,SQ$35,$F38) -> FALSE | SR38: =Find_Month(SR$34,SR$35,$F38) -> FALSE | SS38: =Find_Month(SS$34,SS$35,$F38) -> FALSE | ST38: =Find_Month(ST$34,ST$35,$F38) -> FALSE | SU38: =Find_Month(SU$34,SU$35,$F38) -> FALSE | SV38: =Find_Month(SV$34,SV$35,$F38) -> FALSE | SW38: =Find_Month(SW$34,SW$35,$F38) -> FALSE | SX38: =Find_Month(SX$34,SX$35,$F38) -> FALSE | SY38: =Find_Month(SY$34,SY$35,$F38) -> FALSE | SZ38: =Find_Month(SZ$34,SZ$35,$F38) -> FALSE | TA38: =Find_Month(TA$34,TA$35,$F38) -> FALSE | TB38: =Find_Month(TB$34,TB$35,$F38) -> FALSE | TC38: =Find_Month(TC$34,TC$35,$F38) -> FALSE | TD38: =Find_Month(TD$34,TD$35,$F38) -> FALSE | TE38: =Find_Month(TE$34,TE$35,$F38) -> FALSE | TF38: =Find_Month(TF$34,TF$35,$F38) -> FALSE | TG38: =Find_Month(TG$34,TG$35,$F38) -> FALSE | TH38: =Find_Month(TH$34,TH$35,$F38) -> FALSE | TI38: =Find_Month(TI$34,TI$35,$F38) -> FALSE | TJ38: =Find_Month(TJ$34,TJ$35,$F38) -> FALSE | TK38: =Find_Month(TK$34,TK$35,$F38) -> FALSE | TL38: =Find_Month(TL$34,TL$35,$F38) -> FALSE | TM38: =Find_Month(TM$34,TM$35,$F38) -> FALSE | TN38: =Find_Month(TN$34,TN$35,$F38) -> FALSE | TO38: =Find_Month(TO$34,TO$35,$F38) -> FALSE | TP38: =Find_Month(TP$34,TP$35,$F38) -> FALSE | TQ38: =Find_Month(TQ$34,TQ$35,$F38) -> FALSE | TR38: =Find_Month(TR$34,TR$35,$F38) -> FALSE | TS38: =Find_Month(TS$34,TS$35,$F38) -> FALSE | TT38: =Find_Month(TT$34,TT$35,$F38) -> FALSE | TU38: =Find_Month(TU$34,TU$35,$F38) -> FALSE | TV38: =Find_Month(TV$34,TV$35,$F38) -> FALSE | TW38: =Find_Month(TW$34,TW$35,$F38) -> FALSE | TX38: =Find_Month(TX$34,TX$35,$F38) -> FALSE | TY38: =Find_Month(TY$34,TY$35,$F38) -> FALSE
F39: 2 | G39: =DataBook!O223 -> 78.57777778 | H39: =G39/$G$70 -> 0.04855475455 | J39: =Find_Month(J$34,J$35,$F39) -> FALSE | K39: =Find_Month(K$34,K$35,$F39) -> FALSE | L39: =Find_Month(L$34,L$35,$F39) -> FALSE | M39: =Find_Month(M$34,M$35,$F39) -> TRUE | N39: =Find_Month(N$34,N$35,$F39) -> FALSE | O39: =Find_Month(O$34,O$35,$F39) -> FALSE | P39: =Find_Month(P$34,P$35,$F39) -> FALSE | Q39: =Find_Month(Q$34,Q$35,$F39) -> FALSE | R39: =Find_Month(R$34,R$35,$F39) -> FALSE | S39: =Find_Month(S$34,S$35,$F39) -> FALSE | T39: =Find_Month(T$34,T$35,$F39) -> FALSE | U39: =Find_Month(U$34,U$35,$F39) -> FALSE | V39: =Find_Month(V$34,V$35,$F39) -> FALSE | W39: =Find_Month(W$34,W$35,$F39) -> FALSE | X39: =Find_Month(X$34,X$35,$F39) -> FALSE | Y39: =Find_Month(Y$34,Y$35,$F39) -> TRUE | Z39: =Find_Month(Z$34,Z$35,$F39) -> FALSE | AA39: =Find_Month(AA$34,AA$35,$F39) -> FALSE | AB39: =Find_Month(AB$34,AB$35,$F39) -> FALSE | AC39: =Find_Month(AC$34,AC$35,$F39) -> FALSE | AD39: =Find_Month(AD$34,AD$35,$F39) -> FALSE | AE39: =Find_Month(AE$34,AE$35,$F39) -> FALSE | AF39: =Find_Month(AF$34,AF$35,$F39) -> FALSE | AG39: =Find_Month(AG$34,AG$35,$F39) -> FALSE | AH39: =Find_Month(AH$34,AH$35,$F39) -> FALSE | AI39: =Find_Month(AI$34,AI$35,$F39) -> FALSE | AJ39: =Find_Month(AJ$34,AJ$35,$F39) -> FALSE | AK39: =Find_Month(AK$34,AK$35,$F39) -> TRUE | AL39: =Find_Month(AL$34,AL$35,$F39) -> FALSE | AM39: =Find_Month(AM$34,AM$35,$F39) -> FALSE | AN39: =Find_Month(AN$34,AN$35,$F39) -> FALSE | AO39: =Find_Month(AO$34,AO$35,$F39) -> FALSE | AP39: =Find_Month(AP$34,AP$35,$F39) -> FALSE | AQ39: =Find_Month(AQ$34,AQ$35,$F39) -> FALSE | AR39: =Find_Month(AR$34,AR$35,$F39) -> FALSE | AS39: =Find_Month(AS$34,AS$35,$F39) -> FALSE | AT39: =Find_Month(AT$34,AT$35,$F39) -> FALSE | AU39: =Find_Month(AU$34,AU$35,$F39) -> FALSE | AV39: =Find_Month(AV$34,AV$35,$F39) -> FALSE | AW39: =Find_Month(AW$34,AW$35,$F39) -> TRUE | AX39: =Find_Month(AX$34,AX$35,$F39) -> FALSE | AY39: =Find_Month(AY$34,AY$35,$F39) -> FALSE | AZ39: =Find_Month(AZ$34,AZ$35,$F39) -> FALSE | BA39: =Find_Month(BA$34,BA$35,$F39) -> FALSE | BB39: =Find_Month(BB$34,BB$35,$F39) -> FALSE | BC39: =Find_Month(BC$34,BC$35,$F39) -> FALSE | BD39: =Find_Month(BD$34,BD$35,$F39) -> FALSE | BE39: =Find_Month(BE$34,BE$35,$F39) -> FALSE | BF39: =Find_Month(BF$34,BF$35,$F39) -> FALSE | BG39: =Find_Month(BG$34,BG$35,$F39) -> FALSE | BH39: =Find_Month(BH$34,BH$35,$F39) -> FALSE | BI39: =Find_Month(BI$34,BI$35,$F39) -> TRUE | BJ39: =Find_Month(BJ$34,BJ$35,$F39) -> FALSE | BK39: =Find_Month(BK$34,BK$35,$F39) -> FALSE | BL39: =Find_Month(BL$34,BL$35,$F39) -> FALSE | BM39: =Find_Month(BM$34,BM$35,$F39) -> FALSE | BN39: =Find_Month(BN$34,BN$35,$F39) -> FALSE | BO39: =Find_Month(BO$34,BO$35,$F39) -> FALSE | BP39: =Find_Month(BP$34,BP$35,$F39) -> FALSE | BQ39: =Find_Month(BQ$34,BQ$35,$F39) -> FALSE | BR39: =Find_Month(BR$34,BR$35,$F39) -> FALSE | BS39: =Find_Month(BS$34,BS$35,$F39) -> FALSE | BT39: =Find_Month(BT$34,BT$35,$F39) -> FALSE | BU39: =Find_Month(BU$34,BU$35,$F39) -> TRUE | BV39: =Find_Month(BV$34,BV$35,$F39) -> FALSE | BW39: =Find_Month(BW$34,BW$35,$F39) -> FALSE | BX39: =Find_Month(BX$34,BX$35,$F39) -> FALSE | BY39: =Find_Month(BY$34,BY$35,$F39) -> FALSE | BZ39: =Find_Month(BZ$34,BZ$35,$F39) -> FALSE | CA39: =Find_Month(CA$34,CA$35,$F39) -> FALSE | CB39: =Find_Month(CB$34,CB$35,$F39) -> FALSE | CC39: =Find_Month(CC$34,CC$35,$F39) -> FALSE | CD39: =Find_Month(CD$34,CD$35,$F39) -> FALSE | CE39: =Find_Month(CE$34,CE$35,$F39) -> FALSE | CF39: =Find_Month(CF$34,CF$35,$F39) -> FALSE | CG39: =Find_Month(CG$34,CG$35,$F39) -> TRUE | CH39: =Find_Month(CH$34,CH$35,$F39) -> FALSE | CI39: =Find_Month(CI$34,CI$35,$F39) -> FALSE | CJ39: =Find_Month(CJ$34,CJ$35,$F39) -> FALSE | CK39: =Find_Month(CK$34,CK$35,$F39) -> FALSE | CL39: =Find_Month(CL$34,CL$35,$F39) -> FALSE | CM39: =Find_Month(CM$34,CM$35,$F39) -> FALSE | CN39: =Find_Month(CN$34,CN$35,$F39) -> FALSE | CO39: =Find_Month(CO$34,CO$35,$F39) -> FALSE | CP39: =Find_Month(CP$34,CP$35,$F39) -> FALSE | CQ39: =Find_Month(CQ$34,CQ$35,$F39) -> FALSE | CR39: =Find_Month(CR$34,CR$35,$F39) -> FALSE | CS39: =Find_Month(CS$34,CS$35,$F39) -> TRUE | CT39: =Find_Month(CT$34,CT$35,$F39) -> FALSE | CU39: =Find_Month(CU$34,CU$35,$F39) -> FALSE | CV39: =Find_Month(CV$34,CV$35,$F39) -> FALSE | CW39: =Find_Month(CW$34,CW$35,$F39) -> FALSE | CX39: =Find_Month(CX$34,CX$35,$F39) -> FALSE | CY39: =Find_Month(CY$34,CY$35,$F39) -> FALSE | CZ39: =Find_Month(CZ$34,CZ$35,$F39) -> FALSE | DA39: =Find_Month(DA$34,DA$35,$F39) -> FALSE | DB39: =Find_Month(DB$34,DB$35,$F39) -> FALSE | DC39: =Find_Month(DC$34,DC$35,$F39) -> FALSE | DD39: =Find_Month(DD$34,DD$35,$F39) -> FALSE | DE39: =Find_Month(DE$34,DE$35,$F39) -> TRUE | DF39: =Find_Month(DF$34,DF$35,$F39) -> FALSE | DG39: =Find_Month(DG$34,DG$35,$F39) -> FALSE | DH39: =Find_Month(DH$34,DH$35,$F39) -> FALSE | DI39: =Find_Month(DI$34,DI$35,$F39) -> FALSE | DJ39: =Find_Month(DJ$34,DJ$35,$F39) -> FALSE | DK39: =Find_Month(DK$34,DK$35,$F39) -> FALSE | DL39: =Find_Month(DL$34,DL$35,$F39) -> FALSE | DM39: =Find_Month(DM$34,DM$35,$F39) -> FALSE | DN39: =Find_Month(DN$34,DN$35,$F39) -> FALSE | DO39: =Find_Month(DO$34,DO$35,$F39) -> FALSE | DP39: =Find_Month(DP$34,DP$35,$F39) -> FALSE | DQ39: =Find_Month(DQ$34,DQ$35,$F39) -> TRUE | DR39: =Find_Month(DR$34,DR$35,$F39) -> FALSE | DS39: =Find_Month(DS$34,DS$35,$F39) -> FALSE | DT39: =Find_Month(DT$34,DT$35,$F39) -> FALSE | DU39: =Find_Month(DU$34,DU$35,$F39) -> FALSE | DV39: =Find_Month(DV$34,DV$35,$F39) -> FALSE | DW39: =Find_Month(DW$34,DW$35,$F39) -> FALSE | DX39: =Find_Month(DX$34,DX$35,$F39) -> FALSE | DY39: =Find_Month(DY$34,DY$35,$F39) -> FALSE | DZ39: =Find_Month(DZ$34,DZ$35,$F39) -> FALSE | EA39: =Find_Month(EA$34,EA$35,$F39) -> FALSE | EB39: =Find_Month(EB$34,EB$35,$F39) -> FALSE | EC39: =Find_Month(EC$34,EC$35,$F39) -> TRUE | ED39: =Find_Month(ED$34,ED$35,$F39) -> FALSE | EE39: =Find_Month(EE$34,EE$35,$F39) -> FALSE | EF39: =Find_Month(EF$34,EF$35,$F39) -> FALSE | EG39: =Find_Month(EG$34,EG$35,$F39) -> FALSE | EH39: =Find_Month(EH$34,EH$35,$F39) -> FALSE | EI39: =Find_Month(EI$34,EI$35,$F39) -> FALSE | EJ39: =Find_Month(EJ$34,EJ$35,$F39) -> FALSE | EK39: =Find_Month(EK$34,EK$35,$F39) -> FALSE | EL39: =Find_Month(EL$34,EL$35,$F39) -> FALSE | EM39: =Find_Month(EM$34,EM$35,$F39) -> FALSE | EN39: =Find_Month(EN$34,EN$35,$F39) -> FALSE | EO39: =Find_Month(EO$34,EO$35,$F39) -> TRUE | EP39: =Find_Month(EP$34,EP$35,$F39) -> FALSE | EQ39: =Find_Month(EQ$34,EQ$35,$F39) -> FALSE | ER39: =Find_Month(ER$34,ER$35,$F39) -> FALSE | ES39: =Find_Month(ES$34,ES$35,$F39) -> FALSE | ET39: =Find_Month(ET$34,ET$35,$F39) -> FALSE | EU39: =Find_Month(EU$34,EU$35,$F39) -> FALSE | EV39: =Find_Month(EV$34,EV$35,$F39) -> FALSE | EW39: =Find_Month(EW$34,EW$35,$F39) -> FALSE | EX39: =Find_Month(EX$34,EX$35,$F39) -> FALSE | EY39: =Find_Month(EY$34,EY$35,$F39) -> FALSE | EZ39: =Find_Month(EZ$34,EZ$35,$F39) -> FALSE | FA39: =Find_Month(FA$34,FA$35,$F39) -> TRUE | FB39: =Find_Month(FB$34,FB$35,$F39) -> FALSE | FC39: =Find_Month(FC$34,FC$35,$F39) -> FALSE | FD39: =Find_Month(FD$34,FD$35,$F39) -> FALSE | FE39: =Find_Month(FE$34,FE$35,$F39) -> FALSE | FF39: =Find_Month(FF$34,FF$35,$F39) -> FALSE | FG39: =Find_Month(FG$34,FG$35,$F39) -> FALSE | FH39: =Find_Month(FH$34,FH$35,$F39) -> FALSE | FI39: =Find_Month(FI$34,FI$35,$F39) -> FALSE | FJ39: =Find_Month(FJ$34,FJ$35,$F39) -> FALSE | FK39: =Find_Month(FK$34,FK$35,$F39) -> FALSE | FL39: =Find_Month(FL$34,FL$35,$F39) -> FALSE | FM39: =Find_Month(FM$34,FM$35,$F39) -> TRUE | FN39: =Find_Month(FN$34,FN$35,$F39) -> FALSE | FO39: =Find_Month(FO$34,FO$35,$F39) -> FALSE | FP39: =Find_Month(FP$34,FP$35,$F39) -> FALSE | FQ39: =Find_Month(FQ$34,FQ$35,$F39) -> FALSE | FR39: =Find_Month(FR$34,FR$35,$F39) -> FALSE | FS39: =Find_Month(FS$34,FS$35,$F39) -> FALSE | FT39: =Find_Month(FT$34,FT$35,$F39) -> FALSE | FU39: =Find_Month(FU$34,FU$35,$F39) -> FALSE | FV39: =Find_Month(FV$34,FV$35,$F39) -> FALSE | FW39: =Find_Month(FW$34,FW$35,$F39) -> FALSE | FX39: =Find_Month(FX$34,FX$35,$F39) -> FALSE | FY39: =Find_Month(FY$34,FY$35,$F39) -> TRUE | FZ39: =Find_Month(FZ$34,FZ$35,$F39) -> FALSE | GA39: =Find_Month(GA$34,GA$35,$F39) -> FALSE | GB39: =Find_Month(GB$34,GB$35,$F39) -> FALSE | GC39: =Find_Month(GC$34,GC$35,$F39) -> FALSE | GD39: =Find_Month(GD$34,GD$35,$F39) -> FALSE | GE39: =Find_Month(GE$34,GE$35,$F39) -> FALSE | GF39: =Find_Month(GF$34,GF$35,$F39) -> FALSE | GG39: =Find_Month(GG$34,GG$35,$F39) -> FALSE | GH39: =Find_Month(GH$34,GH$35,$F39) -> FALSE | GI39: =Find_Month(GI$34,GI$35,$F39) -> FALSE | GJ39: =Find_Month(GJ$34,GJ$35,$F39) -> FALSE | GK39: =Find_Month(GK$34,GK$35,$F39) -> TRUE | GL39: =Find_Month(GL$34,GL$35,$F39) -> FALSE | GM39: =Find_Month(GM$34,GM$35,$F39) -> FALSE | GN39: =Find_Month(GN$34,GN$35,$F39) -> FALSE | GO39: =Find_Month(GO$34,GO$35,$F39) -> FALSE | GP39: =Find_Month(GP$34,GP$35,$F39) -> FALSE | GQ39: =Find_Month(GQ$34,GQ$35,$F39) -> FALSE | GR39: =Find_Month(GR$34,GR$35,$F39) -> FALSE | GS39: =Find_Month(GS$34,GS$35,$F39) -> FALSE | GT39: =Find_Month(GT$34,GT$35,$F39) -> FALSE | GU39: =Find_Month(GU$34,GU$35,$F39) -> FALSE | GV39: =Find_Month(GV$34,GV$35,$F39) -> FALSE | GW39: =Find_Month(GW$34,GW$35,$F39) -> TRUE | GX39: =Find_Month(GX$34,GX$35,$F39) -> FALSE | GY39: =Find_Month(GY$34,GY$35,$F39) -> FALSE | GZ39: =Find_Month(GZ$34,GZ$35,$F39) -> FALSE | HA39: =Find_Month(HA$34,HA$35,$F39) -> FALSE | HB39: =Find_Month(HB$34,HB$35,$F39) -> FALSE | HC39: =Find_Month(HC$34,HC$35,$F39) -> FALSE | HD39: =Find_Month(HD$34,HD$35,$F39) -> FALSE | HE39: =Find_Month(HE$34,HE$35,$F39) -> FALSE | HF39: =Find_Month(HF$34,HF$35,$F39) -> FALSE | HG39: =Find_Month(HG$34,HG$35,$F39) -> FALSE | HH39: =Find_Month(HH$34,HH$35,$F39) -> FALSE | HI39: =Find_Month(HI$34,HI$35,$F39) -> TRUE | HJ39: =Find_Month(HJ$34,HJ$35,$F39) -> FALSE | HK39: =Find_Month(HK$34,HK$35,$F39) -> FALSE | HL39: =Find_Month(HL$34,HL$35,$F39) -> FALSE | HM39: =Find_Month(HM$34,HM$35,$F39) -> FALSE | HN39: =Find_Month(HN$34,HN$35,$F39) -> FALSE | HO39: =Find_Month(HO$34,HO$35,$F39) -> FALSE | HP39: =Find_Month(HP$34,HP$35,$F39) -> FALSE | HQ39: =Find_Month(HQ$34,HQ$35,$F39) -> FALSE | HR39: =Find_Month(HR$34,HR$35,$F39) -> FALSE | HS39: =Find_Month(HS$34,HS$35,$F39) -> FALSE | HT39: =Find_Month(HT$34,HT$35,$F39) -> FALSE | HU39: =Find_Month(HU$34,HU$35,$F39) -> TRUE | HV39: =Find_Month(HV$34,HV$35,$F39) -> FALSE | HW39: =Find_Month(HW$34,HW$35,$F39) -> FALSE | HX39: =Find_Month(HX$34,HX$35,$F39) -> FALSE | HY39: =Find_Month(HY$34,HY$35,$F39) -> FALSE | HZ39: =Find_Month(HZ$34,HZ$35,$F39) -> FALSE | IA39: =Find_Month(IA$34,IA$35,$F39) -> FALSE | IB39: =Find_Month(IB$34,IB$35,$F39) -> FALSE | IC39: =Find_Month(IC$34,IC$35,$F39) -> FALSE | ID39: =Find_Month(ID$34,ID$35,$F39) -> FALSE | IE39: =Find_Month(IE$34,IE$35,$F39) -> FALSE | IF39: =Find_Month(IF$34,IF$35,$F39) -> FALSE | IG39: =Find_Month(IG$34,IG$35,$F39) -> TRUE | IH39: =Find_Month(IH$34,IH$35,$F39) -> FALSE | II39: =Find_Month(II$34,II$35,$F39) -> FALSE | IJ39: =Find_Month(IJ$34,IJ$35,$F39) -> FALSE | IK39: =Find_Month(IK$34,IK$35,$F39) -> FALSE | IL39: =Find_Month(IL$34,IL$35,$F39) -> FALSE | IM39: =Find_Month(IM$34,IM$35,$F39) -> FALSE | IN39: =Find_Month(IN$34,IN$35,$F39) -> FALSE | IO39: =Find_Month(IO$34,IO$35,$F39) -> FALSE | IP39: =Find_Month(IP$34,IP$35,$F39) -> FALSE | IQ39: =Find_Month(IQ$34,IQ$35,$F39) -> FALSE | IR39: =Find_Month(IR$34,IR$35,$F39) -> FALSE | IS39: =Find_Month(IS$34,IS$35,$F39) -> TRUE | IT39: =Find_Month(IT$34,IT$35,$F39) -> FALSE | IU39: =Find_Month(IU$34,IU$35,$F39) -> FALSE | IV39: =Find_Month(IV$34,IV$35,$F39) -> FALSE | IW39: =Find_Month(IW$34,IW$35,$F39) -> FALSE | IX39: =Find_Month(IX$34,IX$35,$F39) -> FALSE | IY39: =Find_Month(IY$34,IY$35,$F39) -> FALSE | IZ39: =Find_Month(IZ$34,IZ$35,$F39) -> FALSE | JA39: =Find_Month(JA$34,JA$35,$F39) -> FALSE | JB39: =Find_Month(JB$34,JB$35,$F39) -> FALSE | JC39: =Find_Month(JC$34,JC$35,$F39) -> FALSE | JD39: =Find_Month(JD$34,JD$35,$F39) -> FALSE | JE39: =Find_Month(JE$34,JE$35,$F39) -> TRUE | JF39: =Find_Month(JF$34,JF$35,$F39) -> FALSE | JG39: =Find_Month(JG$34,JG$35,$F39) -> FALSE | JH39: =Find_Month(JH$34,JH$35,$F39) -> FALSE | JI39: =Find_Month(JI$34,JI$35,$F39) -> FALSE | JJ39: =Find_Month(JJ$34,JJ$35,$F39) -> FALSE | JK39: =Find_Month(JK$34,JK$35,$F39) -> FALSE | JL39: =Find_Month(JL$34,JL$35,$F39) -> FALSE | JM39: =Find_Month(JM$34,JM$35,$F39) -> FALSE | JN39: =Find_Month(JN$34,JN$35,$F39) -> FALSE | JO39: =Find_Month(JO$34,JO$35,$F39) -> FALSE | JP39: =Find_Month(JP$34,JP$35,$F39) -> FALSE | JQ39: =Find_Month(JQ$34,JQ$35,$F39) -> TRUE | JR39: =Find_Month(JR$34,JR$35,$F39) -> FALSE | JS39: =Find_Month(JS$34,JS$35,$F39) -> FALSE | JT39: =Find_Month(JT$34,JT$35,$F39) -> FALSE | JU39: =Find_Month(JU$34,JU$35,$F39) -> FALSE | JV39: =Find_Month(JV$34,JV$35,$F39) -> FALSE | JW39: =Find_Month(JW$34,JW$35,$F39) -> FALSE | JX39: =Find_Month(JX$34,JX$35,$F39) -> FALSE | JY39: =Find_Month(JY$34,JY$35,$F39) -> FALSE | JZ39: =Find_Month(JZ$34,JZ$35,$F39) -> FALSE | KA39: =Find_Month(KA$34,KA$35,$F39) -> FALSE | KB39: =Find_Month(KB$34,KB$35,$F39) -> FALSE | KC39: =Find_Month(KC$34,KC$35,$F39) -> TRUE | KD39: =Find_Month(KD$34,KD$35,$F39) -> FALSE | KE39: =Find_Month(KE$34,KE$35,$F39) -> FALSE | KF39: =Find_Month(KF$34,KF$35,$F39) -> FALSE | KG39: =Find_Month(KG$34,KG$35,$F39) -> FALSE | KH39: =Find_Month(KH$34,KH$35,$F39) -> FALSE | KI39: =Find_Month(KI$34,KI$35,$F39) -> FALSE | KJ39: =Find_Month(KJ$34,KJ$35,$F39) -> FALSE | KK39: =Find_Month(KK$34,KK$35,$F39) -> FALSE | KL39: =Find_Month(KL$34,KL$35,$F39) -> FALSE | KM39: =Find_Month(KM$34,KM$35,$F39) -> FALSE | KN39: =Find_Month(KN$34,KN$35,$F39) -> FALSE | KO39: =Find_Month(KO$34,KO$35,$F39) -> TRUE | KP39: =Find_Month(KP$34,KP$35,$F39) -> FALSE | KQ39: =Find_Month(KQ$34,KQ$35,$F39) -> FALSE | KR39: =Find_Month(KR$34,KR$35,$F39) -> FALSE | KS39: =Find_Month(KS$34,KS$35,$F39) -> FALSE | KT39: =Find_Month(KT$34,KT$35,$F39) -> FALSE | KU39: =Find_Month(KU$34,KU$35,$F39) -> FALSE | KV39: =Find_Month(KV$34,KV$35,$F39) -> FALSE | KW39: =Find_Month(KW$34,KW$35,$F39) -> FALSE | KX39: =Find_Month(KX$34,KX$35,$F39) -> FALSE | KY39: =Find_Month(KY$34,KY$35,$F39) -> FALSE | KZ39: =Find_Month(KZ$34,KZ$35,$F39) -> FALSE | LA39: =Find_Month(LA$34,LA$35,$F39) -> TRUE | LB39: =Find_Month(LB$34,LB$35,$F39) -> FALSE | LC39: =Find_Month(LC$34,LC$35,$F39) -> FALSE | LD39: =Find_Month(LD$34,LD$35,$F39) -> FALSE | LE39: =Find_Month(LE$34,LE$35,$F39) -> FALSE | LF39: =Find_Month(LF$34,LF$35,$F39) -> FALSE | LG39: =Find_Month(LG$34,LG$35,$F39) -> FALSE | LH39: =Find_Month(LH$34,LH$35,$F39) -> FALSE | LI39: =Find_Month(LI$34,LI$35,$F39) -> FALSE | LJ39: =Find_Month(LJ$34,LJ$35,$F39) -> FALSE | LK39: =Find_Month(LK$34,LK$35,$F39) -> FALSE | LL39: =Find_Month(LL$34,LL$35,$F39) -> FALSE | LM39: =Find_Month(LM$34,LM$35,$F39) -> TRUE | LN39: =Find_Month(LN$34,LN$35,$F39) -> FALSE | LO39: =Find_Month(LO$34,LO$35,$F39) -> FALSE | LP39: =Find_Month(LP$34,LP$35,$F39) -> FALSE | LQ39: =Find_Month(LQ$34,LQ$35,$F39) -> FALSE | LR39: =Find_Month(LR$34,LR$35,$F39) -> FALSE | LS39: =Find_Month(LS$34,LS$35,$F39) -> FALSE | LT39: =Find_Month(LT$34,LT$35,$F39) -> FALSE | LU39: =Find_Month(LU$34,LU$35,$F39) -> FALSE | LV39: =Find_Month(LV$34,LV$35,$F39) -> FALSE | LW39: =Find_Month(LW$34,LW$35,$F39) -> FALSE | LX39: =Find_Month(LX$34,LX$35,$F39) -> FALSE | LY39: =Find_Month(LY$34,LY$35,$F39) -> TRUE | LZ39: =Find_Month(LZ$34,LZ$35,$F39) -> FALSE | MA39: =Find_Month(MA$34,MA$35,$F39) -> FALSE | MB39: =Find_Month(MB$34,MB$35,$F39) -> FALSE | MC39: =Find_Month(MC$34,MC$35,$F39) -> FALSE | MD39: =Find_Month(MD$34,MD$35,$F39) -> FALSE | ME39: =Find_Month(ME$34,ME$35,$F39) -> FALSE | MF39: =Find_Month(MF$34,MF$35,$F39) -> FALSE | MG39: =Find_Month(MG$34,MG$35,$F39) -> FALSE | MH39: =Find_Month(MH$34,MH$35,$F39) -> FALSE | MI39: =Find_Month(MI$34,MI$35,$F39) -> FALSE | MJ39: =Find_Month(MJ$34,MJ$35,$F39) -> FALSE | MK39: =Find_Month(MK$34,MK$35,$F39) -> TRUE | ML39: =Find_Month(ML$34,ML$35,$F39) -> FALSE | MM39: =Find_Month(MM$34,MM$35,$F39) -> FALSE | MN39: =Find_Month(MN$34,MN$35,$F39) -> FALSE | MO39: =Find_Month(MO$34,MO$35,$F39) -> FALSE | MP39: =Find_Month(MP$34,MP$35,$F39) -> FALSE | MQ39: =Find_Month(MQ$34,MQ$35,$F39) -> FALSE | MR39: =Find_Month(MR$34,MR$35,$F39) -> FALSE | MS39: =Find_Month(MS$34,MS$35,$F39) -> FALSE | MT39: =Find_Month(MT$34,MT$35,$F39) -> FALSE | MU39: =Find_Month(MU$34,MU$35,$F39) -> FALSE | MV39: =Find_Month(MV$34,MV$35,$F39) -> FALSE | MW39: =Find_Month(MW$34,MW$35,$F39) -> TRUE | MX39: =Find_Month(MX$34,MX$35,$F39) -> FALSE | MY39: =Find_Month(MY$34,MY$35,$F39) -> FALSE | MZ39: =Find_Month(MZ$34,MZ$35,$F39) -> FALSE | NA39: =Find_Month(NA$34,NA$35,$F39) -> FALSE | NB39: =Find_Month(NB$34,NB$35,$F39) -> FALSE | NC39: =Find_Month(NC$34,NC$35,$F39) -> FALSE | ND39: =Find_Month(ND$34,ND$35,$F39) -> FALSE | NE39: =Find_Month(NE$34,NE$35,$F39) -> FALSE | NF39: =Find_Month(NF$34,NF$35,$F39) -> FALSE | NG39: =Find_Month(NG$34,NG$35,$F39) -> FALSE | NH39: =Find_Month(NH$34,NH$35,$F39) -> FALSE | NI39: =Find_Month(NI$34,NI$35,$F39) -> TRUE | NJ39: =Find_Month(NJ$34,NJ$35,$F39) -> FALSE | NK39: =Find_Month(NK$34,NK$35,$F39) -> FALSE | NL39: =Find_Month(NL$34,NL$35,$F39) -> FALSE | NM39: =Find_Month(NM$34,NM$35,$F39) -> FALSE | NN39: =Find_Month(NN$34,NN$35,$F39) -> FALSE | NO39: =Find_Month(NO$34,NO$35,$F39) -> FALSE | NP39: =Find_Month(NP$34,NP$35,$F39) -> FALSE | NQ39: =Find_Month(NQ$34,NQ$35,$F39) -> FALSE | NR39: =Find_Month(NR$34,NR$35,$F39) -> FALSE | NS39: =Find_Month(NS$34,NS$35,$F39) -> FALSE | NT39: =Find_Month(NT$34,NT$35,$F39) -> FALSE | NU39: =Find_Month(NU$34,NU$35,$F39) -> TRUE | NV39: =Find_Month(NV$34,NV$35,$F39) -> FALSE | NW39: =Find_Month(NW$34,NW$35,$F39) -> FALSE | NX39: =Find_Month(NX$34,NX$35,$F39) -> FALSE | NY39: =Find_Month(NY$34,NY$35,$F39) -> FALSE | NZ39: =Find_Month(NZ$34,NZ$35,$F39) -> FALSE | OA39: =Find_Month(OA$34,OA$35,$F39) -> FALSE | OB39: =Find_Month(OB$34,OB$35,$F39) -> FALSE | OC39: =Find_Month(OC$34,OC$35,$F39) -> FALSE | OD39: =Find_Month(OD$34,OD$35,$F39) -> FALSE | OE39: =Find_Month(OE$34,OE$35,$F39) -> FALSE | OF39: =Find_Month(OF$34,OF$35,$F39) -> FALSE | OG39: =Find_Month(OG$34,OG$35,$F39) -> TRUE | OH39: =Find_Month(OH$34,OH$35,$F39) -> FALSE | OI39: =Find_Month(OI$34,OI$35,$F39) -> FALSE | OJ39: =Find_Month(OJ$34,OJ$35,$F39) -> FALSE | OK39: =Find_Month(OK$34,OK$35,$F39) -> FALSE | OL39: =Find_Month(OL$34,OL$35,$F39) -> FALSE | OM39: =Find_Month(OM$34,OM$35,$F39) -> FALSE | ON39: =Find_Month(ON$34,ON$35,$F39) -> FALSE | OO39: =Find_Month(OO$34,OO$35,$F39) -> FALSE | OP39: =Find_Month(OP$34,OP$35,$F39) -> FALSE | OQ39: =Find_Month(OQ$34,OQ$35,$F39) -> FALSE | OR39: =Find_Month(OR$34,OR$35,$F39) -> FALSE | OS39: =Find_Month(OS$34,OS$35,$F39) -> TRUE | OT39: =Find_Month(OT$34,OT$35,$F39) -> FALSE | OU39: =Find_Month(OU$34,OU$35,$F39) -> FALSE | OV39: =Find_Month(OV$34,OV$35,$F39) -> FALSE | OW39: =Find_Month(OW$34,OW$35,$F39) -> FALSE | OX39: =Find_Month(OX$34,OX$35,$F39) -> FALSE | OY39: =Find_Month(OY$34,OY$35,$F39) -> FALSE | OZ39: =Find_Month(OZ$34,OZ$35,$F39) -> FALSE | PA39: =Find_Month(PA$34,PA$35,$F39) -> FALSE | PB39: =Find_Month(PB$34,PB$35,$F39) -> FALSE | PC39: =Find_Month(PC$34,PC$35,$F39) -> FALSE | PD39: =Find_Month(PD$34,PD$35,$F39) -> FALSE | PE39: =Find_Month(PE$34,PE$35,$F39) -> TRUE | PF39: =Find_Month(PF$34,PF$35,$F39) -> FALSE | PG39: =Find_Month(PG$34,PG$35,$F39) -> FALSE | PH39: =Find_Month(PH$34,PH$35,$F39) -> FALSE | PI39: =Find_Month(PI$34,PI$35,$F39) -> FALSE | PJ39: =Find_Month(PJ$34,PJ$35,$F39) -> FALSE | PK39: =Find_Month(PK$34,PK$35,$F39) -> FALSE | PL39: =Find_Month(PL$34,PL$35,$F39) -> FALSE | PM39: =Find_Month(PM$34,PM$35,$F39) -> FALSE | PN39: =Find_Month(PN$34,PN$35,$F39) -> FALSE | PO39: =Find_Month(PO$34,PO$35,$F39) -> FALSE | PP39: =Find_Month(PP$34,PP$35,$F39) -> FALSE | PQ39: =Find_Month(PQ$34,PQ$35,$F39) -> TRUE | PR39: =Find_Month(PR$34,PR$35,$F39) -> FALSE | PS39: =Find_Month(PS$34,PS$35,$F39) -> FALSE | PT39: =Find_Month(PT$34,PT$35,$F39) -> FALSE | PU39: =Find_Month(PU$34,PU$35,$F39) -> FALSE | PV39: =Find_Month(PV$34,PV$35,$F39) -> FALSE | PW39: =Find_Month(PW$34,PW$35,$F39) -> FALSE | PX39: =Find_Month(PX$34,PX$35,$F39) -> FALSE | PY39: =Find_Month(PY$34,PY$35,$F39) -> FALSE | PZ39: =Find_Month(PZ$34,PZ$35,$F39) -> FALSE | QA39: =Find_Month(QA$34,QA$35,$F39) -> FALSE | QB39: =Find_Month(QB$34,QB$35,$F39) -> FALSE | QC39: =Find_Month(QC$34,QC$35,$F39) -> TRUE | QD39: =Find_Month(QD$34,QD$35,$F39) -> FALSE | QE39: =Find_Month(QE$34,QE$35,$F39) -> FALSE | QF39: =Find_Month(QF$34,QF$35,$F39) -> FALSE | QG39: =Find_Month(QG$34,QG$35,$F39) -> FALSE | QH39: =Find_Month(QH$34,QH$35,$F39) -> FALSE | QI39: =Find_Month(QI$34,QI$35,$F39) -> FALSE | QJ39: =Find_Month(QJ$34,QJ$35,$F39) -> FALSE | QK39: =Find_Month(QK$34,QK$35,$F39) -> FALSE | QL39: =Find_Month(QL$34,QL$35,$F39) -> FALSE | QM39: =Find_Month(QM$34,QM$35,$F39) -> FALSE | QN39: =Find_Month(QN$34,QN$35,$F39) -> FALSE | QO39: =Find_Month(QO$34,QO$35,$F39) -> TRUE | QP39: =Find_Month(QP$34,QP$35,$F39) -> FALSE | QQ39: =Find_Month(QQ$34,QQ$35,$F39) -> FALSE | QR39: =Find_Month(QR$34,QR$35,$F39) -> FALSE | QS39: =Find_Month(QS$34,QS$35,$F39) -> FALSE | QT39: =Find_Month(QT$34,QT$35,$F39) -> FALSE | QU39: =Find_Month(QU$34,QU$35,$F39) -> FALSE | QV39: =Find_Month(QV$34,QV$35,$F39) -> FALSE | QW39: =Find_Month(QW$34,QW$35,$F39) -> FALSE | QX39: =Find_Month(QX$34,QX$35,$F39) -> FALSE | QY39: =Find_Month(QY$34,QY$35,$F39) -> FALSE | QZ39: =Find_Month(QZ$34,QZ$35,$F39) -> FALSE | RA39: =Find_Month(RA$34,RA$35,$F39) -> TRUE | RB39: =Find_Month(RB$34,RB$35,$F39) -> FALSE | RC39: =Find_Month(RC$34,RC$35,$F39) -> FALSE | RD39: =Find_Month(RD$34,RD$35,$F39) -> FALSE | RE39: =Find_Month(RE$34,RE$35,$F39) -> FALSE | RF39: =Find_Month(RF$34,RF$35,$F39) -> FALSE | RG39: =Find_Month(RG$34,RG$35,$F39) -> FALSE | RH39: =Find_Month(RH$34,RH$35,$F39) -> FALSE | RI39: =Find_Month(RI$34,RI$35,$F39) -> FALSE | RJ39: =Find_Month(RJ$34,RJ$35,$F39) -> FALSE | RK39: =Find_Month(RK$34,RK$35,$F39) -> FALSE | RL39: =Find_Month(RL$34,RL$35,$F39) -> FALSE | RM39: =Find_Month(RM$34,RM$35,$F39) -> TRUE | RN39: =Find_Month(RN$34,RN$35,$F39) -> FALSE | RO39: =Find_Month(RO$34,RO$35,$F39) -> FALSE | RP39: =Find_Month(RP$34,RP$35,$F39) -> FALSE | RQ39: =Find_Month(RQ$34,RQ$35,$F39) -> FALSE | RR39: =Find_Month(RR$34,RR$35,$F39) -> FALSE | RS39: =Find_Month(RS$34,RS$35,$F39) -> FALSE | RT39: =Find_Month(RT$34,RT$35,$F39) -> FALSE | RU39: =Find_Month(RU$34,RU$35,$F39) -> FALSE | RV39: =Find_Month(RV$34,RV$35,$F39) -> FALSE | RW39: =Find_Month(RW$34,RW$35,$F39) -> FALSE | RX39: =Find_Month(RX$34,RX$35,$F39) -> FALSE | RY39: =Find_Month(RY$34,RY$35,$F39) -> TRUE | RZ39: =Find_Month(RZ$34,RZ$35,$F39) -> FALSE | SA39: =Find_Month(SA$34,SA$35,$F39) -> FALSE | SB39: =Find_Month(SB$34,SB$35,$F39) -> FALSE | SC39: =Find_Month(SC$34,SC$35,$F39) -> FALSE | SD39: =Find_Month(SD$34,SD$35,$F39) -> FALSE | SE39: =Find_Month(SE$34,SE$35,$F39) -> FALSE | SF39: =Find_Month(SF$34,SF$35,$F39) -> FALSE | SG39: =Find_Month(SG$34,SG$35,$F39) -> FALSE | SH39: =Find_Month(SH$34,SH$35,$F39) -> FALSE | SI39: =Find_Month(SI$34,SI$35,$F39) -> FALSE | SJ39: =Find_Month(SJ$34,SJ$35,$F39) -> FALSE | SK39: =Find_Month(SK$34,SK$35,$F39) -> FALSE | SL39: =Find_Month(SL$34,SL$35,$F39) -> FALSE | SM39: =Find_Month(SM$34,SM$35,$F39) -> FALSE | SN39: =Find_Month(SN$34,SN$35,$F39) -> FALSE | SO39: =Find_Month(SO$34,SO$35,$F39) -> FALSE | SP39: =Find_Month(SP$34,SP$35,$F39) -> FALSE | SQ39: =Find_Month(SQ$34,SQ$35,$F39) -> FALSE | SR39: =Find_Month(SR$34,SR$35,$F39) -> FALSE | SS39: =Find_Month(SS$34,SS$35,$F39) -> FALSE | ST39: =Find_Month(ST$34,ST$35,$F39) -> FALSE | SU39: =Find_Month(SU$34,SU$35,$F39) -> FALSE | SV39: =Find_Month(SV$34,SV$35,$F39) -> FALSE | SW39: =Find_Month(SW$34,SW$35,$F39) -> FALSE | SX39: =Find_Month(SX$34,SX$35,$F39) -> FALSE | SY39: =Find_Month(SY$34,SY$35,$F39) -> FALSE | SZ39: =Find_Month(SZ$34,SZ$35,$F39) -> FALSE | TA39: =Find_Month(TA$34,TA$35,$F39) -> FALSE | TB39: =Find_Month(TB$34,TB$35,$F39) -> FALSE | TC39: =Find_Month(TC$34,TC$35,$F39) -> FALSE | TD39: =Find_Month(TD$34,TD$35,$F39) -> FALSE | TE39: =Find_Month(TE$34,TE$35,$F39) -> FALSE | TF39: =Find_Month(TF$34,TF$35,$F39) -> FALSE | TG39: =Find_Month(TG$34,TG$35,$F39) -> FALSE | TH39: =Find_Month(TH$34,TH$35,$F39) -> FALSE | TI39: =Find_Month(TI$34,TI$35,$F39) -> FALSE | TJ39: =Find_Month(TJ$34,TJ$35,$F39) -> FALSE | TK39: =Find_Month(TK$34,TK$35,$F39) -> FALSE | TL39: =Find_Month(TL$34,TL$35,$F39) -> FALSE | TM39: =Find_Month(TM$34,TM$35,$F39) -> FALSE | TN39: =Find_Month(TN$34,TN$35,$F39) -> FALSE | TO39: =Find_Month(TO$34,TO$35,$F39) -> FALSE | TP39: =Find_Month(TP$34,TP$35,$F39) -> FALSE | TQ39: =Find_Month(TQ$34,TQ$35,$F39) -> FALSE | TR39: =Find_Month(TR$34,TR$35,$F39) -> FALSE | TS39: =Find_Month(TS$34,TS$35,$F39) -> FALSE | TT39: =Find_Month(TT$34,TT$35,$F39) -> FALSE | TU39: =Find_Month(TU$34,TU$35,$F39) -> FALSE | TV39: =Find_Month(TV$34,TV$35,$F39) -> FALSE | TW39: =Find_Month(TW$34,TW$35,$F39) -> FALSE | TX39: =Find_Month(TX$34,TX$35,$F39) -> FALSE | TY39: =Find_Month(TY$34,TY$35,$F39) -> FALSE
F40: 3 | G40: =DataBook!O224 -> 111.7777778 | H40: 0.06906968761 | J40: =Find_Month(J$34,J$35,$F40) -> FALSE | K40: =Find_Month(K$34,K$35,$F40) -> FALSE | L40: =Find_Month(L$34,L$35,$F40) -> FALSE | M40: =Find_Month(M$34,M$35,$F40) -> FALSE | N40: =Find_Month(N$34,N$35,$F40) -> TRUE | O40: =Find_Month(O$34,O$35,$F40) -> FALSE | P40: =Find_Month(P$34,P$35,$F40) -> FALSE | Q40: =Find_Month(Q$34,Q$35,$F40) -> FALSE | R40: =Find_Month(R$34,R$35,$F40) -> FALSE | S40: =Find_Month(S$34,S$35,$F40) -> FALSE | T40: =Find_Month(T$34,T$35,$F40) -> FALSE | U40: =Find_Month(U$34,U$35,$F40) -> FALSE | V40: =Find_Month(V$34,V$35,$F40) -> FALSE | W40: =Find_Month(W$34,W$35,$F40) -> FALSE | X40: =Find_Month(X$34,X$35,$F40) -> FALSE | Y40: =Find_Month(Y$34,Y$35,$F40) -> FALSE | Z40: =Find_Month(Z$34,Z$35,$F40) -> TRUE | AA40: =Find_Month(AA$34,AA$35,$F40) -> FALSE | AB40: =Find_Month(AB$34,AB$35,$F40) -> FALSE | AC40: =Find_Month(AC$34,AC$35,$F40) -> FALSE | AD40: =Find_Month(AD$34,AD$35,$F40) -> FALSE | AE40: =Find_Month(AE$34,AE$35,$F40) -> FALSE | AF40: =Find_Month(AF$34,AF$35,$F40) -> FALSE | AG40: =Find_Month(AG$34,AG$35,$F40) -> FALSE | AH40: =Find_Month(AH$34,AH$35,$F40) -> FALSE | AI40: =Find_Month(AI$34,AI$35,$F40) -> FALSE | AJ40: =Find_Month(AJ$34,AJ$35,$F40) -> FALSE | AK40: =Find_Month(AK$34,AK$35,$F40) -> FALSE | AL40: =Find_Month(AL$34,AL$35,$F40) -> TRUE | AM40: =Find_Month(AM$34,AM$35,$F40) -> FALSE | AN40: =Find_Month(AN$34,AN$35,$F40) -> FALSE | AO40: =Find_Month(AO$34,AO$35,$F40) -> FALSE | AP40: =Find_Month(AP$34,AP$35,$F40) -> FALSE | AQ40: =Find_Month(AQ$34,AQ$35,$F40) -> FALSE | AR40: =Find_Month(AR$34,AR$35,$F40) -> FALSE | AS40: =Find_Month(AS$34,AS$35,$F40) -> FALSE | AT40: =Find_Month(AT$34,AT$35,$F40) -> FALSE | AU40: =Find_Month(AU$34,AU$35,$F40) -> FALSE | AV40: =Find_Month(AV$34,AV$35,$F40) -> FALSE | AW40: =Find_Month(AW$34,AW$35,$F40) -> FALSE | AX40: =Find_Month(AX$34,AX$35,$F40) -> TRUE | AY40: =Find_Month(AY$34,AY$35,$F40) -> FALSE | AZ40: =Find_Month(AZ$34,AZ$35,$F40) -> FALSE | BA40: =Find_Month(BA$34,BA$35,$F40) -> FALSE | BB40: =Find_Month(BB$34,BB$35,$F40) -> FALSE | BC40: =Find_Month(BC$34,BC$35,$F40) -> FALSE | BD40: =Find_Month(BD$34,BD$35,$F40) -> FALSE | BE40: =Find_Month(BE$34,BE$35,$F40) -> FALSE | BF40: =Find_Month(BF$34,BF$35,$F40) -> FALSE | BG40: =Find_Month(BG$34,BG$35,$F40) -> FALSE | BH40: =Find_Month(BH$34,BH$35,$F40) -> FALSE | BI40: =Find_Month(BI$34,BI$35,$F40) -> FALSE | BJ40: =Find_Month(BJ$34,BJ$35,$F40) -> TRUE | BK40: =Find_Month(BK$34,BK$35,$F40) -> FALSE | BL40: =Find_Month(BL$34,BL$35,$F40) -> FALSE | BM40: =Find_Month(BM$34,BM$35,$F40) -> FALSE | BN40: =Find_Month(BN$34,BN$35,$F40) -> FALSE | BO40: =Find_Month(BO$34,BO$35,$F40) -> FALSE | BP40: =Find_Month(BP$34,BP$35,$F40) -> FALSE | BQ40: =Find_Month(BQ$34,BQ$35,$F40) -> FALSE | BR40: =Find_Month(BR$34,BR$35,$F40) -> FALSE | BS40: =Find_Month(BS$34,BS$35,$F40) -> FALSE | BT40: =Find_Month(BT$34,BT$35,$F40) -> FALSE | BU40: =Find_Month(BU$34,BU$35,$F40) -> FALSE | BV40: =Find_Month(BV$34,BV$35,$F40) -> TRUE | BW40: =Find_Month(BW$34,BW$35,$F40) -> FALSE | BX40: =Find_Month(BX$34,BX$35,$F40) -> FALSE | BY40: =Find_Month(BY$34,BY$35,$F40) -> FALSE | BZ40: =Find_Month(BZ$34,BZ$35,$F40) -> FALSE | CA40: =Find_Month(CA$34,CA$35,$F40) -> FALSE | CB40: =Find_Month(CB$34,CB$35,$F40) -> FALSE | CC40: =Find_Month(CC$34,CC$35,$F40) -> FALSE | CD40: =Find_Month(CD$34,CD$35,$F40) -> FALSE | CE40: =Find_Month(CE$34,CE$35,$F40) -> FALSE | CF40: =Find_Month(CF$34,CF$35,$F40) -> FALSE | CG40: =Find_Month(CG$34,CG$35,$F40) -> FALSE | CH40: =Find_Month(CH$34,CH$35,$F40) -> TRUE | CI40: =Find_Month(CI$34,CI$35,$F40) -> FALSE | CJ40: =Find_Month(CJ$34,CJ$35,$F40) -> FALSE | CK40: =Find_Month(CK$34,CK$35,$F40) -> FALSE | CL40: =Find_Month(CL$34,CL$35,$F40) -> FALSE | CM40: =Find_Month(CM$34,CM$35,$F40) -> FALSE | CN40: =Find_Month(CN$34,CN$35,$F40) -> FALSE | CO40: =Find_Month(CO$34,CO$35,$F40) -> FALSE | CP40: =Find_Month(CP$34,CP$35,$F40) -> FALSE | CQ40: =Find_Month(CQ$34,CQ$35,$F40) -> FALSE | CR40: =Find_Month(CR$34,CR$35,$F40) -> FALSE | CS40: =Find_Month(CS$34,CS$35,$F40) -> FALSE | CT40: =Find_Month(CT$34,CT$35,$F40) -> TRUE | CU40: =Find_Month(CU$34,CU$35,$F40) -> FALSE | CV40: =Find_Month(CV$34,CV$35,$F40) -> FALSE | CW40: =Find_Month(CW$34,CW$35,$F40) -> FALSE | CX40: =Find_Month(CX$34,CX$35,$F40) -> FALSE | CY40: =Find_Month(CY$34,CY$35,$F40) -> FALSE | CZ40: =Find_Month(CZ$34,CZ$35,$F40) -> FALSE | DA40: =Find_Month(DA$34,DA$35,$F40) -> FALSE | DB40: =Find_Month(DB$34,DB$35,$F40) -> FALSE | DC40: =Find_Month(DC$34,DC$35,$F40) -> FALSE | DD40: =Find_Month(DD$34,DD$35,$F40) -> FALSE | DE40: =Find_Month(DE$34,DE$35,$F40) -> FALSE | DF40: =Find_Month(DF$34,DF$35,$F40) -> TRUE | DG40: =Find_Month(DG$34,DG$35,$F40) -> FALSE | DH40: =Find_Month(DH$34,DH$35,$F40) -> FALSE | DI40: =Find_Month(DI$34,DI$35,$F40) -> FALSE | DJ40: =Find_Month(DJ$34,DJ$35,$F40) -> FALSE | DK40: =Find_Month(DK$34,DK$35,$F40) -> FALSE | DL40: =Find_Month(DL$34,DL$35,$F40) -> FALSE | DM40: =Find_Month(DM$34,DM$35,$F40) -> FALSE | DN40: =Find_Month(DN$34,DN$35,$F40) -> FALSE | DO40: =Find_Month(DO$34,DO$35,$F40) -> FALSE | DP40: =Find_Month(DP$34,DP$35,$F40) -> FALSE | DQ40: =Find_Month(DQ$34,DQ$35,$F40) -> FALSE | DR40: =Find_Month(DR$34,DR$35,$F40) -> TRUE | DS40: =Find_Month(DS$34,DS$35,$F40) -> FALSE | DT40: =Find_Month(DT$34,DT$35,$F40) -> FALSE | DU40: =Find_Month(DU$34,DU$35,$F40) -> FALSE | DV40: =Find_Month(DV$34,DV$35,$F40) -> FALSE | DW40: =Find_Month(DW$34,DW$35,$F40) -> FALSE | DX40: =Find_Month(DX$34,DX$35,$F40) -> FALSE | DY40: =Find_Month(DY$34,DY$35,$F40) -> FALSE | DZ40: =Find_Month(DZ$34,DZ$35,$F40) -> FALSE | EA40: =Find_Month(EA$34,EA$35,$F40) -> FALSE | EB40: =Find_Month(EB$34,EB$35,$F40) -> FALSE | EC40: =Find_Month(EC$34,EC$35,$F40) -> FALSE | ED40: =Find_Month(ED$34,ED$35,$F40) -> TRUE | EE40: =Find_Month(EE$34,EE$35,$F40) -> FALSE | EF40: =Find_Month(EF$34,EF$35,$F40) -> FALSE | EG40: =Find_Month(EG$34,EG$35,$F40) -> FALSE | EH40: =Find_Month(EH$34,EH$35,$F40) -> FALSE | EI40: =Find_Month(EI$34,EI$35,$F40) -> FALSE | EJ40: =Find_Month(EJ$34,EJ$35,$F40) -> FALSE | EK40: =Find_Month(EK$34,EK$35,$F40) -> FALSE | EL40: =Find_Month(EL$34,EL$35,$F40) -> FALSE | EM40: =Find_Month(EM$34,EM$35,$F40) -> FALSE | EN40: =Find_Month(EN$34,EN$35,$F40) -> FALSE | EO40: =Find_Month(EO$34,EO$35,$F40) -> FALSE | EP40: =Find_Month(EP$34,EP$35,$F40) -> TRUE | EQ40: =Find_Month(EQ$34,EQ$35,$F40) -> FALSE | ER40: =Find_Month(ER$34,ER$35,$F40) -> FALSE | ES40: =Find_Month(ES$34,ES$35,$F40) -> FALSE | ET40: =Find_Month(ET$34,ET$35,$F40) -> FALSE | EU40: =Find_Month(EU$34,EU$35,$F40) -> FALSE | EV40: =Find_Month(EV$34,EV$35,$F40) -> FALSE | EW40: =Find_Month(EW$34,EW$35,$F40) -> FALSE | EX40: =Find_Month(EX$34,EX$35,$F40) -> FALSE | EY40: =Find_Month(EY$34,EY$35,$F40) -> FALSE | EZ40: =Find_Month(EZ$34,EZ$35,$F40) -> FALSE | FA40: =Find_Month(FA$34,FA$35,$F40) -> FALSE | FB40: =Find_Month(FB$34,FB$35,$F40) -> TRUE | FC40: =Find_Month(FC$34,FC$35,$F40) -> FALSE | FD40: =Find_Month(FD$34,FD$35,$F40) -> FALSE | FE40: =Find_Month(FE$34,FE$35,$F40) -> FALSE | FF40: =Find_Month(FF$34,FF$35,$F40) -> FALSE | FG40: =Find_Month(FG$34,FG$35,$F40) -> FALSE | FH40: =Find_Month(FH$34,FH$35,$F40) -> FALSE | FI40: =Find_Month(FI$34,FI$35,$F40) -> FALSE | FJ40: =Find_Month(FJ$34,FJ$35,$F40) -> FALSE | FK40: =Find_Month(FK$34,FK$35,$F40) -> FALSE | FL40: =Find_Month(FL$34,FL$35,$F40) -> FALSE | FM40: =Find_Month(FM$34,FM$35,$F40) -> FALSE | FN40: =Find_Month(FN$34,FN$35,$F40) -> TRUE | FO40: =Find_Month(FO$34,FO$35,$F40) -> FALSE | FP40: =Find_Month(FP$34,FP$35,$F40) -> FALSE | FQ40: =Find_Month(FQ$34,FQ$35,$F40) -> FALSE | FR40: =Find_Month(FR$34,FR$35,$F40) -> FALSE | FS40: =Find_Month(FS$34,FS$35,$F40) -> FALSE | FT40: =Find_Month(FT$34,FT$35,$F40) -> FALSE | FU40: =Find_Month(FU$34,FU$35,$F40) -> FALSE | FV40: =Find_Month(FV$34,FV$35,$F40) -> FALSE | FW40: =Find_Month(FW$34,FW$35,$F40) -> FALSE | FX40: =Find_Month(FX$34,FX$35,$F40) -> FALSE | FY40: =Find_Month(FY$34,FY$35,$F40) -> FALSE | FZ40: =Find_Month(FZ$34,FZ$35,$F40) -> TRUE | GA40: =Find_Month(GA$34,GA$35,$F40) -> FALSE | GB40: =Find_Month(GB$34,GB$35,$F40) -> FALSE | GC40: =Find_Month(GC$34,GC$35,$F40) -> FALSE | GD40: =Find_Month(GD$34,GD$35,$F40) -> FALSE | GE40: =Find_Month(GE$34,GE$35,$F40) -> FALSE | GF40: =Find_Month(GF$34,GF$35,$F40) -> FALSE | GG40: =Find_Month(GG$34,GG$35,$F40) -> FALSE | GH40: =Find_Month(GH$34,GH$35,$F40) -> FALSE | GI40: =Find_Month(GI$34,GI$35,$F40) -> FALSE | GJ40: =Find_Month(GJ$34,GJ$35,$F40) -> FALSE | GK40: =Find_Month(GK$34,GK$35,$F40) -> FALSE | GL40: =Find_Month(GL$34,GL$35,$F40) -> TRUE | GM40: =Find_Month(GM$34,GM$35,$F40) -> FALSE | GN40: =Find_Month(GN$34,GN$35,$F40) -> FALSE | GO40: =Find_Month(GO$34,GO$35,$F40) -> FALSE | GP40: =Find_Month(GP$34,GP$35,$F40) -> FALSE | GQ40: =Find_Month(GQ$34,GQ$35,$F40) -> FALSE | GR40: =Find_Month(GR$34,GR$35,$F40) -> FALSE | GS40: =Find_Month(GS$34,GS$35,$F40) -> FALSE | GT40: =Find_Month(GT$34,GT$35,$F40) -> FALSE | GU40: =Find_Month(GU$34,GU$35,$F40) -> FALSE | GV40: =Find_Month(GV$34,GV$35,$F40) -> FALSE | GW40: =Find_Month(GW$34,GW$35,$F40) -> FALSE | GX40: =Find_Month(GX$34,GX$35,$F40) -> TRUE | GY40: =Find_Month(GY$34,GY$35,$F40) -> FALSE | GZ40: =Find_Month(GZ$34,GZ$35,$F40) -> FALSE | HA40: =Find_Month(HA$34,HA$35,$F40) -> FALSE | HB40: =Find_Month(HB$34,HB$35,$F40) -> FALSE | HC40: =Find_Month(HC$34,HC$35,$F40) -> FALSE | HD40: =Find_Month(HD$34,HD$35,$F40) -> FALSE | HE40: =Find_Month(HE$34,HE$35,$F40) -> FALSE | HF40: =Find_Month(HF$34,HF$35,$F40) -> FALSE | HG40: =Find_Month(HG$34,HG$35,$F40) -> FALSE | HH40: =Find_Month(HH$34,HH$35,$F40) -> FALSE | HI40: =Find_Month(HI$34,HI$35,$F40) -> FALSE | HJ40: =Find_Month(HJ$34,HJ$35,$F40) -> TRUE | HK40: =Find_Month(HK$34,HK$35,$F40) -> FALSE | HL40: =Find_Month(HL$34,HL$35,$F40) -> FALSE | HM40: =Find_Month(HM$34,HM$35,$F40) -> FALSE | HN40: =Find_Month(HN$34,HN$35,$F40) -> FALSE | HO40: =Find_Month(HO$34,HO$35,$F40) -> FALSE | HP40: =Find_Month(HP$34,HP$35,$F40) -> FALSE | HQ40: =Find_Month(HQ$34,HQ$35,$F40) -> FALSE | HR40: =Find_Month(HR$34,HR$35,$F40) -> FALSE | HS40: =Find_Month(HS$34,HS$35,$F40) -> FALSE | HT40: =Find_Month(HT$34,HT$35,$F40) -> FALSE | HU40: =Find_Month(HU$34,HU$35,$F40) -> FALSE | HV40: =Find_Month(HV$34,HV$35,$F40) -> TRUE | HW40: =Find_Month(HW$34,HW$35,$F40) -> FALSE | HX40: =Find_Month(HX$34,HX$35,$F40) -> FALSE | HY40: =Find_Month(HY$34,HY$35,$F40) -> FALSE | HZ40: =Find_Month(HZ$34,HZ$35,$F40) -> FALSE | IA40: =Find_Month(IA$34,IA$35,$F40) -> FALSE | IB40: =Find_Month(IB$34,IB$35,$F40) -> FALSE | IC40: =Find_Month(IC$34,IC$35,$F40) -> FALSE | ID40: =Find_Month(ID$34,ID$35,$F40) -> FALSE | IE40: =Find_Month(IE$34,IE$35,$F40) -> FALSE | IF40: =Find_Month(IF$34,IF$35,$F40) -> FALSE | IG40: =Find_Month(IG$34,IG$35,$F40) -> FALSE | IH40: =Find_Month(IH$34,IH$35,$F40) -> TRUE | II40: =Find_Month(II$34,II$35,$F40) -> FALSE | IJ40: =Find_Month(IJ$34,IJ$35,$F40) -> FALSE | IK40: =Find_Month(IK$34,IK$35,$F40) -> FALSE | IL40: =Find_Month(IL$34,IL$35,$F40) -> FALSE | IM40: =Find_Month(IM$34,IM$35,$F40) -> FALSE | IN40: =Find_Month(IN$34,IN$35,$F40) -> FALSE | IO40: =Find_Month(IO$34,IO$35,$F40) -> FALSE | IP40: =Find_Month(IP$34,IP$35,$F40) -> FALSE | IQ40: =Find_Month(IQ$34,IQ$35,$F40) -> FALSE | IR40: =Find_Month(IR$34,IR$35,$F40) -> FALSE | IS40: =Find_Month(IS$34,IS$35,$F40) -> FALSE | IT40: =Find_Month(IT$34,IT$35,$F40) -> TRUE | IU40: =Find_Month(IU$34,IU$35,$F40) -> FALSE | IV40: =Find_Month(IV$34,IV$35,$F40) -> FALSE | IW40: =Find_Month(IW$34,IW$35,$F40) -> FALSE | IX40: =Find_Month(IX$34,IX$35,$F40) -> FALSE | IY40: =Find_Month(IY$34,IY$35,$F40) -> FALSE | IZ40: =Find_Month(IZ$34,IZ$35,$F40) -> FALSE | JA40: =Find_Month(JA$34,JA$35,$F40) -> FALSE | JB40: =Find_Month(JB$34,JB$35,$F40) -> FALSE | JC40: =Find_Month(JC$34,JC$35,$F40) -> FALSE | JD40: =Find_Month(JD$34,JD$35,$F40) -> FALSE | JE40: =Find_Month(JE$34,JE$35,$F40) -> FALSE | JF40: =Find_Month(JF$34,JF$35,$F40) -> TRUE | JG40: =Find_Month(JG$34,JG$35,$F40) -> FALSE | JH40: =Find_Month(JH$34,JH$35,$F40) -> FALSE | JI40: =Find_Month(JI$34,JI$35,$F40) -> FALSE | JJ40: =Find_Month(JJ$34,JJ$35,$F40) -> FALSE | JK40: =Find_Month(JK$34,JK$35,$F40) -> FALSE | JL40: =Find_Month(JL$34,JL$35,$F40) -> FALSE | JM40: =Find_Month(JM$34,JM$35,$F40) -> FALSE | JN40: =Find_Month(JN$34,JN$35,$F40) -> FALSE | JO40: =Find_Month(JO$34,JO$35,$F40) -> FALSE | JP40: =Find_Month(JP$34,JP$35,$F40) -> FALSE | JQ40: =Find_Month(JQ$34,JQ$35,$F40) -> FALSE | JR40: =Find_Month(JR$34,JR$35,$F40) -> TRUE | JS40: =Find_Month(JS$34,JS$35,$F40) -> FALSE | JT40: =Find_Month(JT$34,JT$35,$F40) -> FALSE | JU40: =Find_Month(JU$34,JU$35,$F40) -> FALSE | JV40: =Find_Month(JV$34,JV$35,$F40) -> FALSE | JW40: =Find_Month(JW$34,JW$35,$F40) -> FALSE | JX40: =Find_Month(JX$34,JX$35,$F40) -> FALSE | JY40: =Find_Month(JY$34,JY$35,$F40) -> FALSE | JZ40: =Find_Month(JZ$34,JZ$35,$F40) -> FALSE | KA40: =Find_Month(KA$34,KA$35,$F40) -> FALSE | KB40: =Find_Month(KB$34,KB$35,$F40) -> FALSE | KC40: =Find_Month(KC$34,KC$35,$F40) -> FALSE | KD40: =Find_Month(KD$34,KD$35,$F40) -> TRUE | KE40: =Find_Month(KE$34,KE$35,$F40) -> FALSE | KF40: =Find_Month(KF$34,KF$35,$F40) -> FALSE | KG40: =Find_Month(KG$34,KG$35,$F40) -> FALSE | KH40: =Find_Month(KH$34,KH$35,$F40) -> FALSE | KI40: =Find_Month(KI$34,KI$35,$F40) -> FALSE | KJ40: =Find_Month(KJ$34,KJ$35,$F40) -> FALSE | KK40: =Find_Month(KK$34,KK$35,$F40) -> FALSE | KL40: =Find_Month(KL$34,KL$35,$F40) -> FALSE | KM40: =Find_Month(KM$34,KM$35,$F40) -> FALSE | KN40: =Find_Month(KN$34,KN$35,$F40) -> FALSE | KO40: =Find_Month(KO$34,KO$35,$F40) -> FALSE | KP40: =Find_Month(KP$34,KP$35,$F40) -> TRUE | KQ40: =Find_Month(KQ$34,KQ$35,$F40) -> FALSE | KR40: =Find_Month(KR$34,KR$35,$F40) -> FALSE | KS40: =Find_Month(KS$34,KS$35,$F40) -> FALSE | KT40: =Find_Month(KT$34,KT$35,$F40) -> FALSE | KU40: =Find_Month(KU$34,KU$35,$F40) -> FALSE | KV40: =Find_Month(KV$34,KV$35,$F40) -> FALSE | KW40: =Find_Month(KW$34,KW$35,$F40) -> FALSE | KX40: =Find_Month(KX$34,KX$35,$F40) -> FALSE | KY40: =Find_Month(KY$34,KY$35,$F40) -> FALSE | KZ40: =Find_Month(KZ$34,KZ$35,$F40) -> FALSE | LA40: =Find_Month(LA$34,LA$35,$F40) -> FALSE | LB40: =Find_Month(LB$34,LB$35,$F40) -> TRUE | LC40: =Find_Month(LC$34,LC$35,$F40) -> FALSE | LD40: =Find_Month(LD$34,LD$35,$F40) -> FALSE | LE40: =Find_Month(LE$34,LE$35,$F40) -> FALSE | LF40: =Find_Month(LF$34,LF$35,$F40) -> FALSE | LG40: =Find_Month(LG$34,LG$35,$F40) -> FALSE | LH40: =Find_Month(LH$34,LH$35,$F40) -> FALSE | LI40: =Find_Month(LI$34,LI$35,$F40) -> FALSE | LJ40: =Find_Month(LJ$34,LJ$35,$F40) -> FALSE | LK40: =Find_Month(LK$34,LK$35,$F40) -> FALSE | LL40: =Find_Month(LL$34,LL$35,$F40) -> FALSE | LM40: =Find_Month(LM$34,LM$35,$F40) -> FALSE | LN40: =Find_Month(LN$34,LN$35,$F40) -> TRUE | LO40: =Find_Month(LO$34,LO$35,$F40) -> FALSE | LP40: =Find_Month(LP$34,LP$35,$F40) -> FALSE | LQ40: =Find_Month(LQ$34,LQ$35,$F40) -> FALSE | LR40: =Find_Month(LR$34,LR$35,$F40) -> FALSE | LS40: =Find_Month(LS$34,LS$35,$F40) -> FALSE | LT40: =Find_Month(LT$34,LT$35,$F40) -> FALSE | LU40: =Find_Month(LU$34,LU$35,$F40) -> FALSE | LV40: =Find_Month(LV$34,LV$35,$F40) -> FALSE | LW40: =Find_Month(LW$34,LW$35,$F40) -> FALSE | LX40: =Find_Month(LX$34,LX$35,$F40) -> FALSE | LY40: =Find_Month(LY$34,LY$35,$F40) -> FALSE | LZ40: =Find_Month(LZ$34,LZ$35,$F40) -> TRUE | MA40: =Find_Month(MA$34,MA$35,$F40) -> FALSE | MB40: =Find_Month(MB$34,MB$35,$F40) -> FALSE | MC40: =Find_Month(MC$34,MC$35,$F40) -> FALSE | MD40: =Find_Month(MD$34,MD$35,$F40) -> FALSE | ME40: =Find_Month(ME$34,ME$35,$F40) -> FALSE | MF40: =Find_Month(MF$34,MF$35,$F40) -> FALSE | MG40: =Find_Month(MG$34,MG$35,$F40) -> FALSE | MH40: =Find_Month(MH$34,MH$35,$F40) -> FALSE | MI40: =Find_Month(MI$34,MI$35,$F40) -> FALSE | MJ40: =Find_Month(MJ$34,MJ$35,$F40) -> FALSE | MK40: =Find_Month(MK$34,MK$35,$F40) -> FALSE | ML40: =Find_Month(ML$34,ML$35,$F40) -> TRUE | MM40: =Find_Month(MM$34,MM$35,$F40) -> FALSE | MN40: =Find_Month(MN$34,MN$35,$F40) -> FALSE | MO40: =Find_Month(MO$34,MO$35,$F40) -> FALSE | MP40: =Find_Month(MP$34,MP$35,$F40) -> FALSE | MQ40: =Find_Month(MQ$34,MQ$35,$F40) -> FALSE | MR40: =Find_Month(MR$34,MR$35,$F40) -> FALSE | MS40: =Find_Month(MS$34,MS$35,$F40) -> FALSE | MT40: =Find_Month(MT$34,MT$35,$F40) -> FALSE | MU40: =Find_Month(MU$34,MU$35,$F40) -> FALSE | MV40: =Find_Month(MV$34,MV$35,$F40) -> FALSE | MW40: =Find_Month(MW$34,MW$35,$F40) -> FALSE | MX40: =Find_Month(MX$34,MX$35,$F40) -> TRUE | MY40: =Find_Month(MY$34,MY$35,$F40) -> FALSE | MZ40: =Find_Month(MZ$34,MZ$35,$F40) -> FALSE | NA40: =Find_Month(NA$34,NA$35,$F40) -> FALSE | NB40: =Find_Month(NB$34,NB$35,$F40) -> FALSE | NC40: =Find_Month(NC$34,NC$35,$F40) -> FALSE | ND40: =Find_Month(ND$34,ND$35,$F40) -> FALSE | NE40: =Find_Month(NE$34,NE$35,$F40) -> FALSE | NF40: =Find_Month(NF$34,NF$35,$F40) -> FALSE | NG40: =Find_Month(NG$34,NG$35,$F40) -> FALSE | NH40: =Find_Month(NH$34,NH$35,$F40) -> FALSE | NI40: =Find_Month(NI$34,NI$35,$F40) -> FALSE | NJ40: =Find_Month(NJ$34,NJ$35,$F40) -> TRUE | NK40: =Find_Month(NK$34,NK$35,$F40) -> FALSE | NL40: =Find_Month(NL$34,NL$35,$F40) -> FALSE | NM40: =Find_Month(NM$34,NM$35,$F40) -> FALSE | NN40: =Find_Month(NN$34,NN$35,$F40) -> FALSE | NO40: =Find_Month(NO$34,NO$35,$F40) -> FALSE | NP40: =Find_Month(NP$34,NP$35,$F40) -> FALSE | NQ40: =Find_Month(NQ$34,NQ$35,$F40) -> FALSE | NR40: =Find_Month(NR$34,NR$35,$F40) -> FALSE | NS40: =Find_Month(NS$34,NS$35,$F40) -> FALSE | NT40: =Find_Month(NT$34,NT$35,$F40) -> FALSE | NU40: =Find_Month(NU$34,NU$35,$F40) -> FALSE | NV40: =Find_Month(NV$34,NV$35,$F40) -> TRUE | NW40: =Find_Month(NW$34,NW$35,$F40) -> FALSE | NX40: =Find_Month(NX$34,NX$35,$F40) -> FALSE | NY40: =Find_Month(NY$34,NY$35,$F40) -> FALSE | NZ40: =Find_Month(NZ$34,NZ$35,$F40) -> FALSE | OA40: =Find_Month(OA$34,OA$35,$F40) -> FALSE | OB40: =Find_Month(OB$34,OB$35,$F40) -> FALSE | OC40: =Find_Month(OC$34,OC$35,$F40) -> FALSE | OD40: =Find_Month(OD$34,OD$35,$F40) -> FALSE | OE40: =Find_Month(OE$34,OE$35,$F40) -> FALSE | OF40: =Find_Month(OF$34,OF$35,$F40) -> FALSE | OG40: =Find_Month(OG$34,OG$35,$F40) -> FALSE | OH40: =Find_Month(OH$34,OH$35,$F40) -> TRUE | OI40: =Find_Month(OI$34,OI$35,$F40) -> FALSE | OJ40: =Find_Month(OJ$34,OJ$35,$F40) -> FALSE | OK40: =Find_Month(OK$34,OK$35,$F40) -> FALSE | OL40: =Find_Month(OL$34,OL$35,$F40) -> FALSE | OM40: =Find_Month(OM$34,OM$35,$F40) -> FALSE | ON40: =Find_Month(ON$34,ON$35,$F40) -> FALSE | OO40: =Find_Month(OO$34,OO$35,$F40) -> FALSE | OP40: =Find_Month(OP$34,OP$35,$F40) -> FALSE | OQ40: =Find_Month(OQ$34,OQ$35,$F40) -> FALSE | OR40: =Find_Month(OR$34,OR$35,$F40) -> FALSE | OS40: =Find_Month(OS$34,OS$35,$F40) -> FALSE | OT40: =Find_Month(OT$34,OT$35,$F40) -> TRUE | OU40: =Find_Month(OU$34,OU$35,$F40) -> FALSE | OV40: =Find_Month(OV$34,OV$35,$F40) -> FALSE | OW40: =Find_Month(OW$34,OW$35,$F40) -> FALSE | OX40: =Find_Month(OX$34,OX$35,$F40) -> FALSE | OY40: =Find_Month(OY$34,OY$35,$F40) -> FALSE | OZ40: =Find_Month(OZ$34,OZ$35,$F40) -> FALSE | PA40: =Find_Month(PA$34,PA$35,$F40) -> FALSE | PB40: =Find_Month(PB$34,PB$35,$F40) -> FALSE | PC40: =Find_Month(PC$34,PC$35,$F40) -> FALSE | PD40: =Find_Month(PD$34,PD$35,$F40) -> FALSE | PE40: =Find_Month(PE$34,PE$35,$F40) -> FALSE | PF40: =Find_Month(PF$34,PF$35,$F40) -> TRUE | PG40: =Find_Month(PG$34,PG$35,$F40) -> FALSE | PH40: =Find_Month(PH$34,PH$35,$F40) -> FALSE | PI40: =Find_Month(PI$34,PI$35,$F40) -> FALSE | PJ40: =Find_Month(PJ$34,PJ$35,$F40) -> FALSE | PK40: =Find_Month(PK$34,PK$35,$F40) -> FALSE | PL40: =Find_Month(PL$34,PL$35,$F40) -> FALSE | PM40: =Find_Month(PM$34,PM$35,$F40) -> FALSE | PN40: =Find_Month(PN$34,PN$35,$F40) -> FALSE | PO40: =Find_Month(PO$34,PO$35,$F40) -> FALSE | PP40: =Find_Month(PP$34,PP$35,$F40) -> FALSE | PQ40: =Find_Month(PQ$34,PQ$35,$F40) -> FALSE | PR40: =Find_Month(PR$34,PR$35,$F40) -> TRUE | PS40: =Find_Month(PS$34,PS$35,$F40) -> FALSE | PT40: =Find_Month(PT$34,PT$35,$F40) -> FALSE | PU40: =Find_Month(PU$34,PU$35,$F40) -> FALSE | PV40: =Find_Month(PV$34,PV$35,$F40) -> FALSE | PW40: =Find_Month(PW$34,PW$35,$F40) -> FALSE | PX40: =Find_Month(PX$34,PX$35,$F40) -> FALSE | PY40: =Find_Month(PY$34,PY$35,$F40) -> FALSE | PZ40: =Find_Month(PZ$34,PZ$35,$F40) -> FALSE | QA40: =Find_Month(QA$34,QA$35,$F40) -> FALSE | QB40: =Find_Month(QB$34,QB$35,$F40) -> FALSE | QC40: =Find_Month(QC$34,QC$35,$F40) -> FALSE | QD40: =Find_Month(QD$34,QD$35,$F40) -> TRUE | QE40: =Find_Month(QE$34,QE$35,$F40) -> FALSE | QF40: =Find_Month(QF$34,QF$35,$F40) -> FALSE | QG40: =Find_Month(QG$34,QG$35,$F40) -> FALSE | QH40: =Find_Month(QH$34,QH$35,$F40) -> FALSE | QI40: =Find_Month(QI$34,QI$35,$F40) -> FALSE | QJ40: =Find_Month(QJ$34,QJ$35,$F40) -> FALSE | QK40: =Find_Month(QK$34,QK$35,$F40) -> FALSE | QL40: =Find_Month(QL$34,QL$35,$F40) -> FALSE | QM40: =Find_Month(QM$34,QM$35,$F40) -> FALSE | QN40: =Find_Month(QN$34,QN$35,$F40) -> FALSE | QO40: =Find_Month(QO$34,QO$35,$F40) -> FALSE | QP40: =Find_Month(QP$34,QP$35,$F40) -> TRUE | QQ40: =Find_Month(QQ$34,QQ$35,$F40) -> FALSE | QR40: =Find_Month(QR$34,QR$35,$F40) -> FALSE | QS40: =Find_Month(QS$34,QS$35,$F40) -> FALSE | QT40: =Find_Month(QT$34,QT$35,$F40) -> FALSE | QU40: =Find_Month(QU$34,QU$35,$F40) -> FALSE | QV40: =Find_Month(QV$34,QV$35,$F40) -> FALSE | QW40: =Find_Month(QW$34,QW$35,$F40) -> FALSE | QX40: =Find_Month(QX$34,QX$35,$F40) -> FALSE | QY40: =Find_Month(QY$34,QY$35,$F40) -> FALSE | QZ40: =Find_Month(QZ$34,QZ$35,$F40) -> FALSE | RA40: =Find_Month(RA$34,RA$35,$F40) -> FALSE | RB40: =Find_Month(RB$34,RB$35,$F40) -> TRUE | RC40: =Find_Month(RC$34,RC$35,$F40) -> FALSE | RD40: =Find_Month(RD$34,RD$35,$F40) -> FALSE | RE40: =Find_Month(RE$34,RE$35,$F40) -> FALSE | RF40: =Find_Month(RF$34,RF$35,$F40) -> FALSE | RG40: =Find_Month(RG$34,RG$35,$F40) -> FALSE | RH40: =Find_Month(RH$34,RH$35,$F40) -> FALSE | RI40: =Find_Month(RI$34,RI$35,$F40) -> FALSE | RJ40: =Find_Month(RJ$34,RJ$35,$F40) -> FALSE | RK40: =Find_Month(RK$34,RK$35,$F40) -> FALSE | RL40: =Find_Month(RL$34,RL$35,$F40) -> FALSE | RM40: =Find_Month(RM$34,RM$35,$F40) -> FALSE | RN40: =Find_Month(RN$34,RN$35,$F40) -> TRUE | RO40: =Find_Month(RO$34,RO$35,$F40) -> FALSE | RP40: =Find_Month(RP$34,RP$35,$F40) -> FALSE | RQ40: =Find_Month(RQ$34,RQ$35,$F40) -> FALSE | RR40: =Find_Month(RR$34,RR$35,$F40) -> FALSE | RS40: =Find_Month(RS$34,RS$35,$F40) -> FALSE | RT40: =Find_Month(RT$34,RT$35,$F40) -> FALSE | RU40: =Find_Month(RU$34,RU$35,$F40) -> FALSE | RV40: =Find_Month(RV$34,RV$35,$F40) -> FALSE | RW40: =Find_Month(RW$34,RW$35,$F40) -> FALSE | RX40: =Find_Month(RX$34,RX$35,$F40) -> FALSE | RY40: =Find_Month(RY$34,RY$35,$F40) -> FALSE | RZ40: =Find_Month(RZ$34,RZ$35,$F40) -> TRUE | SA40: =Find_Month(SA$34,SA$35,$F40) -> FALSE | SB40: =Find_Month(SB$34,SB$35,$F40) -> FALSE | SC40: =Find_Month(SC$34,SC$35,$F40) -> FALSE | SD40: =Find_Month(SD$34,SD$35,$F40) -> FALSE | SE40: =Find_Month(SE$34,SE$35,$F40) -> FALSE | SF40: =Find_Month(SF$34,SF$35,$F40) -> FALSE | SG40: =Find_Month(SG$34,SG$35,$F40) -> FALSE | SH40: =Find_Month(SH$34,SH$35,$F40) -> FALSE | SI40: =Find_Month(SI$34,SI$35,$F40) -> FALSE | SJ40: =Find_Month(SJ$34,SJ$35,$F40) -> FALSE | SK40: =Find_Month(SK$34,SK$35,$F40) -> FALSE | SL40: =Find_Month(SL$34,SL$35,$F40) -> FALSE | SM40: =Find_Month(SM$34,SM$35,$F40) -> FALSE | SN40: =Find_Month(SN$34,SN$35,$F40) -> FALSE | SO40: =Find_Month(SO$34,SO$35,$F40) -> FALSE | SP40: =Find_Month(SP$34,SP$35,$F40) -> FALSE | SQ40: =Find_Month(SQ$34,SQ$35,$F40) -> FALSE | SR40: =Find_Month(SR$34,SR$35,$F40) -> FALSE | SS40: =Find_Month(SS$34,SS$35,$F40) -> FALSE | ST40: =Find_Month(ST$34,ST$35,$F40) -> FALSE | SU40: =Find_Month(SU$34,SU$35,$F40) -> FALSE | SV40: =Find_Month(SV$34,SV$35,$F40) -> FALSE | SW40: =Find_Month(SW$34,SW$35,$F40) -> FALSE | SX40: =Find_Month(SX$34,SX$35,$F40) -> FALSE | SY40: =Find_Month(SY$34,SY$35,$F40) -> FALSE | SZ40: =Find_Month(SZ$34,SZ$35,$F40) -> FALSE | TA40: =Find_Month(TA$34,TA$35,$F40) -> FALSE | TB40: =Find_Month(TB$34,TB$35,$F40) -> FALSE | TC40: =Find_Month(TC$34,TC$35,$F40) -> FALSE | TD40: =Find_Month(TD$34,TD$35,$F40) -> FALSE | TE40: =Find_Month(TE$34,TE$35,$F40) -> FALSE | TF40: =Find_Month(TF$34,TF$35,$F40) -> FALSE | TG40: =Find_Month(TG$34,TG$35,$F40) -> FALSE | TH40: =Find_Month(TH$34,TH$35,$F40) -> FALSE | TI40: =Find_Month(TI$34,TI$35,$F40) -> FALSE | TJ40: =Find_Month(TJ$34,TJ$35,$F40) -> FALSE | TK40: =Find_Month(TK$34,TK$35,$F40) -> FALSE | TL40: =Find_Month(TL$34,TL$35,$F40) -> FALSE | TM40: =Find_Month(TM$34,TM$35,$F40) -> FALSE | TN40: =Find_Month(TN$34,TN$35,$F40) -> FALSE | TO40: =Find_Month(TO$34,TO$35,$F40) -> FALSE | TP40: =Find_Month(TP$34,TP$35,$F40) -> FALSE | TQ40: =Find_Month(TQ$34,TQ$35,$F40) -> FALSE | TR40: =Find_Month(TR$34,TR$35,$F40) -> FALSE | TS40: =Find_Month(TS$34,TS$35,$F40) -> FALSE | TT40: =Find_Month(TT$34,TT$35,$F40) -> FALSE | TU40: =Find_Month(TU$34,TU$35,$F40) -> FALSE | TV40: =Find_Month(TV$34,TV$35,$F40) -> FALSE | TW40: =Find_Month(TW$34,TW$35,$F40) -> FALSE | TX40: =Find_Month(TX$34,TX$35,$F40) -> FALSE | TY40: =Find_Month(TY$34,TY$35,$F40) -> FALSE
F41: 4 | G41: =DataBook!O225 -> 152.1888889 | H41: 0.09404050807 | J41: =Find_Month(J$34,J$35,$F41) -> FALSE | K41: =Find_Month(K$34,K$35,$F41) -> FALSE | L41: =Find_Month(L$34,L$35,$F41) -> FALSE | M41: =Find_Month(M$34,M$35,$F41) -> FALSE | N41: =Find_Month(N$34,N$35,$F41) -> FALSE | O41: =Find_Month(O$34,O$35,$F41) -> TRUE | P41: =Find_Month(P$34,P$35,$F41) -> FALSE | Q41: =Find_Month(Q$34,Q$35,$F41) -> FALSE | R41: =Find_Month(R$34,R$35,$F41) -> FALSE | S41: =Find_Month(S$34,S$35,$F41) -> FALSE | T41: =Find_Month(T$34,T$35,$F41) -> FALSE | U41: =Find_Month(U$34,U$35,$F41) -> FALSE | V41: =Find_Month(V$34,V$35,$F41) -> FALSE | W41: =Find_Month(W$34,W$35,$F41) -> FALSE | X41: =Find_Month(X$34,X$35,$F41) -> FALSE | Y41: =Find_Month(Y$34,Y$35,$F41) -> FALSE | Z41: =Find_Month(Z$34,Z$35,$F41) -> FALSE | AA41: =Find_Month(AA$34,AA$35,$F41) -> TRUE | AB41: =Find_Month(AB$34,AB$35,$F41) -> FALSE | AC41: =Find_Month(AC$34,AC$35,$F41) -> FALSE | AD41: =Find_Month(AD$34,AD$35,$F41) -> FALSE | AE41: =Find_Month(AE$34,AE$35,$F41) -> FALSE | AF41: =Find_Month(AF$34,AF$35,$F41) -> FALSE | AG41: =Find_Month(AG$34,AG$35,$F41) -> FALSE | AH41: =Find_Month(AH$34,AH$35,$F41) -> FALSE | AI41: =Find_Month(AI$34,AI$35,$F41) -> FALSE | AJ41: =Find_Month(AJ$34,AJ$35,$F41) -> FALSE | AK41: =Find_Month(AK$34,AK$35,$F41) -> FALSE | AL41: =Find_Month(AL$34,AL$35,$F41) -> FALSE | AM41: =Find_Month(AM$34,AM$35,$F41) -> TRUE | AN41: =Find_Month(AN$34,AN$35,$F41) -> FALSE | AO41: =Find_Month(AO$34,AO$35,$F41) -> FALSE | AP41: =Find_Month(AP$34,AP$35,$F41) -> FALSE | AQ41: =Find_Month(AQ$34,AQ$35,$F41) -> FALSE | AR41: =Find_Month(AR$34,AR$35,$F41) -> FALSE | AS41: =Find_Month(AS$34,AS$35,$F41) -> FALSE | AT41: =Find_Month(AT$34,AT$35,$F41) -> FALSE | AU41: =Find_Month(AU$34,AU$35,$F41) -> FALSE | AV41: =Find_Month(AV$34,AV$35,$F41) -> FALSE | AW41: =Find_Month(AW$34,AW$35,$F41) -> FALSE | AX41: =Find_Month(AX$34,AX$35,$F41) -> FALSE | AY41: =Find_Month(AY$34,AY$35,$F41) -> TRUE | AZ41: =Find_Month(AZ$34,AZ$35,$F41) -> FALSE | BA41: =Find_Month(BA$34,BA$35,$F41) -> FALSE | BB41: =Find_Month(BB$34,BB$35,$F41) -> FALSE | BC41: =Find_Month(BC$34,BC$35,$F41) -> FALSE | BD41: =Find_Month(BD$34,BD$35,$F41) -> FALSE | BE41: =Find_Month(BE$34,BE$35,$F41) -> FALSE | BF41: =Find_Month(BF$34,BF$35,$F41) -> FALSE | BG41: =Find_Month(BG$34,BG$35,$F41) -> FALSE | BH41: =Find_Month(BH$34,BH$35,$F41) -> FALSE | BI41: =Find_Month(BI$34,BI$35,$F41) -> FALSE | BJ41: =Find_Month(BJ$34,BJ$35,$F41) -> FALSE | BK41: =Find_Month(BK$34,BK$35,$F41) -> TRUE | BL41: =Find_Month(BL$34,BL$35,$F41) -> FALSE | BM41: =Find_Month(BM$34,BM$35,$F41) -> FALSE | BN41: =Find_Month(BN$34,BN$35,$F41) -> FALSE | BO41: =Find_Month(BO$34,BO$35,$F41) -> FALSE | BP41: =Find_Month(BP$34,BP$35,$F41) -> FALSE | BQ41: =Find_Month(BQ$34,BQ$35,$F41) -> FALSE | BR41: =Find_Month(BR$34,BR$35,$F41) -> FALSE | BS41: =Find_Month(BS$34,BS$35,$F41) -> FALSE | BT41: =Find_Month(BT$34,BT$35,$F41) -> FALSE | BU41: =Find_Month(BU$34,BU$35,$F41) -> FALSE | BV41: =Find_Month(BV$34,BV$35,$F41) -> FALSE | BW41: =Find_Month(BW$34,BW$35,$F41) -> TRUE | BX41: =Find_Month(BX$34,BX$35,$F41) -> FALSE | BY41: =Find_Month(BY$34,BY$35,$F41) -> FALSE | BZ41: =Find_Month(BZ$34,BZ$35,$F41) -> FALSE | CA41: =Find_Month(CA$34,CA$35,$F41) -> FALSE | CB41: =Find_Month(CB$34,CB$35,$F41) -> FALSE | CC41: =Find_Month(CC$34,CC$35,$F41) -> FALSE | CD41: =Find_Month(CD$34,CD$35,$F41) -> FALSE | CE41: =Find_Month(CE$34,CE$35,$F41) -> FALSE | CF41: =Find_Month(CF$34,CF$35,$F41) -> FALSE | CG41: =Find_Month(CG$34,CG$35,$F41) -> FALSE | CH41: =Find_Month(CH$34,CH$35,$F41) -> FALSE | CI41: =Find_Month(CI$34,CI$35,$F41) -> TRUE | CJ41: =Find_Month(CJ$34,CJ$35,$F41) -> FALSE | CK41: =Find_Month(CK$34,CK$35,$F41) -> FALSE | CL41: =Find_Month(CL$34,CL$35,$F41) -> FALSE | CM41: =Find_Month(CM$34,CM$35,$F41) -> FALSE | CN41: =Find_Month(CN$34,CN$35,$F41) -> FALSE | CO41: =Find_Month(CO$34,CO$35,$F41) -> FALSE | CP41: =Find_Month(CP$34,CP$35,$F41) -> FALSE | CQ41: =Find_Month(CQ$34,CQ$35,$F41) -> FALSE | CR41: =Find_Month(CR$34,CR$35,$F41) -> FALSE | CS41: =Find_Month(CS$34,CS$35,$F41) -> FALSE | CT41: =Find_Month(CT$34,CT$35,$F41) -> FALSE | CU41: =Find_Month(CU$34,CU$35,$F41) -> TRUE | CV41: =Find_Month(CV$34,CV$35,$F41) -> FALSE | CW41: =Find_Month(CW$34,CW$35,$F41) -> FALSE | CX41: =Find_Month(CX$34,CX$35,$F41) -> FALSE | CY41: =Find_Month(CY$34,CY$35,$F41) -> FALSE | CZ41: =Find_Month(CZ$34,CZ$35,$F41) -> FALSE | DA41: =Find_Month(DA$34,DA$35,$F41) -> FALSE | DB41: =Find_Month(DB$34,DB$35,$F41) -> FALSE | DC41: =Find_Month(DC$34,DC$35,$F41) -> FALSE | DD41: =Find_Month(DD$34,DD$35,$F41) -> FALSE | DE41: =Find_Month(DE$34,DE$35,$F41) -> FALSE | DF41: =Find_Month(DF$34,DF$35,$F41) -> FALSE | DG41: =Find_Month(DG$34,DG$35,$F41) -> TRUE | DH41: =Find_Month(DH$34,DH$35,$F41) -> FALSE | DI41: =Find_Month(DI$34,DI$35,$F41) -> FALSE | DJ41: =Find_Month(DJ$34,DJ$35,$F41) -> FALSE | DK41: =Find_Month(DK$34,DK$35,$F41) -> FALSE | DL41: =Find_Month(DL$34,DL$35,$F41) -> FALSE | DM41: =Find_Month(DM$34,DM$35,$F41) -> FALSE | DN41: =Find_Month(DN$34,DN$35,$F41) -> FALSE | DO41: =Find_Month(DO$34,DO$35,$F41) -> FALSE | DP41: =Find_Month(DP$34,DP$35,$F41) -> FALSE | DQ41: =Find_Month(DQ$34,DQ$35,$F41) -> FALSE | DR41: =Find_Month(DR$34,DR$35,$F41) -> FALSE | DS41: =Find_Month(DS$34,DS$35,$F41) -> TRUE | DT41: =Find_Month(DT$34,DT$35,$F41) -> FALSE | DU41: =Find_Month(DU$34,DU$35,$F41) -> FALSE | DV41: =Find_Month(DV$34,DV$35,$F41) -> FALSE | DW41: =Find_Month(DW$34,DW$35,$F41) -> FALSE | DX41: =Find_Month(DX$34,DX$35,$F41) -> FALSE | DY41: =Find_Month(DY$34,DY$35,$F41) -> FALSE | DZ41: =Find_Month(DZ$34,DZ$35,$F41) -> FALSE | EA41: =Find_Month(EA$34,EA$35,$F41) -> FALSE | EB41: =Find_Month(EB$34,EB$35,$F41) -> FALSE | EC41: =Find_Month(EC$34,EC$35,$F41) -> FALSE | ED41: =Find_Month(ED$34,ED$35,$F41) -> FALSE | EE41: =Find_Month(EE$34,EE$35,$F41) -> TRUE | EF41: =Find_Month(EF$34,EF$35,$F41) -> FALSE | EG41: =Find_Month(EG$34,EG$35,$F41) -> FALSE | EH41: =Find_Month(EH$34,EH$35,$F41) -> FALSE | EI41: =Find_Month(EI$34,EI$35,$F41) -> FALSE | EJ41: =Find_Month(EJ$34,EJ$35,$F41) -> FALSE | EK41: =Find_Month(EK$34,EK$35,$F41) -> FALSE | EL41: =Find_Month(EL$34,EL$35,$F41) -> FALSE | EM41: =Find_Month(EM$34,EM$35,$F41) -> FALSE | EN41: =Find_Month(EN$34,EN$35,$F41) -> FALSE | EO41: =Find_Month(EO$34,EO$35,$F41) -> FALSE | EP41: =Find_Month(EP$34,EP$35,$F41) -> FALSE | EQ41: =Find_Month(EQ$34,EQ$35,$F41) -> TRUE | ER41: =Find_Month(ER$34,ER$35,$F41) -> FALSE | ES41: =Find_Month(ES$34,ES$35,$F41) -> FALSE | ET41: =Find_Month(ET$34,ET$35,$F41) -> FALSE | EU41: =Find_Month(EU$34,EU$35,$F41) -> FALSE | EV41: =Find_Month(EV$34,EV$35,$F41) -> FALSE | EW41: =Find_Month(EW$34,EW$35,$F41) -> FALSE | EX41: =Find_Month(EX$34,EX$35,$F41) -> FALSE | EY41: =Find_Month(EY$34,EY$35,$F41) -> FALSE | EZ41: =Find_Month(EZ$34,EZ$35,$F41) -> FALSE | FA41: =Find_Month(FA$34,FA$35,$F41) -> FALSE | FB41: =Find_Month(FB$34,FB$35,$F41) -> FALSE | FC41: =Find_Month(FC$34,FC$35,$F41) -> TRUE | FD41: =Find_Month(FD$34,FD$35,$F41) -> FALSE | FE41: =Find_Month(FE$34,FE$35,$F41) -> FALSE | FF41: =Find_Month(FF$34,FF$35,$F41) -> FALSE | FG41: =Find_Month(FG$34,FG$35,$F41) -> FALSE | FH41: =Find_Month(FH$34,FH$35,$F41) -> FALSE | FI41: =Find_Month(FI$34,FI$35,$F41) -> FALSE | FJ41: =Find_Month(FJ$34,FJ$35,$F41) -> FALSE | FK41: =Find_Month(FK$34,FK$35,$F41) -> FALSE | FL41: =Find_Month(FL$34,FL$35,$F41) -> FALSE | FM41: =Find_Month(FM$34,FM$35,$F41) -> FALSE | FN41: =Find_Month(FN$34,FN$35,$F41) -> FALSE | FO41: =Find_Month(FO$34,FO$35,$F41) -> TRUE | FP41: =Find_Month(FP$34,FP$35,$F41) -> FALSE | FQ41: =Find_Month(FQ$34,FQ$35,$F41) -> FALSE | FR41: =Find_Month(FR$34,FR$35,$F41) -> FALSE | FS41: =Find_Month(FS$34,FS$35,$F41) -> FALSE | FT41: =Find_Month(FT$34,FT$35,$F41) -> FALSE | FU41: =Find_Month(FU$34,FU$35,$F41) -> FALSE | FV41: =Find_Month(FV$34,FV$35,$F41) -> FALSE | FW41: =Find_Month(FW$34,FW$35,$F41) -> FALSE | FX41: =Find_Month(FX$34,FX$35,$F41) -> FALSE | FY41: =Find_Month(FY$34,FY$35,$F41) -> FALSE | FZ41: =Find_Month(FZ$34,FZ$35,$F41) -> FALSE | GA41: =Find_Month(GA$34,GA$35,$F41) -> TRUE | GB41: =Find_Month(GB$34,GB$35,$F41) -> FALSE | GC41: =Find_Month(GC$34,GC$35,$F41) -> FALSE | GD41: =Find_Month(GD$34,GD$35,$F41) -> FALSE | GE41: =Find_Month(GE$34,GE$35,$F41) -> FALSE | GF41: =Find_Month(GF$34,GF$35,$F41) -> FALSE | GG41: =Find_Month(GG$34,GG$35,$F41) -> FALSE | GH41: =Find_Month(GH$34,GH$35,$F41) -> FALSE | GI41: =Find_Month(GI$34,GI$35,$F41) -> FALSE | GJ41: =Find_Month(GJ$34,GJ$35,$F41) -> FALSE | GK41: =Find_Month(GK$34,GK$35,$F41) -> FALSE | GL41: =Find_Month(GL$34,GL$35,$F41) -> FALSE | GM41: =Find_Month(GM$34,GM$35,$F41) -> TRUE | GN41: =Find_Month(GN$34,GN$35,$F41) -> FALSE | GO41: =Find_Month(GO$34,GO$35,$F41) -> FALSE | GP41: =Find_Month(GP$34,GP$35,$F41) -> FALSE | GQ41: =Find_Month(GQ$34,GQ$35,$F41) -> FALSE | GR41: =Find_Month(GR$34,GR$35,$F41) -> FALSE | GS41: =Find_Month(GS$34,GS$35,$F41) -> FALSE | GT41: =Find_Month(GT$34,GT$35,$F41) -> FALSE | GU41: =Find_Month(GU$34,GU$35,$F41) -> FALSE | GV41: =Find_Month(GV$34,GV$35,$F41) -> FALSE | GW41: =Find_Month(GW$34,GW$35,$F41) -> FALSE | GX41: =Find_Month(GX$34,GX$35,$F41) -> FALSE | GY41: =Find_Month(GY$34,GY$35,$F41) -> TRUE | GZ41: =Find_Month(GZ$34,GZ$35,$F41) -> FALSE | HA41: =Find_Month(HA$34,HA$35,$F41) -> FALSE | HB41: =Find_Month(HB$34,HB$35,$F41) -> FALSE | HC41: =Find_Month(HC$34,HC$35,$F41) -> FALSE | HD41: =Find_Month(HD$34,HD$35,$F41) -> FALSE | HE41: =Find_Month(HE$34,HE$35,$F41) -> FALSE | HF41: =Find_Month(HF$34,HF$35,$F41) -> FALSE | HG41: =Find_Month(HG$34,HG$35,$F41) -> FALSE | HH41: =Find_Month(HH$34,HH$35,$F41) -> FALSE | HI41: =Find_Month(HI$34,HI$35,$F41) -> FALSE | HJ41: =Find_Month(HJ$34,HJ$35,$F41) -> FALSE | HK41: =Find_Month(HK$34,HK$35,$F41) -> TRUE | HL41: =Find_Month(HL$34,HL$35,$F41) -> FALSE | HM41: =Find_Month(HM$34,HM$35,$F41) -> FALSE | HN41: =Find_Month(HN$34,HN$35,$F41) -> FALSE | HO41: =Find_Month(HO$34,HO$35,$F41) -> FALSE | HP41: =Find_Month(HP$34,HP$35,$F41) -> FALSE | HQ41: =Find_Month(HQ$34,HQ$35,$F41) -> FALSE | HR41: =Find_Month(HR$34,HR$35,$F41) -> FALSE | HS41: =Find_Month(HS$34,HS$35,$F41) -> FALSE | HT41: =Find_Month(HT$34,HT$35,$F41) -> FALSE | HU41: =Find_Month(HU$34,HU$35,$F41) -> FALSE | HV41: =Find_Month(HV$34,HV$35,$F41) -> FALSE | HW41: =Find_Month(HW$34,HW$35,$F41) -> TRUE | HX41: =Find_Month(HX$34,HX$35,$F41) -> FALSE | HY41: =Find_Month(HY$34,HY$35,$F41) -> FALSE | HZ41: =Find_Month(HZ$34,HZ$35,$F41) -> FALSE | IA41: =Find_Month(IA$34,IA$35,$F41) -> FALSE | IB41: =Find_Month(IB$34,IB$35,$F41) -> FALSE | IC41: =Find_Month(IC$34,IC$35,$F41) -> FALSE | ID41: =Find_Month(ID$34,ID$35,$F41) -> FALSE | IE41: =Find_Month(IE$34,IE$35,$F41) -> FALSE | IF41: =Find_Month(IF$34,IF$35,$F41) -> FALSE | IG41: =Find_Month(IG$34,IG$35,$F41) -> FALSE | IH41: =Find_Month(IH$34,IH$35,$F41) -> FALSE | II41: =Find_Month(II$34,II$35,$F41) -> TRUE | IJ41: =Find_Month(IJ$34,IJ$35,$F41) -> FALSE | IK41: =Find_Month(IK$34,IK$35,$F41) -> FALSE | IL41: =Find_Month(IL$34,IL$35,$F41) -> FALSE | IM41: =Find_Month(IM$34,IM$35,$F41) -> FALSE | IN41: =Find_Month(IN$34,IN$35,$F41) -> FALSE | IO41: =Find_Month(IO$34,IO$35,$F41) -> FALSE | IP41: =Find_Month(IP$34,IP$35,$F41) -> FALSE | IQ41: =Find_Month(IQ$34,IQ$35,$F41) -> FALSE | IR41: =Find_Month(IR$34,IR$35,$F41) -> FALSE | IS41: =Find_Month(IS$34,IS$35,$F41) -> FALSE | IT41: =Find_Month(IT$34,IT$35,$F41) -> FALSE | IU41: =Find_Month(IU$34,IU$35,$F41) -> TRUE | IV41: =Find_Month(IV$34,IV$35,$F41) -> FALSE | IW41: =Find_Month(IW$34,IW$35,$F41) -> FALSE | IX41: =Find_Month(IX$34,IX$35,$F41) -> FALSE | IY41: =Find_Month(IY$34,IY$35,$F41) -> FALSE | IZ41: =Find_Month(IZ$34,IZ$35,$F41) -> FALSE | JA41: =Find_Month(JA$34,JA$35,$F41) -> FALSE | JB41: =Find_Month(JB$34,JB$35,$F41) -> FALSE | JC41: =Find_Month(JC$34,JC$35,$F41) -> FALSE | JD41: =Find_Month(JD$34,JD$35,$F41) -> FALSE | JE41: =Find_Month(JE$34,JE$35,$F41) -> FALSE | JF41: =Find_Month(JF$34,JF$35,$F41) -> FALSE | JG41: =Find_Month(JG$34,JG$35,$F41) -> TRUE | JH41: =Find_Month(JH$34,JH$35,$F41) -> FALSE | JI41: =Find_Month(JI$34,JI$35,$F41) -> FALSE | JJ41: =Find_Month(JJ$34,JJ$35,$F41) -> FALSE | JK41: =Find_Month(JK$34,JK$35,$F41) -> FALSE | JL41: =Find_Month(JL$34,JL$35,$F41) -> FALSE | JM41: =Find_Month(JM$34,JM$35,$F41) -> FALSE | JN41: =Find_Month(JN$34,JN$35,$F41) -> FALSE | JO41: =Find_Month(JO$34,JO$35,$F41) -> FALSE | JP41: =Find_Month(JP$34,JP$35,$F41) -> FALSE | JQ41: =Find_Month(JQ$34,JQ$35,$F41) -> FALSE | JR41: =Find_Month(JR$34,JR$35,$F41) -> FALSE | JS41: =Find_Month(JS$34,JS$35,$F41) -> TRUE | JT41: =Find_Month(JT$34,JT$35,$F41) -> FALSE | JU41: =Find_Month(JU$34,JU$35,$F41) -> FALSE | JV41: =Find_Month(JV$34,JV$35,$F41) -> FALSE | JW41: =Find_Month(JW$34,JW$35,$F41) -> FALSE | JX41: =Find_Month(JX$34,JX$35,$F41) -> FALSE | JY41: =Find_Month(JY$34,JY$35,$F41) -> FALSE | JZ41: =Find_Month(JZ$34,JZ$35,$F41) -> FALSE | KA41: =Find_Month(KA$34,KA$35,$F41) -> FALSE | KB41: =Find_Month(KB$34,KB$35,$F41) -> FALSE | KC41: =Find_Month(KC$34,KC$35,$F41) -> FALSE | KD41: =Find_Month(KD$34,KD$35,$F41) -> FALSE | KE41: =Find_Month(KE$34,KE$35,$F41) -> TRUE | KF41: =Find_Month(KF$34,KF$35,$F41) -> FALSE | KG41: =Find_Month(KG$34,KG$35,$F41) -> FALSE | KH41: =Find_Month(KH$34,KH$35,$F41) -> FALSE | KI41: =Find_Month(KI$34,KI$35,$F41) -> FALSE | KJ41: =Find_Month(KJ$34,KJ$35,$F41) -> FALSE | KK41: =Find_Month(KK$34,KK$35,$F41) -> FALSE | KL41: =Find_Month(KL$34,KL$35,$F41) -> FALSE | KM41: =Find_Month(KM$34,KM$35,$F41) -> FALSE | KN41: =Find_Month(KN$34,KN$35,$F41) -> FALSE | KO41: =Find_Month(KO$34,KO$35,$F41) -> FALSE | KP41: =Find_Month(KP$34,KP$35,$F41) -> FALSE | KQ41: =Find_Month(KQ$34,KQ$35,$F41) -> TRUE | KR41: =Find_Month(KR$34,KR$35,$F41) -> FALSE | KS41: =Find_Month(KS$34,KS$35,$F41) -> FALSE | KT41: =Find_Month(KT$34,KT$35,$F41) -> FALSE | KU41: =Find_Month(KU$34,KU$35,$F41) -> FALSE | KV41: =Find_Month(KV$34,KV$35,$F41) -> FALSE | KW41: =Find_Month(KW$34,KW$35,$F41) -> FALSE | KX41: =Find_Month(KX$34,KX$35,$F41) -> FALSE | KY41: =Find_Month(KY$34,KY$35,$F41) -> FALSE | KZ41: =Find_Month(KZ$34,KZ$35,$F41) -> FALSE | LA41: =Find_Month(LA$34,LA$35,$F41) -> FALSE | LB41: =Find_Month(LB$34,LB$35,$F41) -> FALSE | LC41: =Find_Month(LC$34,LC$35,$F41) -> TRUE | LD41: =Find_Month(LD$34,LD$35,$F41) -> FALSE | LE41: =Find_Month(LE$34,LE$35,$F41) -> FALSE | LF41: =Find_Month(LF$34,LF$35,$F41) -> FALSE | LG41: =Find_Month(LG$34,LG$35,$F41) -> FALSE | LH41: =Find_Month(LH$34,LH$35,$F41) -> FALSE | LI41: =Find_Month(LI$34,LI$35,$F41) -> FALSE | LJ41: =Find_Month(LJ$34,LJ$35,$F41) -> FALSE | LK41: =Find_Month(LK$34,LK$35,$F41) -> FALSE | LL41: =Find_Month(LL$34,LL$35,$F41) -> FALSE | LM41: =Find_Month(LM$34,LM$35,$F41) -> FALSE | LN41: =Find_Month(LN$34,LN$35,$F41) -> FALSE | LO41: =Find_Month(LO$34,LO$35,$F41) -> TRUE | LP41: =Find_Month(LP$34,LP$35,$F41) -> FALSE | LQ41: =Find_Month(LQ$34,LQ$35,$F41) -> FALSE | LR41: =Find_Month(LR$34,LR$35,$F41) -> FALSE | LS41: =Find_Month(LS$34,LS$35,$F41) -> FALSE | LT41: =Find_Month(LT$34,LT$35,$F41) -> FALSE | LU41: =Find_Month(LU$34,LU$35,$F41) -> FALSE | LV41: =Find_Month(LV$34,LV$35,$F41) -> FALSE | LW41: =Find_Month(LW$34,LW$35,$F41) -> FALSE | LX41: =Find_Month(LX$34,LX$35,$F41) -> FALSE | LY41: =Find_Month(LY$34,LY$35,$F41) -> FALSE | LZ41: =Find_Month(LZ$34,LZ$35,$F41) -> FALSE | MA41: =Find_Month(MA$34,MA$35,$F41) -> TRUE | MB41: =Find_Month(MB$34,MB$35,$F41) -> FALSE | MC41: =Find_Month(MC$34,MC$35,$F41) -> FALSE | MD41: =Find_Month(MD$34,MD$35,$F41) -> FALSE | ME41: =Find_Month(ME$34,ME$35,$F41) -> FALSE | MF41: =Find_Month(MF$34,MF$35,$F41) -> FALSE | MG41: =Find_Month(MG$34,MG$35,$F41) -> FALSE | MH41: =Find_Month(MH$34,MH$35,$F41) -> FALSE | MI41: =Find_Month(MI$34,MI$35,$F41) -> FALSE | MJ41: =Find_Month(MJ$34,MJ$35,$F41) -> FALSE | MK41: =Find_Month(MK$34,MK$35,$F41) -> FALSE | ML41: =Find_Month(ML$34,ML$35,$F41) -> FALSE | MM41: =Find_Month(MM$34,MM$35,$F41) -> TRUE | MN41: =Find_Month(MN$34,MN$35,$F41) -> FALSE | MO41: =Find_Month(MO$34,MO$35,$F41) -> FALSE | MP41: =Find_Month(MP$34,MP$35,$F41) -> FALSE | MQ41: =Find_Month(MQ$34,MQ$35,$F41) -> FALSE | MR41: =Find_Month(MR$34,MR$35,$F41) -> FALSE | MS41: =Find_Month(MS$34,MS$35,$F41) -> FALSE | MT41: =Find_Month(MT$34,MT$35,$F41) -> FALSE | MU41: =Find_Month(MU$34,MU$35,$F41) -> FALSE | MV41: =Find_Month(MV$34,MV$35,$F41) -> FALSE | MW41: =Find_Month(MW$34,MW$35,$F41) -> FALSE | MX41: =Find_Month(MX$34,MX$35,$F41) -> FALSE | MY41: =Find_Month(MY$34,MY$35,$F41) -> TRUE | MZ41: =Find_Month(MZ$34,MZ$35,$F41) -> FALSE | NA41: =Find_Month(NA$34,NA$35,$F41) -> FALSE | NB41: =Find_Month(NB$34,NB$35,$F41) -> FALSE | NC41: =Find_Month(NC$34,NC$35,$F41) -> FALSE | ND41: =Find_Month(ND$34,ND$35,$F41) -> FALSE | NE41: =Find_Month(NE$34,NE$35,$F41) -> FALSE | NF41: =Find_Month(NF$34,NF$35,$F41) -> FALSE | NG41: =Find_Month(NG$34,NG$35,$F41) -> FALSE | NH41: =Find_Month(NH$34,NH$35,$F41) -> FALSE | NI41: =Find_Month(NI$34,NI$35,$F41) -> FALSE | NJ41: =Find_Month(NJ$34,NJ$35,$F41) -> FALSE | NK41: =Find_Month(NK$34,NK$35,$F41) -> TRUE | NL41: =Find_Month(NL$34,NL$35,$F41) -> FALSE | NM41: =Find_Month(NM$34,NM$35,$F41) -> FALSE | NN41: =Find_Month(NN$34,NN$35,$F41) -> FALSE | NO41: =Find_Month(NO$34,NO$35,$F41) -> FALSE | NP41: =Find_Month(NP$34,NP$35,$F41) -> FALSE | NQ41: =Find_Month(NQ$34,NQ$35,$F41) -> FALSE | NR41: =Find_Month(NR$34,NR$35,$F41) -> FALSE | NS41: =Find_Month(NS$34,NS$35,$F41) -> FALSE | NT41: =Find_Month(NT$34,NT$35,$F41) -> FALSE | NU41: =Find_Month(NU$34,NU$35,$F41) -> FALSE | NV41: =Find_Month(NV$34,NV$35,$F41) -> FALSE | NW41: =Find_Month(NW$34,NW$35,$F41) -> TRUE | NX41: =Find_Month(NX$34,NX$35,$F41) -> FALSE | NY41: =Find_Month(NY$34,NY$35,$F41) -> FALSE | NZ41: =Find_Month(NZ$34,NZ$35,$F41) -> FALSE | OA41: =Find_Month(OA$34,OA$35,$F41) -> FALSE | OB41: =Find_Month(OB$34,OB$35,$F41) -> FALSE | OC41: =Find_Month(OC$34,OC$35,$F41) -> FALSE | OD41: =Find_Month(OD$34,OD$35,$F41) -> FALSE | OE41: =Find_Month(OE$34,OE$35,$F41) -> FALSE | OF41: =Find_Month(OF$34,OF$35,$F41) -> FALSE | OG41: =Find_Month(OG$34,OG$35,$F41) -> FALSE | OH41: =Find_Month(OH$34,OH$35,$F41) -> FALSE | OI41: =Find_Month(OI$34,OI$35,$F41) -> TRUE | OJ41: =Find_Month(OJ$34,OJ$35,$F41) -> FALSE | OK41: =Find_Month(OK$34,OK$35,$F41) -> FALSE | OL41: =Find_Month(OL$34,OL$35,$F41) -> FALSE | OM41: =Find_Month(OM$34,OM$35,$F41) -> FALSE | ON41: =Find_Month(ON$34,ON$35,$F41) -> FALSE | OO41: =Find_Month(OO$34,OO$35,$F41) -> FALSE | OP41: =Find_Month(OP$34,OP$35,$F41) -> FALSE | OQ41: =Find_Month(OQ$34,OQ$35,$F41) -> FALSE | OR41: =Find_Month(OR$34,OR$35,$F41) -> FALSE | OS41: =Find_Month(OS$34,OS$35,$F41) -> FALSE | OT41: =Find_Month(OT$34,OT$35,$F41) -> FALSE | OU41: =Find_Month(OU$34,OU$35,$F41) -> TRUE | OV41: =Find_Month(OV$34,OV$35,$F41) -> FALSE | OW41: =Find_Month(OW$34,OW$35,$F41) -> FALSE | OX41: =Find_Month(OX$34,OX$35,$F41) -> FALSE | OY41: =Find_Month(OY$34,OY$35,$F41) -> FALSE | OZ41: =Find_Month(OZ$34,OZ$35,$F41) -> FALSE | PA41: =Find_Month(PA$34,PA$35,$F41) -> FALSE | PB41: =Find_Month(PB$34,PB$35,$F41) -> FALSE | PC41: =Find_Month(PC$34,PC$35,$F41) -> FALSE | PD41: =Find_Month(PD$34,PD$35,$F41) -> FALSE | PE41: =Find_Month(PE$34,PE$35,$F41) -> FALSE | PF41: =Find_Month(PF$34,PF$35,$F41) -> FALSE | PG41: =Find_Month(PG$34,PG$35,$F41) -> TRUE | PH41: =Find_Month(PH$34,PH$35,$F41) -> FALSE | PI41: =Find_Month(PI$34,PI$35,$F41) -> FALSE | PJ41: =Find_Month(PJ$34,PJ$35,$F41) -> FALSE | PK41: =Find_Month(PK$34,PK$35,$F41) -> FALSE | PL41: =Find_Month(PL$34,PL$35,$F41) -> FALSE | PM41: =Find_Month(PM$34,PM$35,$F41) -> FALSE | PN41: =Find_Month(PN$34,PN$35,$F41) -> FALSE | PO41: =Find_Month(PO$34,PO$35,$F41) -> FALSE | PP41: =Find_Month(PP$34,PP$35,$F41) -> FALSE | PQ41: =Find_Month(PQ$34,PQ$35,$F41) -> FALSE | PR41: =Find_Month(PR$34,PR$35,$F41) -> FALSE | PS41: =Find_Month(PS$34,PS$35,$F41) -> TRUE | PT41: =Find_Month(PT$34,PT$35,$F41) -> FALSE | PU41: =Find_Month(PU$34,PU$35,$F41) -> FALSE | PV41: =Find_Month(PV$34,PV$35,$F41) -> FALSE | PW41: =Find_Month(PW$34,PW$35,$F41) -> FALSE | PX41: =Find_Month(PX$34,PX$35,$F41) -> FALSE | PY41: =Find_Month(PY$34,PY$35,$F41) -> FALSE | PZ41: =Find_Month(PZ$34,PZ$35,$F41) -> FALSE | QA41: =Find_Month(QA$34,QA$35,$F41) -> FALSE | QB41: =Find_Month(QB$34,QB$35,$F41) -> FALSE | QC41: =Find_Month(QC$34,QC$35,$F41) -> FALSE | QD41: =Find_Month(QD$34,QD$35,$F41) -> FALSE | QE41: =Find_Month(QE$34,QE$35,$F41) -> TRUE | QF41: =Find_Month(QF$34,QF$35,$F41) -> FALSE | QG41: =Find_Month(QG$34,QG$35,$F41) -> FALSE | QH41: =Find_Month(QH$34,QH$35,$F41) -> FALSE | QI41: =Find_Month(QI$34,QI$35,$F41) -> FALSE | QJ41: =Find_Month(QJ$34,QJ$35,$F41) -> FALSE | QK41: =Find_Month(QK$34,QK$35,$F41) -> FALSE | QL41: =Find_Month(QL$34,QL$35,$F41) -> FALSE | QM41: =Find_Month(QM$34,QM$35,$F41) -> FALSE | QN41: =Find_Month(QN$34,QN$35,$F41) -> FALSE | QO41: =Find_Month(QO$34,QO$35,$F41) -> FALSE | QP41: =Find_Month(QP$34,QP$35,$F41) -> FALSE | QQ41: =Find_Month(QQ$34,QQ$35,$F41) -> TRUE | QR41: =Find_Month(QR$34,QR$35,$F41) -> FALSE | QS41: =Find_Month(QS$34,QS$35,$F41) -> FALSE | QT41: =Find_Month(QT$34,QT$35,$F41) -> FALSE | QU41: =Find_Month(QU$34,QU$35,$F41) -> FALSE | QV41: =Find_Month(QV$34,QV$35,$F41) -> FALSE | QW41: =Find_Month(QW$34,QW$35,$F41) -> FALSE | QX41: =Find_Month(QX$34,QX$35,$F41) -> FALSE | QY41: =Find_Month(QY$34,QY$35,$F41) -> FALSE | QZ41: =Find_Month(QZ$34,QZ$35,$F41) -> FALSE | RA41: =Find_Month(RA$34,RA$35,$F41) -> FALSE | RB41: =Find_Month(RB$34,RB$35,$F41) -> FALSE | RC41: =Find_Month(RC$34,RC$35,$F41) -> TRUE | RD41: =Find_Month(RD$34,RD$35,$F41) -> FALSE | RE41: =Find_Month(RE$34,RE$35,$F41) -> FALSE | RF41: =Find_Month(RF$34,RF$35,$F41) -> FALSE | RG41: =Find_Month(RG$34,RG$35,$F41) -> FALSE | RH41: =Find_Month(RH$34,RH$35,$F41) -> FALSE | RI41: =Find_Month(RI$34,RI$35,$F41) -> FALSE | RJ41: =Find_Month(RJ$34,RJ$35,$F41) -> FALSE | RK41: =Find_Month(RK$34,RK$35,$F41) -> FALSE | RL41: =Find_Month(RL$34,RL$35,$F41) -> FALSE | RM41: =Find_Month(RM$34,RM$35,$F41) -> FALSE | RN41: =Find_Month(RN$34,RN$35,$F41) -> FALSE | RO41: =Find_Month(RO$34,RO$35,$F41) -> TRUE | RP41: =Find_Month(RP$34,RP$35,$F41) -> FALSE | RQ41: =Find_Month(RQ$34,RQ$35,$F41) -> FALSE | RR41: =Find_Month(RR$34,RR$35,$F41) -> FALSE | RS41: =Find_Month(RS$34,RS$35,$F41) -> FALSE | RT41: =Find_Month(RT$34,RT$35,$F41) -> FALSE | RU41: =Find_Month(RU$34,RU$35,$F41) -> FALSE | RV41: =Find_Month(RV$34,RV$35,$F41) -> FALSE | RW41: =Find_Month(RW$34,RW$35,$F41) -> FALSE | RX41: =Find_Month(RX$34,RX$35,$F41) -> FALSE | RY41: =Find_Month(RY$34,RY$35,$F41) -> FALSE | RZ41: =Find_Month(RZ$34,RZ$35,$F41) -> FALSE | SA41: =Find_Month(SA$34,SA$35,$F41) -> TRUE | SB41: =Find_Month(SB$34,SB$35,$F41) -> FALSE | SC41: =Find_Month(SC$34,SC$35,$F41) -> FALSE | SD41: =Find_Month(SD$34,SD$35,$F41) -> FALSE | SE41: =Find_Month(SE$34,SE$35,$F41) -> FALSE | SF41: =Find_Month(SF$34,SF$35,$F41) -> FALSE | SG41: =Find_Month(SG$34,SG$35,$F41) -> FALSE | SH41: =Find_Month(SH$34,SH$35,$F41) -> FALSE | SI41: =Find_Month(SI$34,SI$35,$F41) -> FALSE | SJ41: =Find_Month(SJ$34,SJ$35,$F41) -> FALSE | SK41: =Find_Month(SK$34,SK$35,$F41) -> FALSE | SL41: =Find_Month(SL$34,SL$35,$F41) -> FALSE | SM41: =Find_Month(SM$34,SM$35,$F41) -> FALSE | SN41: =Find_Month(SN$34,SN$35,$F41) -> FALSE | SO41: =Find_Month(SO$34,SO$35,$F41) -> FALSE | SP41: =Find_Month(SP$34,SP$35,$F41) -> FALSE | SQ41: =Find_Month(SQ$34,SQ$35,$F41) -> FALSE | SR41: =Find_Month(SR$34,SR$35,$F41) -> FALSE | SS41: =Find_Month(SS$34,SS$35,$F41) -> FALSE | ST41: =Find_Month(ST$34,ST$35,$F41) -> FALSE | SU41: =Find_Month(SU$34,SU$35,$F41) -> FALSE | SV41: =Find_Month(SV$34,SV$35,$F41) -> FALSE | SW41: =Find_Month(SW$34,SW$35,$F41) -> FALSE | SX41: =Find_Month(SX$34,SX$35,$F41) -> FALSE | SY41: =Find_Month(SY$34,SY$35,$F41) -> FALSE | SZ41: =Find_Month(SZ$34,SZ$35,$F41) -> FALSE | TA41: =Find_Month(TA$34,TA$35,$F41) -> FALSE | TB41: =Find_Month(TB$34,TB$35,$F41) -> FALSE | TC41: =Find_Month(TC$34,TC$35,$F41) -> FALSE | TD41: =Find_Month(TD$34,TD$35,$F41) -> FALSE | TE41: =Find_Month(TE$34,TE$35,$F41) -> FALSE | TF41: =Find_Month(TF$34,TF$35,$F41) -> FALSE | TG41: =Find_Month(TG$34,TG$35,$F41) -> FALSE | TH41: =Find_Month(TH$34,TH$35,$F41) -> FALSE | TI41: =Find_Month(TI$34,TI$35,$F41) -> FALSE | TJ41: =Find_Month(TJ$34,TJ$35,$F41) -> FALSE | TK41: =Find_Month(TK$34,TK$35,$F41) -> FALSE | TL41: =Find_Month(TL$34,TL$35,$F41) -> FALSE | TM41: =Find_Month(TM$34,TM$35,$F41) -> FALSE | TN41: =Find_Month(TN$34,TN$35,$F41) -> FALSE | TO41: =Find_Month(TO$34,TO$35,$F41) -> FALSE | TP41: =Find_Month(TP$34,TP$35,$F41) -> FALSE | TQ41: =Find_Month(TQ$34,TQ$35,$F41) -> FALSE | TR41: =Find_Month(TR$34,TR$35,$F41) -> FALSE | TS41: =Find_Month(TS$34,TS$35,$F41) -> FALSE | TT41: =Find_Month(TT$34,TT$35,$F41) -> FALSE | TU41: =Find_Month(TU$34,TU$35,$F41) -> FALSE | TV41: =Find_Month(TV$34,TV$35,$F41) -> FALSE | TW41: =Find_Month(TW$34,TW$35,$F41) -> FALSE | TX41: =Find_Month(TX$34,TX$35,$F41) -> FALSE | TY41: =Find_Month(TY$34,TY$35,$F41) -> FALSE
F42: 5 | G42: =DataBook!O226 -> 189.6111111 | H42: 0.1171644353 | J42: =Find_Month(J$34,J$35,$F42) -> FALSE | K42: =Find_Month(K$34,K$35,$F42) -> FALSE | L42: =Find_Month(L$34,L$35,$F42) -> FALSE | M42: =Find_Month(M$34,M$35,$F42) -> FALSE | N42: =Find_Month(N$34,N$35,$F42) -> FALSE | O42: =Find_Month(O$34,O$35,$F42) -> FALSE | P42: =Find_Month(P$34,P$35,$F42) -> TRUE | Q42: =Find_Month(Q$34,Q$35,$F42) -> FALSE | R42: =Find_Month(R$34,R$35,$F42) -> FALSE | S42: =Find_Month(S$34,S$35,$F42) -> FALSE | T42: =Find_Month(T$34,T$35,$F42) -> FALSE | U42: =Find_Month(U$34,U$35,$F42) -> FALSE | V42: =Find_Month(V$34,V$35,$F42) -> FALSE | W42: =Find_Month(W$34,W$35,$F42) -> FALSE | X42: =Find_Month(X$34,X$35,$F42) -> FALSE | Y42: =Find_Month(Y$34,Y$35,$F42) -> FALSE | Z42: =Find_Month(Z$34,Z$35,$F42) -> FALSE | AA42: =Find_Month(AA$34,AA$35,$F42) -> FALSE | AB42: =Find_Month(AB$34,AB$35,$F42) -> TRUE | AC42: =Find_Month(AC$34,AC$35,$F42) -> FALSE | AD42: =Find_Month(AD$34,AD$35,$F42) -> FALSE | AE42: =Find_Month(AE$34,AE$35,$F42) -> FALSE | AF42: =Find_Month(AF$34,AF$35,$F42) -> FALSE | AG42: =Find_Month(AG$34,AG$35,$F42) -> FALSE | AH42: =Find_Month(AH$34,AH$35,$F42) -> FALSE | AI42: =Find_Month(AI$34,AI$35,$F42) -> FALSE | AJ42: =Find_Month(AJ$34,AJ$35,$F42) -> FALSE | AK42: =Find_Month(AK$34,AK$35,$F42) -> FALSE | AL42: =Find_Month(AL$34,AL$35,$F42) -> FALSE | AM42: =Find_Month(AM$34,AM$35,$F42) -> FALSE | AN42: =Find_Month(AN$34,AN$35,$F42) -> TRUE | AO42: =Find_Month(AO$34,AO$35,$F42) -> FALSE | AP42: =Find_Month(AP$34,AP$35,$F42) -> FALSE | AQ42: =Find_Month(AQ$34,AQ$35,$F42) -> FALSE | AR42: =Find_Month(AR$34,AR$35,$F42) -> FALSE | AS42: =Find_Month(AS$34,AS$35,$F42) -> FALSE | AT42: =Find_Month(AT$34,AT$35,$F42) -> FALSE | AU42: =Find_Month(AU$34,AU$35,$F42) -> FALSE | AV42: =Find_Month(AV$34,AV$35,$F42) -> FALSE | AW42: =Find_Month(AW$34,AW$35,$F42) -> FALSE | AX42: =Find_Month(AX$34,AX$35,$F42) -> FALSE | AY42: =Find_Month(AY$34,AY$35,$F42) -> FALSE | AZ42: =Find_Month(AZ$34,AZ$35,$F42) -> TRUE | BA42: =Find_Month(BA$34,BA$35,$F42) -> FALSE | BB42: =Find_Month(BB$34,BB$35,$F42) -> FALSE | BC42: =Find_Month(BC$34,BC$35,$F42) -> FALSE | BD42: =Find_Month(BD$34,BD$35,$F42) -> FALSE | BE42: =Find_Month(BE$34,BE$35,$F42) -> FALSE | BF42: =Find_Month(BF$34,BF$35,$F42) -> FALSE | BG42: =Find_Month(BG$34,BG$35,$F42) -> FALSE | BH42: =Find_Month(BH$34,BH$35,$F42) -> FALSE | BI42: =Find_Month(BI$34,BI$35,$F42) -> FALSE | BJ42: =Find_Month(BJ$34,BJ$35,$F42) -> FALSE | BK42: =Find_Month(BK$34,BK$35,$F42) -> FALSE | BL42: =Find_Month(BL$34,BL$35,$F42) -> TRUE | BM42: =Find_Month(BM$34,BM$35,$F42) -> FALSE | BN42: =Find_Month(BN$34,BN$35,$F42) -> FALSE | BO42: =Find_Month(BO$34,BO$35,$F42) -> FALSE | BP42: =Find_Month(BP$34,BP$35,$F42) -> FALSE | BQ42: =Find_Month(BQ$34,BQ$35,$F42) -> FALSE | BR42: =Find_Month(BR$34,BR$35,$F42) -> FALSE | BS42: =Find_Month(BS$34,BS$35,$F42) -> FALSE | BT42: =Find_Month(BT$34,BT$35,$F42) -> FALSE | BU42: =Find_Month(BU$34,BU$35,$F42) -> FALSE | BV42: =Find_Month(BV$34,BV$35,$F42) -> FALSE | BW42: =Find_Month(BW$34,BW$35,$F42) -> FALSE | BX42: =Find_Month(BX$34,BX$35,$F42) -> TRUE | BY42: =Find_Month(BY$34,BY$35,$F42) -> FALSE | BZ42: =Find_Month(BZ$34,BZ$35,$F42) -> FALSE | CA42: =Find_Month(CA$34,CA$35,$F42) -> FALSE | CB42: =Find_Month(CB$34,CB$35,$F42) -> FALSE | CC42: =Find_Month(CC$34,CC$35,$F42) -> FALSE | CD42: =Find_Month(CD$34,CD$35,$F42) -> FALSE | CE42: =Find_Month(CE$34,CE$35,$F42) -> FALSE | CF42: =Find_Month(CF$34,CF$35,$F42) -> FALSE | CG42: =Find_Month(CG$34,CG$35,$F42) -> FALSE | CH42: =Find_Month(CH$34,CH$35,$F42) -> FALSE | CI42: =Find_Month(CI$34,CI$35,$F42) -> FALSE | CJ42: =Find_Month(CJ$34,CJ$35,$F42) -> TRUE | CK42: =Find_Month(CK$34,CK$35,$F42) -> FALSE | CL42: =Find_Month(CL$34,CL$35,$F42) -> FALSE | CM42: =Find_Month(CM$34,CM$35,$F42) -> FALSE | CN42: =Find_Month(CN$34,CN$35,$F42) -> FALSE | CO42: =Find_Month(CO$34,CO$35,$F42) -> FALSE | CP42: =Find_Month(CP$34,CP$35,$F42) -> FALSE | CQ42: =Find_Month(CQ$34,CQ$35,$F42) -> FALSE | CR42: =Find_Month(CR$34,CR$35,$F42) -> FALSE | CS42: =Find_Month(CS$34,CS$35,$F42) -> FALSE | CT42: =Find_Month(CT$34,CT$35,$F42) -> FALSE | CU42: =Find_Month(CU$34,CU$35,$F42) -> FALSE | CV42: =Find_Month(CV$34,CV$35,$F42) -> TRUE | CW42: =Find_Month(CW$34,CW$35,$F42) -> FALSE | CX42: =Find_Month(CX$34,CX$35,$F42) -> FALSE | CY42: =Find_Month(CY$34,CY$35,$F42) -> FALSE | CZ42: =Find_Month(CZ$34,CZ$35,$F42) -> FALSE | DA42: =Find_Month(DA$34,DA$35,$F42) -> FALSE | DB42: =Find_Month(DB$34,DB$35,$F42) -> FALSE | DC42: =Find_Month(DC$34,DC$35,$F42) -> FALSE | DD42: =Find_Month(DD$34,DD$35,$F42) -> FALSE | DE42: =Find_Month(DE$34,DE$35,$F42) -> FALSE | DF42: =Find_Month(DF$34,DF$35,$F42) -> FALSE | DG42: =Find_Month(DG$34,DG$35,$F42) -> FALSE | DH42: =Find_Month(DH$34,DH$35,$F42) -> TRUE | DI42: =Find_Month(DI$34,DI$35,$F42) -> FALSE | DJ42: =Find_Month(DJ$34,DJ$35,$F42) -> FALSE | DK42: =Find_Month(DK$34,DK$35,$F42) -> FALSE | DL42: =Find_Month(DL$34,DL$35,$F42) -> FALSE | DM42: =Find_Month(DM$34,DM$35,$F42) -> FALSE | DN42: =Find_Month(DN$34,DN$35,$F42) -> FALSE | DO42: =Find_Month(DO$34,DO$35,$F42) -> FALSE | DP42: =Find_Month(DP$34,DP$35,$F42) -> FALSE | DQ42: =Find_Month(DQ$34,DQ$35,$F42) -> FALSE | DR42: =Find_Month(DR$34,DR$35,$F42) -> FALSE | DS42: =Find_Month(DS$34,DS$35,$F42) -> FALSE | DT42: =Find_Month(DT$34,DT$35,$F42) -> TRUE | DU42: =Find_Month(DU$34,DU$35,$F42) -> FALSE | DV42: =Find_Month(DV$34,DV$35,$F42) -> FALSE | DW42: =Find_Month(DW$34,DW$35,$F42) -> FALSE | DX42: =Find_Month(DX$34,DX$35,$F42) -> FALSE | DY42: =Find_Month(DY$34,DY$35,$F42) -> FALSE | DZ42: =Find_Month(DZ$34,DZ$35,$F42) -> FALSE | EA42: =Find_Month(EA$34,EA$35,$F42) -> FALSE | EB42: =Find_Month(EB$34,EB$35,$F42) -> FALSE | EC42: =Find_Month(EC$34,EC$35,$F42) -> FALSE | ED42: =Find_Month(ED$34,ED$35,$F42) -> FALSE | EE42: =Find_Month(EE$34,EE$35,$F42) -> FALSE | EF42: =Find_Month(EF$34,EF$35,$F42) -> TRUE | EG42: =Find_Month(EG$34,EG$35,$F42) -> FALSE | EH42: =Find_Month(EH$34,EH$35,$F42) -> FALSE | EI42: =Find_Month(EI$34,EI$35,$F42) -> FALSE | EJ42: =Find_Month(EJ$34,EJ$35,$F42) -> FALSE | EK42: =Find_Month(EK$34,EK$35,$F42) -> FALSE | EL42: =Find_Month(EL$34,EL$35,$F42) -> FALSE | EM42: =Find_Month(EM$34,EM$35,$F42) -> FALSE | EN42: =Find_Month(EN$34,EN$35,$F42) -> FALSE | EO42: =Find_Month(EO$34,EO$35,$F42) -> FALSE | EP42: =Find_Month(EP$34,EP$35,$F42) -> FALSE | EQ42: =Find_Month(EQ$34,EQ$35,$F42) -> FALSE | ER42: =Find_Month(ER$34,ER$35,$F42) -> TRUE | ES42: =Find_Month(ES$34,ES$35,$F42) -> FALSE | ET42: =Find_Month(ET$34,ET$35,$F42) -> FALSE | EU42: =Find_Month(EU$34,EU$35,$F42) -> FALSE | EV42: =Find_Month(EV$34,EV$35,$F42) -> FALSE | EW42: =Find_Month(EW$34,EW$35,$F42) -> FALSE | EX42: =Find_Month(EX$34,EX$35,$F42) -> FALSE | EY42: =Find_Month(EY$34,EY$35,$F42) -> FALSE | EZ42: =Find_Month(EZ$34,EZ$35,$F42) -> FALSE | FA42: =Find_Month(FA$34,FA$35,$F42) -> FALSE | FB42: =Find_Month(FB$34,FB$35,$F42) -> FALSE | FC42: =Find_Month(FC$34,FC$35,$F42) -> FALSE | FD42: =Find_Month(FD$34,FD$35,$F42) -> TRUE | FE42: =Find_Month(FE$34,FE$35,$F42) -> FALSE | FF42: =Find_Month(FF$34,FF$35,$F42) -> FALSE | FG42: =Find_Month(FG$34,FG$35,$F42) -> FALSE | FH42: =Find_Month(FH$34,FH$35,$F42) -> FALSE | FI42: =Find_Month(FI$34,FI$35,$F42) -> FALSE | FJ42: =Find_Month(FJ$34,FJ$35,$F42) -> FALSE | FK42: =Find_Month(FK$34,FK$35,$F42) -> FALSE | FL42: =Find_Month(FL$34,FL$35,$F42) -> FALSE | FM42: =Find_Month(FM$34,FM$35,$F42) -> FALSE | FN42: =Find_Month(FN$34,FN$35,$F42) -> FALSE | FO42: =Find_Month(FO$34,FO$35,$F42) -> FALSE | FP42: =Find_Month(FP$34,FP$35,$F42) -> TRUE | FQ42: =Find_Month(FQ$34,FQ$35,$F42) -> FALSE | FR42: =Find_Month(FR$34,FR$35,$F42) -> FALSE | FS42: =Find_Month(FS$34,FS$35,$F42) -> FALSE | FT42: =Find_Month(FT$34,FT$35,$F42) -> FALSE | FU42: =Find_Month(FU$34,FU$35,$F42) -> FALSE | FV42: =Find_Month(FV$34,FV$35,$F42) -> FALSE | FW42: =Find_Month(FW$34,FW$35,$F42) -> FALSE | FX42: =Find_Month(FX$34,FX$35,$F42) -> FALSE | FY42: =Find_Month(FY$34,FY$35,$F42) -> FALSE | FZ42: =Find_Month(FZ$34,FZ$35,$F42) -> FALSE | GA42: =Find_Month(GA$34,GA$35,$F42) -> FALSE | GB42: =Find_Month(GB$34,GB$35,$F42) -> TRUE | GC42: =Find_Month(GC$34,GC$35,$F42) -> FALSE | GD42: =Find_Month(GD$34,GD$35,$F42) -> FALSE | GE42: =Find_Month(GE$34,GE$35,$F42) -> FALSE | GF42: =Find_Month(GF$34,GF$35,$F42) -> FALSE | GG42: =Find_Month(GG$34,GG$35,$F42) -> FALSE | GH42: =Find_Month(GH$34,GH$35,$F42) -> FALSE | GI42: =Find_Month(GI$34,GI$35,$F42) -> FALSE | GJ42: =Find_Month(GJ$34,GJ$35,$F42) -> FALSE | GK42: =Find_Month(GK$34,GK$35,$F42) -> FALSE | GL42: =Find_Month(GL$34,GL$35,$F42) -> FALSE | GM42: =Find_Month(GM$34,GM$35,$F42) -> FALSE | GN42: =Find_Month(GN$34,GN$35,$F42) -> TRUE | GO42: =Find_Month(GO$34,GO$35,$F42) -> FALSE | GP42: =Find_Month(GP$34,GP$35,$F42) -> FALSE | GQ42: =Find_Month(GQ$34,GQ$35,$F42) -> FALSE | GR42: =Find_Month(GR$34,GR$35,$F42) -> FALSE | GS42: =Find_Month(GS$34,GS$35,$F42) -> FALSE | GT42: =Find_Month(GT$34,GT$35,$F42) -> FALSE | GU42: =Find_Month(GU$34,GU$35,$F42) -> FALSE | GV42: =Find_Month(GV$34,GV$35,$F42) -> FALSE | GW42: =Find_Month(GW$34,GW$35,$F42) -> FALSE | GX42: =Find_Month(GX$34,GX$35,$F42) -> FALSE | GY42: =Find_Month(GY$34,GY$35,$F42) -> FALSE | GZ42: =Find_Month(GZ$34,GZ$35,$F42) -> TRUE | HA42: =Find_Month(HA$34,HA$35,$F42) -> FALSE | HB42: =Find_Month(HB$34,HB$35,$F42) -> FALSE | HC42: =Find_Month(HC$34,HC$35,$F42) -> FALSE | HD42: =Find_Month(HD$34,HD$35,$F42) -> FALSE | HE42: =Find_Month(HE$34,HE$35,$F42) -> FALSE | HF42: =Find_Month(HF$34,HF$35,$F42) -> FALSE | HG42: =Find_Month(HG$34,HG$35,$F42) -> FALSE | HH42: =Find_Month(HH$34,HH$35,$F42) -> FALSE | HI42: =Find_Month(HI$34,HI$35,$F42) -> FALSE | HJ42: =Find_Month(HJ$34,HJ$35,$F42) -> FALSE | HK42: =Find_Month(HK$34,HK$35,$F42) -> FALSE | HL42: =Find_Month(HL$34,HL$35,$F42) -> TRUE | HM42: =Find_Month(HM$34,HM$35,$F42) -> FALSE | HN42: =Find_Month(HN$34,HN$35,$F42) -> FALSE | HO42: =Find_Month(HO$34,HO$35,$F42) -> FALSE | HP42: =Find_Month(HP$34,HP$35,$F42) -> FALSE | HQ42: =Find_Month(HQ$34,HQ$35,$F42) -> FALSE | HR42: =Find_Month(HR$34,HR$35,$F42) -> FALSE | HS42: =Find_Month(HS$34,HS$35,$F42) -> FALSE | HT42: =Find_Month(HT$34,HT$35,$F42) -> FALSE | HU42: =Find_Month(HU$34,HU$35,$F42) -> FALSE | HV42: =Find_Month(HV$34,HV$35,$F42) -> FALSE | HW42: =Find_Month(HW$34,HW$35,$F42) -> FALSE | HX42: =Find_Month(HX$34,HX$35,$F42) -> TRUE | HY42: =Find_Month(HY$34,HY$35,$F42) -> FALSE | HZ42: =Find_Month(HZ$34,HZ$35,$F42) -> FALSE | IA42: =Find_Month(IA$34,IA$35,$F42) -> FALSE | IB42: =Find_Month(IB$34,IB$35,$F42) -> FALSE | IC42: =Find_Month(IC$34,IC$35,$F42) -> FALSE | ID42: =Find_Month(ID$34,ID$35,$F42) -> FALSE | IE42: =Find_Month(IE$34,IE$35,$F42) -> FALSE | IF42: =Find_Month(IF$34,IF$35,$F42) -> FALSE | IG42: =Find_Month(IG$34,IG$35,$F42) -> FALSE | IH42: =Find_Month(IH$34,IH$35,$F42) -> FALSE | II42: =Find_Month(II$34,II$35,$F42) -> FALSE | IJ42: =Find_Month(IJ$34,IJ$35,$F42) -> TRUE | IK42: =Find_Month(IK$34,IK$35,$F42) -> FALSE | IL42: =Find_Month(IL$34,IL$35,$F42) -> FALSE | IM42: =Find_Month(IM$34,IM$35,$F42) -> FALSE | IN42: =Find_Month(IN$34,IN$35,$F42) -> FALSE | IO42: =Find_Month(IO$34,IO$35,$F42) -> FALSE | IP42: =Find_Month(IP$34,IP$35,$F42) -> FALSE | IQ42: =Find_Month(IQ$34,IQ$35,$F42) -> FALSE | IR42: =Find_Month(IR$34,IR$35,$F42) -> FALSE | IS42: =Find_Month(IS$34,IS$35,$F42) -> FALSE | IT42: =Find_Month(IT$34,IT$35,$F42) -> FALSE | IU42: =Find_Month(IU$34,IU$35,$F42) -> FALSE | IV42: =Find_Month(IV$34,IV$35,$F42) -> TRUE | IW42: =Find_Month(IW$34,IW$35,$F42) -> FALSE | IX42: =Find_Month(IX$34,IX$35,$F42) -> FALSE | IY42: =Find_Month(IY$34,IY$35,$F42) -> FALSE | IZ42: =Find_Month(IZ$34,IZ$35,$F42) -> FALSE | JA42: =Find_Month(JA$34,JA$35,$F42) -> FALSE | JB42: =Find_Month(JB$34,JB$35,$F42) -> FALSE | JC42: =Find_Month(JC$34,JC$35,$F42) -> FALSE | JD42: =Find_Month(JD$34,JD$35,$F42) -> FALSE | JE42: =Find_Month(JE$34,JE$35,$F42) -> FALSE | JF42: =Find_Month(JF$34,JF$35,$F42) -> FALSE | JG42: =Find_Month(JG$34,JG$35,$F42) -> FALSE | JH42: =Find_Month(JH$34,JH$35,$F42) -> TRUE | JI42: =Find_Month(JI$34,JI$35,$F42) -> FALSE | JJ42: =Find_Month(JJ$34,JJ$35,$F42) -> FALSE | JK42: =Find_Month(JK$34,JK$35,$F42) -> FALSE | JL42: =Find_Month(JL$34,JL$35,$F42) -> FALSE | JM42: =Find_Month(JM$34,JM$35,$F42) -> FALSE | JN42: =Find_Month(JN$34,JN$35,$F42) -> FALSE | JO42: =Find_Month(JO$34,JO$35,$F42) -> FALSE | JP42: =Find_Month(JP$34,JP$35,$F42) -> FALSE | JQ42: =Find_Month(JQ$34,JQ$35,$F42) -> FALSE | JR42: =Find_Month(JR$34,JR$35,$F42) -> FALSE | JS42: =Find_Month(JS$34,JS$35,$F42) -> FALSE | JT42: =Find_Month(JT$34,JT$35,$F42) -> TRUE | JU42: =Find_Month(JU$34,JU$35,$F42) -> FALSE | JV42: =Find_Month(JV$34,JV$35,$F42) -> FALSE | JW42: =Find_Month(JW$34,JW$35,$F42) -> FALSE | JX42: =Find_Month(JX$34,JX$35,$F42) -> FALSE | JY42: =Find_Month(JY$34,JY$35,$F42) -> FALSE | JZ42: =Find_Month(JZ$34,JZ$35,$F42) -> FALSE | KA42: =Find_Month(KA$34,KA$35,$F42) -> FALSE | KB42: =Find_Month(KB$34,KB$35,$F42) -> FALSE | KC42: =Find_Month(KC$34,KC$35,$F42) -> FALSE | KD42: =Find_Month(KD$34,KD$35,$F42) -> FALSE | KE42: =Find_Month(KE$34,KE$35,$F42) -> FALSE | KF42: =Find_Month(KF$34,KF$35,$F42) -> TRUE | KG42: =Find_Month(KG$34,KG$35,$F42) -> FALSE | KH42: =Find_Month(KH$34,KH$35,$F42) -> FALSE | KI42: =Find_Month(KI$34,KI$35,$F42) -> FALSE | KJ42: =Find_Month(KJ$34,KJ$35,$F42) -> FALSE | KK42: =Find_Month(KK$34,KK$35,$F42) -> FALSE | KL42: =Find_Month(KL$34,KL$35,$F42) -> FALSE | KM42: =Find_Month(KM$34,KM$35,$F42) -> FALSE | KN42: =Find_Month(KN$34,KN$35,$F42) -> FALSE | KO42: =Find_Month(KO$34,KO$35,$F42) -> FALSE | KP42: =Find_Month(KP$34,KP$35,$F42) -> FALSE | KQ42: =Find_Month(KQ$34,KQ$35,$F42) -> FALSE | KR42: =Find_Month(KR$34,KR$35,$F42) -> TRUE | KS42: =Find_Month(KS$34,KS$35,$F42) -> FALSE | KT42: =Find_Month(KT$34,KT$35,$F42) -> FALSE | KU42: =Find_Month(KU$34,KU$35,$F42) -> FALSE | KV42: =Find_Month(KV$34,KV$35,$F42) -> FALSE | KW42: =Find_Month(KW$34,KW$35,$F42) -> FALSE | KX42: =Find_Month(KX$34,KX$35,$F42) -> FALSE | KY42: =Find_Month(KY$34,KY$35,$F42) -> FALSE | KZ42: =Find_Month(KZ$34,KZ$35,$F42) -> FALSE | LA42: =Find_Month(LA$34,LA$35,$F42) -> FALSE | LB42: =Find_Month(LB$34,LB$35,$F42) -> FALSE | LC42: =Find_Month(LC$34,LC$35,$F42) -> FALSE | LD42: =Find_Month(LD$34,LD$35,$F42) -> TRUE | LE42: =Find_Month(LE$34,LE$35,$F42) -> FALSE | LF42: =Find_Month(LF$34,LF$35,$F42) -> FALSE | LG42: =Find_Month(LG$34,LG$35,$F42) -> FALSE | LH42: =Find_Month(LH$34,LH$35,$F42) -> FALSE | LI42: =Find_Month(LI$34,LI$35,$F42) -> FALSE | LJ42: =Find_Month(LJ$34,LJ$35,$F42) -> FALSE | LK42: =Find_Month(LK$34,LK$35,$F42) -> FALSE | LL42: =Find_Month(LL$34,LL$35,$F42) -> FALSE | LM42: =Find_Month(LM$34,LM$35,$F42) -> FALSE | LN42: =Find_Month(LN$34,LN$35,$F42) -> FALSE | LO42: =Find_Month(LO$34,LO$35,$F42) -> FALSE | LP42: =Find_Month(LP$34,LP$35,$F42) -> TRUE | LQ42: =Find_Month(LQ$34,LQ$35,$F42) -> FALSE | LR42: =Find_Month(LR$34,LR$35,$F42) -> FALSE | LS42: =Find_Month(LS$34,LS$35,$F42) -> FALSE | LT42: =Find_Month(LT$34,LT$35,$F42) -> FALSE | LU42: =Find_Month(LU$34,LU$35,$F42) -> FALSE | LV42: =Find_Month(LV$34,LV$35,$F42) -> FALSE | LW42: =Find_Month(LW$34,LW$35,$F42) -> FALSE | LX42: =Find_Month(LX$34,LX$35,$F42) -> FALSE | LY42: =Find_Month(LY$34,LY$35,$F42) -> FALSE | LZ42: =Find_Month(LZ$34,LZ$35,$F42) -> FALSE | MA42: =Find_Month(MA$34,MA$35,$F42) -> FALSE | MB42: =Find_Month(MB$34,MB$35,$F42) -> TRUE | MC42: =Find_Month(MC$34,MC$35,$F42) -> FALSE | MD42: =Find_Month(MD$34,MD$35,$F42) -> FALSE | ME42: =Find_Month(ME$34,ME$35,$F42) -> FALSE | MF42: =Find_Month(MF$34,MF$35,$F42) -> FALSE | MG42: =Find_Month(MG$34,MG$35,$F42) -> FALSE | MH42: =Find_Month(MH$34,MH$35,$F42) -> FALSE | MI42: =Find_Month(MI$34,MI$35,$F42) -> FALSE | MJ42: =Find_Month(MJ$34,MJ$35,$F42) -> FALSE | MK42: =Find_Month(MK$34,MK$35,$F42) -> FALSE | ML42: =Find_Month(ML$34,ML$35,$F42) -> FALSE | MM42: =Find_Month(MM$34,MM$35,$F42) -> FALSE | MN42: =Find_Month(MN$34,MN$35,$F42) -> TRUE | MO42: =Find_Month(MO$34,MO$35,$F42) -> FALSE | MP42: =Find_Month(MP$34,MP$35,$F42) -> FALSE | MQ42: =Find_Month(MQ$34,MQ$35,$F42) -> FALSE | MR42: =Find_Month(MR$34,MR$35,$F42) -> FALSE | MS42: =Find_Month(MS$34,MS$35,$F42) -> FALSE | MT42: =Find_Month(MT$34,MT$35,$F42) -> FALSE | MU42: =Find_Month(MU$34,MU$35,$F42) -> FALSE | MV42: =Find_Month(MV$34,MV$35,$F42) -> FALSE | MW42: =Find_Month(MW$34,MW$35,$F42) -> FALSE | MX42: =Find_Month(MX$34,MX$35,$F42) -> FALSE | MY42: =Find_Month(MY$34,MY$35,$F42) -> FALSE | MZ42: =Find_Month(MZ$34,MZ$35,$F42) -> TRUE | NA42: =Find_Month(NA$34,NA$35,$F42) -> FALSE | NB42: =Find_Month(NB$34,NB$35,$F42) -> FALSE | NC42: =Find_Month(NC$34,NC$35,$F42) -> FALSE | ND42: =Find_Month(ND$34,ND$35,$F42) -> FALSE | NE42: =Find_Month(NE$34,NE$35,$F42) -> FALSE | NF42: =Find_Month(NF$34,NF$35,$F42) -> FALSE | NG42: =Find_Month(NG$34,NG$35,$F42) -> FALSE | NH42: =Find_Month(NH$34,NH$35,$F42) -> FALSE | NI42: =Find_Month(NI$34,NI$35,$F42) -> FALSE | NJ42: =Find_Month(NJ$34,NJ$35,$F42) -> FALSE | NK42: =Find_Month(NK$34,NK$35,$F42) -> FALSE | NL42: =Find_Month(NL$34,NL$35,$F42) -> TRUE | NM42: =Find_Month(NM$34,NM$35,$F42) -> FALSE | NN42: =Find_Month(NN$34,NN$35,$F42) -> FALSE | NO42: =Find_Month(NO$34,NO$35,$F42) -> FALSE | NP42: =Find_Month(NP$34,NP$35,$F42) -> FALSE | NQ42: =Find_Month(NQ$34,NQ$35,$F42) -> FALSE | NR42: =Find_Month(NR$34,NR$35,$F42) -> FALSE | NS42: =Find_Month(NS$34,NS$35,$F42) -> FALSE | NT42: =Find_Month(NT$34,NT$35,$F42) -> FALSE | NU42: =Find_Month(NU$34,NU$35,$F42) -> FALSE | NV42: =Find_Month(NV$34,NV$35,$F42) -> FALSE | NW42: =Find_Month(NW$34,NW$35,$F42) -> FALSE | NX42: =Find_Month(NX$34,NX$35,$F42) -> TRUE | NY42: =Find_Month(NY$34,NY$35,$F42) -> FALSE | NZ42: =Find_Month(NZ$34,NZ$35,$F42) -> FALSE | OA42: =Find_Month(OA$34,OA$35,$F42) -> FALSE | OB42: =Find_Month(OB$34,OB$35,$F42) -> FALSE | OC42: =Find_Month(OC$34,OC$35,$F42) -> FALSE | OD42: =Find_Month(OD$34,OD$35,$F42) -> FALSE | OE42: =Find_Month(OE$34,OE$35,$F42) -> FALSE | OF42: =Find_Month(OF$34,OF$35,$F42) -> FALSE | OG42: =Find_Month(OG$34,OG$35,$F42) -> FALSE | OH42: =Find_Month(OH$34,OH$35,$F42) -> FALSE | OI42: =Find_Month(OI$34,OI$35,$F42) -> FALSE | OJ42: =Find_Month(OJ$34,OJ$35,$F42) -> TRUE | OK42: =Find_Month(OK$34,OK$35,$F42) -> FALSE | OL42: =Find_Month(OL$34,OL$35,$F42) -> FALSE | OM42: =Find_Month(OM$34,OM$35,$F42) -> FALSE | ON42: =Find_Month(ON$34,ON$35,$F42) -> FALSE | OO42: =Find_Month(OO$34,OO$35,$F42) -> FALSE | OP42: =Find_Month(OP$34,OP$35,$F42) -> FALSE | OQ42: =Find_Month(OQ$34,OQ$35,$F42) -> FALSE | OR42: =Find_Month(OR$34,OR$35,$F42) -> FALSE | OS42: =Find_Month(OS$34,OS$35,$F42) -> FALSE | OT42: =Find_Month(OT$34,OT$35,$F42) -> FALSE | OU42: =Find_Month(OU$34,OU$35,$F42) -> FALSE | OV42: =Find_Month(OV$34,OV$35,$F42) -> TRUE | OW42: =Find_Month(OW$34,OW$35,$F42) -> FALSE | OX42: =Find_Month(OX$34,OX$35,$F42) -> FALSE | OY42: =Find_Month(OY$34,OY$35,$F42) -> FALSE | OZ42: =Find_Month(OZ$34,OZ$35,$F42) -> FALSE | PA42: =Find_Month(PA$34,PA$35,$F42) -> FALSE | PB42: =Find_Month(PB$34,PB$35,$F42) -> FALSE | PC42: =Find_Month(PC$34,PC$35,$F42) -> FALSE | PD42: =Find_Month(PD$34,PD$35,$F42) -> FALSE | PE42: =Find_Month(PE$34,PE$35,$F42) -> FALSE | PF42: =Find_Month(PF$34,PF$35,$F42) -> FALSE | PG42: =Find_Month(PG$34,PG$35,$F42) -> FALSE | PH42: =Find_Month(PH$34,PH$35,$F42) -> TRUE | PI42: =Find_Month(PI$34,PI$35,$F42) -> FALSE | PJ42: =Find_Month(PJ$34,PJ$35,$F42) -> FALSE | PK42: =Find_Month(PK$34,PK$35,$F42) -> FALSE | PL42: =Find_Month(PL$34,PL$35,$F42) -> FALSE | PM42: =Find_Month(PM$34,PM$35,$F42) -> FALSE | PN42: =Find_Month(PN$34,PN$35,$F42) -> FALSE | PO42: =Find_Month(PO$34,PO$35,$F42) -> FALSE | PP42: =Find_Month(PP$34,PP$35,$F42) -> FALSE | PQ42: =Find_Month(PQ$34,PQ$35,$F42) -> FALSE | PR42: =Find_Month(PR$34,PR$35,$F42) -> FALSE | PS42: =Find_Month(PS$34,PS$35,$F42) -> FALSE | PT42: =Find_Month(PT$34,PT$35,$F42) -> TRUE | PU42: =Find_Month(PU$34,PU$35,$F42) -> FALSE | PV42: =Find_Month(PV$34,PV$35,$F42) -> FALSE | PW42: =Find_Month(PW$34,PW$35,$F42) -> FALSE | PX42: =Find_Month(PX$34,PX$35,$F42) -> FALSE | PY42: =Find_Month(PY$34,PY$35,$F42) -> FALSE | PZ42: =Find_Month(PZ$34,PZ$35,$F42) -> FALSE | QA42: =Find_Month(QA$34,QA$35,$F42) -> FALSE | QB42: =Find_Month(QB$34,QB$35,$F42) -> FALSE | QC42: =Find_Month(QC$34,QC$35,$F42) -> FALSE | QD42: =Find_Month(QD$34,QD$35,$F42) -> FALSE | QE42: =Find_Month(QE$34,QE$35,$F42) -> FALSE | QF42: =Find_Month(QF$34,QF$35,$F42) -> TRUE | QG42: =Find_Month(QG$34,QG$35,$F42) -> FALSE | QH42: =Find_Month(QH$34,QH$35,$F42) -> FALSE | QI42: =Find_Month(QI$34,QI$35,$F42) -> FALSE | QJ42: =Find_Month(QJ$34,QJ$35,$F42) -> FALSE | QK42: =Find_Month(QK$34,QK$35,$F42) -> FALSE | QL42: =Find_Month(QL$34,QL$35,$F42) -> FALSE | QM42: =Find_Month(QM$34,QM$35,$F42) -> FALSE | QN42: =Find_Month(QN$34,QN$35,$F42) -> FALSE | QO42: =Find_Month(QO$34,QO$35,$F42) -> FALSE | QP42: =Find_Month(QP$34,QP$35,$F42) -> FALSE | QQ42: =Find_Month(QQ$34,QQ$35,$F42) -> FALSE | QR42: =Find_Month(QR$34,QR$35,$F42) -> TRUE | QS42: =Find_Month(QS$34,QS$35,$F42) -> FALSE | QT42: =Find_Month(QT$34,QT$35,$F42) -> FALSE | QU42: =Find_Month(QU$34,QU$35,$F42) -> FALSE | QV42: =Find_Month(QV$34,QV$35,$F42) -> FALSE | QW42: =Find_Month(QW$34,QW$35,$F42) -> FALSE | QX42: =Find_Month(QX$34,QX$35,$F42) -> FALSE | QY42: =Find_Month(QY$34,QY$35,$F42) -> FALSE | QZ42: =Find_Month(QZ$34,QZ$35,$F42) -> FALSE | RA42: =Find_Month(RA$34,RA$35,$F42) -> FALSE | RB42: =Find_Month(RB$34,RB$35,$F42) -> FALSE | RC42: =Find_Month(RC$34,RC$35,$F42) -> FALSE | RD42: =Find_Month(RD$34,RD$35,$F42) -> TRUE | RE42: =Find_Month(RE$34,RE$35,$F42) -> FALSE | RF42: =Find_Month(RF$34,RF$35,$F42) -> FALSE | RG42: =Find_Month(RG$34,RG$35,$F42) -> FALSE | RH42: =Find_Month(RH$34,RH$35,$F42) -> FALSE | RI42: =Find_Month(RI$34,RI$35,$F42) -> FALSE | RJ42: =Find_Month(RJ$34,RJ$35,$F42) -> FALSE | RK42: =Find_Month(RK$34,RK$35,$F42) -> FALSE | RL42: =Find_Month(RL$34,RL$35,$F42) -> FALSE | RM42: =Find_Month(RM$34,RM$35,$F42) -> FALSE | RN42: =Find_Month(RN$34,RN$35,$F42) -> FALSE | RO42: =Find_Month(RO$34,RO$35,$F42) -> FALSE | RP42: =Find_Month(RP$34,RP$35,$F42) -> TRUE | RQ42: =Find_Month(RQ$34,RQ$35,$F42) -> FALSE | RR42: =Find_Month(RR$34,RR$35,$F42) -> FALSE | RS42: =Find_Month(RS$34,RS$35,$F42) -> FALSE | RT42: =Find_Month(RT$34,RT$35,$F42) -> FALSE | RU42: =Find_Month(RU$34,RU$35,$F42) -> FALSE | RV42: =Find_Month(RV$34,RV$35,$F42) -> FALSE | RW42: =Find_Month(RW$34,RW$35,$F42) -> FALSE | RX42: =Find_Month(RX$34,RX$35,$F42) -> FALSE | RY42: =Find_Month(RY$34,RY$35,$F42) -> FALSE | RZ42: =Find_Month(RZ$34,RZ$35,$F42) -> FALSE | SA42: =Find_Month(SA$34,SA$35,$F42) -> FALSE | SB42: =Find_Month(SB$34,SB$35,$F42) -> TRUE | SC42: =Find_Month(SC$34,SC$35,$F42) -> FALSE | SD42: =Find_Month(SD$34,SD$35,$F42) -> FALSE | SE42: =Find_Month(SE$34,SE$35,$F42) -> FALSE | SF42: =Find_Month(SF$34,SF$35,$F42) -> FALSE | SG42: =Find_Month(SG$34,SG$35,$F42) -> FALSE | SH42: =Find_Month(SH$34,SH$35,$F42) -> FALSE | SI42: =Find_Month(SI$34,SI$35,$F42) -> FALSE | SJ42: =Find_Month(SJ$34,SJ$35,$F42) -> FALSE | SK42: =Find_Month(SK$34,SK$35,$F42) -> FALSE | SL42: =Find_Month(SL$34,SL$35,$F42) -> FALSE | SM42: =Find_Month(SM$34,SM$35,$F42) -> FALSE | SN42: =Find_Month(SN$34,SN$35,$F42) -> FALSE | SO42: =Find_Month(SO$34,SO$35,$F42) -> FALSE | SP42: =Find_Month(SP$34,SP$35,$F42) -> FALSE | SQ42: =Find_Month(SQ$34,SQ$35,$F42) -> FALSE | SR42: =Find_Month(SR$34,SR$35,$F42) -> FALSE | SS42: =Find_Month(SS$34,SS$35,$F42) -> FALSE | ST42: =Find_Month(ST$34,ST$35,$F42) -> FALSE | SU42: =Find_Month(SU$34,SU$35,$F42) -> FALSE | SV42: =Find_Month(SV$34,SV$35,$F42) -> FALSE | SW42: =Find_Month(SW$34,SW$35,$F42) -> FALSE | SX42: =Find_Month(SX$34,SX$35,$F42) -> FALSE | SY42: =Find_Month(SY$34,SY$35,$F42) -> FALSE | SZ42: =Find_Month(SZ$34,SZ$35,$F42) -> FALSE | TA42: =Find_Month(TA$34,TA$35,$F42) -> FALSE | TB42: =Find_Month(TB$34,TB$35,$F42) -> FALSE | TC42: =Find_Month(TC$34,TC$35,$F42) -> FALSE | TD42: =Find_Month(TD$34,TD$35,$F42) -> FALSE | TE42: =Find_Month(TE$34,TE$35,$F42) -> FALSE | TF42: =Find_Month(TF$34,TF$35,$F42) -> FALSE | TG42: =Find_Month(TG$34,TG$35,$F42) -> FALSE | TH42: =Find_Month(TH$34,TH$35,$F42) -> FALSE | TI42: =Find_Month(TI$34,TI$35,$F42) -> FALSE | TJ42: =Find_Month(TJ$34,TJ$35,$F42) -> FALSE | TK42: =Find_Month(TK$34,TK$35,$F42) -> FALSE | TL42: =Find_Month(TL$34,TL$35,$F42) -> FALSE | TM42: =Find_Month(TM$34,TM$35,$F42) -> FALSE | TN42: =Find_Month(TN$34,TN$35,$F42) -> FALSE | TO42: =Find_Month(TO$34,TO$35,$F42) -> FALSE | TP42: =Find_Month(TP$34,TP$35,$F42) -> FALSE | TQ42: =Find_Month(TQ$34,TQ$35,$F42) -> FALSE | TR42: =Find_Month(TR$34,TR$35,$F42) -> FALSE | TS42: =Find_Month(TS$34,TS$35,$F42) -> FALSE | TT42: =Find_Month(TT$34,TT$35,$F42) -> FALSE | TU42: =Find_Month(TU$34,TU$35,$F42) -> FALSE | TV42: =Find_Month(TV$34,TV$35,$F42) -> FALSE | TW42: =Find_Month(TW$34,TW$35,$F42) -> FALSE | TX42: =Find_Month(TX$34,TX$35,$F42) -> FALSE | TY42: =Find_Month(TY$34,TY$35,$F42) -> FALSE
F43: 6 | G43: =DataBook!O227 -> 207.6444444 | H43: 0.1283075867 | J43: =Find_Month(J$34,J$35,$F43) -> FALSE | K43: =Find_Month(K$34,K$35,$F43) -> FALSE | L43: =Find_Month(L$34,L$35,$F43) -> FALSE | M43: =Find_Month(M$34,M$35,$F43) -> FALSE | N43: =Find_Month(N$34,N$35,$F43) -> FALSE | O43: =Find_Month(O$34,O$35,$F43) -> FALSE | P43: =Find_Month(P$34,P$35,$F43) -> FALSE | Q43: =Find_Month(Q$34,Q$35,$F43) -> TRUE | R43: =Find_Month(R$34,R$35,$F43) -> FALSE | S43: =Find_Month(S$34,S$35,$F43) -> FALSE | T43: =Find_Month(T$34,T$35,$F43) -> FALSE | U43: =Find_Month(U$34,U$35,$F43) -> FALSE | V43: =Find_Month(V$34,V$35,$F43) -> FALSE | W43: =Find_Month(W$34,W$35,$F43) -> FALSE | X43: =Find_Month(X$34,X$35,$F43) -> FALSE | Y43: =Find_Month(Y$34,Y$35,$F43) -> FALSE | Z43: =Find_Month(Z$34,Z$35,$F43) -> FALSE | AA43: =Find_Month(AA$34,AA$35,$F43) -> FALSE | AB43: =Find_Month(AB$34,AB$35,$F43) -> FALSE | AC43: =Find_Month(AC$34,AC$35,$F43) -> TRUE | AD43: =Find_Month(AD$34,AD$35,$F43) -> FALSE | AE43: =Find_Month(AE$34,AE$35,$F43) -> FALSE | AF43: =Find_Month(AF$34,AF$35,$F43) -> FALSE | AG43: =Find_Month(AG$34,AG$35,$F43) -> FALSE | AH43: =Find_Month(AH$34,AH$35,$F43) -> FALSE | AI43: =Find_Month(AI$34,AI$35,$F43) -> FALSE | AJ43: =Find_Month(AJ$34,AJ$35,$F43) -> FALSE | AK43: =Find_Month(AK$34,AK$35,$F43) -> FALSE | AL43: =Find_Month(AL$34,AL$35,$F43) -> FALSE | AM43: =Find_Month(AM$34,AM$35,$F43) -> FALSE | AN43: =Find_Month(AN$34,AN$35,$F43) -> FALSE | AO43: =Find_Month(AO$34,AO$35,$F43) -> TRUE | AP43: =Find_Month(AP$34,AP$35,$F43) -> FALSE | AQ43: =Find_Month(AQ$34,AQ$35,$F43) -> FALSE | AR43: =Find_Month(AR$34,AR$35,$F43) -> FALSE | AS43: =Find_Month(AS$34,AS$35,$F43) -> FALSE | AT43: =Find_Month(AT$34,AT$35,$F43) -> FALSE | AU43: =Find_Month(AU$34,AU$35,$F43) -> FALSE | AV43: =Find_Month(AV$34,AV$35,$F43) -> FALSE | AW43: =Find_Month(AW$34,AW$35,$F43) -> FALSE | AX43: =Find_Month(AX$34,AX$35,$F43) -> FALSE | AY43: =Find_Month(AY$34,AY$35,$F43) -> FALSE | AZ43: =Find_Month(AZ$34,AZ$35,$F43) -> FALSE | BA43: =Find_Month(BA$34,BA$35,$F43) -> TRUE | BB43: =Find_Month(BB$34,BB$35,$F43) -> FALSE | BC43: =Find_Month(BC$34,BC$35,$F43) -> FALSE | BD43: =Find_Month(BD$34,BD$35,$F43) -> FALSE | BE43: =Find_Month(BE$34,BE$35,$F43) -> FALSE | BF43: =Find_Month(BF$34,BF$35,$F43) -> FALSE | BG43: =Find_Month(BG$34,BG$35,$F43) -> FALSE | BH43: =Find_Month(BH$34,BH$35,$F43) -> FALSE | BI43: =Find_Month(BI$34,BI$35,$F43) -> FALSE | BJ43: =Find_Month(BJ$34,BJ$35,$F43) -> FALSE | BK43: =Find_Month(BK$34,BK$35,$F43) -> FALSE | BL43: =Find_Month(BL$34,BL$35,$F43) -> FALSE | BM43: =Find_Month(BM$34,BM$35,$F43) -> TRUE | BN43: =Find_Month(BN$34,BN$35,$F43) -> FALSE | BO43: =Find_Month(BO$34,BO$35,$F43) -> FALSE | BP43: =Find_Month(BP$34,BP$35,$F43) -> FALSE | BQ43: =Find_Month(BQ$34,BQ$35,$F43) -> FALSE | BR43: =Find_Month(BR$34,BR$35,$F43) -> FALSE | BS43: =Find_Month(BS$34,BS$35,$F43) -> FALSE | BT43: =Find_Month(BT$34,BT$35,$F43) -> FALSE | BU43: =Find_Month(BU$34,BU$35,$F43) -> FALSE | BV43: =Find_Month(BV$34,BV$35,$F43) -> FALSE | BW43: =Find_Month(BW$34,BW$35,$F43) -> FALSE | BX43: =Find_Month(BX$34,BX$35,$F43) -> FALSE | BY43: =Find_Month(BY$34,BY$35,$F43) -> TRUE | BZ43: =Find_Month(BZ$34,BZ$35,$F43) -> FALSE | CA43: =Find_Month(CA$34,CA$35,$F43) -> FALSE | CB43: =Find_Month(CB$34,CB$35,$F43) -> FALSE | CC43: =Find_Month(CC$34,CC$35,$F43) -> FALSE | CD43: =Find_Month(CD$34,CD$35,$F43) -> FALSE | CE43: =Find_Month(CE$34,CE$35,$F43) -> FALSE | CF43: =Find_Month(CF$34,CF$35,$F43) -> FALSE | CG43: =Find_Month(CG$34,CG$35,$F43) -> FALSE | CH43: =Find_Month(CH$34,CH$35,$F43) -> FALSE | CI43: =Find_Month(CI$34,CI$35,$F43) -> FALSE | CJ43: =Find_Month(CJ$34,CJ$35,$F43) -> FALSE | CK43: =Find_Month(CK$34,CK$35,$F43) -> TRUE | CL43: =Find_Month(CL$34,CL$35,$F43) -> FALSE | CM43: =Find_Month(CM$34,CM$35,$F43) -> FALSE | CN43: =Find_Month(CN$34,CN$35,$F43) -> FALSE | CO43: =Find_Month(CO$34,CO$35,$F43) -> FALSE | CP43: =Find_Month(CP$34,CP$35,$F43) -> FALSE | CQ43: =Find_Month(CQ$34,CQ$35,$F43) -> FALSE | CR43: =Find_Month(CR$34,CR$35,$F43) -> FALSE | CS43: =Find_Month(CS$34,CS$35,$F43) -> FALSE | CT43: =Find_Month(CT$34,CT$35,$F43) -> FALSE | CU43: =Find_Month(CU$34,CU$35,$F43) -> FALSE | CV43: =Find_Month(CV$34,CV$35,$F43) -> FALSE | CW43: =Find_Month(CW$34,CW$35,$F43) -> TRUE | CX43: =Find_Month(CX$34,CX$35,$F43) -> FALSE | CY43: =Find_Month(CY$34,CY$35,$F43) -> FALSE | CZ43: =Find_Month(CZ$34,CZ$35,$F43) -> FALSE | DA43: =Find_Month(DA$34,DA$35,$F43) -> FALSE | DB43: =Find_Month(DB$34,DB$35,$F43) -> FALSE | DC43: =Find_Month(DC$34,DC$35,$F43) -> FALSE | DD43: =Find_Month(DD$34,DD$35,$F43) -> FALSE | DE43: =Find_Month(DE$34,DE$35,$F43) -> FALSE | DF43: =Find_Month(DF$34,DF$35,$F43) -> FALSE | DG43: =Find_Month(DG$34,DG$35,$F43) -> FALSE | DH43: =Find_Month(DH$34,DH$35,$F43) -> FALSE | DI43: =Find_Month(DI$34,DI$35,$F43) -> TRUE | DJ43: =Find_Month(DJ$34,DJ$35,$F43) -> FALSE | DK43: =Find_Month(DK$34,DK$35,$F43) -> FALSE | DL43: =Find_Month(DL$34,DL$35,$F43) -> FALSE | DM43: =Find_Month(DM$34,DM$35,$F43) -> FALSE | DN43: =Find_Month(DN$34,DN$35,$F43) -> FALSE | DO43: =Find_Month(DO$34,DO$35,$F43) -> FALSE | DP43: =Find_Month(DP$34,DP$35,$F43) -> FALSE | DQ43: =Find_Month(DQ$34,DQ$35,$F43) -> FALSE | DR43: =Find_Month(DR$34,DR$35,$F43) -> FALSE | DS43: =Find_Month(DS$34,DS$35,$F43) -> FALSE | DT43: =Find_Month(DT$34,DT$35,$F43) -> FALSE | DU43: =Find_Month(DU$34,DU$35,$F43) -> TRUE | DV43: =Find_Month(DV$34,DV$35,$F43) -> FALSE | DW43: =Find_Month(DW$34,DW$35,$F43) -> FALSE | DX43: =Find_Month(DX$34,DX$35,$F43) -> FALSE | DY43: =Find_Month(DY$34,DY$35,$F43) -> FALSE | DZ43: =Find_Month(DZ$34,DZ$35,$F43) -> FALSE | EA43: =Find_Month(EA$34,EA$35,$F43) -> FALSE | EB43: =Find_Month(EB$34,EB$35,$F43) -> FALSE | EC43: =Find_Month(EC$34,EC$35,$F43) -> FALSE | ED43: =Find_Month(ED$34,ED$35,$F43) -> FALSE | EE43: =Find_Month(EE$34,EE$35,$F43) -> FALSE | EF43: =Find_Month(EF$34,EF$35,$F43) -> FALSE | EG43: =Find_Month(EG$34,EG$35,$F43) -> TRUE | EH43: =Find_Month(EH$34,EH$35,$F43) -> FALSE | EI43: =Find_Month(EI$34,EI$35,$F43) -> FALSE | EJ43: =Find_Month(EJ$34,EJ$35,$F43) -> FALSE | EK43: =Find_Month(EK$34,EK$35,$F43) -> FALSE | EL43: =Find_Month(EL$34,EL$35,$F43) -> FALSE | EM43: =Find_Month(EM$34,EM$35,$F43) -> FALSE | EN43: =Find_Month(EN$34,EN$35,$F43) -> FALSE | EO43: =Find_Month(EO$34,EO$35,$F43) -> FALSE | EP43: =Find_Month(EP$34,EP$35,$F43) -> FALSE | EQ43: =Find_Month(EQ$34,EQ$35,$F43) -> FALSE | ER43: =Find_Month(ER$34,ER$35,$F43) -> FALSE | ES43: =Find_Month(ES$34,ES$35,$F43) -> TRUE | ET43: =Find_Month(ET$34,ET$35,$F43) -> FALSE | EU43: =Find_Month(EU$34,EU$35,$F43) -> FALSE | EV43: =Find_Month(EV$34,EV$35,$F43) -> FALSE | EW43: =Find_Month(EW$34,EW$35,$F43) -> FALSE | EX43: =Find_Month(EX$34,EX$35,$F43) -> FALSE | EY43: =Find_Month(EY$34,EY$35,$F43) -> FALSE | EZ43: =Find_Month(EZ$34,EZ$35,$F43) -> FALSE | FA43: =Find_Month(FA$34,FA$35,$F43) -> FALSE | FB43: =Find_Month(FB$34,FB$35,$F43) -> FALSE | FC43: =Find_Month(FC$34,FC$35,$F43) -> FALSE | FD43: =Find_Month(FD$34,FD$35,$F43) -> FALSE | FE43: =Find_Month(FE$34,FE$35,$F43) -> TRUE | FF43: =Find_Month(FF$34,FF$35,$F43) -> FALSE | FG43: =Find_Month(FG$34,FG$35,$F43) -> FALSE | FH43: =Find_Month(FH$34,FH$35,$F43) -> FALSE | FI43: =Find_Month(FI$34,FI$35,$F43) -> FALSE | FJ43: =Find_Month(FJ$34,FJ$35,$F43) -> FALSE | FK43: =Find_Month(FK$34,FK$35,$F43) -> FALSE | FL43: =Find_Month(FL$34,FL$35,$F43) -> FALSE | FM43: =Find_Month(FM$34,FM$35,$F43) -> FALSE | FN43: =Find_Month(FN$34,FN$35,$F43) -> FALSE | FO43: =Find_Month(FO$34,FO$35,$F43) -> FALSE | FP43: =Find_Month(FP$34,FP$35,$F43) -> FALSE | FQ43: =Find_Month(FQ$34,FQ$35,$F43) -> TRUE | FR43: =Find_Month(FR$34,FR$35,$F43) -> FALSE | FS43: =Find_Month(FS$34,FS$35,$F43) -> FALSE | FT43: =Find_Month(FT$34,FT$35,$F43) -> FALSE | FU43: =Find_Month(FU$34,FU$35,$F43) -> FALSE | FV43: =Find_Month(FV$34,FV$35,$F43) -> FALSE | FW43: =Find_Month(FW$34,FW$35,$F43) -> FALSE | FX43: =Find_Month(FX$34,FX$35,$F43) -> FALSE | FY43: =Find_Month(FY$34,FY$35,$F43) -> FALSE | FZ43: =Find_Month(FZ$34,FZ$35,$F43) -> FALSE | GA43: =Find_Month(GA$34,GA$35,$F43) -> FALSE | GB43: =Find_Month(GB$34,GB$35,$F43) -> FALSE | GC43: =Find_Month(GC$34,GC$35,$F43) -> TRUE | GD43: =Find_Month(GD$34,GD$35,$F43) -> FALSE | GE43: =Find_Month(GE$34,GE$35,$F43) -> FALSE | GF43: =Find_Month(GF$34,GF$35,$F43) -> FALSE | GG43: =Find_Month(GG$34,GG$35,$F43) -> FALSE | GH43: =Find_Month(GH$34,GH$35,$F43) -> FALSE | GI43: =Find_Month(GI$34,GI$35,$F43) -> FALSE | GJ43: =Find_Month(GJ$34,GJ$35,$F43) -> FALSE | GK43: =Find_Month(GK$34,GK$35,$F43) -> FALSE | GL43: =Find_Month(GL$34,GL$35,$F43) -> FALSE | GM43: =Find_Month(GM$34,GM$35,$F43) -> FALSE | GN43: =Find_Month(GN$34,GN$35,$F43) -> FALSE | GO43: =Find_Month(GO$34,GO$35,$F43) -> TRUE | GP43: =Find_Month(GP$34,GP$35,$F43) -> FALSE | GQ43: =Find_Month(GQ$34,GQ$35,$F43) -> FALSE | GR43: =Find_Month(GR$34,GR$35,$F43) -> FALSE | GS43: =Find_Month(GS$34,GS$35,$F43) -> FALSE | GT43: =Find_Month(GT$34,GT$35,$F43) -> FALSE | GU43: =Find_Month(GU$34,GU$35,$F43) -> FALSE | GV43: =Find_Month(GV$34,GV$35,$F43) -> FALSE | GW43: =Find_Month(GW$34,GW$35,$F43) -> FALSE | GX43: =Find_Month(GX$34,GX$35,$F43) -> FALSE | GY43: =Find_Month(GY$34,GY$35,$F43) -> FALSE | GZ43: =Find_Month(GZ$34,GZ$35,$F43) -> FALSE | HA43: =Find_Month(HA$34,HA$35,$F43) -> TRUE | HB43: =Find_Month(HB$34,HB$35,$F43) -> FALSE | HC43: =Find_Month(HC$34,HC$35,$F43) -> FALSE | HD43: =Find_Month(HD$34,HD$35,$F43) -> FALSE | HE43: =Find_Month(HE$34,HE$35,$F43) -> FALSE | HF43: =Find_Month(HF$34,HF$35,$F43) -> FALSE | HG43: =Find_Month(HG$34,HG$35,$F43) -> FALSE | HH43: =Find_Month(HH$34,HH$35,$F43) -> FALSE | HI43: =Find_Month(HI$34,HI$35,$F43) -> FALSE | HJ43: =Find_Month(HJ$34,HJ$35,$F43) -> FALSE | HK43: =Find_Month(HK$34,HK$35,$F43) -> FALSE | HL43: =Find_Month(HL$34,HL$35,$F43) -> FALSE | HM43: =Find_Month(HM$34,HM$35,$F43) -> TRUE | HN43: =Find_Month(HN$34,HN$35,$F43) -> FALSE | HO43: =Find_Month(HO$34,HO$35,$F43) -> FALSE | HP43: =Find_Month(HP$34,HP$35,$F43) -> FALSE | HQ43: =Find_Month(HQ$34,HQ$35,$F43) -> FALSE | HR43: =Find_Month(HR$34,HR$35,$F43) -> FALSE | HS43: =Find_Month(HS$34,HS$35,$F43) -> FALSE | HT43: =Find_Month(HT$34,HT$35,$F43) -> FALSE | HU43: =Find_Month(HU$34,HU$35,$F43) -> FALSE | HV43: =Find_Month(HV$34,HV$35,$F43) -> FALSE | HW43: =Find_Month(HW$34,HW$35,$F43) -> FALSE | HX43: =Find_Month(HX$34,HX$35,$F43) -> FALSE | HY43: =Find_Month(HY$34,HY$35,$F43) -> TRUE | HZ43: =Find_Month(HZ$34,HZ$35,$F43) -> FALSE | IA43: =Find_Month(IA$34,IA$35,$F43) -> FALSE | IB43: =Find_Month(IB$34,IB$35,$F43) -> FALSE | IC43: =Find_Month(IC$34,IC$35,$F43) -> FALSE | ID43: =Find_Month(ID$34,ID$35,$F43) -> FALSE | IE43: =Find_Month(IE$34,IE$35,$F43) -> FALSE | IF43: =Find_Month(IF$34,IF$35,$F43) -> FALSE | IG43: =Find_Month(IG$34,IG$35,$F43) -> FALSE | IH43: =Find_Month(IH$34,IH$35,$F43) -> FALSE | II43: =Find_Month(II$34,II$35,$F43) -> FALSE | IJ43: =Find_Month(IJ$34,IJ$35,$F43) -> FALSE | IK43: =Find_Month(IK$34,IK$35,$F43) -> TRUE | IL43: =Find_Month(IL$34,IL$35,$F43) -> FALSE | IM43: =Find_Month(IM$34,IM$35,$F43) -> FALSE | IN43: =Find_Month(IN$34,IN$35,$F43) -> FALSE | IO43: =Find_Month(IO$34,IO$35,$F43) -> FALSE | IP43: =Find_Month(IP$34,IP$35,$F43) -> FALSE | IQ43: =Find_Month(IQ$34,IQ$35,$F43) -> FALSE | IR43: =Find_Month(IR$34,IR$35,$F43) -> FALSE | IS43: =Find_Month(IS$34,IS$35,$F43) -> FALSE | IT43: =Find_Month(IT$34,IT$35,$F43) -> FALSE | IU43: =Find_Month(IU$34,IU$35,$F43) -> FALSE | IV43: =Find_Month(IV$34,IV$35,$F43) -> FALSE | IW43: =Find_Month(IW$34,IW$35,$F43) -> TRUE | IX43: =Find_Month(IX$34,IX$35,$F43) -> FALSE | IY43: =Find_Month(IY$34,IY$35,$F43) -> FALSE | IZ43: =Find_Month(IZ$34,IZ$35,$F43) -> FALSE | JA43: =Find_Month(JA$34,JA$35,$F43) -> FALSE | JB43: =Find_Month(JB$34,JB$35,$F43) -> FALSE | JC43: =Find_Month(JC$34,JC$35,$F43) -> FALSE | JD43: =Find_Month(JD$34,JD$35,$F43) -> FALSE | JE43: =Find_Month(JE$34,JE$35,$F43) -> FALSE | JF43: =Find_Month(JF$34,JF$35,$F43) -> FALSE | JG43: =Find_Month(JG$34,JG$35,$F43) -> FALSE | JH43: =Find_Month(JH$34,JH$35,$F43) -> FALSE | JI43: =Find_Month(JI$34,JI$35,$F43) -> TRUE | JJ43: =Find_Month(JJ$34,JJ$35,$F43) -> FALSE | JK43: =Find_Month(JK$34,JK$35,$F43) -> FALSE | JL43: =Find_Month(JL$34,JL$35,$F43) -> FALSE | JM43: =Find_Month(JM$34,JM$35,$F43) -> FALSE | JN43: =Find_Month(JN$34,JN$35,$F43) -> FALSE | JO43: =Find_Month(JO$34,JO$35,$F43) -> FALSE | JP43: =Find_Month(JP$34,JP$35,$F43) -> FALSE | JQ43: =Find_Month(JQ$34,JQ$35,$F43) -> FALSE | JR43: =Find_Month(JR$34,JR$35,$F43) -> FALSE | JS43: =Find_Month(JS$34,JS$35,$F43) -> FALSE | JT43: =Find_Month(JT$34,JT$35,$F43) -> FALSE | JU43: =Find_Month(JU$34,JU$35,$F43) -> TRUE | JV43: =Find_Month(JV$34,JV$35,$F43) -> FALSE | JW43: =Find_Month(JW$34,JW$35,$F43) -> FALSE | JX43: =Find_Month(JX$34,JX$35,$F43) -> FALSE | JY43: =Find_Month(JY$34,JY$35,$F43) -> FALSE | JZ43: =Find_Month(JZ$34,JZ$35,$F43) -> FALSE | KA43: =Find_Month(KA$34,KA$35,$F43) -> FALSE | KB43: =Find_Month(KB$34,KB$35,$F43) -> FALSE | KC43: =Find_Month(KC$34,KC$35,$F43) -> FALSE | KD43: =Find_Month(KD$34,KD$35,$F43) -> FALSE | KE43: =Find_Month(KE$34,KE$35,$F43) -> FALSE | KF43: =Find_Month(KF$34,KF$35,$F43) -> FALSE | KG43: =Find_Month(KG$34,KG$35,$F43) -> TRUE | KH43: =Find_Month(KH$34,KH$35,$F43) -> FALSE | KI43: =Find_Month(KI$34,KI$35,$F43) -> FALSE | KJ43: =Find_Month(KJ$34,KJ$35,$F43) -> FALSE | KK43: =Find_Month(KK$34,KK$35,$F43) -> FALSE | KL43: =Find_Month(KL$34,KL$35,$F43) -> FALSE | KM43: =Find_Month(KM$34,KM$35,$F43) -> FALSE | KN43: =Find_Month(KN$34,KN$35,$F43) -> FALSE | KO43: =Find_Month(KO$34,KO$35,$F43) -> FALSE | KP43: =Find_Month(KP$34,KP$35,$F43) -> FALSE | KQ43: =Find_Month(KQ$34,KQ$35,$F43) -> FALSE | KR43: =Find_Month(KR$34,KR$35,$F43) -> FALSE | KS43: =Find_Month(KS$34,KS$35,$F43) -> TRUE | KT43: =Find_Month(KT$34,KT$35,$F43) -> FALSE | KU43: =Find_Month(KU$34,KU$35,$F43) -> FALSE | KV43: =Find_Month(KV$34,KV$35,$F43) -> FALSE | KW43: =Find_Month(KW$34,KW$35,$F43) -> FALSE | KX43: =Find_Month(KX$34,KX$35,$F43) -> FALSE | KY43: =Find_Month(KY$34,KY$35,$F43) -> FALSE | KZ43: =Find_Month(KZ$34,KZ$35,$F43) -> FALSE | LA43: =Find_Month(LA$34,LA$35,$F43) -> FALSE | LB43: =Find_Month(LB$34,LB$35,$F43) -> FALSE | LC43: =Find_Month(LC$34,LC$35,$F43) -> FALSE | LD43: =Find_Month(LD$34,LD$35,$F43) -> FALSE | LE43: =Find_Month(LE$34,LE$35,$F43) -> TRUE | LF43: =Find_Month(LF$34,LF$35,$F43) -> FALSE | LG43: =Find_Month(LG$34,LG$35,$F43) -> FALSE | LH43: =Find_Month(LH$34,LH$35,$F43) -> FALSE | LI43: =Find_Month(LI$34,LI$35,$F43) -> FALSE | LJ43: =Find_Month(LJ$34,LJ$35,$F43) -> FALSE | LK43: =Find_Month(LK$34,LK$35,$F43) -> FALSE | LL43: =Find_Month(LL$34,LL$35,$F43) -> FALSE | LM43: =Find_Month(LM$34,LM$35,$F43) -> FALSE | LN43: =Find_Month(LN$34,LN$35,$F43) -> FALSE | LO43: =Find_Month(LO$34,LO$35,$F43) -> FALSE | LP43: =Find_Month(LP$34,LP$35,$F43) -> FALSE | LQ43: =Find_Month(LQ$34,LQ$35,$F43) -> TRUE | LR43: =Find_Month(LR$34,LR$35,$F43) -> FALSE | LS43: =Find_Month(LS$34,LS$35,$F43) -> FALSE | LT43: =Find_Month(LT$34,LT$35,$F43) -> FALSE | LU43: =Find_Month(LU$34,LU$35,$F43) -> FALSE | LV43: =Find_Month(LV$34,LV$35,$F43) -> FALSE | LW43: =Find_Month(LW$34,LW$35,$F43) -> FALSE | LX43: =Find_Month(LX$34,LX$35,$F43) -> FALSE | LY43: =Find_Month(LY$34,LY$35,$F43) -> FALSE | LZ43: =Find_Month(LZ$34,LZ$35,$F43) -> FALSE | MA43: =Find_Month(MA$34,MA$35,$F43) -> FALSE | MB43: =Find_Month(MB$34,MB$35,$F43) -> FALSE | MC43: =Find_Month(MC$34,MC$35,$F43) -> TRUE | MD43: =Find_Month(MD$34,MD$35,$F43) -> FALSE | ME43: =Find_Month(ME$34,ME$35,$F43) -> FALSE | MF43: =Find_Month(MF$34,MF$35,$F43) -> FALSE | MG43: =Find_Month(MG$34,MG$35,$F43) -> FALSE | MH43: =Find_Month(MH$34,MH$35,$F43) -> FALSE | MI43: =Find_Month(MI$34,MI$35,$F43) -> FALSE | MJ43: =Find_Month(MJ$34,MJ$35,$F43) -> FALSE | MK43: =Find_Month(MK$34,MK$35,$F43) -> FALSE | ML43: =Find_Month(ML$34,ML$35,$F43) -> FALSE | MM43: =Find_Month(MM$34,MM$35,$F43) -> FALSE | MN43: =Find_Month(MN$34,MN$35,$F43) -> FALSE | MO43: =Find_Month(MO$34,MO$35,$F43) -> TRUE | MP43: =Find_Month(MP$34,MP$35,$F43) -> FALSE | MQ43: =Find_Month(MQ$34,MQ$35,$F43) -> FALSE | MR43: =Find_Month(MR$34,MR$35,$F43) -> FALSE | MS43: =Find_Month(MS$34,MS$35,$F43) -> FALSE | MT43: =Find_Month(MT$34,MT$35,$F43) -> FALSE | MU43: =Find_Month(MU$34,MU$35,$F43) -> FALSE | MV43: =Find_Month(MV$34,MV$35,$F43) -> FALSE | MW43: =Find_Month(MW$34,MW$35,$F43) -> FALSE | MX43: =Find_Month(MX$34,MX$35,$F43) -> FALSE | MY43: =Find_Month(MY$34,MY$35,$F43) -> FALSE | MZ43: =Find_Month(MZ$34,MZ$35,$F43) -> FALSE | NA43: =Find_Month(NA$34,NA$35,$F43) -> TRUE | NB43: =Find_Month(NB$34,NB$35,$F43) -> FALSE | NC43: =Find_Month(NC$34,NC$35,$F43) -> FALSE | ND43: =Find_Month(ND$34,ND$35,$F43) -> FALSE | NE43: =Find_Month(NE$34,NE$35,$F43) -> FALSE | NF43: =Find_Month(NF$34,NF$35,$F43) -> FALSE | NG43: =Find_Month(NG$34,NG$35,$F43) -> FALSE | NH43: =Find_Month(NH$34,NH$35,$F43) -> FALSE | NI43: =Find_Month(NI$34,NI$35,$F43) -> FALSE | NJ43: =Find_Month(NJ$34,NJ$35,$F43) -> FALSE | NK43: =Find_Month(NK$34,NK$35,$F43) -> FALSE | NL43: =Find_Month(NL$34,NL$35,$F43) -> FALSE | NM43: =Find_Month(NM$34,NM$35,$F43) -> TRUE | NN43: =Find_Month(NN$34,NN$35,$F43) -> FALSE | NO43: =Find_Month(NO$34,NO$35,$F43) -> FALSE | NP43: =Find_Month(NP$34,NP$35,$F43) -> FALSE | NQ43: =Find_Month(NQ$34,NQ$35,$F43) -> FALSE | NR43: =Find_Month(NR$34,NR$35,$F43) -> FALSE | NS43: =Find_Month(NS$34,NS$35,$F43) -> FALSE | NT43: =Find_Month(NT$34,NT$35,$F43) -> FALSE | NU43: =Find_Month(NU$34,NU$35,$F43) -> FALSE | NV43: =Find_Month(NV$34,NV$35,$F43) -> FALSE | NW43: =Find_Month(NW$34,NW$35,$F43) -> FALSE | NX43: =Find_Month(NX$34,NX$35,$F43) -> FALSE | NY43: =Find_Month(NY$34,NY$35,$F43) -> TRUE | NZ43: =Find_Month(NZ$34,NZ$35,$F43) -> FALSE | OA43: =Find_Month(OA$34,OA$35,$F43) -> FALSE | OB43: =Find_Month(OB$34,OB$35,$F43) -> FALSE | OC43: =Find_Month(OC$34,OC$35,$F43) -> FALSE | OD43: =Find_Month(OD$34,OD$35,$F43) -> FALSE | OE43: =Find_Month(OE$34,OE$35,$F43) -> FALSE | OF43: =Find_Month(OF$34,OF$35,$F43) -> FALSE | OG43: =Find_Month(OG$34,OG$35,$F43) -> FALSE | OH43: =Find_Month(OH$34,OH$35,$F43) -> FALSE | OI43: =Find_Month(OI$34,OI$35,$F43) -> FALSE | OJ43: =Find_Month(OJ$34,OJ$35,$F43) -> FALSE | OK43: =Find_Month(OK$34,OK$35,$F43) -> TRUE | OL43: =Find_Month(OL$34,OL$35,$F43) -> FALSE | OM43: =Find_Month(OM$34,OM$35,$F43) -> FALSE | ON43: =Find_Month(ON$34,ON$35,$F43) -> FALSE | OO43: =Find_Month(OO$34,OO$35,$F43) -> FALSE | OP43: =Find_Month(OP$34,OP$35,$F43) -> FALSE | OQ43: =Find_Month(OQ$34,OQ$35,$F43) -> FALSE | OR43: =Find_Month(OR$34,OR$35,$F43) -> FALSE | OS43: =Find_Month(OS$34,OS$35,$F43) -> FALSE | OT43: =Find_Month(OT$34,OT$35,$F43) -> FALSE | OU43: =Find_Month(OU$34,OU$35,$F43) -> FALSE | OV43: =Find_Month(OV$34,OV$35,$F43) -> FALSE | OW43: =Find_Month(OW$34,OW$35,$F43) -> TRUE | OX43: =Find_Month(OX$34,OX$35,$F43) -> FALSE | OY43: =Find_Month(OY$34,OY$35,$F43) -> FALSE | OZ43: =Find_Month(OZ$34,OZ$35,$F43) -> FALSE | PA43: =Find_Month(PA$34,PA$35,$F43) -> FALSE | PB43: =Find_Month(PB$34,PB$35,$F43) -> FALSE | PC43: =Find_Month(PC$34,PC$35,$F43) -> FALSE | PD43: =Find_Month(PD$34,PD$35,$F43) -> FALSE | PE43: =Find_Month(PE$34,PE$35,$F43) -> FALSE | PF43: =Find_Month(PF$34,PF$35,$F43) -> FALSE | PG43: =Find_Month(PG$34,PG$35,$F43) -> FALSE | PH43: =Find_Month(PH$34,PH$35,$F43) -> FALSE | PI43: =Find_Month(PI$34,PI$35,$F43) -> TRUE | PJ43: =Find_Month(PJ$34,PJ$35,$F43) -> FALSE | PK43: =Find_Month(PK$34,PK$35,$F43) -> FALSE | PL43: =Find_Month(PL$34,PL$35,$F43) -> FALSE | PM43: =Find_Month(PM$34,PM$35,$F43) -> FALSE | PN43: =Find_Month(PN$34,PN$35,$F43) -> FALSE | PO43: =Find_Month(PO$34,PO$35,$F43) -> FALSE | PP43: =Find_Month(PP$34,PP$35,$F43) -> FALSE | PQ43: =Find_Month(PQ$34,PQ$35,$F43) -> FALSE | PR43: =Find_Month(PR$34,PR$35,$F43) -> FALSE | PS43: =Find_Month(PS$34,PS$35,$F43) -> FALSE | PT43: =Find_Month(PT$34,PT$35,$F43) -> FALSE | PU43: =Find_Month(PU$34,PU$35,$F43) -> TRUE | PV43: =Find_Month(PV$34,PV$35,$F43) -> FALSE | PW43: =Find_Month(PW$34,PW$35,$F43) -> FALSE | PX43: =Find_Month(PX$34,PX$35,$F43) -> FALSE | PY43: =Find_Month(PY$34,PY$35,$F43) -> FALSE | PZ43: =Find_Month(PZ$34,PZ$35,$F43) -> FALSE | QA43: =Find_Month(QA$34,QA$35,$F43) -> FALSE | QB43: =Find_Month(QB$34,QB$35,$F43) -> FALSE | QC43: =Find_Month(QC$34,QC$35,$F43) -> FALSE | QD43: =Find_Month(QD$34,QD$35,$F43) -> FALSE | QE43: =Find_Month(QE$34,QE$35,$F43) -> FALSE | QF43: =Find_Month(QF$34,QF$35,$F43) -> FALSE | QG43: =Find_Month(QG$34,QG$35,$F43) -> TRUE | QH43: =Find_Month(QH$34,QH$35,$F43) -> FALSE | QI43: =Find_Month(QI$34,QI$35,$F43) -> FALSE | QJ43: =Find_Month(QJ$34,QJ$35,$F43) -> FALSE | QK43: =Find_Month(QK$34,QK$35,$F43) -> FALSE | QL43: =Find_Month(QL$34,QL$35,$F43) -> FALSE | QM43: =Find_Month(QM$34,QM$35,$F43) -> FALSE | QN43: =Find_Month(QN$34,QN$35,$F43) -> FALSE | QO43: =Find_Month(QO$34,QO$35,$F43) -> FALSE | QP43: =Find_Month(QP$34,QP$35,$F43) -> FALSE | QQ43: =Find_Month(QQ$34,QQ$35,$F43) -> FALSE | QR43: =Find_Month(QR$34,QR$35,$F43) -> FALSE | QS43: =Find_Month(QS$34,QS$35,$F43) -> TRUE | QT43: =Find_Month(QT$34,QT$35,$F43) -> FALSE | QU43: =Find_Month(QU$34,QU$35,$F43) -> FALSE | QV43: =Find_Month(QV$34,QV$35,$F43) -> FALSE | QW43: =Find_Month(QW$34,QW$35,$F43) -> FALSE | QX43: =Find_Month(QX$34,QX$35,$F43) -> FALSE | QY43: =Find_Month(QY$34,QY$35,$F43) -> FALSE | QZ43: =Find_Month(QZ$34,QZ$35,$F43) -> FALSE | RA43: =Find_Month(RA$34,RA$35,$F43) -> FALSE | RB43: =Find_Month(RB$34,RB$35,$F43) -> FALSE | RC43: =Find_Month(RC$34,RC$35,$F43) -> FALSE | RD43: =Find_Month(RD$34,RD$35,$F43) -> FALSE | RE43: =Find_Month(RE$34,RE$35,$F43) -> TRUE | RF43: =Find_Month(RF$34,RF$35,$F43) -> FALSE | RG43: =Find_Month(RG$34,RG$35,$F43) -> FALSE | RH43: =Find_Month(RH$34,RH$35,$F43) -> FALSE | RI43: =Find_Month(RI$34,RI$35,$F43) -> FALSE | RJ43: =Find_Month(RJ$34,RJ$35,$F43) -> FALSE | RK43: =Find_Month(RK$34,RK$35,$F43) -> FALSE | RL43: =Find_Month(RL$34,RL$35,$F43) -> FALSE | RM43: =Find_Month(RM$34,RM$35,$F43) -> FALSE | RN43: =Find_Month(RN$34,RN$35,$F43) -> FALSE | RO43: =Find_Month(RO$34,RO$35,$F43) -> FALSE | RP43: =Find_Month(RP$34,RP$35,$F43) -> FALSE | RQ43: =Find_Month(RQ$34,RQ$35,$F43) -> TRUE | RR43: =Find_Month(RR$34,RR$35,$F43) -> FALSE | RS43: =Find_Month(RS$34,RS$35,$F43) -> FALSE | RT43: =Find_Month(RT$34,RT$35,$F43) -> FALSE | RU43: =Find_Month(RU$34,RU$35,$F43) -> FALSE | RV43: =Find_Month(RV$34,RV$35,$F43) -> FALSE | RW43: =Find_Month(RW$34,RW$35,$F43) -> FALSE | RX43: =Find_Month(RX$34,RX$35,$F43) -> FALSE | RY43: =Find_Month(RY$34,RY$35,$F43) -> FALSE | RZ43: =Find_Month(RZ$34,RZ$35,$F43) -> FALSE | SA43: =Find_Month(SA$34,SA$35,$F43) -> FALSE | SB43: =Find_Month(SB$34,SB$35,$F43) -> FALSE | SC43: =Find_Month(SC$34,SC$35,$F43) -> FALSE | SD43: =Find_Month(SD$34,SD$35,$F43) -> FALSE | SE43: =Find_Month(SE$34,SE$35,$F43) -> FALSE | SF43: =Find_Month(SF$34,SF$35,$F43) -> FALSE | SG43: =Find_Month(SG$34,SG$35,$F43) -> FALSE | SH43: =Find_Month(SH$34,SH$35,$F43) -> FALSE | SI43: =Find_Month(SI$34,SI$35,$F43) -> FALSE | SJ43: =Find_Month(SJ$34,SJ$35,$F43) -> FALSE | SK43: =Find_Month(SK$34,SK$35,$F43) -> FALSE | SL43: =Find_Month(SL$34,SL$35,$F43) -> FALSE | SM43: =Find_Month(SM$34,SM$35,$F43) -> FALSE | SN43: =Find_Month(SN$34,SN$35,$F43) -> FALSE | SO43: =Find_Month(SO$34,SO$35,$F43) -> FALSE | SP43: =Find_Month(SP$34,SP$35,$F43) -> FALSE | SQ43: =Find_Month(SQ$34,SQ$35,$F43) -> FALSE | SR43: =Find_Month(SR$34,SR$35,$F43) -> FALSE | SS43: =Find_Month(SS$34,SS$35,$F43) -> FALSE | ST43: =Find_Month(ST$34,ST$35,$F43) -> FALSE | SU43: =Find_Month(SU$34,SU$35,$F43) -> FALSE | SV43: =Find_Month(SV$34,SV$35,$F43) -> FALSE | SW43: =Find_Month(SW$34,SW$35,$F43) -> FALSE | SX43: =Find_Month(SX$34,SX$35,$F43) -> FALSE | SY43: =Find_Month(SY$34,SY$35,$F43) -> FALSE | SZ43: =Find_Month(SZ$34,SZ$35,$F43) -> FALSE | TA43: =Find_Month(TA$34,TA$35,$F43) -> FALSE | TB43: =Find_Month(TB$34,TB$35,$F43) -> FALSE | TC43: =Find_Month(TC$34,TC$35,$F43) -> FALSE | TD43: =Find_Month(TD$34,TD$35,$F43) -> FALSE | TE43: =Find_Month(TE$34,TE$35,$F43) -> FALSE | TF43: =Find_Month(TF$34,TF$35,$F43) -> FALSE | TG43: =Find_Month(TG$34,TG$35,$F43) -> FALSE | TH43: =Find_Month(TH$34,TH$35,$F43) -> FALSE | TI43: =Find_Month(TI$34,TI$35,$F43) -> FALSE | TJ43: =Find_Month(TJ$34,TJ$35,$F43) -> FALSE | TK43: =Find_Month(TK$34,TK$35,$F43) -> FALSE | TL43: =Find_Month(TL$34,TL$35,$F43) -> FALSE | TM43: =Find_Month(TM$34,TM$35,$F43) -> FALSE | TN43: =Find_Month(TN$34,TN$35,$F43) -> FALSE | TO43: =Find_Month(TO$34,TO$35,$F43) -> FALSE | TP43: =Find_Month(TP$34,TP$35,$F43) -> FALSE | TQ43: =Find_Month(TQ$34,TQ$35,$F43) -> FALSE | TR43: =Find_Month(TR$34,TR$35,$F43) -> FALSE | TS43: =Find_Month(TS$34,TS$35,$F43) -> FALSE | TT43: =Find_Month(TT$34,TT$35,$F43) -> FALSE | TU43: =Find_Month(TU$34,TU$35,$F43) -> FALSE | TV43: =Find_Month(TV$34,TV$35,$F43) -> FALSE | TW43: =Find_Month(TW$34,TW$35,$F43) -> FALSE | TX43: =Find_Month(TX$34,TX$35,$F43) -> FALSE | TY43: =Find_Month(TY$34,TY$35,$F43) -> FALSE
